Workbook

Sheet Auswahl
B2: =Translation!A4&" "&Translation!A5 -> Engineering tool Solar system
B3: v2.36
B5: =Translation!A9 -> Project data | G5: =Translation!A42 -> System selection | L5: =Translation!A65 -> Collector details | Q5: =Translation!A95 -> Material composition | V5: =Translation!A135 -> Solar yield | AA5: =Translation!A175 -> Hydraulical scetch | AF5: =Translation!A273 -> Expansion vessel | AK5: =Translation!A298 -> Printout
D8: =Translation!$A$10 -> Project
D10: =Translation!$A$11 -> Name | J10: Beispielprojekt
D12: =Translation!$A$12 -> Street
D14: =Translation!$A$13 -> Postcode/Town
D16: =Translation!$A$14 -> Phone
D18: =Translation!$A$15 -> Customer
D20: =Translation!$A$11 -> Name | J20: Stiebel Eltron GmbH & Co. KG
D22: =Translation!$A$12 -> Street | J22: Dr.-Stiebel-Straße
D24: =Translation!$A$13 -> Postcode/Town | J24: 37603 Holzminden
D26: =Translation!$A$14 -> Phone | J26: 05531 / 702 110
D28: =Translation!A16 -> Climate zone
D30: =Translation!A17 -> Country selection
D32: =Translation!A18 -> City/region selection
B51: =$B$5 -> Project data | G51: =$G$5 -> System selection | L51: =$L$5 -> Collector details | Q51: =$Q$5 -> Material composition | V51: =$V$5 -> Solar yield | AA51: =$AA$5 -> Hydraulical scetch | AF51: =$AF$5 -> Expansion vessel | AK51: =$AK$5 -> Printout
E54: =Translation!A43 -> Solar DHW heating
E56: =Translation!$A$44 -> Number of occupants | K56: =Zwischenwerte!C14 -> TRUE
E58: =Translation!$A$45 -> DHW demand
E60: =Translation!A51 -> Solar central heating backup
E62: =Translation!$A$52 -> Heat demand building | K62: =Zwischenwerte!D14 -> FALSE
E64: =Translation!A170 -> Standard outside temperature
E66: =Translation!$A$53 -> Cylinder type
E68: =Translation!A57 -> Solar swimming pool heating
E70: =Translation!$A$58 -> Swimming pool type
E72: =Translation!$A$63 -> Volume in m³
B101: =$B$5 -> Project data | G101: =$G$5 -> System selection | L101: =$L$5 -> Collector details | Q101: =$Q$5 -> Material composition | V101: =$V$5 -> Solar yield | AA101: =$AA$5 -> Hydraulical scetch | AF101: =$AF$5 -> Expansion vessel | AK101: =$AK$5 -> Printout
D104: =Translation!A65 -> Collector details
D106: =Translation!A66 -> Collector type | Q106: [i]
D108: =Translation!A69 -> Collector number
D110: =Translation!A71 -> Collector inclination
D112: =Translation!A72 -> Collector orientation
D114: =IF(Zwischenwerte!L14<4,Translation!A83,"") -> Shape of roof
D116: =IF(Zwischenwerte!L14<4,Translation!A86,"") -> Fixing type
X122: =Translation!A93 -> Click at desired collector arrangement
X124: >> | Y124: =Zwischenwerte!M14 -> On end next to each other
B151: =$B$5 -> Project data | G151: =$G$5 -> System selection | L151: =$L$5 -> Collector details | Q151: =$Q$5 -> Material composition | V151: =$V$5 -> Solar yield | AA151: =$AA$5 -> Hydraulical scetch | AF151: =$AF$5 -> Expansion vessel | AK151: =$AK$5 -> Printout
C153: =Translation!A96 -> Position | E153: =Translation!A97 -> Number | H153: =Translation!A98 -> ID | K153: =Translation!A99 -> Description | V153: =Translation!A100 -> Price each | Y153: =Translation!A101 -> Total price
B154: =IF(AND(Zwischenwerte!$G$225=FALSE,Zwischenwerte!$D$225=H154),TRUE,FALSE) -> FALSE | C154: 1 | E154: 2 | H154: 230016 | K154: =IF(H154="","",IF(VLOOKUP(H154,Preisliste!$B:$C,2,FALSE)="","No Description entered. Please edit pricelist.",VLOOKUP(H154,Preisliste!$B:$C,2,FALSE))) -> Solar flat-plate collector SOL 27 premium S | V154: =IF(H154="","",IF(VLOOKUP(H154,Preisliste!$B:$D,3,FALSE)="--- ","No price entered",VLOOKUP(H154,Preisliste!$B:$D,3,FALSE))) -> 809 | Y154: =IF(ISERROR(E154*V154),"",E154*V154) -> 1618 | AC154: x
B155: =IF(AND(Zwischenwerte!$G$225=FALSE,Zwischenwerte!$D$225=H155),TRUE,FALSE) -> FALSE | C155: 2 | E155: 1 | H155: 230170 | K155: =IF(H155="","",IF(VLOOKUP(H155,Preisliste!$B:$C,2,FALSE)="","No Description entered. Please edit pricelist.",VLOOKUP(H155,Preisliste!$B:$C,2,FALSE))) -> Mounting frame SOL R2 | V155: =IF(H155="","",IF(VLOOKUP(H155,Preisliste!$B:$D,3,FALSE)="--- ","No price entered",VLOOKUP(H155,Preisliste!$B:$D,3,FALSE))) -> 160 | Y155: =IF(ISERROR(E155*V155),"",E155*V155) -> 160 | AC155: x
B156: =IF(AND(Zwischenwerte!$G$225=FALSE,Zwischenwerte!$D$225=H156),TRUE,FALSE) -> FALSE | C156: 3 | E156: 2 | H156: 230175 | K156: =IF(H156="","",IF(VLOOKUP(H156,Preisliste!$B:$C,2,FALSE)="","No Description entered. Please edit pricelist.",VLOOKUP(H156,Preisliste!$B:$C,2,FALSE))) -> Fixing Kit - tiled roof SOL BP | V156: =IF(H156="","",IF(VLOOKUP(H156,Preisliste!$B:$D,3,FALSE)="--- ","No price entered",VLOOKUP(H156,Preisliste!$B:$D,3,FALSE))) -> 80 | Y156: 160 | AC156: x
B157: =IF(AND(Zwischenwerte!$G$225=FALSE,Zwischenwerte!$D$225=H157),TRUE,FALSE) -> FALSE | C157: 4 | E157: 1 | H157: 230185 | K157: =IF(H157="","",IF(VLOOKUP(H157,Preisliste!$B:$C,2,FALSE)="","No Description entered. Please edit pricelist.",VLOOKUP(H157,Preisliste!$B:$C,2,FALSE))) -> Push-fit connection SOL SV-A | V157: =IF(H157="","",IF(VLOOKUP(H157,Preisliste!$B:$D,3,FALSE)="--- ","No price entered",VLOOKUP(H157,Preisliste!$B:$D,3,FALSE))) -> 49 | Y157: 49 | AC157: x
B158: =IF(AND(Zwischenwerte!$G$225=FALSE,Zwischenwerte!$D$225=H158),TRUE,FALSE) -> FALSE | C158: 5 | E158: 1 | H158: 230186 | K158: =IF(H158="","",IF(VLOOKUP(H158,Preisliste!$B:$C,2,FALSE)="","No Description entered. Please edit pricelist.",VLOOKUP(H158,Preisliste!$B:$C,2,FALSE))) -> Push-fit connection SOL SV-D | V158: =IF(H158="","",IF(VLOOKUP(H158,Preisliste!$B:$D,3,FALSE)="--- ","No price entered",VLOOKUP(H158,Preisliste!$B:$D,3,FALSE))) -> 299 | Y158: 299 | AC158: x
B159: =IF(AND(Zwischenwerte!$G$225=FALSE,Zwischenwerte!$D$225=H159),TRUE,FALSE) -> FALSE | C159: 6 | E159: 1 | H159: 232945 | K159: =IF(H159="","",IF(VLOOKUP(H159,Preisliste!$B:$C,2,FALSE)="","No Description entered. Please edit pricelist.",VLOOKUP(H159,Preisliste!$B:$C,2,FALSE))) -> Flexible solar pipe SFR 15, DN 20 15m | V159: =IF(H159="","",IF(VLOOKUP(H159,Preisliste!$B:$D,3,FALSE)="--- ","No price entered",VLOOKUP(H159,Preisliste!$B:$D,3,FALSE))) -> 585 | Y159: 585 | AC159: x
B160: =IF(AND(Zwischenwerte!$G$225=FALSE,Zwischenwerte!$D$225=H160),TRUE,FALSE) -> FALSE | C160: 7 | E160: 1 | H160: 234784 | K160: =IF(H160="","",IF(VLOOKUP(H160,Preisliste!$B:$C,2,FALSE)="","No Description entered. Please edit pricelist.",VLOOKUP(H160,Preisliste!$B:$C,2,FALSE))) -> Solar compact installation SOKI 7 E trend | V160: =IF(H160="","",IF(VLOOKUP(H160,Preisliste!$B:$D,3,FALSE)="--- ","No price entered",VLOOKUP(H160,Preisliste!$B:$D,3,FALSE))) -> 540 | Y160: 540 | AC160: x
B161: =IF(AND(Zwischenwerte!$G$225=FALSE,Zwischenwerte!$D$225=H161),TRUE,FALSE) -> FALSE | C161: 8 | E161: 1 | H161: 187873 | K161: =IF(H161="","",IF(VLOOKUP(H161,Preisliste!$B:$C,2,FALSE)="","No Description entered. Please edit pricelist.",VLOOKUP(H161,Preisliste!$B:$C,2,FALSE))) -> Warm water cylinder SBB 300 plus | V161: =IF(H161="","",IF(VLOOKUP(H161,Preisliste!$B:$D,3,FALSE)="--- ","No price entered",VLOOKUP(H161,Preisliste!$B:$D,3,FALSE))) -> 1692 | Y161: 1692 | AC161: x
B162: =IF(AND(Zwischenwerte!$G$225=FALSE,Zwischenwerte!$D$225=H162),TRUE,FALSE) -> FALSE | C162: 9 | E162: 1 | H162: 73222 | K162: =IF(H162="","",IF(VLOOKUP(H162,Preisliste!$B:$C,2,FALSE)="","No Description entered. Please edit pricelist.",VLOOKUP(H162,Preisliste!$B:$C,2,FALSE))) -> Heat transfer liquid H30-L, 20 l | V162: =IF(H162="","",IF(VLOOKUP(H162,Preisliste!$B:$D,3,FALSE)="--- ","No price entered",VLOOKUP(H162,Preisliste!$B:$D,3,FALSE))) -> 79 | Y162: 79 | AC162: x
B163: =IF(AND(Zwischenwerte!$G$225=FALSE,Zwischenwerte!$D$225=H163),TRUE,FALSE) -> FALSE | C163: 10 | E163: 1 | H163: 74031 | K163: =IF(H163="","",IF(VLOOKUP(H163,Preisliste!$B:$C,2,FALSE)="","No Description entered. Please edit pricelist.",VLOOKUP(H163,Preisliste!$B:$C,2,FALSE))) -> Solar expansion vessel 25 l | V163: =IF(H163="","",IF(VLOOKUP(H163,Preisliste!$B:$D,3,FALSE)="--- ","No price entered",VLOOKUP(H163,Preisliste!$B:$D,3,FALSE))) -> 80 | Y163: 80 | AC163: x
B164: =IF(AND(Zwischenwerte!$G$225=FALSE,Zwischenwerte!$D$225=H164),TRUE,FALSE) -> FALSE | C164: 11 | E164: 1 | H164: 231905 | K164: =IF(H164="","",IF(VLOOKUP(H164,Preisliste!$B:$C,2,FALSE)="","No Description entered. Please edit pricelist.",VLOOKUP(H164,Preisliste!$B:$C,2,FALSE))) -> DEV connection set AGWH | V164: =IF(H164="","",IF(VLOOKUP(H164,Preisliste!$B:$D,3,FALSE)="--- ","No price entered",VLOOKUP(H164,Preisliste!$B:$D,3,FALSE))) -> 46 | Y164: 46 | AC164: x
B165: =IF(AND(Zwischenwerte!$G$225=FALSE,Zwischenwerte!$D$225=H165),TRUE,FALSE) -> FALSE | C165: 12 | K165: =IF(H165="","",IF(VLOOKUP(H165,Preisliste!$B:$C,2,FALSE)="","No Description entered. Please edit pricelist.",VLOOKUP(H165,Preisliste!$B:$C,2,FALSE))) ->  | V165: =IF(H165="","",IF(VLOOKUP(H165,Preisliste!$B:$D,3,FALSE)="--- ","No price entered",VLOOKUP(H165,Preisliste!$B:$D,3,FALSE))) ->  | Y165: =IF(ISERROR(E165*V165),"",E165*V165) ->  | AC165: x
B166: =IF(AND(Zwischenwerte!$G$225=FALSE,Zwischenwerte!$D$225=H166),TRUE,FALSE) -> FALSE | C166: 13 | K166: =IF(H166="","",IF(VLOOKUP(H166,Preisliste!$B:$C,2,FALSE)="","No Description entered. Please edit pricelist.",VLOOKUP(H166,Preisliste!$B:$C,2,FALSE))) ->  | V166: =IF(H166="","",IF(VLOOKUP(H166,Preisliste!$B:$D,3,FALSE)="--- ","No price entered",VLOOKUP(H166,Preisliste!$B:$D,3,FALSE))) ->  | AC166: x
B167: =IF(AND(Zwischenwerte!$G$225=FALSE,Zwischenwerte!$D$225=H167),TRUE,FALSE) -> FALSE | C167: 14 | K167: =IF(H167="","",IF(VLOOKUP(H167,Preisliste!$B:$C,2,FALSE)="","No Description entered. Please edit pricelist.",VLOOKUP(H167,Preisliste!$B:$C,2,FALSE))) ->  | V167: =IF(H167="","",IF(VLOOKUP(H167,Preisliste!$B:$D,3,FALSE)="--- ","No price entered",VLOOKUP(H167,Preisliste!$B:$D,3,FALSE))) ->  | AC167: x
B168: =IF(AND(Zwischenwerte!$G$225=FALSE,Zwischenwerte!$D$225=H168),TRUE,FALSE) -> FALSE | C168: 15 | K168: =IF(H168="","",IF(VLOOKUP(H168,Preisliste!$B:$C,2,FALSE)="","No Description entered. Please edit pricelist.",VLOOKUP(H168,Preisliste!$B:$C,2,FALSE))) ->  | V168: =IF(H168="","",IF(VLOOKUP(H168,Preisliste!$B:$D,3,FALSE)="--- ","No price entered",VLOOKUP(H168,Preisliste!$B:$D,3,FALSE))) ->  | AC168: x
B169: =IF(AND(Zwischenwerte!$G$225=FALSE,Zwischenwerte!$D$225=H169),TRUE,FALSE) -> FALSE | C169: 16 | K169: =IF(H169="","",IF(VLOOKUP(H169,Preisliste!$B:$C,2,FALSE)="","No Description entered. Please edit pricelist.",VLOOKUP(H169,Preisliste!$B:$C,2,FALSE))) ->  | V169: =IF(H169="","",IF(VLOOKUP(H169,Preisliste!$B:$D,3,FALSE)="--- ","No price entered",VLOOKUP(H169,Preisliste!$B:$D,3,FALSE))) ->  | AC169: x
B170: =IF(AND(Zwischenwerte!$G$225=FALSE,Zwischenwerte!$D$225=H170),TRUE,FALSE) -> FALSE | C170: 17 | K170: =IF(H170="","",IF(VLOOKUP(H170,Preisliste!$B:$C,2,FALSE)="","No Description entered. Please edit pricelist.",VLOOKUP(H170,Preisliste!$B:$C,2,FALSE))) ->  | V170: =IF(H170="","",IF(VLOOKUP(H170,Preisliste!$B:$D,3,FALSE)="--- ","No price entered",VLOOKUP(H170,Preisliste!$B:$D,3,FALSE))) ->  | AC170: x
B171: =IF(AND(Zwischenwerte!$G$225=FALSE,Zwischenwerte!$D$225=H171),TRUE,FALSE) -> FALSE | C171: 18 | K171: =IF(H171="","",IF(VLOOKUP(H171,Preisliste!$B:$C,2,FALSE)="","No Description entered. Please edit pricelist.",VLOOKUP(H171,Preisliste!$B:$C,2,FALSE))) ->  | V171: =IF(H171="","",IF(VLOOKUP(H171,Preisliste!$B:$D,3,FALSE)="--- ","No price entered",VLOOKUP(H171,Preisliste!$B:$D,3,FALSE))) ->  | AC171: x
B172: =IF(AND(Zwischenwerte!$G$225=FALSE,Zwischenwerte!$D$225=H172),TRUE,FALSE) -> FALSE | C172: 19 | K172: =IF(H172="","",IF(VLOOKUP(H172,Preisliste!$B:$C,2,FALSE)="","No Description entered. Please edit pricelist.",VLOOKUP(H172,Preisliste!$B:$C,2,FALSE))) ->  | V172: =IF(H172="","",IF(VLOOKUP(H172,Preisliste!$B:$D,3,FALSE)="--- ","No price entered",VLOOKUP(H172,Preisliste!$B:$D,3,FALSE))) ->  | AC172: x
B173: =IF(AND(Zwischenwerte!$G$225=FALSE,Zwischenwerte!$D$225=H173),TRUE,FALSE) -> FALSE | C173: 20 | K173: =IF(H173="","",IF(VLOOKUP(H173,Preisliste!$B:$C,2,FALSE)="","No Description entered. Please edit pricelist.",VLOOKUP(H173,Preisliste!$B:$C,2,FALSE))) ->  | V173: =IF(H173="","",IF(VLOOKUP(H173,Preisliste!$B:$D,3,FALSE)="--- ","No price entered",VLOOKUP(H173,Preisliste!$B:$D,3,FALSE))) ->  | AC173: x
B174: =IF(AND(Zwischenwerte!$G$225=FALSE,Zwischenwerte!$D$225=H174),TRUE,FALSE) -> FALSE | C174: 21 | K174: =IF(H174="","",IF(VLOOKUP(H174,Preisliste!$B:$C,2,FALSE)="","No Description entered. Please edit pricelist.",VLOOKUP(H174,Preisliste!$B:$C,2,FALSE))) ->  | V174: =IF(H174="","",IF(VLOOKUP(H174,Preisliste!$B:$D,3,FALSE)="--- ","No price entered",VLOOKUP(H174,Preisliste!$B:$D,3,FALSE))) ->  | AC174: x
B175: =IF(AND(Zwischenwerte!$G$225=FALSE,Zwischenwerte!$D$225=H175),TRUE,FALSE) -> FALSE | C175: 22 | K175: =IF(H175="","",IF(VLOOKUP(H175,Preisliste!$B:$C,2,FALSE)="","No Description entered. Please edit pricelist.",VLOOKUP(H175,Preisliste!$B:$C,2,FALSE))) ->  | V175: =IF(H175="","",IF(VLOOKUP(H175,Preisliste!$B:$D,3,FALSE)="--- ","No price entered",VLOOKUP(H175,Preisliste!$B:$D,3,FALSE))) ->  | AC175: x
B176: =IF(AND(Zwischenwerte!$G$225=FALSE,Zwischenwerte!$D$225=H176),TRUE,FALSE) -> FALSE | C176: 23 | K176: =IF(H176="","",IF(VLOOKUP(H176,Preisliste!$B:$C,2,FALSE)="","No Description entered. Please edit pricelist.",VLOOKUP(H176,Preisliste!$B:$C,2,FALSE))) ->  | V176: =IF(H176="","",IF(VLOOKUP(H176,Preisliste!$B:$D,3,FALSE)="--- ","No price entered",VLOOKUP(H176,Preisliste!$B:$D,3,FALSE))) ->  | AC176: x
B177: =IF(AND(Zwischenwerte!$G$225=FALSE,Zwischenwerte!$D$225=H177),TRUE,FALSE) -> FALSE | C177: 24 | K177: =IF(H177="","",IF(VLOOKUP(H177,Preisliste!$B:$C,2,FALSE)="","No Description entered. Please edit pricelist.",VLOOKUP(H177,Preisliste!$B:$C,2,FALSE))) ->  | V177: =IF(H177="","",IF(VLOOKUP(H177,Preisliste!$B:$D,3,FALSE)="--- ","No price entered",VLOOKUP(H177,Preisliste!$B:$D,3,FALSE))) ->  | AC177: x
B178: =IF(AND(Zwischenwerte!$G$225=FALSE,Zwischenwerte!$D$225=H178),TRUE,FALSE) -> FALSE | C178: 25 | K178: =IF(H178="","",IF(VLOOKUP(H178,Preisliste!$B:$C,2,FALSE)="","No Description entered. Please edit pricelist.",VLOOKUP(H178,Preisliste!$B:$C,2,FALSE))) ->  | V178: =IF(H178="","",IF(VLOOKUP(H178,Preisliste!$B:$D,3,FALSE)="--- ","No price entered",VLOOKUP(H178,Preisliste!$B:$D,3,FALSE))) ->  | AC178: x
B179: =IF(AND(Zwischenwerte!$G$225=FALSE,Zwischenwerte!$D$225=H179),TRUE,FALSE) -> FALSE | C179: 26 | K179: =IF(H179="","",IF(VLOOKUP(H179,Preisliste!$B:$C,2,FALSE)="","No Description entered. Please edit pricelist.",VLOOKUP(H179,Preisliste!$B:$C,2,FALSE))) ->  | V179: =IF(H179="","",IF(VLOOKUP(H179,Preisliste!$B:$D,3,FALSE)="--- ","No price entered",VLOOKUP(H179,Preisliste!$B:$D,3,FALSE))) ->  | AC179: x
B180: =IF(AND(Zwischenwerte!$G$225=FALSE,Zwischenwerte!$D$225=H180),TRUE,FALSE) -> FALSE | C180: 27 | K180: =IF(H180="","",IF(VLOOKUP(H180,Preisliste!$B:$C,2,FALSE)="","No Description entered. Please edit pricelist.",VLOOKUP(H180,Preisliste!$B:$C,2,FALSE))) ->  | V180: =IF(H180="","",IF(VLOOKUP(H180,Preisliste!$B:$D,3,FALSE)="--- ","No price entered",VLOOKUP(H180,Preisliste!$B:$D,3,FALSE))) ->  | AC180: x
B181: =IF(AND(Zwischenwerte!$G$225=FALSE,Zwischenwerte!$D$225=H181),TRUE,FALSE) -> FALSE | C181: 28 | K181: =IF(H181="","",IF(VLOOKUP(H181,Preisliste!$B:$C,2,FALSE)="","No Description entered. Please edit pricelist.",VLOOKUP(H181,Preisliste!$B:$C,2,FALSE))) ->  | V181: =IF(H181="","",IF(VLOOKUP(H181,Preisliste!$B:$D,3,FALSE)="--- ","No price entered",VLOOKUP(H181,Preisliste!$B:$D,3,FALSE))) ->  | AC181: x
B182: =IF(AND(Zwischenwerte!$G$225=FALSE,Zwischenwerte!$D$225=H182),TRUE,FALSE) -> FALSE | C182: 29 | K182: =IF(H182="","",IF(VLOOKUP(H182,Preisliste!$B:$C,2,FALSE)="","No Description entered. Please edit pricelist.",VLOOKUP(H182,Preisliste!$B:$C,2,FALSE))) ->  | V182: =IF(H182="","",IF(VLOOKUP(H182,Preisliste!$B:$D,3,FALSE)="--- ","No price entered",VLOOKUP(H182,Preisliste!$B:$D,3,FALSE))) ->  | AC182: x
B183: =IF(AND(Zwischenwerte!$G$225=FALSE,Zwischenwerte!$D$225=H183),TRUE,FALSE) -> FALSE | C183: 30 | K183: =IF(H183="","",IF(VLOOKUP(H183,Preisliste!$B:$C,2,FALSE)="","No Description entered. Please edit pricelist.",VLOOKUP(H183,Preisliste!$B:$C,2,FALSE))) ->  | V183: =IF(H183="","",IF(VLOOKUP(H183,Preisliste!$B:$D,3,FALSE)="--- ","No price entered",VLOOKUP(H183,Preisliste!$B:$D,3,FALSE))) ->  | AC183: x
B184: =IF(AND(Zwischenwerte!$G$225=FALSE,Zwischenwerte!$D$225=H184),TRUE,FALSE) -> FALSE | C184: 31 | K184: =IF(H184="","",IF(VLOOKUP(H184,Preisliste!$B:$C,2,FALSE)="","No Description entered. Please edit pricelist.",VLOOKUP(H184,Preisliste!$B:$C,2,FALSE))) ->  | V184: =IF(H184="","",IF(VLOOKUP(H184,Preisliste!$B:$D,3,FALSE)="--- ","No price entered",VLOOKUP(H184,Preisliste!$B:$D,3,FALSE))) ->  | AC184: x
B185: =IF(AND(Zwischenwerte!$G$225=FALSE,Zwischenwerte!$D$225=H185),TRUE,FALSE) -> FALSE | C185: 32 | K185: =IF(H185="","",IF(VLOOKUP(H185,Preisliste!$B:$C,2,FALSE)="","No Description entered. Please edit pricelist.",VLOOKUP(H185,Preisliste!$B:$C,2,FALSE))) ->  | V185: =IF(H185="","",IF(VLOOKUP(H185,Preisliste!$B:$D,3,FALSE)="--- ","No price entered",VLOOKUP(H185,Preisliste!$B:$D,3,FALSE))) ->  | AC185: x
B186: =IF(AND(Zwischenwerte!$G$225=FALSE,Zwischenwerte!$D$225=H186),TRUE,FALSE) -> FALSE | C186: 33 | K186: =IF(H186="","",IF(VLOOKUP(H186,Preisliste!$B:$C,2,FALSE)="","No Description entered. Please edit pricelist.",VLOOKUP(H186,Preisliste!$B:$C,2,FALSE))) ->  | V186: =IF(H186="","",IF(VLOOKUP(H186,Preisliste!$B:$D,3,FALSE)="--- ","No price entered",VLOOKUP(H186,Preisliste!$B:$D,3,FALSE))) ->  | AC186: x
B187: =IF(AND(Zwischenwerte!$G$225=FALSE,Zwischenwerte!$D$225=H187),TRUE,FALSE) -> FALSE | C187: 34 | K187: =IF(H187="","",IF(VLOOKUP(H187,Preisliste!$B:$C,2,FALSE)="","No Description entered. Please edit pricelist.",VLOOKUP(H187,Preisliste!$B:$C,2,FALSE))) ->  | V187: =IF(H187="","",IF(VLOOKUP(H187,Preisliste!$B:$D,3,FALSE)="--- ","No price entered",VLOOKUP(H187,Preisliste!$B:$D,3,FALSE))) ->  | AC187: x
B188: =IF(AND(Zwischenwerte!$G$225=FALSE,Zwischenwerte!$D$225=H188),TRUE,FALSE) -> FALSE | C188: 35 | K188: =IF(H188="","",IF(VLOOKUP(H188,Preisliste!$B:$C,2,FALSE)="","No Description entered. Please edit pricelist.",VLOOKUP(H188,Preisliste!$B:$C,2,FALSE))) ->  | V188: =IF(H188="","",IF(VLOOKUP(H188,Preisliste!$B:$D,3,FALSE)="--- ","No price entered",VLOOKUP(H188,Preisliste!$B:$D,3,FALSE))) ->  | AC188: x
B189: =IF(AND(Zwischenwerte!$G$225=FALSE,Zwischenwerte!$D$225=H189),TRUE,FALSE) -> FALSE | C189: 36 | K189: =IF(H189="","",IF(VLOOKUP(H189,Preisliste!$B:$C,2,FALSE)="","No Description entered. Please edit pricelist.",VLOOKUP(H189,Preisliste!$B:$C,2,FALSE))) ->  | V189: =IF(H189="","",IF(VLOOKUP(H189,Preisliste!$B:$D,3,FALSE)="--- ","No price entered",VLOOKUP(H189,Preisliste!$B:$D,3,FALSE))) ->  | AC189: x
B190: =IF(AND(Zwischenwerte!$G$225=FALSE,Zwischenwerte!$D$225=H190),TRUE,FALSE) -> FALSE | C190: 37 | K190: =IF(H190="","",IF(VLOOKUP(H190,Preisliste!$B:$C,2,FALSE)="","No Description entered. Please edit pricelist.",VLOOKUP(H190,Preisliste!$B:$C,2,FALSE))) ->  | V190: =IF(H190="","",IF(VLOOKUP(H190,Preisliste!$B:$D,3,FALSE)="--- ","No price entered",VLOOKUP(H190,Preisliste!$B:$D,3,FALSE))) ->  | AC190: x
B191: =IF(AND(Zwischenwerte!$G$225=FALSE,Zwischenwerte!$D$225=H191),TRUE,FALSE) -> FALSE | C191: 38 | K191: =IF(H191="","",IF(VLOOKUP(H191,Preisliste!$B:$C,2,FALSE)="","No Description entered. Please edit pricelist.",VLOOKUP(H191,Preisliste!$B:$C,2,FALSE))) ->  | V191: =IF(H191="","",IF(VLOOKUP(H191,Preisliste!$B:$D,3,FALSE)="--- ","No price entered",VLOOKUP(H191,Preisliste!$B:$D,3,FALSE))) ->  | AC191: x
X192: =Translation!A102 -> Recommended retail price excl. VAT | Y192: =SUM(Y154:AB191) -> 5308
C198: Zwischenwerte Standard (unbearbeitete Liste aus Matrix) | T198: Manuell hinzugefügte Positionen (über Preisliste) | AG198: Geändert ?
C199: Position | E199: Anzahl | H199: Ident.-Nr. | K199: Anzahl (Original) | O199: Ident.-Nr.(Original)
C200: 1 | E200: 2 | H200: 230016 | K200: 2 | O200: 230016 | AG200: =IF(AND(E200=K200,H200=O200),FALSE,TRUE) -> FALSE
C201: 2 | E201: 1 | H201: 230170 | K201: 1 | O201: 230170 | AG201: =IF(AND(E201=K201,H201=O201),FALSE,TRUE) -> FALSE
C202: 3 | E202: 2 | H202: 230175 | K202: 2 | O202: 230175 | AG202: FALSE
C203: 4 | E203: 1 | H203: 230185 | K203: 1 | O203: 230185 | AG203: FALSE
C204: 5 | E204: 1 | H204: 230186 | K204: 1 | O204: 230186 | AG204: FALSE
C205: 6 | E205: 1 | H205: 232945 | K205: 1 | O205: 232945 | AG205: FALSE
C206: 7 | E206: 1 | H206: 234784 | K206: 1 | O206: 234784 | AG206: FALSE
C207: 8 | E207: 1 | H207: 187873 | K207: 1 | O207: 187873 | AG207: FALSE
C208: 9 | E208: 1 | H208: 73222 | K208: 1 | O208: 73222 | AG208: FALSE
C209: 10 | E209: 1 | H209: 74031 | K209: 1 | O209: 74031 | AG209: FALSE
C210: 11 | E210: 1 | H210: 231905 | K210: 1 | O210: 231905 | AG210: FALSE
C211: 12 | AG211: FALSE
C212: 13 | AG212: FALSE
C213: 14 | AG213: FALSE
C214: 15 | AG214: FALSE
C215: 16 | AG215: FALSE
C216: 17 | AG216: FALSE
C217: 18 | AG217: FALSE
C218: 19 | AG218: FALSE
C219: 20 | AG219: FALSE
C220: 21 | AG220: FALSE
C221: 22 | AG221: FALSE
C222: 23 | AG222: FALSE
C223: 24 | AG223: FALSE
C224: 25 | AG224: FALSE
C225: 26 | AG225: FALSE
C226: 27 | AG226: FALSE
C227: 28 | AG227: FALSE
C228: 29 | AG228: FALSE
C229: 30 | AG229: FALSE
C230: 31 | AG230: FALSE
C231: 32 | AG231: FALSE
C232: 33 | AG232: FALSE
C233: 34 | AG233: FALSE
C234: 35 | AG234: FALSE
C235: 36 | AG235: FALSE
C236: 37 | AG236: FALSE
C237: 38 | AG237: FALSE
AG238: =IF(COUNTIF(AG200:AI237,TRUE)>0,TRUE,IF(T200<>"",TRUE,FALSE)) -> FALSE
B242: formatierung
B243: so lassen !!
B244: sonst vba-fehler
B251: =$B$5 -> Project data | G251: =$G$5 -> System selection | L251: =$L$5 -> Collector details | Q251: =$Q$5 -> Material composition | V251: =$V$5 -> Solar yield | AA251: =$AA$5 -> Hydraulical scetch | AF251: =$AF$5 -> Expansion vessel | AK251: =$AK$5 -> Printout
G254: =Translation!A43 -> Solar DHW heating
G256: =Translation!A45 -> DHW demand | Q256: =Zwischenwerte!F14&" "&Translation!A136&" x "&Zwischenwerte!B100&" "&Translation!A137 -> 4 Occupants x 40 l/day
G258: =Translation!A138 -> Recommended cylinder | Q258: =Zwischenwerte!E225 -> SBB 300 Plus
G260: =Translation!A139 -> Heat demand | Q260: =IF(Zwischenwerte!F6=6,FIXED(Zwischenwerte!B112*365,0)&" kWh/r",FIXED(Zwischenwerte!B112*365,0)&" kWh/a") -> 2.853 kWh/a
G262: =Translation!A135 -> Solar yield | Q262: =IF(Zwischenwerte!$F$6=6,FIXED(Zwischenwerte!E319,0)&" kWh/r",FIXED(Zwischenwerte!E319,0)&" kWh/a") -> 2.013 kWh/a
G264: =Translation!A140 -> Solar coverage DHW heating | Q264: =FIXED(Zwischenwerte!D319*100,1)&" %" -> 70,6 %
G266: =Translation!A51 -> Solar central heating backup
G268: =Translation!A52 -> Heat demand building | Q268: =Zwischenwerte!H14 -> 
G270: =Translation!A141 -> Annual heat demand | Q270: =FIXED(Zwischenwerte!K319,0)&IF(Zwischenwerte!$F$6=6," kWh/r"," kWh/a") -> 
G272: =Translation!A142 -> Heating water buffer cylinder | Q272: =IF(Zwischenwerte!I14=Zwischenwerte!I17,Zwischenwerte!B123,Zwischenwerte!E225) -> SBB 300 Plus
G274: =Translation!A143 -> Solar yield heating backup | Q274: =FIXED(Zwischenwerte!M319,0)&IF(Zwischenwerte!$F$6=6," kWh/r"," kWh/a") -> 
G276: =Translation!A144 -> Coverage DHW | Heating backup | Q276: =FIXED(Zwischenwerte!N319*100,1)&" %" -> 
G278: =Translation!A57 -> Solar swimming pool heating
G280: =Translation!A145 -> Swimming pool type | Volume | Q280: =Zwischenwerte!J14&" | "&Zwischenwerte!K14&" m³" -> | 0 m³
G282: =Translation!A146 -> Duration of use | Cooling | Q282: =Zwischenwerte!B118&IF(Zwischenwerte!$F$6=6," d/r"," d/a")&" | "&Zwischenwerte!B120&" K/d" -> 
G284: =Translation!A147 -> Heat demand for reheating | Q284: =FIXED(Zwischenwerte!B121,1)&" kWh/d" -> 
G286: =Translation!A148 -> Solar yield swimming pool | Q286: =FIXED(Zwischenwerte!G319,0)&IF(Zwischenwerte!$F$6=6," kWh/r"," kWh/a") -> 
G288: =Translation!A149 -> Coverage heat loss swimming pool | Q288: =IF(Zwischenwerte!D25=3,MIN(100,(FIXED(Zwischenwerte!H319*100,1))),MIN(100,(FIXED(Zwischenwerte!F319*100,1))))&" %" -> 
C298: =Translation!A135&" "&Translation!A164&" [kWh/d]" -> Solar yield DHW heating [kWh/d] | S298: =Translation!A165&" "&Translation!A164&" [%]" -> Solar coverage DHW heating [%]
G327: =Translation!A166 -> Extended settings
G329: =Translation!A167 -> Cold water temperature
G331: =Translation!A168 -> Cylinder temperature
G333: =Translation!A169 -> System losses DHW
G335: =Translation!A171 -> Heating limit temperature
B351: =$B$5 -> Project data | G351: =$G$5 -> System selection | L351: =$L$5 -> Collector details | Q351: =$Q$5 -> Material composition | V351: =$V$5 -> Solar yield | AA351: =$AA$5 -> Hydraulical scetch | AF351: =$AF$5 -> Expansion vessel | AK351: =$AK$5 -> Printout
E353: 1 | F353: =Translation!A187 -> Heat pump | R353: 10 | S353: =Translation!A230 -> Fill & drain valve
E354: 1-1 | F354: =Translation!A188 -> Exhaust air module: LWM 250 | R354: 11 | S354: =Translation!A231 -> Oil fired boiler / Gas fired boiler
E355: 1-2 | F355: =Translation!A189 -> Cooling module: WPAC | R355: 12 | S355: =Translation!A232 -> Electric central heating
E356: 2 | F356: =Translation!A190 -> Control unit: WPMW | R356: 13 | S356: =Translation!A233 -> Mixing valve
E357: 2-1 | F357: =Translation!A191 -> Swimming pool module: MSMW | R357: 14 | S357: =Translation!A234 -> Mixing valve actuator
E358: 2-2 | F358: =Translation!A192 -> Remote control: FE 7 | R358: 15 | S358: =Translation!A235 -> Heating control unit
E359: 2-3 | F359: =Translation!A193 -> Remote control cooling: FEK | R359: 16 | S359: =Translation!A236 -> Remote set value selector
E360: 2 a | F360: =Translation!A194 -> Temperature sensor: Outside temperature | R360: 17 | S360: =Translation!A237 -> Temperature sensor: Outside temperature
E361: 2 b | F361: =Translation!A195 -> Temperature sensor: Return temperature | R361: 18 | S361: =Translation!A238 -> Temperature sensor: Flow temperature
E362: 2 c | F362: =Translation!A196 -> Temperature sensor: Flow temperature, DHW "off" | R362: 19 | S362: =Translation!A239 -> Air vent valve
E363: 2 d | F363: =Translation!A197 -> Temperature sensor: Flow temperature, DHW "on" | R363: 20 | S363: =Translation!A240 -> Solid fuel boiler
E364: 2 e | F364: =Translation!A198 -> Temperature sensor: Mixer control | R364: 21 | S364: =Translation!A241 -> Motorised valve / Solenoid valve
E365: 2 f | F365: =Translation!A199 -> Temperature sensor: Heat source 2 | R365: 22 | S365: =Translation!A242 -> Diverter valve
E366: 2 g | F366: =Translation!A200 -> Temperature sensor: Heat source | R366: 23 | S366: =Translation!A243 -> Threaded immersion heater
E367: 2 h | F367: =Translation!A201 -> Temperature sensor: Swimming pool water heating | R367: 24 | S367: =Translation!A244 -> Heat exchanger
E368: 2 k | F368: =Translation!A202 -> Temperature sensor: solar panel | R368: 25 | S368: =Translation!A245 -> Combi cylinder
E369: 2 ko | F369: =Translation!A203 -> Temperature sensor: solar panel East | R369: 26 | S369: =Translation!A246 -> DHW cylinder
E370: 2 kw | F370: =Translation!A204 -> Temperature sensor: solar panel West | R370: 27 | S370: =Translation!A247 -> Central control thermostat
E371: 2 l | F371: =Translation!A205 -> Temperature sensor 1: return flow temperature increase | R371: 28 | S371: =Translation!A248 -> Cold water - safety equipment assembly
E372: 2 m | F372: =Translation!A206 -> Temperature sensor 2: return flow temperature increase | R372: 29 | S372: =Translation!A249 -> Controller: Swimming pool water
E373: 2 p | F373: =Translation!A207 -> Temperature sensor: solar buffer cylinder | R373: 30 | S373: =Translation!A250 -> Control thermostat
E374: 2 r | F374: =Translation!A208 -> Temperature sensor: additional solar buffer cylinder | R374: 31 | S374: =Translation!A251 -> Overflow valve
E375: 2 s | F375: =Translation!A209 -> Temperature sensor: solar system hot water/ cooling | R375: 32 | S375: =Translation!A252 -> cap valve
E376: 3 | F376: =Translation!A210 -> Circulation pump: Heat pump - heat source | R376: 33 | S376: =Translation!A253 -> Line regulating valve
E377: 3 a | F377: =Translation!A211 -> Circulation pump: Heat pump - heating side | R377: 34 | S377: =Translation!A254 -> Temperature differential controller
E378: 3 b | F378: =Translation!A212 -> Circulation pump: DHW heating | R378: 35 | S378: =Translation!A255 -> Flow limiter
E379: 3 c | F379: =Translation!A213 -> Circulation pump: Heating circuit 1 | R379: 36 | S379: =Translation!A256 -> High limit thermostat - underfloor heating system
E380: 3 d | F380: =Translation!A214 -> Circulation pump: Heating circuit 2 | R380: 37 | S380: =Translation!A257 -> Zone valve
E381: 3 e | F381: =Translation!A215 -> Circulation pump: Swimming pool | R381: 38 | S381: =Translation!A258 -> Inflow tube
E382: 3 f | F382: =Translation!A216 -> Circulation pump: Solar DHE heating | R382: 39 | S382: =Translation!A259 -> Filter / strainer
E383: 3 f.1 | F383: =Translation!A217 -> Circulation pump: Solar heating system | R383: 40 | S383: =Translation!A260 -> Fancoil
E384: 3 f.2 | F384: =Translation!A218 -> Circulation pump: Solar Swimming pool | R384: 41 | S384: =Translation!A261 -> Instantaneous water heater DHE
E385: 3 fo | F385: =Translation!A219 -> Circulation pump: Solar panel East | R385: 42 | S385: =Translation!A262 -> Solar panel
E386: 3 fw | F386: =Translation!A220 -> Circulation pump: Solar panel West | R386: 43 | S386: =Translation!A263 -> Electrical heating flang
E387: 3 g | F387: =Translation!A221 -> Circulation pump: Solid fuel boiler
E388: 3 x | F388: =Translation!A222 -> Circulation pump: Cooling - hest source | R388: I | S388: =Translation!A264 -> Heat utilisation system
E389: 3 y | F389: =Translation!A223 -> Circulation pump: Heat pump - heat source | R389: II | S389: =Translation!A265 -> Heat source system
E390: 4 | F390: =Translation!A224 -> Compact installation: WPKI | R390: III | S390: =Translation!A266 -> Solar panel
E391: 5 | F391: =Translation!A225 -> Safety valve | R391: IV | S391: =Translation!A267 -> Cooling system
E392: 6 | F392: =Translation!A226 -> Expansion vessel | R392: V | S392: =Translation!A268 -> Radiator heating system
E393: 7 | F393: =Translation!A227 -> Buffer cylinder/ low loss header | R393: VI | S393: =Translation!A269 -> Underfloor heating system
E394: 8 | F394: =Translation!A228 -> Anti-vibration mount | R394: VII | S394: =Translation!A270 -> DHW
E395: 9 | F395: =Translation!A229 -> Non-return valve | R395: VIII | S395: =Translation!A271 -> Swimming pool water
N400: =IF(Zwischenwerte!B367=FALSE,Translation!A176,"") -> 
B401: =$B$5 -> Project data | G401: =$G$5 -> System selection | L401: =$L$5 -> Collector details | Q401: =$Q$5 -> Material composition | V401: =$V$5 -> Solar yield | AA401: =$AA$5 -> Hydraulical scetch | AF401: =$AF$5 -> Expansion vessel | AK401: =$AK$5 -> Printout
E404: =Translation!A274 -> Components solar system | V404: =Translation!A273 -> Expansion vessel
E406: =Translation!A275 -> Collector | V406: =Translation!A286 -> Expansion volume | AB406: =FIXED(Zwischenwerte!C459,1)&" "&Translation!$A$287 -> 7,3 Litres
E408: =Translation!A276 -> DHW cylinder | V408: =Translation!A288 -> Pressure factor | AB408: 0.385
E410: =Translation!A277 -> Buffer cylinder | V410: =Translation!A289 -> Minimum size | AB410: =Zwischenwerte!C472 -> 19 Litres
E412: =Translation!A278 -> Heat exchanger | V412: =Translation!A291 -> Recommendation | AB412: =Zwischenwerte!C473 -> AG 25 | AK412: [i]
E414: =Translation!A279 -> Flexible solar pipe | V414: =Translation!A296 -> Applicable for up to 20 m height differential (collector - DEV), safety valve response pressure 6 bar
E416: =Translation!A280 -> Copper pipe 18 x 1.0 | V416: =Translation!A292 -> Heat transfer medium
... 16 more rows

Sheet Zwischenwerte (hidden)
A1: Berechnungsblatt Zwischenwerte
A4: Kopfdaten
A5: Bauvorhaben | C5: Fachhandwerker | E5: Sonstiges I | G5: Sonstiges II | I5: Übersetzungen für Comboboxen I | K5: Übersetzungen ChkOptionalesZubehör I | M5: Übersetzungen ChkOptionalesZubehör I | O5: Übersetzungen frmPreisliste | Q5: Übersetzungen frmPreisliste II | S5: Übersetzung MsgBox Anderer Speicher | U5: Übersetzung MsgBox Standradwerte Material
A6: Name | B6: =IF(Auswahl!$J$10="","",Auswahl!$J$10) -> Beispielprojekt | C6: Name | D6: =IF(Auswahl!$J$20="","",Auswahl!$J$20) -> Stiebel Eltron GmbH & Co. KG | E6: Sprache | F6: 2 | G6: Stadt Gewählt | H6: Hamburg | I6: chkSomIntegriert | J6: Aachen | K6: chkSomIntegriert | L6: =Translation!A106 -> SOKI with integral control unit | M6: chkBGC | N6: =Translation!A110 -> Threaded immersion heater BGC | O6: Überschrift | P6: =Translation!A103 -> Add product | Q6: btnEintragLöschen | R6: =Translation!A116 -> Remove from material list | S6: Term 1 | T6: =Translation!A118 -> The DHW cylinder determined by reference to collector number is not sufficient for the specified DHW demand. This cylinder is recommended: | U6: Term 1 | V6: =Translation!A125 -> There were changes made to the selected solar system. The material list will be rebuilt (reset of manual changes).
A7: Straße | B7: =IF(Auswahl!$J$12="","",Auswahl!$J$12) ->  | C7: Straße | D7: =IF(Auswahl!$J$22="","",Auswahl!$J$22) -> Dr.-Stiebel-Straße | E7: Haken bei Koll. automatisch? | F7: FALSE | I7: chkSAS | K7: chkSAS | L7: =Translation!A107 -> SOKI installation at the SBB...Plus | M7: chkZTA | N7: =Translation!A111 -> Central thermostatic valve | O7: Beschreibung | P7: =Translation!A113 -> Please enter product number and description. | Q7: btnFertig | R7: =Translation!A117 -> Close window | S7: Term 2 | T7: =Translation!A98 -> ID | U7: Term 2 | V7: =Translation!A126 -> All changes and items manually added will be resetted. Continue ?
A8: PLZ/Ort | B8: =IF(Auswahl!$J$14="","",Auswahl!$J$14) ->  | C8: PLZ/Ort | D8: =IF(Auswahl!$J$24="","",Auswahl!$J$24) -> 37603 Holzminden | E8: Währung | F8: € | I8: chKWMZ | K8: chKWMZ | L8: =Translation!A108 -> Heat metering | M8: chkWärmeträger | N8: =Translation!A112 -> Heat transfer medium H-30 LS | O8: btnSuchen | P8: =Translation!A114 -> Search... | Q8: btnStandard wiederherstellen | R8: =Translation!A104 -> Reset standard values | S8: Term 3 | T8: =Translation!A119 -> Do you want to replace DHW cylinder ? | U8: Überschrift | V8: =Translation!A104 -> Reset standard values
A9: Telefon | B9: =IF(Auswahl!$J$16="","",Auswahl!$J$16) ->  | C9: Telefon | D9: =IF(Auswahl!$J$26="","",Auswahl!$J$26) -> 05531 / 702 110 | E9: Preise Materialliste anzeigen ? | F9: TRUE | I9: chkHUV | K9: chkHUV | L9: =Translation!A109 -> Heating diverter valve | O9: btnInMaterialliste | P9: =Translation!A115 -> Add to material list
A11: Eingabe/Ausgabewerte Comboboxen Eingabemaske
A12: Klimazone - Land | B12: Stadt | C12: Solare WWB ? | D12: Solare HU ? | E12: Pool Solar ? | F12: Personenzahl | G12: WW-Bedarf | H12: Heizlast | I12: Speicherart | J12: Schwimmbadart | K12: Schwimmbadvolumen | L12: Kollektoranordnung | N12: Kollektorart | O12: Kollektoranzahl | P12: Kollektorneigung | Q12: Kollektorausrichtung | R12: Dachform | S12: Befestigungsart | T12: 2. Wärmeerzeuger | U12: Kaltwassertemperatur | V12: Speichertemperatur | W12: Systemverluste WWB | X12: Normaußentemperatur | Y12: Heizgrenztemperatur | Z12: Ausdruck | AB12: Sprache | AC12: Beschriftung Buttons | AD12: Beschriftung Auftraggeber | AE12: Währung
A14: Germany | B14: Aachen | C14: TRUE | D14: FALSE | E14: FALSE | F14: 4 | G14: Standard demand (40 litres) | K14: =IF(E14=FALSE,0,Auswahl!K72) -> 0 | L14: 1 | M14: =VLOOKUP(L14,L16:M39,2,FALSE) -> On end next to each other | N14: Rooftop SOL 27 Premium | O14: Determine the optimum number | P14: 45 ° | Q14: South | R14: Tiled roof | S14: Standard fixings | T14: Heat pump | U14: 10 °C | V14: 45 °C | W14: 20 % | X14: -14 °C | Y14: 15 °C | Z14: Alles gewählt ? | AA14: =COUNTIF(AA16:AA39,TRUE) -> 7 | AB14: English | AE14: 1 | AF14: =VLOOKUP(AE14,AE17:AF39,2,FALSE) -> Euro €
A17: =Translation!A19 -> Germany | F17: 1 | G17: =Translation!A46 -> Very low demand (15 litres) | H17: 3 kW | I17: =Translation!A54 -> Two cylinder system (SBB+SBP) | J17: =Translation!A59 -> Open air swimming pool with cover | K17: 0.7 | L17: 1 | M17: =Translation!A79 -> On end next to each other | N17: =Translation!A67&" SOL 27 Premium" -> Rooftop SOL 27 Premium | O17: =Translation!$A$70 -> Determine the optimum number | P17: 0 ° | Q17: =Translation!A73 -> South | R17: =Translation!A84 -> Tiled roof | S17: =Translation!A87 -> Standard fixings | T17: =Translation!A178 -> None | U17: 5 °C | V17: 45 °C | W17: 0 % | X17: 0 °C | Y17: 10 °C | Z17: =Auswahl!L456 -> Project | AA17: TRUE | AB17: Deutsch | AC17: ="| "&Translation!A103 -> | Add product | AD17: =Translation!A361 -> Beispielprojekt | AE17: 1 | AF17: Euro €
A18: =Translation!A20 -> France | D18: Bild Systemhaus: | F18: 2 | G18: =Translation!A47 -> Low demand (30 litres) | H18: 4 kW | I18: =Translation!A55 -> Instantaneous water heater (SBS) | J18: =Translation!A60 -> Open air pool without cover | K18: 1 | L18: 2 | M18: =Translation!A80 -> Across above each other | N18: =Translation!A67&" SOL 27 Basic" -> Rooftop SOL 27 Basic | O18: 1 | P18: 15 ° | Q18: =Translation!A74 -> Southeast | R18: =Translation!A85 -> Corrugated roof | S18: =Translation!A88 -> Support stands 15°- 30° | T18: =Translation!A179 -> Heat pump | U18: 6 °C | V18: 50 °C | W18: 5 % | X18: -2 °C | Y18: 12 °C | Z18: =Auswahl!L458 -> Description solar system | AA18: TRUE | AB18: English | AC18: ="| "&Translation!A104 -> | Reset standard values | AD18: =Translation!A362 -> Stiebel Eltron GmbH & Co. KG | AE18: 2 | AF18: Pounds £
A19: =Translation!A21 -> Switzerland | D19: =IF(E14=FALSE,IF(OR(I14=I18,I14=I19),3,IF(I14=I17,2,IF(C14=TRUE,1,0))),IF(OR(I14=I18,I14=I19),6,IF(I14=I17,5,IF(C14=TRUE,4,7)))) -> 1 | F19: 3 | G19: =Translation!A48 -> Standard demand (40 litres) | H19: 5 kW | I19: =Translation!A56 -> Combi cylinder (SBK) | J19: =Translation!A61 -> Indoor pool with cover | K19: 0.5 | L19: 3 | M19: =Translation!A81 -> Across next to each other | N19: =Translation!A68&" SOL 23 Premium" -> Roof integration SOL 23 Premium | O19: 2 | P19: 30 ° | Q19: =Translation!A75 -> Southwest | R19: =Translation!A90 -> Slate roof | S19: =Translation!A89 -> Quick assembly fixings | T19: =Translation!A180 -> Instantaneous water heater | U19: 7 °C | V19: 55 °C | W19: 10 % | X19: -4 °C | Y19: 15 °C | Z19: =Auswahl!L460 -> Type of utilisation | AA19: TRUE | AB19: Francais | AC19: ="| "&Translation!A105 -> | Optional accessories | AD19: =Translation!A363 -> Dr.-Stiebel-Straße | AE19: 3 | AF19: Dollar $
A20: =Translation!A22 -> USA | F20: 4 | G20: =Translation!A49 -> High demand (60 litres) | H20: 6 kW | J20: =Translation!A62 -> Indoor pool without cover | K20: 1 | L20: 4 | M20: =Translation!A79 -> On end next to each other | O20: 3 | P20: 45 ° | Q20: =Translation!A76 -> East | R20: =Translation!A91 -> Shingle roof | T20: =Translation!A181 -> Oil/gas boiler | U20: 8 °C | V20: 60 °C | W20: 15 % | X20: -6 °C | Y20: 20 °C | Z20: =Auswahl!L462 -> Material composition | AA20: TRUE | AB20: Italiano | AC20: ="| "&Translation!A120 -> | Print material list | AD20: =Translation!A364 -> 37603 Holzminden | AE20: 4 | AF20: Koruna Kc
A21: =Translation!A23 -> Great Britain | D21: Anzahl 'Wahr" | F21: 5 | G21: =Translation!A50 -> Very high demand (80 litres) | H21: 7 kW | L21: 5 | M21: =Translation!A81 -> Across next to each other | O21: 4 | P21: 60 ° | Q21: =Translation!A77 -> West | R21: =Translation!A92 -> Plain tile roof | T21: =Translation!A182 -> Solid fuel boiler | U21: 9 °C | V21: 65 °C | W21: 20 % | X21: -8 °C | Z21: =Auswahl!L464 -> Solar yield | AA21: TRUE | AB21: Nederlands | AC21: =IF(F9=TRUE,"| "&Translation!A121,"| "&Translation!A122) -> | Printout with prices | AD21: =Translation!A365 -> 05531 / 702 110 | AE21: 5 | AF21: Krone DKK
A22: =Translation!A24 -> Czech Republic | D22: =C14+D14+E14 -> 1 | F22: 6 | H22: 8 kW | L22: 6 | M22: =Translation!A79 -> On end next to each other | O22: 5 | P22: 75 ° | R22: =Translation!A92&"-CU" -> Plain tile roof-CU | S22: =Translation!A87 -> Standard fixings | U22: 10 °C | V22: 70 °C | W22: 25 % | X22: -10 °C | Z22: =Auswahl!L466 -> Hydraulic/wiring diagrams | AA22: FALSE | AB22: čeština | AC22: ="| "&Translation!A123 -> | Export material-list
A23: =Translation!A25 -> Poland | F23: 7 | H23: 9 kW | L23: 7 | M23: =Translation!A81 -> Across next to each other | O23: 6 | P23: 90 ° | S23: =Translation!A89 -> Quick assembly fixings | U23: 11 °C | V23: 75 °C | W23: 30 % | X23: -12 °C | Z23: =Auswahl!L468 -> Pipework installation | AA23: FALSE | AB23: Slovenčina | AC23: ="| "&Translation!A124 -> | Edit pricelist
A24: =Translation!A26 -> Austria | D24: Nutzungsart | F24: 8 | H24: 10 kW | L24: 8 | M24: =Translation!A82 -> On end above each other | O24: 8 | U24: 12 °C | V24: 80 °C | W24: 35 % | X24: -14 °C | Z24: =Auswahl!L470 -> Expansion vessel | AA24: FALSE | AB24: Polski | AC24: ="| "&Translation!A150 -> | Show list of results
A25: =Translation!A27 -> Sweden | D25: =IF(D22=0,0,IF(D22=3,4,(IF(D22=1,(IF(C14=TRUE,1,5)),IF(E14=TRUE,3,2))))) -> 1 | F25: 9 | H25: 11 kW | L25: 9 | M25: =Translation!A79 -> On end next to each other | O25: 10 | U25: 13 °C | V25: 85 °C | W25: 40 % | X25: -16 °C | Z25: =Auswahl!L472 -> Collector details | AA25: TRUE | AB25: Magyar | AC25: ="| "&Translation!A151 -> | Show graph
A26: =Translation!A28 -> Ireland | F26: 10 | H26: 12 kW | O26: 12 | U26: 14 °C | V26: 90 °C | X26: -18 °C | Z26: =Auswahl!L474 -> Installation information | AA26: TRUE | AB26: Suomi | AC26: ="| "&Translation!A166 -> | Extended settings
A27: =Translation!A29 -> Italy | F27: 11 | H27: 13 kW | O27: 15 | U27: 15 °C | X27: -20 °C | Z27: =Auswahl!L476 -> 0 | AA27: FALSE | AB27: Dansk | AC27: ="| "&Translation!A172 -> | Accept
A28: =Translation!A30 -> Hungary | F28: 12 | H28: 14 kW | O28: 16 | U28: 16 °C | X28: -22 °C | Z28: =Auswahl!L478 -> 0 | AA28: FALSE | AC28: ="| "&Translation!A173 -> | Standard values
A29: =Translation!A31 -> Belgium | D29: 1=WWB, 2=WWB+HU, 3=WWB+Pool, 4=WWB+HU+Pool, 5=Nur Pool | F29: 13 | H29: 15 kW | U29: 17 °C | X29: -24 °C | AA29: FALSE | AC29: ="| "&Translation!A186 -> | Show pipework installation
A30: =Translation!A32 -> Netherlands | F30: 14 | H30: 16 kW | U30: 18 °C | X30: -26 °C | AA30: FALSE | AC30: ="| "&Translation!A183 -> | Show hydraulic scetch
A31: =Translation!A33 -> Slovakia | F31: 15 | H31: 17 kW | U31: 19 °C | X31: -28 °C | AA31: FALSE | AC31: ="| "&Translation!A184 -> | Show electrical scetch
A32: =Translation!A34 -> Finland | H32: 18 kW | U32: 20 °C | X32: -30 °C | AA32: FALSE | AC32: ="| "&Translation!A185 -> | Show description
A33: =Translation!A35 -> Bosnia-Herzegovina | H33: 19 kW | X33: -32 °C | AA33: FALSE | AC33: ="| "&Translation!A285 -> | Get components from material list
A34: =Translation!A36 -> Denmark | H34: 20 kW | X34: -34 °C | AA34: FALSE | AC34: =Translation!A308 -> Print selection
A35: =Translation!A37 -> Morocco | X35: -36 °C | AA35: FALSE | AC35: =Translation!A307 -> Select all
A36: =Translation!A38 -> Europe | X36: -38 °C | AA36: FALSE | AC36: ="| "&Translation!A130 -> | Back to main window
A37: --- | X37: -40 °C | AA37: FALSE | AC37: ="| "&Translation!A131 -> | Show values changed
A38: Land gewählt ? | O38: Optimale Kollektorzahl | R38: Gewählte Dachform (Ausdruck) | S38: Andere Dachhaken möglich ? | AA38: FALSE | AC38: ="| "&Translation!A133 -> | Import pricelist
A39: =IF(A14=A37,FALSE,TRUE) -> TRUE | O39: 2 | R39: =IF(OR(L14=L20,L14=L21),Translation!A355,IF(OR(L14=L22,L14=L23),Translation!A356,R14)) -> Tiled roof | S39: =IF(OR(L14>3,N14=N19,R14=R18),FALSE,TRUE) -> TRUE
A72: Materialauswahl (Zum Durchsuchen der Material-Matrix) | I72: Kollektordaten
A73: Kollektortyp: | B73: =IF(N14=N17,1,IF(N14=N18,2,IF(N14=N19,3,0))) -> 1 | C73: 1=Sol 27 Premium, 2=Sol 27 Basic, 3=Sol 23 Plus | I73: Kollektortyptyp | J73: Konversionsfaktor | K73: Wärmeverlust alpha0 | L73: Wärmeverlust alpha1 | M73: Kollektorfläche
A74: Nutzungsart: | B74: =D25 -> 1 | C74: 1=WWB, 2=WWB+HU, 3=WWB+SB, 4=WWB+HU+SB, 5=Nur SB | H74: Nutzung
A75: Speicherart | B75: =IF(D25=5,0,IF(OR(I14="",I14=I17),1,IF(I14=I18,3,2))) -> 1 | C75: 0=KeinSpeicher, 1=SBB, 2=SBK, 3=SBS | H75: Kollektortyp | I75: =N17 -> Rooftop SOL 27 Premium | J75: 0.83 | K75: 3.46 | L75: 0.0153 | M75: 2.4
A76: Dachart | B76: =IF(N14=N19,1,IF(L14>3,3,IF(R14=R18,2,1))) -> 1 | C76: 1=Pfannendach, 2=Welldach, 3=Flachdach/Wand | H76: Speicher | I76: =N18 -> Rooftop SOL 27 Basic | J76: 0.79 | K76: 3.42 | L76: 0.0142 | M76: 2.4
A77: Kollektoranordnung | B77: =IF(L14=L24,4,IF(L14=L18,3,IF(OR(L14=L19,L14=L21,L14=L23),2,1))) -> 1 | C77: 1=senkrecht nebeneinander, 2= waagerecht nebeneinander, 3=waagerecht übereinader, 4 = senkrecht übereinander | H77: HUV | I77: Roof integration SOL 23 Premium | J77: 0.83 | K77: 3.46 | L77: 0.0153 | M77: 2
A78: Kollektorbefestigung | B78: =IF(L14>3,1,IF(S14=S19,2,IF(S14=S18,3,1))) -> 1 | C78: 1=Standardbefestigung, 2=Schnellbefestigung, 3=Aufständerung 15°-30° | H78: Dachform
A79: Solarregelung | B79: 1 | C79: 1 = Regelung in SOKI integriert, 2 = Regelung & SOKI separat | H79: Anordnung
A80: Umschaltventil | B80: 1 | C80: 1=mit Umschaltventil, 2=separate Pumpen Heizung/WWB | H80: Befestigung
A81: Kollektoranzahl | B81: =IF(O14=O17,O39*1,O14*1) -> 2 | C81: 1 - 16 | H81: Regelung
A82: Schlüssel Suchzeile | B82: =B74&B73&B75&B80&B76&B77&B78&B79&B81 -> 111111112 | H82: Kollektorzahl
A83: Suchzeile | B83: =MATCH(B82,'Matrix-Material'!J:J,0) -> 4
A98: Eingabewerte für Berechnung Deckungsanteil | I98: Südabweichung | Kollektorneigung (nach DIN 4701-10)
A99: Personenzahl | B99: =IF(F14="",0,F14*1) -> 4 | C99: Eingabewert | I99: Kollektorneigung | J99: =Translation!A73 -> South | K99: =Translation!A74 -> Southeast | L99: =Translation!A75 -> Southwest | M99: =Translation!A76 -> East | N99: =Translation!A77 -> West
A100: WW-Verbrauch | B100: =IF(G14=G17,15,IF(G14=G18,30,IF(G14=G19,40,IF(G14=G20,60,80)))) -> 40 | C100: Eingabewert | I100: =P17 -> 0 ° | J100: 0.81 | K100: 0.81 | L100: 0.81 | M100: 0.81 | N100: 0.81
A101: Liter/Tag | B101: =ROUND(((B99*B100)/((B110-B109)/(45-B109))),0) -> 160 | C101: Volumen bei Speichertemperatur (gemäß EN 15450) | I101: 15 ° | J101: 0.911 | K101: 0.883 | L101: 0.895 | M101: 0.799 | N101: 0.813
A102: Kollektoranzahl | B102: =B81 -> 2 | C102: Eingabewert | I102: 30 ° | J102: 0.976 | K102: 0.927 | L102: 0.952 | M102: 0.787 | N102: 0.83
A103: Koll.-Gesamtfläche | B103: =B102*VLOOKUP(N14,I74:M83,5,FALSE) -> 4.8 | C103: Kollektorfläche x Anzahl | I103: 45 ° | J103: 1 | K103: 0.94 | L103: 0.971 | M103: 0.763 | N103: 0.82
A104: Konversionsfaktor | B104: =VLOOKUP(N14,I74:M83,2,FALSE) -> 0.83 | C104: Kollektorkennwert | I104: 60 ° | J104: 0.978 | K104: 0.909 | L104: 0.952 | M104: 0.718 | N104: 0.786
A105: Wärmeverlust | B105: =VLOOKUP(N14,I74:M83,3,FALSE) -> 3.46 | C105: Kollektorkennwert | I105: 75 ° | J105: 0.887 | K105: 0.805 | L105: 0.883 | M105: 0.646 | N105: 0.724
A106: Faktor Neigung/Azimut | B106: =INDEX(J100:N108,MATCH(P14,I100:I108,0),MATCH(Q14,J99:N99,0)) -> 1 | C106: Abschwächungsfaktor aus Tabelle für abweichende Neigung und Ausrichtung, nach DIN 4701-10 | I106: 90 ° | J106: 0.706 | K106: 0.682 | L106: 0.749 | M106: 0.542 | N106: 0.631
A107: Neigungswinkel | B107: =IF(P14=P17,0,IF(P14=P18,15,IF(P14=P19,30,IF(P14=P20,45,IF(P14=P21,60,IF(P14=P22,75,90)))))) -> 45 | C107: Eingabewert
A108: Breitengrad | B108: =Klimazonen!C2 -> 50.77 | C108: aus Eingabewert für Land/Stadt
A109: Kaltwassertemperatur | B109: =LEFT(U14,FIND(" ",U14)-1)*1 -> 10 | C109: Eingabewert
A110: Speichertemperatur | B110: =LEFT(V14,FIND(" ",V14)-1)*1 -> 45 | C110: Eingabewert | I110: Globalstrahlung | J110: Klimazone Zahlenwert | K110: Faktor | L110: Klimazone Ausdruck
A111: Faktor Südabweichung | B111: =HLOOKUP(Q14,J99:N108,5,FALSE) -> 1 | C111: aus Tabelle für 45° Kollektorneigung (f-Chart rechnet zwar Neigungswinkel ein, aber nicht Südabweichung) | K111: Speichervergrößerung
A112: Wärmebedarf WWB | B112: =(B101*1.163*(45-B109)*(1+(LEFT(W14,FIND(" ",W14)-1)*1)/100)/1000)*1 -> 7.81536 | C112: kWh/d ( x Systemverlustfaktor) | I112: =Klimazonen!C16*365 -> 1032.95 | J112: 1 | K112: =VLOOKUP(J112,J114:K128,2,FALSE) -> 1 | L112: =VLOOKUP(J112,J114:L128,3,FALSE) -> I
A113: Volumen pro m²/Fläche | B113: =ROUND(40*B106*K112,0) -> 40 | C113: Mind. 40 l Speichervolumen pro m² Kollektorfläche * Faktor Klimazone * Faktor Südabweichung/Neigung
A114: Heizlast in KW | B114: =LEFT(H14,FIND(" ",H14)-1)*1 ->  | C114: Eingabewert
A115: Normaußentemp | B115: =LEFT(X14,FIND(" ",X14)-1)*1 -> -14 | C115: Eingabewert | I115: 0 | J115: 1 | K115: 1 | L115: I
A116: Heizgrenze | B116: =LEFT(Y14,FIND(" ",Y14)-1)*1 -> 15 | C116: Eingabewert | I116: 1040 | J116: 2 | K116: 1 | L116: II
A117: Schwimmbadart | B117: =IF(J14=J17,1,IF(J14=J18,2,IF(J14=J19,3,4))) -> 4 | C117: 1=Freibad mit Abdeckung | 2=Freibad ohne Abdeckung | 3=Hallenbad mit Abdeckung | 4=Hallenbad ohne Abdeckung | I117: 1140 | J117: 3 | K117: 1.1 | L117: III
A118: Schwimbadnutzung | B118: =IF(B117<3,122,365) -> 365 | C118: Freibad 122,5 Tage (Mitte Mai bis Mitte September) | Hallenbad 365 Tage | I118: 1250 | J118: 4 | K118: 1.2 | L118: IV
A119: Schwimmbadvolumen | B119: =IF(K14*1=0,0.1,K14*1) -> 0.1 | C119: Eingabewert | I119: 1350 | J119: 5 | K119: 1.333 | L119: V
A120: Abkühlung K/Tag | B120: =VLOOKUP(J14,J16:K39,2,FALSE) ->  | C120: 0,7=Freibad mit Abdeckung | 1=Freibad ohne Abdeckung | 0,5 = Hallenbad mit Abdeckung | 1 = Hallenbad ohne Abdeckung | I120: 1450 | J120: 6 | K120: 1.433 | L120: VI
A121: Wärmebedarf Pool | B121: =B119*1.163*B120 ->  | C121: kWh/d (Volumen * 1,163 * Abkühlung) | I121: 1550 | J121: 7 | K121: 1.4667 | L121: VII
A122: Nutzungsart: | B122: =D25 -> 1 | C122: 1=WWB, 2=WWB+HU, 3=WWB+SB, 4=WWB+HU+SB, 5=Nur SB | I122: 1650 | J122: 8 | K122: 1.5 | L122: VIII
A123: Gewählter Pufferspeicher | B123: =IF(B102>8,G235,G234) -> SBP 700 E SOL | I123: 100000 | J123: 9 | L123: XI
A124: Puffervolumen | B124: =IF(B102>8,1000,700) -> 700
A143: Auswahl Speicher nach Verbrauch
B144: Berechnung | C144: Typ SBB | D144: Typ SBS | E144: Typ SBK
A145: Berechnungsart | B145: Volumen benötigt | C145: Volumen gewählt | D145: Volumen gewählt | E145: Volumen gewählt
A147: nach Verbrauch | B147: =IF(B101>200,B101*1.18,IF(B101>400,B101*1.16,IF(B101>600,B101*1.14,IF(B101>800,B101*1.12,IF(B101>1000,B101*1.1,B101*1.2))))) -> 192 | C147: =INDEX(A169:A184,IF(ISNA(MATCH(B147,A169:A184,0)),MATCH(B147,A169:A184,1)+1,MATCH(B147,A169:A184,0))) -> 305 | D147: =VLOOKUP(INDEX(E169:E184,IF(ISNA(MATCH(B147,E169:E184,0)),MATCH(B147,E169:E184,1)+1,MATCH(B147,E169:E184,0))),E169:F184,2,FALSE) -> 600 | E147: =ROUNDUP(B147/250,0)*250 -> 250
A148: nach Kollektorfläche | B148: =IF(OR(D25=3,D25=4,D25=5),0,IF(B102>1,MAX(150,B113*B103*0.97),B113*B103*0.97)) -> 186.24 | C148: =IF(D25=1,INDEX(A169:A184,IF(ISNA(MATCH(B148,A169:A184,0)),MATCH(B148,A169:A184,1)+1,MATCH(B148,A169:A184,0))),A171) -> 305 | D148: =INDEX(F169:F184,IF(ISNA(MATCH(B148,F169:F184,0)),MATCH(B148,F169:F184,1)+1,MATCH(B148,F169:F184,0))) -> 600 | E148: =ROUNDUP(B148/750,0)*250 -> 250
A149: Maximale Speichergröße | C149: =MAX(C147,C148) -> 305 | D149: =MAX(D147,D148) -> 600 | E149: =MAX(E147,E148) -> 250
A165: Hilfstabelle Speicherauswahl nach Verbrauch
A166: Typ SBB | E166: Typ SBS | J166: Typ SBK
A167: Speichervolumen | B167: Anzahl | C167: Ident.Nr | D167: Bezeichnung | E167: l/Tag Warmwasser | F167: Gesamtinhalt SBS | G167: Anzahl | H167: Ident.Nr | I167: Bezeichnung | J167: Speichervolumen | K167: Anzahl | L167: Ident.Nr | M167: Bezeichnung
A168: =C149 -> 305 | B168: =VLOOKUP($A$168,$A$169:$D$190,2,FALSE) -> 1 | C168: =VLOOKUP($A$168,$A$169:$D$190,3,FALSE) -> 187873 | D168: =VLOOKUP($A$168,$A$169:$D$190,4,FALSE) -> SBB 300 Plus/trend | E168: =INDEX(E169:E190,MATCH(F168,F169:F190,0)) -> 275 | F168: =D149 -> 600 | G168: =VLOOKUP($F$168,$F$169:$I$190,2,FALSE) -> 1 | H168: =VLOOKUP($F$168,$F$169:$I$190,3,FALSE) -> 229984 | I168: =VLOOKUP($F$168,$F$169:$I$190,4,FALSE) -> SBS 601 W SOL | J168: =E149 -> 250 | K168: =VLOOKUP($J$168,$J$169:$M$190,2,FALSE) -> 1 | L168: =VLOOKUP($J$168,$J$169:$M$190,3,FALSE) -> 74067 | M168: =VLOOKUP($J$168,$J$169:$M$190,4,FALSE) -> SBK 600 / 150
A169: 0 | B169: 0 | C169: 0 | D169: Kein Speicher | E169: 0 | F169: 0 | G169: 0 | I169: Kein Speicher | J169: 0 | K169: 0 | M169: Kein Speicher
A170: 146 | B170: 1 | C170: 74098 | D170: KS 150 SOL | E170: 275 | F170: 600 | G170: 1 | H170: 229984 | I170: SBS 601 W SOL | J170: 250 | K170: 1 | L170: 74067 | M170: SBK 600 / 150
A171: 305 | B171: 1 | C171: =IF(N14=N18,233490,187873) -> 187873 | D171: SBB 300 Plus/trend | E171: 350 | F171: 800 | G171: 1 | H171: 229985 | I171: SBS 801 W SOL | J171: 500 | K171: 2 | L171: 74067 | M171: 2 x SBK 600 / 150
A172: 410 | B172: 1 | C172: =IF(N14=N18,233491,187874) -> 187874 | D172: SBB 400 Plus/trend | E172: 475 | F172: 1000 | G172: 1 | H172: 229986 | I172: SBS 1001 W SOL | J172: 750 | K172: 3 | L172: 74067 | M172: 3 x SBK 600 / 150
A173: 500 | B173: 1 | C173: 233492 | D173: SBB 500 Trend | E173: 600 | F173: 1500 | G173: 1 | H173: 229987 | I173: SBS 1501 W SOL | J173: 1000 | K173: 4 | L173: 74067 | M173: 4 x SBK 600 / 150
A174: 600 | B174: 1 | C174: 187875 | D174: SBB 600 Plus | E174: 700 | F174: 1600 | G174: 2 | H174: 229985 | I174: 2 x SBS 801 W SOL | J174: 1250 | K174: 5 | L174: 74067 | M174: 5 x SBK 600 / 150
A175: 750 | B175: 1 | C175: 229294 | D175: SBB 751 SOL | E175: 950 | F175: 2000 | G175: 2 | H175: 229986 | I175: 2 x SBS 1001 W SOL | J175: 1500 | K175: 6 | L175: 74067 | M175: 6 x SBK 600 / 150
A176: 1000 | B176: 1 | C176: 229295 | D176: SBB 1001 SOL | E176: 1200 | F176: 3000 | G176: 2 | H176: 229987 | I176: 2 x SBS 1501 W SOL | J176: 1750 | K176: 7 | L176: 74067 | M176: 7 x SBK 600 / 150
A177: 1200 | B177: 2 | C177: 187875 | D177: 2 x SBB 600 Plus | E177: 1800 | F177: 4500 | G177: 3 | H177: 229987 | I177: 3 x SBS 1501 W SOL
A178: 1500 | B178: 2 | C178: 229294 | D178: 2 x SBB 751 SOL | E178: 2400 | F178: 6000 | G178: 4 | H178: 229987 | I178: 4 x SBS 1501 W SOL
A179: 2000 | B179: 2 | C179: 229295 | D179: 2 x SBB 1001 SOL | E179: 3000 | F179: 7500 | G179: 5 | H179: 229987 | I179: 5 x SBS 1501 W SOL
A180: 3000 | B180: 3 | C180: 229295 | D180: 3 x SBB 1001 SOL | E180: 3600 | F180: 9000 | G180: 6 | H180: 229987 | I180: 6 x SBS 1501 W SOL
A181: 4000 | B181: 4 | C181: 229295 | D181: 4 x SBB 1001 SOL | E181: 4200 | F181: 10500 | G181: 7 | H181: 229987 | I181: 7 x SBS 1501 W SOL
A182: 9999999999 | E182: 9999999999 | F182: 9999999999
A221: Vergleich Speicher nach Matrix <> Speicher nach Verbrauch
A222: Name | B222: Speicher gefunden ? | C222: Anzahl | D222: Ident-Nr. | E222: Bezeichnung | F222: Gesamtvolumen | G222: Reicht Volumen aus?
A225: Speicher in Matrix-Material | B225: =IF(COUNTIF(A233:A257,TRUE)=0,FALSE,TRUE) -> TRUE | C225: =IF(B225=FALSE,1,INDEX(Auswahl!E154:E191,MATCH(D225,Auswahl!H154:H191,0))) -> 1 | D225: =IF(B225=FALSE,0,VLOOKUP(TRUE,A233:B257,2,FALSE)) -> 187873 | E225: =IF(B225=FALSE,0,VLOOKUP(TRUE,A233:C257,3,FALSE)) -> SBB 300 Plus | F225: =IF(B225=FALSE,100000,C225*VLOOKUP(TRUE,A233:D257,4,FALSE)) -> 305 | G225: =IF(D225*1=D226*1,TRUE,IF(F225<F226,FALSE,TRUE)) -> TRUE
A226: Speicher nach Verbrauch | B226: TRUE | C226: =IF($B$75=1,B168,IF($B$75=2,K168,G168)) -> 1 | D226: =IF($B$75=1,C168,IF($B$75=2,L168,H168)) -> 187873 | E226: =IF($B$75=1,D168,IF($B$75=2,M168,I168)) -> SBB 300 Plus/trend | F226: =IF($B$75=1,A168,IF($B$75=2,J168,E168)) -> 305
A227: Wärmedämmung | C227: =C226 -> 1 | D227: =VLOOKUP(D226,B233:E257,4,FALSE) -> FALSE | E227: =VLOOKUP(D225,B233:E257,4,FALSE) -> FALSE
A230: Liste aller WW-Speicher in der Matrix | F230: Liste Pufferspeicher
A231: In Materialliste vorhanden? | B231: Ident.-Nr | C231: Name Speicher | D231: Volumen | E231: Dämmung | F231: Ident.-Nr | G231: Name Speicher | H231: Volumen | I231: Dämmung
A234: =IF(COUNTIF(Auswahl!$H$154:$H$191,B234)>0,TRUE,FALSE) -> FALSE | B234: 74098 | C234: KS 150 SOL | D234: 146 | E234: FALSE | F234: 185460 | G234: SBP 700 E SOL | H234: 700 | I234: FALSE
A235: =IF(COUNTIF(Auswahl!$H$154:$H$191,B235)>0,TRUE,FALSE) -> TRUE | B235: 187873 | C235: SBB 300 Plus | D235: 305 | E235: FALSE | F235: 227566 | G235: SBP 1000 E SOL | H235: 1000 | I235: 231929
A236: =IF(COUNTIF(Auswahl!$H$154:$H$191,B236)>0,TRUE,FALSE) -> FALSE | B236: 187874 | C236: SBB 400 Plus | D236: 410 | E236: FALSE | F236: 227567 | G236: SBP 1500 E SOL | H236: 1500 | I236: 231930
A237: =IF(COUNTIF(Auswahl!$H$154:$H$191,B237)>0,TRUE,FALSE) -> FALSE | B237: 233490 | C237: SBB 300 Trend | D237: 300 | E237: FALSE
A238: =IF(COUNTIF(Auswahl!$H$154:$H$191,B238)>0,TRUE,FALSE) -> FALSE | B238: 233491 | C238: SBB 400 Trend | D238: 400 | E238: FALSE
A239: =IF(COUNTIF(Auswahl!$H$154:$H$191,B239)>0,TRUE,FALSE) -> FALSE | B239: 233492 | C239: SBB 500 Trend | D239: 500 | E239: FALSE
A240: =IF(COUNTIF(Auswahl!$H$154:$H$191,B240)>0,TRUE,FALSE) -> FALSE | B240: 227534 | C240: SBB 501 WP SOL | D240: 500 | E240: FALSE
A241: =IF(COUNTIF(Auswahl!$H$154:$H$191,B241)>0,TRUE,FALSE) -> FALSE | B241: 187875 | C241: SBB 600 Plus | D241: 600 | E241: FALSE
A242: =IF(COUNTIF(Auswahl!$H$154:$H$191,B242)>0,TRUE,FALSE) -> FALSE | B242: 229294 | C242: SBB 751 SOL | D242: 750 | E242: 231923
A243: =IF(COUNTIF(Auswahl!$H$154:$H$191,B243)>0,TRUE,FALSE) -> FALSE | B243: 229295 | C243: SBB 1001 SOL | D243: 1000 | E243: 231924
A244: =IF(COUNTIF(Auswahl!$H$154:$H$191,B244)>0,TRUE,FALSE) -> FALSE | B244: 74067 | C244: SBK 600 / 150 | D244: 250 | E244: FALSE
A245: =IF(COUNTIF(Auswahl!$H$154:$H$191,B245)>0,TRUE,FALSE) -> FALSE | B245: 229984 | C245: SBS 601 W SOL | D245: 275 | E245: 231925
A246: =IF(COUNTIF(Auswahl!$H$154:$H$191,B246)>0,TRUE,FALSE) -> FALSE | B246: 229985 | C246: SBS 801 W SOL | D246: 350 | E246: 231926
A247: =IF(COUNTIF(Auswahl!$H$154:$H$191,B247)>0,TRUE,FALSE) -> FALSE | B247: 229986 | C247: SBS 1001 W SOL | D247: 475 | E247: 231927
A248: =IF(COUNTIF(Auswahl!$H$154:$H$191,B248)>0,TRUE,FALSE) -> FALSE | B248: 229987 | C248: SBS 1501 W SOL | D248: 600 | E248: 231928
A285: f-Chart (Berechnung Strahlung auf Kollektorebenen / Deckungsanteil WWB)
A286: Monat | B286: Tag Nr. | C286: Tage | D286: Gg,Mittel | E286: Gdiff,Mittel | F286: ta,mittel | G286: d | H286: wS | I286: w | J286: RS | K286: R | L286: Gg,Fläche | M286: DeltaT | N286: x | O286: y | P286: R
D287: [kWh/m²d] | E287: [kWh/m²d] | F287: [°C] | G287: [°] | H287: [°] | I287: [°] | L287: [Wh/m²d] | M287: [K]
A288: Jan | B288: 17 | C288: 31 | D288: =Klimazonen!C4 -> 0.72 | E288: =Klimazonen!D4 -> 0.44 | F288: =Klimazonen!E4 -> 2.8 | G288: =23.45*SIN(RADIANS(360*(284+B288)/365)) -> -20.91696257 | H288: =ACOS(-(TAN(RADIANS($B$108)))*TAN(RADIANS(G288)))*180/PI() -> 62.08731562 | I288: =IF(ACOS(-(TAN(RADIANS($B$108-$B$107)))*TAN(RADIANS(G288)))*180/PI()>H288,H288,ACOS(-(TAN(RADIANS($B$108-$B$107)))*TAN(RADIANS(G288)))*180/PI()) -> 62.08731562 | J288: =(COS(RADIANS($B$108-$B$107))*COS(RADIANS(G288))*SIN(RADIANS(I288))+PI()*I288/180*SIN(RADIANS($B$108-$B$107))*SIN(RADIANS(G288)))/(COS(RADIANS($B$108))*COS(RADIANS(G288))*SIN(RADIANS(H288))+PI()*H288/180*SIN(RADIANS($B$108))*SIN(RADIANS(G288))) -> 3.518497424 | K288: =((1-E288/D288)*J288)+(E288/D288*(1+COS(RADIANS($B$107)))/2)+(0.2*(1-COS(RADIANS($B$107)))/2) -> 1.919209837 | L288: =D288*K288*$B$111*1000 -> 1381.831082 | M288: =11.6+1.18*$B$110+3.86*$B$109-2.32*F288 -> 96.804 | N288: =($B$105*$B$103*M288*0.9*24/($B$112*1000))*($F$225/75/$B$103)^-0.25 -> 4.631440274 | O288: =$B$104*$B$103*L288*0.9/($B$112*1000) -> 0.6339686885 | P288: =1.029*O288-0.065*N288-0.245*O288^2+0.0018*N288^2+0.0215*O288^3 -> 0.2969293503
A289: Feb | B289: 47 | C289: 28 | D289: =Klimazonen!C5 -> 1.36 | E289: =Klimazonen!D5 -> 0.9 | F289: =Klimazonen!E5 -> 4 | G289: =23.45*SIN(RADIANS(360*(284+B289)/365)) -> -12.95460809 | H289: 73.63543696 | I289: 73.63543696 | J289: 2.448063078 | K289: 1.422162166 | L289: 1934.140545 | M289: 94.02 | N289: 4.498244025 | O289: 0.8873621099 | P289: =1.029*O289-0.065*N289-0.245*O289^2+0.0018*N289^2+0.0215*O289^3 -> 0.4792379489
A290: Mrz | B290: 75 | C290: 31 | D290: =Klimazonen!C6 -> 2.38 | E290: =Klimazonen!D6 -> 1.55 | F290: =Klimazonen!E6 -> 6.7 | G290: -2.417734805 | H290: =ACOS(-(TAN(RADIANS($B$108)))*TAN(RADIANS(G290)))*180/PI() -> 87.03565009 | I290: 87.03565009 | J290: 1.696414244 | K290: 1.176781582 | L290: 2800.740164 | M290: 87.756 | N290: 4.198552464 | O290: =$B$104*$B$103*L290*0.9/($B$112*1000) -> 1.284948349 | P290: 0.7221321725
A291: Apr | B291: 105 | C291: 30 | D291: =Klimazonen!C7 -> 3.84 | E291: =Klimazonen!D7 -> 1.75 | F291: =Klimazonen!E7 -> 9.6 | G291: =23.45*SIN(RADIANS(360*(284+B291)/365)) -> 9.414893347 | H291: 101.7179052 | I291: =IF(ACOS(-(TAN(RADIANS($B$108-$B$107)))*TAN(RADIANS(G291)))*180/PI()>H291,H291,ACOS(-(TAN(RADIANS($B$108-$B$107)))*TAN(RADIANS(G291)))*180/PI()) -> 90.96005077 | J291: =(COS(RADIANS($B$108-$B$107))*COS(RADIANS(G291))*SIN(RADIANS(I291))+PI()*I291/180*SIN(RADIANS($B$108-$B$107))*SIN(RADIANS(G291)))/(COS(RADIANS($B$108))*COS(RADIANS(G291))*SIN(RADIANS(H291))+PI()*H291/180*SIN(RADIANS($B$108))*SIN(RADIANS(G291))) -> 1.205335829 | K291: 1.074307633 | L291: 4125.341311 | M291: =11.6+1.18*$B$110+3.86*$B$109-2.32*F291 -> 81.028 | N291: 3.876661528 | O291: 1.892660582 | P291: 0.9907519947
A292: Mai | B292: 135 | C292: 31 | D292: =Klimazonen!C8 -> 4.99 | E292: =Klimazonen!D8 -> 2.79 | F292: =Klimazonen!E8 -> 13.8 | G292: 18.79191752 | H292: 114.6306395 | I292: 91.9704126 | J292: 0.9519425236 | K292: 0.9262206869 | L292: 4621.841228 | M292: 71.284 | N292: 3.410474655 | O292: 2.120449206 | P292: 1.084588102
A293: Jun | B293: 162 | C293: 30 | D293: =Klimazonen!C9 -> 5.07 | E293: =Klimazonen!D9 -> 2.56 | F293: =Klimazonen!E9 -> 16.8 | G293: 23.085911 | H293: 121.4712271 | I293: 92.46854848 | J293: 0.8578087184 | K293: 0.8849493935 | L293: =D293*K293*$B$111*1000 -> 4486.693425 | M293: 64.324 | N293: 3.077484032 | O293: 2.058444901 | P293: 1.084561816
A294: Jul | B294: 198 | C294: 31 | D294: =Klimazonen!C10 -> 5.12 | E294: =Klimazonen!D10 -> 2.47 | F294: =Klimazonen!E10 -> 17.8 | G294: =23.45*SIN(RADIANS(360*(284+B294)/365)) -> 21.18369356 | H294: 118.3379949 | I294: 92.24431055 | J294: 0.8982085963 | K294: =((1-E294/D294)*J294)+(E294/D294*(1+COS(RADIANS($B$107)))/2)+(0.2*(1-COS(RADIANS($B$107)))/2) -> 0.9059552701 | L294: 4638.490983 | M294: 62.004 | N294: 2.966487157 | O294: 2.128087928 | P294: =1.029*O294-0.065*N294-0.245*O294^2+0.0018*N294^2+0.0215*O294^3 -> 1.110483437
A295: Aug | B295: 228 | C295: 31 | D295: =Klimazonen!C11 -> 4.45 | E295: =Klimazonen!D11 -> 2.25 | F295: =Klimazonen!E11 -> 18.7 | G295: 13.45495968 | H295: 107.0396265 | I295: 91.38527875 | J295: 1.086352395 | K295: 0.9979343552 | L295: 4440.807881 | M295: 59.916 | N295: 2.86658997 | O295: 2.037393125 | P295: 1.089781478
A296: Sep | B296: 258 | C296: 30 | D296: =Klimazonen!C12 -> 2.91 | E296: =Klimazonen!D12 -> 1.71 | F296: =Klimazonen!E12 -> 15.1 | G296: 2.216886783 | H296: 92.71764249 | I296: 90.2241229 | J296: 1.471601383 | K296: 1.137707864 | L296: 3310.729884 | M296: 68.268 | N296: 3.266178718 | O296: 1.518925945 | P296: 0.8799710448
A297: Okt | B297: 288 | C297: 31 | D297: =Klimazonen!C13 -> 1.76 | E297: =Klimazonen!D13 -> 1.11 | F297: =Klimazonen!E13 -> 10.9 | G297: -9.599397234 | H297: 78.04472675 | I297: =IF(ACOS(-(TAN(RADIANS($B$108-$B$107)))*TAN(RADIANS(G297)))*180/PI()>H297,H297,ACOS(-(TAN(RADIANS($B$108-$B$107)))*TAN(RADIANS(G297)))*180/PI()) -> 78.04472675 | J297: 2.158219524 | K297: 1.364679637 | L297: 2401.83616 | M297: 78.012 | N297: 3.732365591 | O297: 1.101935642 | P297: 0.6476366115
A298: Nov | B298: 318 | C298: 30 | D298: =Klimazonen!C14 -> 0.87 | E298: =Klimazonen!D14 -> 0.55 | F298: =Klimazonen!E14 -> 6.2 | G298: -18.91195474 | H298: 65.1886347 | I298: 65.1886347 | J298: 3.174860086 | K298: 1.736656669 | L298: 1510.891302 | M298: 88.916 | N298: 4.254050901 | O298: 0.6931800779 | P298: 0.3587823875
A299: Dez | B299: 344 | C299: 31 | D299: =Klimazonen!C15 -> 0.47 | E299: =Klimazonen!D15 -> 0.35 | F299: =Klimazonen!E15 -> 3.4 | G299: -23.04962764 | H299: 58.59030747 | I299: 58.59030747 | J299: 3.973003673 | K299: 1.679298104 | L299: 789.2701088 | M299: 95.412 | N299: 4.56484215 | O299: 0.3621083229 | P299: 0.08229856955
A300: Jahr | C300: 365 | D300: =Klimazonen!C16 -> 2.83 | E300: =Klimazonen!D16 -> 1.54 | F300: =Klimazonen!E16 -> 10.5 | L300: =SUMPRODUCT(L288:L299,C288:C299) -> 1110484.959 | O300: 509.4781134
A303: Berechnung Deckungsanteil/Wärmemengen
D304: Nur Warmwasserbereitung | F304: Nur Schwimmbadbeheizung | H304: Warmwasser + Schwimmbad | J304: Warmwasser + Heizung | P304: WWB+Heizung+Pool
A305: Monat | B305: Tage | C305: Solarer Ertrag | D305: Deckungsanteil | E305: Q-WWB | F305: Deckungsanteil | G305: Q-Pool | H305: Deckungsanteil | I305: Q-WWB + Q-Pool | J305: Heizlast | K305: Heizwärmebedarf | L305: Deckungsanteil | M305: Q-Hzg | N305: Deckungsanteil | O305: Q-Hzg+WWB
C306: KWh/d | D306: WWB | E306: [kWh/d] | F306: Pool | G306: [kWh/d] | H306: Pool | I306: [kWh/d] | J306: KW | K306: kWh/d | L306: Heizung | M306: [kWh/d] | N306: Heizung+WWB | O306: [kWh/d]
A307: =Translation!A152 -> Jan | B307: 31 | C307: =L288*$B$103/1000 -> 6.632789195 | D307: =IF(P288<0,0,MIN(P288,1)) -> 0.2969293503 | E307: =D307*$B$112 -> 2.320609767 | F307: =MIN(1,C307/$B$121) ->  | G307: =IF($B$117<3,0,F307*$B$121) ->  | H307: =MAX(MIN(1,(C307-E307)/$B$121),0) ->  | I307: =IF($B$117<3,E307,E307+H307*$B$121) ->  | J307: =MAX(0,(($B$116-F288)*$B$114)/($B$116-$B$115)) ->  | K307: =J307*24 ->  | L307: =IF(K307=0,0,MAX(MIN(1,(C307*0.25-E307)/K307),0)) ->  | M307: =K307*L307 ->  | N307: =(E307+M307)/($B$112+K307) ->  | O307: =M307+E307 -> 
A308: =Translation!A153 -> Feb | B308: 28 | C308: =L289*$B$103/1000 -> 9.283874618 | D308: =IF(P289<0,0,MIN(P289,1)) -> 0.4792379489 | E308: 3.745417096 | G308: =IF($B$117<3,0,F308*$B$121) ->  | I308: =IF($B$117<3,E308,E308+H308*$B$121) ->  | K308: =J308*24 ->  | L308: =IF(K308=0,0,MAX(MIN(1,(C308*0.25-E308)/K308),0)) ->  | M308: =K308*L308 ->  | O308: =M308+E308 -> 
A309: =Translation!A154 -> Mar | B309: 31 | C309: 13.44355279 | D309: 0.7221321725 | E309: 5.643722896 | G309: =IF($B$117<3,0,F309*$B$121) ->  | I309: =IF($B$117<3,E309,E309+H309*$B$121) -> 
A310: =Translation!A155 -> Apr | B310: 30 | C310: =L291*$B$103/1000 -> 19.80163829 | D310: 0.9907519947 | E310: 7.743083509 | G310: =IF($B$117<3,0,F310*$B$121) ->  | I310: =IF($B$117<3,E310,E310+H310*$B$121) -> 
A311: =Translation!A156 -> May | B311: 31 | C311: 22.18483789 | D311: 1 | E311: =D311*$B$112 -> 7.81536 | F311: =MIN(1,C311/$B$121) ->  | G311: =F311*$B$121 ->  | I311: =E311+H311*$B$121 -> 
A312: =Translation!A157 -> Jun | B312: 30 | C312: 21.53612844 | D312: 1 | E312: 7.81536 | G312: =F312*$B$121 ->  | I312: =E312+H312*$B$121 -> 
A313: =Translation!A158 -> Jul | B313: 31 | C313: 22.26475672 | D313: 1 | E313: 7.81536 | G313: =F313*$B$121 ->  | I313: =E313+H313*$B$121 -> 
A314: =Translation!A159 -> Aug | B314: 31 | C314: 21.31587783 | D314: 1 | E314: 7.81536 | G314: =F314*$B$121 ->  | I314: =E314+H314*$B$121 -> 
A315: =Translation!A160 -> Sep | B315: 30 | C315: 15.89150344 | D315: 0.8799710448 | E315: 6.877290505 | G315: =F315*$B$121 ->  | H315: =MAX(MIN(1,(C315-E315)/$B$121),0) ->  | I315: =E315+H315*$B$121 -> 
A316: =Translation!A161 -> Oct | B316: 31 | C316: 11.52881357 | D316: 0.6476366115 | E316: 5.061513268 | G316: =IF($B$117<3,0,F316*$B$121) ->  | I316: =IF($B$117<3,E316,E316+H316*$B$121) -> 
A317: =Translation!A162 -> Nov | B317: 30 | C317: 7.252278251 | D317: 0.3587823875 | E317: 2.80401352 | G317: =IF($B$117<3,0,F317*$B$121) ->  | I317: =IF($B$117<3,E317,E317+H317*$B$121) -> 
A318: =Translation!A163 -> Dec | B318: 31 | C318: 3.788496522 | D318: 0.08229856955 | E318: 0.6431929485 | G318: =IF($B$117<3,0,F318*$B$121) ->  | I318: =IF($B$117<3,E318,E318+H318*$B$121) -> 
A319: Jahr | B319: 365 | C319: =SUMPRODUCT(C307:C318,B307:B318) -> 5330.327802 | D319: =SUMPRODUCT(D307:D318,B307:B318)/365 -> 0.7055417074 | E319: =SUMPRODUCT(B307:B318,E307:E318) -> 2012.63279 | F319: =IF(B117<3,(SUMPRODUCT(B312:B314,F312:F314)+0.5*B311*F311+0.5*B315*F315)/B118,SUMPRODUCT(B307:B318,F307:F318)/B118) ->  | G319: =IF(B117<3,SUMPRODUCT(B312:B314,G312:G314)+0.5*B311*G311+0.5*B315*G315,SUMPRODUCT(B307:B318,G307:G318)) ->  | H319: =IF(B117<3,(SUMPRODUCT(B312:B314,H312:H314)+0.5*B311*H311+0.5*B315*H315)/B118,SUMPRODUCT(B307:B318,H307:H318)/B118) ->  | I319: =IF(B117<3,SUMPRODUCT(B312:B314,I312:I314)+0.5*B311*I311+0.5*B315*I315,SUMPRODUCT(B307:B318,I307:I318)) ->  | J319: =B114 ->  | K319: =SUMPRODUCT(K307:K318,B307:B318) ->  | L319: =SUMPRODUCT(B307:B318,L307:L318)/B319 ->  | M319: =SUMPRODUCT(M307:M318,B307:B318) ->  | N319: =(E319+M319)/(B112*365+K319) ->  | O319: =SUMPRODUCT(O307:O318,D307:D318) ->  | P319: =IF(AND(D319>=D320,F319>=F320,L319>=L320,N319>=N320),TRUE,FALSE) -> 
A320: Sollwert | D320: 0.58 | F320: =IF(B117>2,0.6,1) -> 0.6 | H320: =IF(B117>2,0.6,1) -> 0.6 | L320: =IF(D319>0.95,0.02,0) -> 0 | N320: =IF(D319<=0.95,IF(B114<=10,0.12,IF(B114<=15,0.11,0.1)),IF(L319<0.02,0,IF(B114<=10,0.12,IF(B114<=15,0.11,0.1)))) ->  | P320: TRUE
A322: Soll-/Istwerte Deckungsgrad
A323: Nutzungsart Solar: | B323: =B74 -> 1 | C323: 1=WWB, 2=WWB+HU, 3=WWB+SB, 4=WWB+HU+SB, 5=Nur SB
A324: Sollwert Deckung: | B324: =IF(B323=1,D320,IF(B323=2,N320,IF(B323=3,H320,IF(B323=5,F320,P320)))) -> 0.58 | C324: aus Festlegung in Zeile 332
A325: Istwert Deckung | B325: =IF(B323=1,D319,IF(B323=2,N319,IF(B323=3,H319,IF(B323=5,F319,P319)))) -> 0.7055417074 | C325: aus Ergebnis Berechnung in Zeile 331
A326: Istwert >= Sollwert ? | B326: =IF(B323=2,(IF(AND(D319>=D320,L319>=L320,N319>=N320),TRUE,FALSE)),IF(B325>=B324,TRUE,FALSE)) -> TRUE | C326: Boolescher Ausdruck für Schleife zur Bestimmung der optimalen Kollektoranzahl
A341: Hydraulikzeichnungen
A342: Schlüssel | B342: =B344&"-"&B345&"-"&B346 -> 1-1-1
A344: Nutzungsart | B344: =D25 -> 1 | C344: 1=WWB, 2=WWB+HU, 3=WWB+Pool, 4=WWB+HU+Pool, 5=Nur Pool
A345: Speicherart | B345: =IF(AND(B74=1,B81=1),4,B75) -> 1 | C345: 0=Kein Speicher, 1=SBB, 2=SBK, 3=SBS, 4=KS 150
A346: 2. WE | B346: =IF(T14=T17,0,IF(T14=T18,1,IF(T14=T19,2,IF(T14=T20,3,4)))) -> 1 | C346: 0=Keiner, 1=Wärmepumpe, 2=Durchlauferhitzer, 3=Öl-/Gaskessel, 4=Feststoffkessel
A355: Zeichnungen Rohrinstallation
A356: Schlüssel | B356: ="BildRohr-"&B358&B359&B360 -> BildRohr-121
A358: Kollektortyp | B358: =IF(N14=N19,2,1) -> 1 | C358: 1=SOL 27 Premium/Basic, 2= SOL 23 Premium
A359: Kollektoranzahl | B359: =B81 -> 2 | C359: 1-16
A360: Anordnung | B360: =B77 -> 1 | C360: 1=senkrecht nebeneinander, 2= waagerecht nebeneinander, 3=waagerecht übereinader, 4 = senkrecht übereinander
A367: Gefunden? | B367: TRUE
A385: Wasserinhalt Komponenten
A386: Kollektoren | E386: Warmwasserspeicher | H386: Pufferspeicher | K386: Wärmetauscher | N386: Sonstige Einbauten
A387: Typ | B387: Anzahl | C387: Wasserinhalt | D387: Kollektorgruppe | E387: Typ | F387: Wasserinhalt | G387: Anzahl | H387: Typ | I387: Wasserinhalt | J387: Anzahl | K387: Typ | L387: Wasserinhalt | M387: Anzahl | N387: Auswahl | O387: Wasserinhalt
A390: Rooftop SOL 27 Premium S | B390: 2 | C390: =VLOOKUP(A390,A393:C413,3,FALSE)*B390 -> 3 | D390: =VLOOKUP(B390*1,B392:D412,3,FALSE)*0.13 -> 0.13 | E390: SBB 300 Plus | F390: =IF(G390=G393,0,VLOOKUP(E390,E392:F413,2,FALSE)*G390) -> 10.1 | G390: 1 | H390: SBP 700 E SOL | I390: =IF(J390=J393,0,VLOOKUP(H390,H392:I413,2,FALSE)*J390) -> 0 | J390: --- | K390: WT 10 | L390: =IF(M390=M393,0,VLOOKUP(K390,K392:L413,2,FALSE)*M390) -> 0 | M390: --- | N390: --- | O390: =IF(N390=E453,0,LEFT(N390,FIND(" ",N390)-1)*1) -> 0
A393: =N17&" S" -> Rooftop SOL 27 Premium S | B393: =O18 -> 1 | C393: 1.5 | D393: 0 | E393: KS 150 SOL | F393: 3.2 | G393: --- | H393: SBP 700 E SOL | I393: 14.2 | J393: --- | K393: WT 10 | L393: 0.9 | M393: ---
A394: =N17&" W" -> Rooftop SOL 27 Premium W | B394: 2 | C394: 1.83 | D394: 1 | E394: SBB 300 Plus | F394: 10.1 | G394: 1 | H394: SBP 1000 E SOL | I394: 26 | J394: 1 | K394: WT 20 | L394: 1.7 | M394: 1
A395: =N18&" S" -> Rooftop SOL 27 Basic S | B395: 3 | C395: 1.3 | D395: 2 | E395: SBB 400 Plus | F395: 11.3 | G395: 2 | H395: SBP 1500 E SOL | I395: 31 | J395: 2 | K395: WT 30 | L395: 2.5 | M395: 2
A396: =N18&" W" -> Rooftop SOL 27 Basic W | B396: 4 | C396: 1.7 | D396: 3 | E396: SBB 600 Plus | F396: 21.1 | G396: 3 | J396: 3 | K396: WT 40 | L396: 4 | M396: 3
A397: =N19 -> Roof integration SOL 23 Premium | B397: 5 | C397: 1.2 | D397: 4 | E397: SBB 300 Trend | F397: 9.2 | G397: 4 | J397: 4 | M397: 4
B398: 6 | D398: 4 | E398: SBB 400 Trend | F398: 10.7 | G398: 5 | J398: 5 | M398: 5
B399: 8 | D399: 6 | E399: SBB 500 Trend | F399: 16.4 | G399: 6 | J399: 6 | M399: 6
B400: 10 | D400: 8 | E400: SBB 401 WP SOL | F400: 8.7 | G400: 7 | J400: 7 | M400: 7
B401: 12 | D401: 9 | E401: SBB 501 WP SOL | F401: 8.7 | G401: 8 | J401: 8 | M401: 8
B402: 15 | D402: 12 | E402: SBB 751 SOL | F402: 28.2 | G402: 9 | J402: 9 | M402: 9
B403: 16 | D403: 12 | E403: SBB 1001 SOL | F403: 37.6 | G403: 10 | J403: 10 | M403: 10
B404: 18 | D404: 12 | E404: SBS 601 W SOL | F404: 11.9
B405: 20 | D405: 16 | E405: SBS 801 W SOL | F405: 21.2
B406: 21 | D406: 14 | E406: SBS 1001 W SOL | F406: 25.9
B407: 24 | D407: 20 | E407: SBS 1501 W SOL | F407: 31.2
B408: 25 | D408: 20 | E408: SBK 600/150 | F408: 15.2
A431: Wasserinhalt Kollektoren/Speicher
A432: Rohrtyp | B432: =Translation!A279 -> Flexible solar pipe | C432: =Translation!A280 -> Copper pipe 18 x 1.0 | D432: =Translation!A281 -> Copper pipe 22 x 1.0 | E432: =Translation!A282 -> Copper pipe 28 x 1.5 | F432: =Translation!A283 -> Copper pipe 35 x 1.5
A433: Länge | B433: --- | C433: --- | D433: --- | E433: --- | F433: ---
A435: Inhalt (Liter) | B435: =IF(B433=$F$453,0,LEFT(B433,FIND(" ",B433)-1)*B437) -> 0 | C435: =IF(C433=$F$453,0,LEFT(C433,FIND(" ",C433)-1)*C437) -> 0 | D435: =IF(D433=$F$453,0,LEFT(D433,FIND(" ",D433)-1)*D437) -> 0 | E435: =IF(E433=$F$453,0,LEFT(E433,FIND(" ",E433)-1)*E437) -> 0 | F435: =IF(F433=$F$453,0,LEFT(F433,FIND(" ",F433)-1)*F437) -> 0
A437: Inhalt (Liter/m) | B437: 0.305 | C437: 0.201 | D437: 0.314 | E437: 0.491 | F437: 0.804
A451: Berechnung MAG | E451: Listbox Sonstige | F451: Listbox Rohre | H451: Nebenrechnung Auswahl MAG
A452: Berechnungsgröße | C452: Wert | H452: Mindestgröße | I452: Auswahl MAG
E453: --- | F453: ---
A454: Summe Wasserinhalt Komponenten | C454: =C390+D390+F390+I390+L390+O390+SUM(B435:F436) -> 13.23 | E454: =1&" "&Translation!$A$287 -> 1 Litres | F454: 1 m | H454: 0 | I454: AG 12
A455: Flüssigkeitsvorlage 5% (mind. 3 l) | C455: =MAX(C454*0.005,3) -> 3 | E455: =2&" "&Translation!$A$287 -> 2 Litres | F455: 2 m | H455: 13 | I455: AG 18
A456: Gesamtinhalt | C456: =C454+C455 -> 16.23 | E456: =3&" "&Translation!$A$287 -> 3 Litres | F456: 3 m | H456: 19 | I456: AG 25
A457: Ausdehnungsvolumen | C457: =(C456-C390)*0.0849 -> 1.123227 | E457: =4&" "&Translation!$A$287 -> 4 Litres | F457: 4 m | H457: 26 | I457: AG 50
... 66 more rows

Sheet Matrix-Material (hidden)
A1: 1=WWB | 2=WWB+HU | 3=WWB+SB | 4=WWB+HU+SB | 5= Nur SB | B1: 1=SOL 27 Premium S/W | 2=SOL 27 basic S/W | 3=SOL 23 premium | C1: 0=Kein Speicher | 1=SBB | 2=SBK | 3=SBS | D1: 1=Mit HUV | 2=Mit Pumpen | E1: 1= Pfannendach | 2 = Welldach | 3 = Flachdach/Wand | F1: 1=senkr. nebeneinander | 2=waag. nebeneinander | 3=waag. Übereinander | 4=senkr. übereinander | G1: 1=Standard | 2=Schnellbefestigung I 3=mit Aufständerung | H1: 1=Regelung integriert | 2=Pumpengruppe Regelung getrennt | I1: 1 - 16 | K1: =VLOOKUP(K2,Preisliste!$B:$C,2,FALSE) -> Solar flat-plate collector SOL 27 premium S | L1: =VLOOKUP(L2,Preisliste!$B:$C,2,FALSE) -> Solar flat-plate collector SOL 27 premium W | M1: =VLOOKUP(M2,Preisliste!$B:$C,2,FALSE) -> Quick-connector SOL SBP-S | N1: =VLOOKUP(N2,Preisliste!$B:$C,2,FALSE) -> Quick-connector SOL SBP-W | O1: =VLOOKUP(O2,Preisliste!$B:$C,2,FALSE) -> Quick-connector SOL SBP-WE | P1: =VLOOKUP(P2,Preisliste!$B:$C,2,FALSE) -> Mounting frame SOL R1 | Q1: =VLOOKUP(Q2,Preisliste!$B:$C,2,FALSE) -> Mounting frame SOL R2 | R1: =VLOOKUP(R2,Preisliste!$B:$C,2,FALSE) -> Mounting frame SOL R1 W | S1: =VLOOKUP(S2,Preisliste!$B:$C,2,FALSE) -> Frame connection set SOL RV | T1: =VLOOKUP(T2,Preisliste!$B:$C,2,FALSE) -> Frame connection set SOL RV-W | U1: =VLOOKUP(U2,Preisliste!$B:$C,2,FALSE) -> Fixing Kit - tiled roof SOL BP | V1: =VLOOKUP(V2,Preisliste!$B:$C,2,FALSE) -> Frame support SOL RA | W1: =VLOOKUP(W2,Preisliste!$B:$C,2,FALSE) -> Frame connection set SOL RV-W | X1: =VLOOKUP(X2,Preisliste!$B:$C,2,FALSE) -> Fixing Kit - corrugated roof SOL BW | Y1: =VLOOKUP(Y2,Preisliste!$B:$C,2,FALSE) -> Mounting kit flat roof SOL BF-S | Z1: =VLOOKUP(Z2,Preisliste!$B:$C,2,FALSE) -> Mounting kit flat roof SOL BF-W | AA1: =VLOOKUP(AA2,Preisliste!$B:$C,2,FALSE) -> Fixing kit - shingle roof SOL BS | AB1: =VLOOKUP(AB2,Preisliste!$B:$C,2,FALSE) -> Fixing kit - plain tile roof SOL BB | AC1: =VLOOKUP(AC2,Preisliste!$B:$C,2,FALSE) -> Fixing kit - plain tile roof SOL BB-Cu | AD1: =VLOOKUP(AD2,Preisliste!$B:$C,2,FALSE) -> Push-fit connection SOL SV-A | AE1: =VLOOKUP(AE2,Preisliste!$B:$C,2,FALSE) -> Push-fit connection SOL SV-A50 | AF1: =VLOOKUP(AF2,Preisliste!$B:$C,2,FALSE) -> Push-fit connection SOL SV-F | AG1: =VLOOKUP(AG2,Preisliste!$B:$C,2,FALSE) -> Push-fit connection SOL SV-D | AH1: =VLOOKUP(AH2,Preisliste!$B:$C,2,FALSE) -> Solar flat-plate collector SOL 27 Basic S | AI1: =VLOOKUP(AI2,Preisliste!$B:$C,2,FALSE) -> Solar flat-plate collector SOL 27 Basic W | AJ1: =VLOOKUP(AJ2,Preisliste!$B:$C,2,FALSE) -> Quick-connector SOL SBP-S | AK1: =VLOOKUP(AK2,Preisliste!$B:$C,2,FALSE) -> Quick-connector SOL SBP-W | AL1: =VLOOKUP(AL2,Preisliste!$B:$C,2,FALSE) -> Quick-connector SOL SBP-WE | AM1: =VLOOKUP(AM2,Preisliste!$B:$C,2,FALSE) -> Mounting frame SOL R1 | AN1: =VLOOKUP(AN2,Preisliste!$B:$C,2,FALSE) -> Mounting frame SOL R2 | AO1: =VLOOKUP(AO2,Preisliste!$B:$C,2,FALSE) -> Mounting frame SOL R1 W | AP1: =VLOOKUP(AP2,Preisliste!$B:$C,2,FALSE) -> Frame connection set SOL RV | AQ1: =VLOOKUP(AQ2,Preisliste!$B:$C,2,FALSE) -> Fixing Kit - tiled roof SOL BP | AR1: =VLOOKUP(AR2,Preisliste!$B:$C,2,FALSE) -> Frame support SOL RA | AS1: =VLOOKUP(AS2,Preisliste!$B:$C,2,FALSE) -> Frame connection set SOL RV-W | AT1: =VLOOKUP(AT2,Preisliste!$B:$C,2,FALSE) -> Fixing Kit - corrugated roof SOL BW | AU1: =VLOOKUP(AU2,Preisliste!$B:$C,2,FALSE) -> Mounting kit flat roof SOL BF-S | AV1: =VLOOKUP(AV2,Preisliste!$B:$C,2,FALSE) -> Mounting kit flat roof SOL BF-W | AW1: =VLOOKUP(AW2,Preisliste!$B:$C,2,FALSE) -> Fixing kit - shingle roof SOL BS | AX1: =VLOOKUP(AX2,Preisliste!$B:$C,2,FALSE) -> Fixing kit - plain tile roof SOL BB | AY1: =VLOOKUP(AY2,Preisliste!$B:$C,2,FALSE) -> Fixing kit - plain tile roof SOL BB-Cu | AZ1: =VLOOKUP(AZ2,Preisliste!$B:$C,2,FALSE) -> Push-fit connection SOL SV-A | BA1: =VLOOKUP(BA2,Preisliste!$B:$C,2,FALSE) -> Push-fit connection SOL SV-D | BB1: =VLOOKUP(BB2,Preisliste!$B:$C,2,FALSE) -> Collector sensor pocket KTH basic | BC1: =VLOOKUP(BC2,Preisliste!$B:$C,2,FALSE) -> Corrugated stainless steel hose | BD1: =VLOOKUP(BD2,Preisliste!$B:$C,2,FALSE) -> Quick-action air vent valve SOL SE | BE1: =VLOOKUP(BE2,Preisliste!$B:$C,2,FALSE) -> Solar flat-plate collector SOL 23 premium | BF1: =VLOOKUP(BF2,Preisliste!$B:$C,2,FALSE) -> Side cover set SOL AS | BG1: =VLOOKUP(BG2,Preisliste!$B:$C,2,FALSE) -> Push-fit connection SOL SV-I | BH1: =VLOOKUP(BH2,Preisliste!$B:$C,2,FALSE) -> Push-fit connection SOL SV-R | BI1: =VLOOKUP(BI2,Preisliste!$B:$C,2,FALSE) -> Side flashing SOL AZ | BJ1: =VLOOKUP(BJ2,Preisliste!$B:$C,2,FALSE) -> Corrugated stainless steel hose | BK1: =VLOOKUP(BK2,Preisliste!$B:$C,2,FALSE) -> Flexible solar pipe SFR 15, DN 20 15m | BL1: =VLOOKUP(BL2,Preisliste!$B:$C,2,FALSE) -> Solar compact installation SOKI E trend | BM1: =VLOOKUP(BM2,Preisliste!$B:$C,2,FALSE) -> Solar compact installation SOKI 7 E trend | BN1: =VLOOKUP(BN2,Preisliste!$B:$C,2,FALSE) -> Solar compact installation SOKI 7 E trend | BO1: =VLOOKUP(BO2,Preisliste!$B:$C,2,FALSE) -> Solar compact installation SOKI E premium | BP1: =VLOOKUP(BP2,Preisliste!$B:$C,2,FALSE) -> Solar control unit SOM 7 E Plus | BQ1: =VLOOKUP(BQ2,Preisliste!$B:$C,2,FALSE) -> Solar control unit SOM 7 E Plus | BR1: =VLOOKUP(BR2,Preisliste!$B:$C,2,FALSE) -> Solar control unit SOM 8 plus | BS1: =VLOOKUP(BS2,Preisliste!$B:$C,2,FALSE) -> Warm water cylinder KS 150 SOL | BT1: =VLOOKUP(BT2,Preisliste!$B:$C,2,FALSE) -> Warm water cylinder SBB 300 plus | BU1: =VLOOKUP(BU2,Preisliste!$B:$C,2,FALSE) -> Warm water cylinder SBB 400 plus | BV1: =VLOOKUP(BV2,Preisliste!$B:$C,2,FALSE) -> Warm water cylinder SBB 600 plus | BW1: =VLOOKUP(BW2,Preisliste!$B:$C,2,FALSE) -> Warm water cylinder SBB 300 Trend | BX1: =VLOOKUP(BX2,Preisliste!$B:$C,2,FALSE) -> Warm water cylinder SBB 400 Trend | BY1: =VLOOKUP(BY2,Preisliste!$B:$C,2,FALSE) -> Warm water cylinder SBB 500 Trend | BZ1: =VLOOKUP(BZ2,Preisliste!$B:$C,2,FALSE) -> Warm water cylinder SBB 751 SOL | CA1: =VLOOKUP(CA2,Preisliste!$B:$C,2,FALSE) -> Warm water cylinder SBB 1001 SOL | CB1: =VLOOKUP(CB2,Preisliste!$B:$C,2,FALSE) -> Thermal insulation WDH 751 SBB | CC1: =VLOOKUP(CC2,Preisliste!$B:$C,2,FALSE) -> Thermal insulation WDH 1001 SBB | CD1: =VLOOKUP(CD2,Preisliste!$B:$C,2,FALSE) -> Loading station WTS 30 E | CE1: =VLOOKUP(CE2,Preisliste!$B:$C,2,FALSE) -> Loading station WTS 40 E | CF1: =VLOOKUP(CF2,Preisliste!$B:$C,2,FALSE) -> Warm water cylinder SBB 401 WP SOL | CG1: =VLOOKUP(CG2,Preisliste!$B:$C,2,FALSE) -> Warm water cylinder SBB 501 WP SOL | CH1: =VLOOKUP(CH2,Preisliste!$B:$C,2,FALSE) -> Buffer cylinder SBP 700 E SOL | CI1: =VLOOKUP(CI2,Preisliste!$B:$C,2,FALSE) -> Buffer cylinder SBP 1000 E SOL | CJ1: =VLOOKUP(CJ2,Preisliste!$B:$C,2,FALSE) -> Thermal insulation WDH 1000 SBP | CK1: =VLOOKUP(CK2,Preisliste!$B:$C,2,FALSE) -> Buffer cylinder SBP 1500 E SOL | CL1: =VLOOKUP(CL2,Preisliste!$B:$C,2,FALSE) -> Thermal insulation WDH 1500 SBP | CM1: =VLOOKUP(CM2,Preisliste!$B:$C,2,FALSE) -> Combi cylinder SBK 600/150 | CN1: =VLOOKUP(CN2,Preisliste!$B:$C,2,FALSE) -> Instantaneous cylinder SBS 601 W SOL | CO1: =VLOOKUP(CO2,Preisliste!$B:$C,2,FALSE) -> Instantaneous cylinder SBS 801 W SOL | CP1: =VLOOKUP(CP2,Preisliste!$B:$C,2,FALSE) -> Instantaneous cylinder SBS 1001 W SOL | CQ1: =VLOOKUP(CQ2,Preisliste!$B:$C,2,FALSE) -> Instantaneous cylinder SBS 1501 W SOL | CR1: =VLOOKUP(CR2,Preisliste!$B:$C,2,FALSE) -> Thermal insulation WDH 601 SBS | CS1: =VLOOKUP(CS2,Preisliste!$B:$C,2,FALSE) -> Thermal insulation WDH 801 SBS | CT1: =VLOOKUP(CT2,Preisliste!$B:$C,2,FALSE) -> Thermal insulation WDH 1001 SBS | CU1: =VLOOKUP(CU2,Preisliste!$B:$C,2,FALSE) -> Thermal insulation WDH 1501 SBS | CV1: =VLOOKUP(CV2,Preisliste!$B:$C,2,FALSE) -> Heat exchanger WT 10 | CW1: =VLOOKUP(CW2,Preisliste!$B:$C,2,FALSE) -> Heat exchanger WT 20 | CX1: =VLOOKUP(CX2,Preisliste!$B:$C,2,FALSE) -> Heat exchanger WT 30 | CY1: =VLOOKUP(CY2,Preisliste!$B:$C,2,FALSE) -> Heat exchanger WT 40 | CZ1: =VLOOKUP(CZ2,Preisliste!$B:$C,2,FALSE) -> Heat transfer liquid H30-L, 10 l | DA1: =VLOOKUP(DA2,Preisliste!$B:$C,2,FALSE) -> Heat transfer liquid H30-L, 20 l | DB1: =VLOOKUP(DB2,Preisliste!$B:$C,2,FALSE) -> Heat transfer liquid H30-LS, 10 l | DC1: =VLOOKUP(DC2,Preisliste!$B:$C,2,FALSE) -> Heat transfer liquid H30-LS, 20 l | DD1: =VLOOKUP(DD2,Preisliste!$B:$C,2,FALSE) -> Three-way diverter valve SUV | DE1: =VLOOKUP(DE2,Preisliste!$B:$C,2,FALSE) -> Regulating valve with flowmeter | DF1: =VLOOKUP(DF2,Preisliste!$B:$C,2,FALSE) -> Solar expansion vessel 12 l | DG1: =VLOOKUP(DG2,Preisliste!$B:$C,2,FALSE) -> Solar expansion vessel 18 l | DH1: =VLOOKUP(DH2,Preisliste!$B:$C,2,FALSE) -> Solar expansion vessel 25 l | DI1: =VLOOKUP(DI2,Preisliste!$B:$C,2,FALSE) -> Solar expansion vessel 50 l | DJ1: =VLOOKUP(DJ2,Preisliste!$B:$C,2,FALSE) -> Solar expansion vessel 80 l | DK1: =VLOOKUP(DK2,Preisliste!$B:$C,2,FALSE) -> DEV connection set AGWH | DL1: =VLOOKUP(DL2,Preisliste!$B:$C,2,FALSE) -> Heating diverter valve (on side)
A2: Nutzung | B2: Kollektortyp | C2: Speicher | D2: HUV | E2: Dachform | F2: Anordnung | G2: Befestigung | H2: Regelung | I2: Kollektorzahl | J2: Suchschlüssel | K2: 230016 | L2: 230017 | M2: 231980 | N2: 231981 | O2: 231982 | P2: 230169 | Q2: 230170 | R2: 230920 | S2: 230171 | T2: 230172 | U2: 230175 | V2: 230173 | W2: 230172 | X2: 231998 | Y2: 230177 | Z2: 230178 | AA2: 230189 | AB2: 230190 | AC2: 230191 | AD2: 230185 | AE2: 231322 | AF2: 230913 | AG2: 230186 | AH2: 228927 | AI2: 230912 | AJ2: 231980 | AK2: 231981 | AL2: 231982 | AM2: 230169 | AN2: 230170 | AO2: 230920 | AP2: 230171 | AQ2: 230175 | AR2: 230173 | AS2: 230172 | AT2: 231998 | AU2: 230177 | AV2: 230178 | AW2: 230189 | AX2: 230190 | AY2: 230191 | AZ2: 230185 | BA2: 230186 | BB2: 229322 | BC2: 73469 | BD2: 231898 | BE2: 230020 | BF2: 230184 | BG2: 230187 | BH2: 230188 | BI2: 230183 | BJ2: 73469 | BK2: 232945 | BL2: 234783 | BM2: 234784 | BN2: 234784 | BO2: 231014 | BP2: 234785 | BQ2: 234785 | BR2: 230933 | BS2: 74098 | BT2: 187873 | BU2: 187874 | BV2: 187875 | BW2: 233490 | BX2: 233491 | BY2: 233492 | BZ2: 229294 | CA2: 229295 | CB2: 231923 | CC2: 231924 | CD2: 232907 | CE2: 232908 | CF2: 221362 | CG2: 227534 | CH2: 185460 | CI2: 227566 | CJ2: 231929 | CK2: 227567 | CL2: 231930 | CM2: 74067 | CN2: 229984 | CO2: 229985 | CP2: 229986 | CQ2: 229987 | CR2: 231925 | CS2: 231926 | CT2: 231927 | CU2: 231928 | CV2: 70633 | CW2: 70634 | CX2: 71091 | CY2: 229338 | CZ2: 73221 | DA2: 73222 | DB2: 74099 | DC2: 74100 | DD2: 231900 | DE2: 74244 | DF2: 74029 | DG2: 74030 | DH2: 74031 | DI2: 187868 | DJ2: 231899 | DK2: 231905 | DL2: ------
A3: 1 | B3: 1 | C3: 1 | D3: 1 | E3: 1 | F3: 1 | G3: 1 | H3: 1 | I3: 1 | J3: =A3&B3&C3&D3&E3&F3&G3&H3&I3 -> 111111111 | K3: 1 | P3: 1 | U3: 2 | AG3: 1 | BK3: =IF(Zwischenwerte!$AB$14=Zwischenwerte!$AB$26,1,0) -> 0 | BL3: 1 | BS3: 1 | DA3: 1 | DG3: 1 | DK3: 1
A4: 1 | B4: 1 | C4: 1 | D4: 1 | E4: 1 | F4: 1 | G4: 1 | H4: 1 | I4: 2 | J4: =A4&B4&C4&D4&E4&F4&G4&H4&I4 -> 111111112 | K4: 2 | Q4: 1 | U4: 2 | AD4: 1 | AG4: 1 | BK4: =IF(Zwischenwerte!$AB$14=Zwischenwerte!$AB$26,1,0) -> 0 | BM4: 1 | BT4: 1 | DA4: 1 | DH4: 1 | DK4: 1
A5: 1 | B5: 1 | C5: 1 | D5: 1 | E5: 1 | F5: 1 | G5: 1 | H5: 1 | I5: 3 | J5: 111111113 | K5: 3 | P5: 1 | Q5: 1 | S5: 1 | U5: 3 | AD5: 2 | AG5: 1 | BK5: =IF(Zwischenwerte!$AB$14=Zwischenwerte!$AB$26,1,0) -> 0 | BM5: 1 | BU5: 1 | CZ5: 1 | DA5: 1 | DH5: 1 | DK5: 1
A6: 1 | B6: 1 | C6: 1 | D6: 1 | E6: 1 | F6: 1 | G6: 1 | H6: 1 | I6: 4 | J6: 111111114 | K6: 4 | Q6: 2 | S6: 1 | U6: 4 | AD6: 3 | AG6: 1 | BK6: =IF(Zwischenwerte!$AB$14=Zwischenwerte!$AB$26,1,0) -> 0 | BM6: 1 | BV6: 1 | CZ6: 1 | DA6: 1 | DI6: 1
A7: 1 | B7: 1 | C7: 1 | D7: 1 | E7: 1 | F7: 1 | G7: 1 | H7: 1 | I7: 5 | J7: 111111115 | K7: 5 | P7: 1 | Q7: 2 | S7: 2 | U7: 5 | AD7: 4 | AG7: 1 | BK7: =IF(Zwischenwerte!$AB$14=Zwischenwerte!$AB$26,1,0) -> 0 | BM7: 1 | BV7: 1 | DA7: 2 | DI7: 1
A8: 1 | B8: 1 | C8: 1 | D8: 1 | E8: 1 | F8: 1 | G8: 1 | H8: 1 | I8: 6 | J8: 111111116 | K8: 6 | P8: 2 | Q8: 2 | S8: 2 | U8: 6 | AD8: 4 | AG8: 2 | BK8: =IF(Zwischenwerte!$AB$14=Zwischenwerte!$AB$26,1,0) -> 0 | BM8: 1 | BZ8: 1 | CB8: 1 | CD8: 1 | CZ8: 1 | DA8: 2 | DI8: 1
A9: 1 | B9: 1 | C9: 1 | D9: 1 | E9: 1 | F9: 1 | G9: 1 | H9: 1 | I9: 8 | J9: 111111118 | K9: 8 | Q9: 4 | S9: 2 | U9: 8 | AD9: 6 | AG9: 2 | BK9: =IF(Zwischenwerte!$AB$14=Zwischenwerte!$AB$26,1,0) -> 0 | BM9: 1 | CA9: 1 | CC9: 1 | CE9: 1 | DA9: 3 | DJ9: 1
A10: 1 | B10: 1 | C10: 1 | D10: 1 | E10: 1 | F10: 1 | G10: 1 | H10: 1 | I10: 10 | J10: 1111111110 | K10: 10 | P10: 2 | Q10: 4 | S10: 4 | U10: 10 | AD10: 8 | AG10: 2 | BK10: =IF(Zwischenwerte!$AB$14=Zwischenwerte!$AB$26,1,0) -> 0 | BM10: 1 | CA10: 1 | CC10: 1 | CE10: 1 | CZ10: 1 | DA10: 3 | DJ10: 1
A11: 1 | B11: 1 | C11: 1 | D11: 1 | E11: 1 | F11: 1 | G11: 1 | H11: 1 | I11: 12 | J11: 1111111112 | K11: 12 | Q11: 6 | S11: 3 | U11: 12 | AD11: 9 | AG11: 3 | BK11: =IF(Zwischenwerte!$AB$14=Zwischenwerte!$AB$26,1,0) -> 0 | BM11: 1 | BV11: 2 | DA11: 4 | DJ11: 1
A12: 1 | B12: 1 | C12: 1 | D12: 1 | E12: 1 | F12: 1 | G12: 1 | H12: 1 | I12: 15 | J12: 1111111115 | K12: 15 | P12: 3 | Q12: 6 | S12: 6 | U12: 15 | AD12: 12 | AG12: 3 | BK12: =IF(Zwischenwerte!$AB$14=Zwischenwerte!$AB$26,1,0) -> 0 | BM12: 1 | BZ12: 2 | CB12: 2 | CD12: 2 | DA12: 5 | DJ12: 1
A13: 1 | B13: 1 | C13: 1 | D13: 1 | E13: 1 | F13: 1 | G13: 1 | H13: 1 | I13: 16 | J13: 1111111116 | K13: 16 | Q13: 8 | S13: 4 | U13: 16 | AD13: 12 | AG13: 4 | BK13: =IF(Zwischenwerte!$AB$14=Zwischenwerte!$AB$26,1,0) -> 0 | BM13: 1 | CA13: 2 | CC13: 2 | CE13: 2 | DA13: 6 | DJ13: 1
A14: 1 | B14: 1 | C14: 1 | D14: 1 | E14: 1 | F14: 1 | G14: 1 | H14: 2 | I14: 1 | J14: 111111121 | K14: 1 | P14: 1 | U14: 2 | AG14: 1 | BK14: =IF(Zwischenwerte!$AB$14=Zwischenwerte!$AB$26,1,0) -> 0 | BL14: 1 | BS14: 1 | DA14: 1 | DG14: 1 | DK14: 1
A15: 1 | B15: 1 | C15: 1 | D15: 1 | E15: 1 | F15: 1 | G15: 1 | H15: 2 | I15: 2 | J15: 111111122 | K15: 2 | Q15: 1 | U15: 2 | AD15: 1 | AG15: 1 | BK15: =IF(Zwischenwerte!$AB$14=Zwischenwerte!$AB$26,1,0) -> 0 | BL15: 1 | BP15: 1 | BT15: 1 | DA15: 1 | DH15: 1 | DK15: 1
A16: 1 | B16: 1 | C16: 1 | D16: 1 | E16: 1 | F16: 1 | G16: 1 | H16: 2 | I16: 3 | J16: 111111123 | K16: 3 | P16: 1 | Q16: 1 | S16: 1 | U16: 3 | AD16: 2 | AG16: 1 | BK16: =IF(Zwischenwerte!$AB$14=Zwischenwerte!$AB$26,1,0) -> 0 | BL16: 1 | BP16: 1 | BU16: 1 | CZ16: 1 | DA16: 1 | DH16: 1 | DK16: 1
A17: 1 | B17: 1 | C17: 1 | D17: 1 | E17: 1 | F17: 1 | G17: 1 | H17: 2 | I17: 4 | J17: 111111124 | K17: 4 | Q17: 2 | S17: 1 | U17: 4 | AD17: 3 | AG17: 1 | BK17: =IF(Zwischenwerte!$AB$14=Zwischenwerte!$AB$26,1,0) -> 0 | BL17: 1 | BP17: 1 | BV17: 1 | CZ17: 1 | DA17: 1 | DI17: 1
A18: 1 | B18: 1 | C18: 1 | D18: 1 | E18: 1 | F18: 1 | G18: 1 | H18: 2 | I18: 5 | J18: 111111125 | K18: 5 | P18: 1 | Q18: 2 | S18: 2 | U18: 5 | AD18: 4 | AG18: 1 | BK18: =IF(Zwischenwerte!$AB$14=Zwischenwerte!$AB$26,1,0) -> 0 | BL18: 1 | BP18: 1 | BV18: 1 | DA18: 2 | DI18: 1
A19: 1 | B19: 1 | C19: 1 | D19: 1 | E19: 1 | F19: 1 | G19: 1 | H19: 2 | I19: 6 | J19: 111111126 | K19: 6 | P19: 2 | Q19: 2 | S19: 2 | U19: 6 | AD19: 4 | AG19: 2 | BK19: =IF(Zwischenwerte!$AB$14=Zwischenwerte!$AB$26,1,0) -> 0 | BL19: 1 | BP19: 1 | BZ19: 1 | CB19: 1 | CD19: 1 | CZ19: 1 | DA19: 2 | DI19: 1
A20: 1 | B20: 1 | C20: 1 | D20: 1 | E20: 1 | F20: 1 | G20: 1 | H20: 2 | I20: 8 | J20: 111111128 | K20: 8 | Q20: 4 | S20: 2 | U20: 8 | AD20: 6 | AG20: 2 | BK20: =IF(Zwischenwerte!$AB$14=Zwischenwerte!$AB$26,1,0) -> 0 | BL20: 1 | BP20: 1 | CA20: 1 | CC20: 1 | CE20: 1 | DA20: 3 | DJ20: 1
A21: 1 | B21: 1 | C21: 1 | D21: 1 | E21: 1 | F21: 1 | G21: 1 | H21: 2 | I21: 10 | J21: 1111111210 | K21: 10 | P21: 2 | Q21: 4 | S21: 4 | U21: 10 | AD21: 8 | AG21: 2 | BK21: =IF(Zwischenwerte!$AB$14=Zwischenwerte!$AB$26,1,0) -> 0 | BL21: 1 | BP21: 1 | CA21: 1 | CC21: 1 | CE21: 1 | CZ21: 1 | DA21: 3 | DJ21: 1
A22: 1 | B22: 1 | C22: 1 | D22: 1 | E22: 1 | F22: 1 | G22: 1 | H22: 2 | I22: 12 | J22: 1111111212 | K22: 12 | Q22: 6 | S22: 3 | U22: 12 | AD22: 9 | AG22: 3 | BK22: =IF(Zwischenwerte!$AB$14=Zwischenwerte!$AB$26,1,0) -> 0 | BL22: 1 | BP22: 1 | BV22: 2 | DA22: 4 | DJ22: 1
A23: 1 | B23: 1 | C23: 1 | D23: 1 | E23: 1 | F23: 1 | G23: 1 | H23: 2 | I23: 15 | J23: 1111111215 | K23: 15 | P23: 3 | Q23: 6 | S23: 6 | U23: 15 | AD23: 12 | AG23: 3 | BK23: =IF(Zwischenwerte!$AB$14=Zwischenwerte!$AB$26,1,0) -> 0 | BL23: 1 | BP23: 1 | BZ23: 2 | CB23: 2 | CD23: 2 | DA23: 5 | DJ23: 1
A24: 1 | B24: 1 | C24: 1 | D24: 1 | E24: 1 | F24: 1 | G24: 1 | H24: 2 | I24: 16 | J24: 1111111216 | K24: 16 | Q24: 8 | S24: 4 | U24: 16 | AD24: 12 | AG24: 4 | BK24: =IF(Zwischenwerte!$AB$14=Zwischenwerte!$AB$26,1,0) -> 0 | BL24: 1 | BP24: 1 | CA24: 2 | CC24: 2 | CE24: 2 | DA24: 6 | DJ24: 1
A25: 1 | B25: 1 | C25: 1 | D25: 1 | E25: 1 | F25: 1 | G25: 2 | H25: 1 | I25: 1 | J25: 111111211 | K25: 1 | M25: 1 | AG25: 1 | BK25: =IF(Zwischenwerte!$AB$14=Zwischenwerte!$AB$26,1,0) -> 0 | BL25: 1 | BS25: 1 | DA25: 1 | DG25: 1 | DK25: 1
A26: 1 | B26: 1 | C26: 1 | D26: 1 | E26: 1 | F26: 1 | G26: 2 | H26: 1 | I26: 2 | J26: 111111212 | K26: 2 | M26: 2 | AD26: 1 | AG26: 1 | BK26: =IF(Zwischenwerte!$AB$14=Zwischenwerte!$AB$26,1,0) -> 0 | BM26: 1 | BT26: 1 | DA26: 1 | DH26: 1 | DK26: 1
A27: 1 | B27: 1 | C27: 1 | D27: 1 | E27: 1 | F27: 1 | G27: 2 | H27: 1 | I27: 3 | J27: 111111213 | K27: 3 | M27: 3 | AD27: 2 | AG27: 1 | BK27: =IF(Zwischenwerte!$AB$14=Zwischenwerte!$AB$26,1,0) -> 0 | BM27: 1 | BU27: 1 | CZ27: 1 | DA27: 1 | DH27: 1 | DK27: 1
A28: 1 | B28: 1 | C28: 1 | D28: 1 | E28: 1 | F28: 1 | G28: 2 | H28: 1 | I28: 4 | J28: 111111214 | K28: 4 | M28: 4 | AD28: 3 | AG28: 1 | BK28: =IF(Zwischenwerte!$AB$14=Zwischenwerte!$AB$26,1,0) -> 0 | BM28: 1 | BV28: 1 | CZ28: 1 | DA28: 1 | DI28: 1
A29: 1 | B29: 1 | C29: 1 | D29: 1 | E29: 1 | F29: 1 | G29: 2 | H29: 1 | I29: 5 | J29: 111111215 | K29: 5 | M29: 5 | AD29: 4 | AG29: 1 | BK29: =IF(Zwischenwerte!$AB$14=Zwischenwerte!$AB$26,1,0) -> 0 | BM29: 1 | BV29: 1 | DA29: 2 | DI29: 1
A30: 1 | B30: 1 | C30: 1 | D30: 1 | E30: 1 | F30: 1 | G30: 2 | H30: 1 | I30: 6 | J30: 111111216 | K30: 6 | M30: 6 | AD30: 4 | AG30: 2 | BK30: =IF(Zwischenwerte!$AB$14=Zwischenwerte!$AB$26,1,0) -> 0 | BM30: 1 | BZ30: 1 | CB30: 1 | CD30: 1 | CZ30: 1 | DA30: 2 | DI30: 1
A31: 1 | B31: 1 | C31: 1 | D31: 1 | E31: 1 | F31: 1 | G31: 2 | H31: 1 | I31: 8 | J31: 111111218 | K31: 8 | M31: 8 | AD31: 6 | AG31: 2 | BK31: =IF(Zwischenwerte!$AB$14=Zwischenwerte!$AB$26,1,0) -> 0 | BM31: 1 | CA31: 1 | CC31: 1 | CE31: 1 | DA31: 3 | DJ31: 1
A32: 1 | B32: 1 | C32: 1 | D32: 1 | E32: 1 | F32: 1 | G32: 2 | H32: 1 | I32: 10 | J32: 1111112110 | K32: 10 | M32: 10 | AD32: 8 | AG32: 2 | BK32: =IF(Zwischenwerte!$AB$14=Zwischenwerte!$AB$26,1,0) -> 0 | BM32: 1 | CA32: 1 | CC32: 1 | CE32: 1 | CZ32: 1 | DA32: 3 | DJ32: 1
A33: 1 | B33: 1 | C33: 1 | D33: 1 | E33: 1 | F33: 1 | G33: 2 | H33: 1 | I33: 12 | J33: 1111112112 | K33: 12 | M33: 12 | AD33: 9 | AG33: 3 | BK33: =IF(Zwischenwerte!$AB$14=Zwischenwerte!$AB$26,1,0) -> 0 | BM33: 1 | BV33: 2 | DA33: 4 | DJ33: 1
A34: 1 | B34: 1 | C34: 1 | D34: 1 | E34: 1 | F34: 1 | G34: 2 | H34: 1 | I34: 15 | J34: 1111112115 | K34: 15 | M34: 15 | AD34: 12 | AG34: 3 | BK34: =IF(Zwischenwerte!$AB$14=Zwischenwerte!$AB$26,1,0) -> 0 | BM34: 1 | BZ34: 2 | CB34: 2 | CD34: 2 | DA34: 5 | DJ34: 1
A35: 1 | B35: 1 | C35: 1 | D35: 1 | E35: 1 | F35: 1 | G35: 2 | H35: 1 | I35: 16 | J35: 1111112116 | K35: 16 | M35: 16 | AD35: 12 | AG35: 4 | BK35: =IF(Zwischenwerte!$AB$14=Zwischenwerte!$AB$26,1,0) -> 0 | BM35: 1 | CA35: 2 | CC35: 2 | CE35: 2 | DA35: 6 | DJ35: 1
A36: 1 | B36: 1 | C36: 1 | D36: 1 | E36: 1 | F36: 1 | G36: 2 | H36: 2 | I36: 1 | J36: 111111221 | K36: 1 | M36: 1 | AG36: 1 | BK36: =IF(Zwischenwerte!$AB$14=Zwischenwerte!$AB$26,1,0) -> 0 | BL36: 1 | BS36: 1 | DA36: 1 | DG36: 1 | DK36: 1
A37: 1 | B37: 1 | C37: 1 | D37: 1 | E37: 1 | F37: 1 | G37: 2 | H37: 2 | I37: 2 | J37: 111111222 | K37: 2 | M37: 2 | AD37: 1 | AG37: 1 | BK37: =IF(Zwischenwerte!$AB$14=Zwischenwerte!$AB$26,1,0) -> 0 | BL37: 1 | BP37: 1 | BT37: 1 | DA37: 1 | DH37: 1 | DK37: 1
A38: 1 | B38: 1 | C38: 1 | D38: 1 | E38: 1 | F38: 1 | G38: 2 | H38: 2 | I38: 3 | J38: 111111223 | K38: 3 | M38: 3 | AD38: 2 | AG38: 1 | BK38: =IF(Zwischenwerte!$AB$14=Zwischenwerte!$AB$26,1,0) -> 0 | BL38: 1 | BP38: 1 | BU38: 1 | CZ38: 1 | DA38: 1 | DH38: 1 | DK38: 1
A39: 1 | B39: 1 | C39: 1 | D39: 1 | E39: 1 | F39: 1 | G39: 2 | H39: 2 | I39: 4 | J39: 111111224 | K39: 4 | M39: 4 | AD39: 3 | AG39: 1 | BK39: =IF(Zwischenwerte!$AB$14=Zwischenwerte!$AB$26,1,0) -> 0 | BL39: 1 | BP39: 1 | BV39: 1 | CZ39: 1 | DA39: 1 | DI39: 1
A40: 1 | B40: 1 | C40: 1 | D40: 1 | E40: 1 | F40: 1 | G40: 2 | H40: 2 | I40: 5 | J40: 111111225 | K40: 5 | M40: 5 | AD40: 4 | AG40: 1 | BK40: =IF(Zwischenwerte!$AB$14=Zwischenwerte!$AB$26,1,0) -> 0 | BL40: 1 | BP40: 1 | BV40: 1 | DA40: 2 | DI40: 1
A41: 1 | B41: 1 | C41: 1 | D41: 1 | E41: 1 | F41: 1 | G41: 2 | H41: 2 | I41: 6 | J41: 111111226 | K41: 6 | M41: 6 | AD41: 4 | AG41: 2 | BK41: =IF(Zwischenwerte!$AB$14=Zwischenwerte!$AB$26,1,0) -> 0 | BL41: 1 | BP41: 1 | BZ41: 1 | CB41: 1 | CD41: 1 | CZ41: 1 | DA41: 2 | DI41: 1
A42: 1 | B42: 1 | C42: 1 | D42: 1 | E42: 1 | F42: 1 | G42: 2 | H42: 2 | I42: 8 | J42: 111111228 | K42: 8 | M42: 8 | AD42: 6 | AG42: 2 | BK42: =IF(Zwischenwerte!$AB$14=Zwischenwerte!$AB$26,1,0) -> 0 | BL42: 1 | BP42: 1 | CA42: 1 | CC42: 1 | CE42: 1 | DA42: 3 | DJ42: 1
A43: 1 | B43: 1 | C43: 1 | D43: 1 | E43: 1 | F43: 1 | G43: 2 | H43: 2 | I43: 10 | J43: 1111112210 | K43: 10 | M43: 10 | AD43: 8 | AG43: 2 | BK43: =IF(Zwischenwerte!$AB$14=Zwischenwerte!$AB$26,1,0) -> 0 | BL43: 1 | BP43: 1 | CA43: 1 | CC43: 1 | CE43: 1 | CZ43: 1 | DA43: 3 | DJ43: 1
A44: 1 | B44: 1 | C44: 1 | D44: 1 | E44: 1 | F44: 1 | G44: 2 | H44: 2 | I44: 12 | J44: 1111112212 | K44: 12 | M44: 12 | AD44: 9 | AG44: 3 | BK44: =IF(Zwischenwerte!$AB$14=Zwischenwerte!$AB$26,1,0) -> 0 | BL44: 1 | BP44: 1 | BV44: 2 | DA44: 4 | DJ44: 1
A45: 1 | B45: 1 | C45: 1 | D45: 1 | E45: 1 | F45: 1 | G45: 2 | H45: 2 | I45: 15 | J45: 1111112215 | K45: 15 | M45: 15 | AD45: 12 | AG45: 3 | BK45: =IF(Zwischenwerte!$AB$14=Zwischenwerte!$AB$26,1,0) -> 0 | BL45: 1 | BP45: 1 | BZ45: 2 | CB45: 2 | CD45: 2 | DA45: 5 | DJ45: 1
A46: 1 | B46: 1 | C46: 1 | D46: 1 | E46: 1 | F46: 1 | G46: 2 | H46: 2 | I46: 16 | J46: 1111112216 | K46: 16 | M46: 16 | AD46: 12 | AG46: 4 | BK46: =IF(Zwischenwerte!$AB$14=Zwischenwerte!$AB$26,1,0) -> 0 | BL46: 1 | BP46: 1 | CA46: 2 | CC46: 2 | CE46: 2 | DA46: 6 | DJ46: 1
A47: 1 | B47: 1 | C47: 1 | D47: 1 | E47: 1 | F47: 1 | G47: 3 | H47: 1 | I47: 1 | J47: 111111311 | K47: 1 | P47: 1 | U47: 2 | V47: 2 | AG47: 1 | BK47: =IF(Zwischenwerte!$AB$14=Zwischenwerte!$AB$26,1,0) -> 0 | BL47: 1 | BS47: 1 | DA47: 1 | DG47: 1 | DK47: 1
A48: 1 | B48: 1 | C48: 1 | D48: 1 | E48: 1 | F48: 1 | G48: 3 | H48: 1 | I48: 2 | J48: 111111312 | K48: 2 | Q48: 1 | U48: 2 | V48: 2 | AD48: 1 | AG48: 1 | BK48: =IF(Zwischenwerte!$AB$14=Zwischenwerte!$AB$26,1,0) -> 0 | BM48: 1 | BT48: 1 | DA48: 1 | DH48: 1 | DK48: 1
A49: 1 | B49: 1 | C49: 1 | D49: 1 | E49: 1 | F49: 1 | G49: 3 | H49: 1 | I49: 3 | J49: 111111313 | K49: 3 | P49: 1 | Q49: 1 | S49: 1 | U49: 3 | V49: 3 | AD49: 2 | AG49: 1 | BK49: =IF(Zwischenwerte!$AB$14=Zwischenwerte!$AB$26,1,0) -> 0 | BM49: 1 | BU49: 1 | CZ49: 1 | DA49: 1 | DH49: 1 | DK49: 1
A50: 1 | B50: 1 | C50: 1 | D50: 1 | E50: 1 | F50: 1 | G50: 3 | H50: 1 | I50: 4 | J50: 111111314 | K50: 4 | Q50: 2 | S50: 1 | U50: 4 | V50: 4 | AD50: 3 | AG50: 1 | BK50: =IF(Zwischenwerte!$AB$14=Zwischenwerte!$AB$26,1,0) -> 0 | BM50: 1 | BV50: 1 | CZ50: 1 | DA50: 1 | DI50: 1
A51: 1 | B51: 1 | C51: 1 | D51: 1 | E51: 1 | F51: 1 | G51: 3 | H51: 1 | I51: 5 | J51: 111111315 | K51: 5 | P51: 1 | Q51: 2 | S51: 2 | U51: 5 | V51: 5 | AD51: 4 | AG51: 1 | BK51: =IF(Zwischenwerte!$AB$14=Zwischenwerte!$AB$26,1,0) -> 0 | BM51: 1 | BV51: 1 | DA51: 2 | DI51: 1
A52: 1 | B52: 1 | C52: 1 | D52: 1 | E52: 1 | F52: 1 | G52: 3 | H52: 1 | I52: 6 | J52: 111111316 | K52: 6 | P52: 2 | Q52: 2 | S52: 2 | U52: 6 | V52: 6 | AD52: 4 | AG52: 2 | BK52: =IF(Zwischenwerte!$AB$14=Zwischenwerte!$AB$26,1,0) -> 0 | BM52: 1 | BZ52: 1 | CB52: 1 | CD52: 1 | CZ52: 1 | DA52: 2 | DI52: 1
A53: 1 | B53: 1 | C53: 1 | D53: 1 | E53: 1 | F53: 1 | G53: 3 | H53: 1 | I53: 8 | J53: 111111318 | K53: 8 | Q53: 4 | S53: 2 | U53: 8 | V53: 8 | AD53: 6 | AG53: 2 | BK53: =IF(Zwischenwerte!$AB$14=Zwischenwerte!$AB$26,1,0) -> 0 | BM53: 1 | CA53: 1 | CC53: 1 | CE53: 1 | DA53: 3 | DJ53: 1
A54: 1 | B54: 1 | C54: 1 | D54: 1 | E54: 1 | F54: 1 | G54: 3 | H54: 1 | I54: 10 | J54: 1111113110 | K54: 10 | P54: 2 | Q54: 4 | S54: 4 | U54: 10 | V54: 10 | AD54: 8 | AG54: 2 | BK54: =IF(Zwischenwerte!$AB$14=Zwischenwerte!$AB$26,1,0) -> 0 | BM54: 1 | CA54: 1 | CC54: 1 | CE54: 1 | CZ54: 1 | DA54: 3 | DJ54: 1
A55: 1 | B55: 1 | C55: 1 | D55: 1 | E55: 1 | F55: 1 | G55: 3 | H55: 1 | I55: 12 | J55: 1111113112 | K55: 12 | Q55: 6 | S55: 3 | U55: 12 | V55: 12 | AD55: 9 | AG55: 3 | BK55: =IF(Zwischenwerte!$AB$14=Zwischenwerte!$AB$26,1,0) -> 0 | BM55: 1 | BV55: 2 | DA55: 4 | DJ55: 1
A56: 1 | B56: 1 | C56: 1 | D56: 1 | E56: 1 | F56: 1 | G56: 3 | H56: 1 | I56: 15 | J56: 1111113115 | K56: 15 | P56: 3 | Q56: 6 | S56: 6 | U56: 15 | V56: 15 | AD56: 12 | AG56: 3 | BK56: =IF(Zwischenwerte!$AB$14=Zwischenwerte!$AB$26,1,0) -> 0 | BM56: 1 | BZ56: 2 | CB56: 2 | CD56: 2 | DA56: 5 | DJ56: 1
A57: 1 | B57: 1 | C57: 1 | D57: 1 | E57: 1 | F57: 1 | G57: 3 | H57: 1 | I57: 16 | J57: 1111113116 | K57: 16 | Q57: 8 | S57: 4 | U57: 16 | V57: 16 | AD57: 12 | AG57: 4 | BK57: =IF(Zwischenwerte!$AB$14=Zwischenwerte!$AB$26,1,0) -> 0 | BM57: 1 | CA57: 2 | CC57: 2 | CE57: 2 | DA57: 6 | DJ57: 1
A58: 1 | B58: 1 | C58: 1 | D58: 1 | E58: 1 | F58: 1 | G58: 3 | H58: 2 | I58: 1 | J58: 111111321 | K58: 1 | P58: 1 | U58: 2 | V58: 2 | AG58: 1 | BK58: =IF(Zwischenwerte!$AB$14=Zwischenwerte!$AB$26,1,0) -> 0 | BL58: 1 | BS58: 1 | DA58: 1 | DG58: 1 | DK58: 1
A59: 1 | B59: 1 | C59: 1 | D59: 1 | E59: 1 | F59: 1 | G59: 3 | H59: 2 | I59: 2 | J59: 111111322 | K59: 2 | Q59: 1 | U59: 2 | V59: 2 | AD59: 1 | AG59: 1 | BK59: =IF(Zwischenwerte!$AB$14=Zwischenwerte!$AB$26,1,0) -> 0 | BL59: 1 | BP59: 1 | BT59: 1 | DA59: 1 | DH59: 1 | DK59: 1
A60: 1 | B60: 1 | C60: 1 | D60: 1 | E60: 1 | F60: 1 | G60: 3 | H60: 2 | I60: 3 | J60: 111111323 | K60: 3 | P60: 1 | Q60: 1 | S60: 1 | U60: 3 | V60: 3 | AD60: 2 | AG60: 1 | BK60: =IF(Zwischenwerte!$AB$14=Zwischenwerte!$AB$26,1,0) -> 0 | BL60: 1 | BP60: 1 | BU60: 1 | CZ60: 1 | DA60: 1 | DH60: 1 | DK60: 1
A61: 1 | B61: 1 | C61: 1 | D61: 1 | E61: 1 | F61: 1 | G61: 3 | H61: 2 | I61: 4 | J61: 111111324 | K61: 4 | Q61: 2 | S61: 1 | U61: 4 | V61: 4 | AD61: 3 | AG61: 1 | BK61: =IF(Zwischenwerte!$AB$14=Zwischenwerte!$AB$26,1,0) -> 0 | BL61: 1 | BP61: 1 | BV61: 1 | CZ61: 1 | DA61: 1 | DI61: 1
A62: 1 | B62: 1 | C62: 1 | D62: 1 | E62: 1 | F62: 1 | G62: 3 | H62: 2 | I62: 5 | J62: 111111325 | K62: 5 | P62: 1 | Q62: 2 | S62: 2 | U62: 5 | V62: 5 | AD62: 4 | AG62: 1 | BK62: =IF(Zwischenwerte!$AB$14=Zwischenwerte!$AB$26,1,0) -> 0 | BL62: 1 | BP62: 1 | BV62: 1 | DA62: 2 | DI62: 1
A63: 1 | B63: 1 | C63: 1 | D63: 1 | E63: 1 | F63: 1 | G63: 3 | H63: 2 | I63: 6 | J63: 111111326 | K63: 6 | P63: 2 | Q63: 2 | S63: 2 | U63: 6 | V63: 6 | AD63: 4 | AG63: 2 | BK63: =IF(Zwischenwerte!$AB$14=Zwischenwerte!$AB$26,1,0) -> 0 | BL63: 1 | BP63: 1 | BZ63: 1 | CB63: 1 | CD63: 1 | CZ63: 1 | DA63: 2 | DI63: 1
A64: 1 | B64: 1 | C64: 1 | D64: 1 | E64: 1 | F64: 1 | G64: 3 | H64: 2 | I64: 8 | J64: 111111328 | K64: 8 | Q64: 4 | S64: 2 | U64: 8 | V64: 8 | AD64: 6 | AG64: 2 | BK64: =IF(Zwischenwerte!$AB$14=Zwischenwerte!$AB$26,1,0) -> 0 | BL64: 1 | BP64: 1 | CA64: 1 | CC64: 1 | CE64: 1 | DA64: 3 | DJ64: 1
A65: 1 | B65: 1 | C65: 1 | D65: 1 | E65: 1 | F65: 1 | G65: 3 | H65: 2 | I65: 10 | J65: 1111113210 | K65: 10 | P65: 2 | Q65: 4 | S65: 4 | U65: 10 | V65: 10 | AD65: 8 | AG65: 2 | BK65: =IF(Zwischenwerte!$AB$14=Zwischenwerte!$AB$26,1,0) -> 0 | BL65: 1 | BP65: 1 | CA65: 1 | CC65: 1 | CE65: 1 | CZ65: 1 | DA65: 3 | DJ65: 1
A66: 1 | B66: 1 | C66: 1 | D66: 1 | E66: 1 | F66: 1 | G66: 3 | H66: 2 | I66: 12 | J66: 1111113212 | K66: 12 | Q66: 6 | S66: 3 | U66: 12 | V66: 12 | AD66: 9 | AG66: 3 | BK66: =IF(Zwischenwerte!$AB$14=Zwischenwerte!$AB$26,1,0) -> 0 | BL66: 1 | BP66: 1 | BV66: 2 | DA66: 4 | DJ66: 1
A67: 1 | B67: 1 | C67: 1 | D67: 1 | E67: 1 | F67: 1 | G67: 3 | H67: 2 | I67: 15 | J67: 1111113215 | K67: 15 | P67: 3 | Q67: 6 | S67: 6 | U67: 15 | V67: 15 | AD67: 12 | AG67: 3 | BK67: =IF(Zwischenwerte!$AB$14=Zwischenwerte!$AB$26,1,0) -> 0 | BL67: 1 | BP67: 1 | BZ67: 2 | CB67: 2 | CD67: 2 | DA67: 5 | DJ67: 1
A68: 1 | B68: 1 | C68: 1 | D68: 1 | E68: 1 | F68: 1 | G68: 3 | H68: 2 | I68: 16 | J68: =A68&B68&C68&D68&E68&F68&G68&H68&I68 -> 1111113216 | K68: 16 | Q68: 8 | S68: 4 | U68: 16 | V68: 16 | AD68: 12 | AG68: 4 | BK68: =IF(Zwischenwerte!$AB$14=Zwischenwerte!$AB$26,1,0) -> 0 | BL68: 1 | BP68: 1 | CA68: 2 | CC68: 2 | CE68: 2 | DA68: 6 | DJ68: 1
A69: 1 | B69: 1 | C69: 1 | D69: 1 | E69: 1 | F69: 2 | G69: 1 | H69: 1 | I69: 1 | J69: 111112111 | L69: 1 | R69: 1 | U69: 2 | AG69: 1 | BK69: =IF(Zwischenwerte!$AB$14=Zwischenwerte!$AB$26,1,0) -> 0 | BL69: 1 | BS69: 1 | DA69: 1 | DG69: 1 | DK69: 1
A70: 1 | B70: 1 | C70: 1 | D70: 1 | E70: 1 | F70: 2 | G70: 1 | H70: 1 | I70: 2 | J70: 111112112 | L70: 2 | R70: 2 | S70: 1 | U70: 4 | AD70: 1 | AG70: 1 | BK70: =IF(Zwischenwerte!$AB$14=Zwischenwerte!$AB$26,1,0) -> 0 | BM70: 1 | BT70: 1 | DA70: 1 | DH70: 1 | DK70: 1
A71: 1 | B71: 1 | C71: 1 | D71: 1 | E71: 1 | F71: 2 | G71: 1 | H71: 1 | I71: 3 | J71: 111112113 | L71: 3 | R71: 3 | S71: 2 | U71: 6 | AD71: 2 | AG71: 1 | BK71: =IF(Zwischenwerte!$AB$14=Zwischenwerte!$AB$26,1,0) -> 0 | BM71: 1 | BU71: 1 | CZ71: 1 | DA71: 1 | DH71: 1 | DK71: 1
A72: 1 | B72: 1 | C72: 1 | D72: 1 | E72: 1 | F72: 2 | G72: 1 | H72: 1 | I72: 4 | J72: 111112114 | L72: 4 | R72: 4 | S72: 3 | U72: 8 | AD72: 3 | AG72: 1 | BK72: =IF(Zwischenwerte!$AB$14=Zwischenwerte!$AB$26,1,0) -> 0 | BM72: 1 | BV72: 1 | CZ72: 1 | DA72: 1 | DI72: 1
A73: 1 | B73: 1 | C73: 1 | D73: 1 | E73: 1 | F73: 2 | G73: 1 | H73: 1 | I73: 5 | J73: 111112115 | L73: 5 | R73: 5 | S73: 4 | U73: 10 | AD73: 4 | AG73: 1 | BK73: =IF(Zwischenwerte!$AB$14=Zwischenwerte!$AB$26,1,0) -> 0 | BM73: 1 | BV73: 1 | DA73: 2 | DI73: 1
A74: 1 | B74: 1 | C74: 1 | D74: 1 | E74: 1 | F74: 2 | G74: 1 | H74: 1 | I74: 6 | J74: 111112116 | L74: 6 | R74: 6 | S74: 4 | U74: 12 | AD74: 4 | AG74: 2 | BK74: =IF(Zwischenwerte!$AB$14=Zwischenwerte!$AB$26,1,0) -> 0 | BM74: 1 | BZ74: 1 | CB74: 1 | CD74: 1 | CZ74: 1 | DA74: 2 | DI74: 1
A75: 1 | B75: 1 | C75: 1 | D75: 1 | E75: 1 | F75: 2 | G75: 1 | H75: 1 | I75: 8 | J75: 111112118 | L75: 8 | R75: 8 | S75: 6 | U75: 16 | AD75: 6 | AG75: 2 | BK75: =IF(Zwischenwerte!$AB$14=Zwischenwerte!$AB$26,1,0) -> 0 | BM75: 1 | CA75: 1 | CC75: 1 | CE75: 1 | DA75: 3 | DJ75: 1
A76: 1 | B76: 1 | C76: 1 | D76: 1 | E76: 1 | F76: 2 | G76: 1 | H76: 1 | I76: 10 | J76: 1111121110 | L76: 10 | R76: 10 | S76: 8 | U76: 20 | AD76: 8 | AG76: 2 | BK76: =IF(Zwischenwerte!$AB$14=Zwischenwerte!$AB$26,1,0) -> 0 | BM76: 1 | CA76: 1 | CC76: 1 | CE76: 1 | CZ76: 1 | DA76: 3 | DJ76: 1
A77: 1 | B77: 1 | C77: 1 | D77: 1 | E77: 1 | F77: 2 | G77: 1 | H77: 1 | I77: 12 | J77: 1111121112 | L77: 12 | R77: 12 | S77: 9 | U77: 24 | AD77: 9 | AG77: 3 | BK77: =IF(Zwischenwerte!$AB$14=Zwischenwerte!$AB$26,1,0) -> 0 | BM77: 1 | BV77: 2 | DA77: 4 | DJ77: 1
A78: 1 | B78: 1 | C78: 1 | D78: 1 | E78: 1 | F78: 2 | G78: 1 | H78: 1 | I78: 15 | J78: 1111121115 | L78: 15 | R78: 15 | S78: 12 | U78: 30 | AD78: 12 | AG78: 3 | BK78: =IF(Zwischenwerte!$AB$14=Zwischenwerte!$AB$26,1,0) -> 0 | BM78: 1 | BZ78: 2 | CB78: 2 | CD78: 2 | DA78: 5 | DJ78: 1
A79: 1 | B79: 1 | C79: 1 | D79: 1 | E79: 1 | F79: 2 | G79: 1 | H79: 1 | I79: 16 | J79: 1111121116 | L79: 16 | R79: 16 | S79: 12 | U79: 32 | AD79: 12 | AG79: 4 | BK79: =IF(Zwischenwerte!$AB$14=Zwischenwerte!$AB$26,1,0) -> 0 | BM79: 1 | CA79: 2 | CC79: 2 | CE79: 2 | DA79: 6 | DJ79: 1
A80: 1 | B80: 1 | C80: 1 | D80: 1 | E80: 1 | F80: 2 | G80: 1 | H80: 2 | I80: 1 | J80: 111112121 | L80: 1 | R80: 1 | U80: 2 | AG80: 1 | BK80: =IF(Zwischenwerte!$AB$14=Zwischenwerte!$AB$26,1,0) -> 0 | BL80: 1 | BS80: 1 | DA80: 1 | DG80: 1 | DK80: 1
A81: 1 | B81: 1 | C81: 1 | D81: 1 | E81: 1 | F81: 2 | G81: 1 | H81: 2 | I81: 2 | J81: 111112122 | L81: 2 | R81: 2 | S81: 1 | U81: 4 | AD81: 1 | AG81: 1 | BK81: =IF(Zwischenwerte!$AB$14=Zwischenwerte!$AB$26,1,0) -> 0 | BL81: 1 | BP81: 1 | BT81: 1 | DA81: 1 | DH81: 1 | DK81: 1
A82: 1 | B82: 1 | C82: 1 | D82: 1 | E82: 1 | F82: 2 | G82: 1 | H82: 2 | I82: 3 | J82: 111112123 | L82: 3 | R82: 3 | S82: 2 | U82: 6 | AD82: 2 | AG82: 1 | BK82: =IF(Zwischenwerte!$AB$14=Zwischenwerte!$AB$26,1,0) -> 0 | BL82: 1 | BP82: 1 | BU82: 1 | CZ82: 1 | DA82: 1 | DH82: 1 | DK82: 1
A83: 1 | B83: 1 | C83: 1 | D83: 1 | E83: 1 | F83: 2 | G83: 1 | H83: 2 | I83: 4 | J83: 111112124 | L83: 4 | R83: 4 | S83: 3 | U83: 8 | AD83: 3 | AG83: 1 | BK83: =IF(Zwischenwerte!$AB$14=Zwischenwerte!$AB$26,1,0) -> 0 | BL83: 1 | BP83: 1 | BV83: 1 | CZ83: 1 | DA83: 1 | DI83: 1
A84: 1 | B84: 1 | C84: 1 | D84: 1 | E84: 1 | F84: 2 | G84: 1 | H84: 2 | I84: 5 | J84: 111112125 | L84: 5 | R84: 5 | S84: 4 | U84: 10 | AD84: 4 | AG84: 1 | BK84: =IF(Zwischenwerte!$AB$14=Zwischenwerte!$AB$26,1,0) -> 0 | BL84: 1 | BP84: 1 | BV84: 1 | DA84: 2 | DI84: 1
A85: 1 | B85: 1 | C85: 1 | D85: 1 | E85: 1 | F85: 2 | G85: 1 | H85: 2 | I85: 6 | J85: 111112126 | L85: 6 | R85: 6 | S85: 4 | U85: 12 | AD85: 4 | AG85: 2 | BK85: =IF(Zwischenwerte!$AB$14=Zwischenwerte!$AB$26,1,0) -> 0 | BL85: 1 | BP85: 1 | BZ85: 1 | CB85: 1 | CD85: 1 | CZ85: 1 | DA85: 2 | DI85: 1
A86: 1 | B86: 1 | C86: 1 | D86: 1 | E86: 1 | F86: 2 | G86: 1 | H86: 2 | I86: 8 | J86: 111112128 | L86: 8 | R86: 8 | S86: 6 | U86: 16 | AD86: 6 | AG86: 2 | BK86: =IF(Zwischenwerte!$AB$14=Zwischenwerte!$AB$26,1,0) -> 0 | BL86: 1 | BP86: 1 | CA86: 1 | CC86: 1 | CE86: 1 | DA86: 3 | DJ86: 1
A87: 1 | B87: 1 | C87: 1 | D87: 1 | E87: 1 | F87: 2 | G87: 1 | H87: 2 | I87: 10 | J87: 1111121210 | L87: 10 | R87: 10 | S87: 8 | U87: 20 | AD87: 8 | AG87: 2 | BK87: =IF(Zwischenwerte!$AB$14=Zwischenwerte!$AB$26,1,0) -> 0 | BL87: 1 | BP87: 1 | CA87: 1 | CC87: 1 | CE87: 1 | CZ87: 1 | DA87: 3 | DJ87: 1
A88: 1 | B88: 1 | C88: 1 | D88: 1 | E88: 1 | F88: 2 | G88: 1 | H88: 2 | I88: 12 | J88: 1111121212 | L88: 12 | R88: 12 | S88: 9 | U88: 24 | AD88: 9 | AG88: 3 | BK88: =IF(Zwischenwerte!$AB$14=Zwischenwerte!$AB$26,1,0) -> 0 | BL88: 1 | BP88: 1 | BV88: 2 | DA88: 4 | DJ88: 1
A89: 1 | B89: 1 | C89: 1 | D89: 1 | E89: 1 | F89: 2 | G89: 1 | H89: 2 | I89: 15 | J89: 1111121215 | L89: 15 | R89: 15 | S89: 12 | U89: 30 | AD89: 12 | AG89: 3 | BK89: =IF(Zwischenwerte!$AB$14=Zwischenwerte!$AB$26,1,0) -> 0 | BL89: 1 | BP89: 1 | BZ89: 2 | CB89: 2 | CD89: 2 | DA89: 5 | DJ89: 1
A90: 1 | B90: 1 | C90: 1 | D90: 1 | E90: 1 | F90: 2 | G90: 1 | H90: 2 | I90: 16 | J90: 1111121216 | L90: 16 | R90: 16 | S90: 12 | U90: 32 | AD90: 12 | AG90: 4 | BK90: =IF(Zwischenwerte!$AB$14=Zwischenwerte!$AB$26,1,0) -> 0 | BL90: 1 | BP90: 1 | CA90: 2 | CC90: 2 | CE90: 2 | DA90: 6 | DJ90: 1
A91: 1 | B91: 1 | C91: 1 | D91: 1 | E91: 1 | F91: 2 | G91: 2 | H91: 1 | I91: 1 | J91: 111112211 | L91: 1 | N91: 1 | AG91: 1 | BK91: =IF(Zwischenwerte!$AB$14=Zwischenwerte!$AB$26,1,0) -> 0 | BL91: 1 | BS91: 1 | DA91: 1 | DG91: 1 | DK91: 1
A92: 1 | B92: 1 | C92: 1 | D92: 1 | E92: 1 | F92: 2 | G92: 2 | H92: 1 | I92: 2 | J92: 111112212 | L92: 2 | N92: 2 | AD92: 1 | AG92: 1 | BK92: =IF(Zwischenwerte!$AB$14=Zwischenwerte!$AB$26,1,0) -> 0 | BM92: 1 | BT92: 1 | DA92: 1 | DH92: 1 | DK92: 1
A93: 1 | B93: 1 | C93: 1 | D93: 1 | E93: 1 | F93: 2 | G93: 2 | H93: 1 | I93: 3 | J93: 111112213 | L93: 3 | N93: 3 | AD93: 2 | AG93: 1 | BK93: =IF(Zwischenwerte!$AB$14=Zwischenwerte!$AB$26,1,0) -> 0 | BM93: 1 | BU93: 1 | CZ93: 1 | DA93: 1 | DH93: 1 | DK93: 1
A94: 1 | B94: 1 | C94: 1 | D94: 1 | E94: 1 | F94: 2 | G94: 2 | H94: 1 | I94: 4 | J94: 111112214 | L94: 4 | N94: 4 | AD94: 3 | AG94: 1 | BK94: =IF(Zwischenwerte!$AB$14=Zwischenwerte!$AB$26,1,0) -> 0 | BM94: 1 | BV94: 1 | CZ94: 1 | DA94: 1 | DI94: 1
A95: 1 | B95: 1 | C95: 1 | D95: 1 | E95: 1 | F95: 2 | G95: 2 | H95: 1 | I95: 5 | J95: 111112215 | L95: 5 | N95: 5 | AD95: 4 | AG95: 1 | BK95: =IF(Zwischenwerte!$AB$14=Zwischenwerte!$AB$26,1,0) -> 0 | BM95: 1 | BV95: 1 | DA95: 2 | DI95: 1
A96: 1 | B96: 1 | C96: 1 | D96: 1 | E96: 1 | F96: 2 | G96: 2 | H96: 1 | I96: 6 | J96: 111112216 | L96: 6 | N96: 6 | AD96: 4 | AG96: 2 | BK96: =IF(Zwischenwerte!$AB$14=Zwischenwerte!$AB$26,1,0) -> 0 | BM96: 1 | BZ96: 1 | CB96: 1 | CD96: 1 | CZ96: 1 | DA96: 2 | DI96: 1
A97: 1 | B97: 1 | C97: 1 | D97: 1 | E97: 1 | F97: 2 | G97: 2 | H97: 1 | I97: 8 | J97: 111112218 | L97: 8 | N97: 8 | AD97: 6 | AG97: 2 | BK97: =IF(Zwischenwerte!$AB$14=Zwischenwerte!$AB$26,1,0) -> 0 | BM97: 1 | CA97: 1 | CC97: 1 | CE97: 1 | DA97: 3 | DJ97: 1
A98: 1 | B98: 1 | C98: 1 | D98: 1 | E98: 1 | F98: 2 | G98: 2 | H98: 1 | I98: 10 | J98: 1111122110 | L98: 10 | N98: 10 | AD98: 8 | AG98: 2 | BK98: =IF(Zwischenwerte!$AB$14=Zwischenwerte!$AB$26,1,0) -> 0 | BM98: 1 | CA98: 1 | CC98: 1 | CE98: 1 | CZ98: 1 | DA98: 3 | DJ98: 1
A99: 1 | B99: 1 | C99: 1 | D99: 1 | E99: 1 | F99: 2 | G99: 2 | H99: 1 | I99: 12 | J99: 1111122112 | L99: 12 | N99: 12 | AD99: 9 | AG99: 3 | BK99: =IF(Zwischenwerte!$AB$14=Zwischenwerte!$AB$26,1,0) -> 0 | BM99: 1 | BV99: 2 | DA99: 4 | DJ99: 1
A100: 1 | B100: 1 | C100: 1 | D100: 1 | E100: 1 | F100: 2 | G100: 2 | H100: 1 | I100: 15 | J100: 1111122115 | L100: 15 | N100: 15 | AD100: 12 | AG100: 3 | BK100: =IF(Zwischenwerte!$AB$14=Zwischenwerte!$AB$26,1,0) -> 0 | BM100: 1 | BZ100: 2 | CB100: 2 | CD100: 2 | DA100: 5 | DJ100: 1
A101: 1 | B101: 1 | C101: 1 | D101: 1 | E101: 1 | F101: 2 | G101: 2 | H101: 1 | I101: 16 | J101: 1111122116 | L101: 16 | N101: 16 | AD101: 12 | AG101: 4 | BK101: =IF(Zwischenwerte!$AB$14=Zwischenwerte!$AB$26,1,0) -> 0 | BM101: 1 | CA101: 2 | CC101: 2 | CE101: 2 | DA101: 6 | DJ101: 1
A102: 1 | B102: 1 | C102: 1 | D102: 1 | E102: 1 | F102: 2 | G102: 2 | H102: 2 | I102: 1 | J102: 111112221 | L102: 1 | N102: 1 | AG102: 1 | BK102: =IF(Zwischenwerte!$AB$14=Zwischenwerte!$AB$26,1,0) -> 0 | BL102: 1 | BS102: 1 | DA102: 1 | DG102: 1 | DK102: 1
A103: 1 | B103: 1 | C103: 1 | D103: 1 | E103: 1 | F103: 2 | G103: 2 | H103: 2 | I103: 2 | J103: 111112222 | L103: 2 | N103: 2 | AD103: 1 | AG103: 1 | BK103: =IF(Zwischenwerte!$AB$14=Zwischenwerte!$AB$26,1,0) -> 0 | BL103: 1 | BP103: 1 | BT103: 1 | DA103: 1 | DH103: 1 | DK103: 1
A104: 1 | B104: 1 | C104: 1 | D104: 1 | E104: 1 | F104: 2 | G104: 2 | H104: 2 | I104: 3 | J104: 111112223 | L104: 3 | N104: 3 | AD104: 2 | AG104: 1 | BK104: =IF(Zwischenwerte!$AB$14=Zwischenwerte!$AB$26,1,0) -> 0 | BL104: 1 | BP104: 1 | BU104: 1 | CZ104: 1 | DA104: 1 | DH104: 1 | DK104: 1
A105: 1 | B105: 1 | C105: 1 | D105: 1 | E105: 1 | F105: 2 | G105: 2 | H105: 2 | I105: 4 | J105: 111112224 | L105: 4 | N105: 4 | AD105: 3 | AG105: 1 | BK105: =IF(Zwischenwerte!$AB$14=Zwischenwerte!$AB$26,1,0) -> 0 | BL105: 1 | BP105: 1 | BV105: 1 | CZ105: 1 | DA105: 1 | DI105: 1
A106: 1 | B106: 1 | C106: 1 | D106: 1 | E106: 1 | F106: 2 | G106: 2 | H106: 2 | I106: 5 | J106: 111112225 | L106: 5 | N106: 5 | AD106: 4 | AG106: 1 | BK106: =IF(Zwischenwerte!$AB$14=Zwischenwerte!$AB$26,1,0) -> 0 | BL106: 1 | BP106: 1 | BV106: 1 | DA106: 2 | DI106: 1
A107: 1 | B107: 1 | C107: 1 | D107: 1 | E107: 1 | F107: 2 | G107: 2 | H107: 2 | I107: 6 | J107: 111112226 | L107: 6 | N107: 6 | AD107: 4 | AG107: 2 | BK107: =IF(Zwischenwerte!$AB$14=Zwischenwerte!$AB$26,1,0) -> 0 | BL107: 1 | BP107: 1 | BZ107: 1 | CB107: 1 | CD107: 1 | CZ107: 1 | DA107: 2 | DI107: 1
A108: 1 | B108: 1 | C108: 1 | D108: 1 | E108: 1 | F108: 2 | G108: 2 | H108: 2 | I108: 8 | J108: 111112228 | L108: 8 | N108: 8 | AD108: 6 | AG108: 2 | BK108: =IF(Zwischenwerte!$AB$14=Zwischenwerte!$AB$26,1,0) -> 0 | BL108: 1 | BP108: 1 | CA108: 1 | CC108: 1 | CE108: 1 | DA108: 3 | DJ108: 1
A109: 1 | B109: 1 | C109: 1 | D109: 1 | E109: 1 | F109: 2 | G109: 2 | H109: 2 | I109: 10 | J109: 1111122210 | L109: 10 | N109: 10 | AD109: 8 | AG109: 2 | BK109: =IF(Zwischenwerte!$AB$14=Zwischenwerte!$AB$26,1,0) -> 0 | BL109: 1 | BP109: 1 | CA109: 1 | CC109: 1 | CE109: 1 | CZ109: 1 | DA109: 3 | DJ109: 1
A110: 1 | B110: 1 | C110: 1 | D110: 1 | E110: 1 | F110: 2 | G110: 2 | H110: 2 | I110: 12 | J110: 1111122212 | L110: 12 | N110: 12 | AD110: 9 | AG110: 3 | BK110: =IF(Zwischenwerte!$AB$14=Zwischenwerte!$AB$26,1,0) -> 0 | BL110: 1 | BP110: 1 | BV110: 2 | DA110: 4 | DJ110: 1
A111: 1 | B111: 1 | C111: 1 | D111: 1 | E111: 1 | F111: 2 | G111: 2 | H111: 2 | I111: 15 | J111: 1111122215 | L111: 15 | N111: 15 | AD111: 12 | AG111: 3 | BK111: =IF(Zwischenwerte!$AB$14=Zwischenwerte!$AB$26,1,0) -> 0 | BL111: 1 | BP111: 1 | BZ111: 2 | CB111: 2 | CD111: 2 | DA111: 5 | DJ111: 1
A112: 1 | B112: 1 | C112: 1 | D112: 1 | E112: 1 | F112: 2 | G112: 2 | H112: 2 | I112: 16 | J112: 1111122216 | L112: 16 | N112: 16 | AD112: 12 | AG112: 4 | BK112: =IF(Zwischenwerte!$AB$14=Zwischenwerte!$AB$26,1,0) -> 0 | BL112: 1 | BP112: 1 | CA112: 2 | CC112: 2 | CE112: 2 | DA112: 6 | DJ112: 1
A113: 1 | B113: 1 | C113: 1 | D113: 1 | E113: 1 | F113: 2 | G113: 3 | H113: 1 | I113: 1 | J113: 111112311 | L113: 1 | R113: 1 | U113: 2 | V113: 2 | AG113: 1 | BK113: =IF(Zwischenwerte!$AB$14=Zwischenwerte!$AB$26,1,0) -> 0 | BL113: 1 | BS113: 1 | DA113: 1 | DG113: 1 | DK113: 1
A114: 1 | B114: 1 | C114: 1 | D114: 1 | E114: 1 | F114: 2 | G114: 3 | H114: 1 | I114: 2 | J114: 111112312 | L114: 2 | R114: 2 | S114: 1 | U114: 4 | V114: 4 | AD114: 1 | AG114: 1 | BK114: =IF(Zwischenwerte!$AB$14=Zwischenwerte!$AB$26,1,0) -> 0 | BM114: 1 | BT114: 1 | DA114: 1 | DH114: 1 | DK114: 1
A115: 1 | B115: 1 | C115: 1 | D115: 1 | E115: 1 | F115: 2 | G115: 3 | H115: 1 | I115: 3 | J115: 111112313 | L115: 3 | R115: 3 | S115: 2 | U115: 6 | V115: 6 | AD115: 2 | AG115: 1 | BK115: =IF(Zwischenwerte!$AB$14=Zwischenwerte!$AB$26,1,0) -> 0 | BM115: 1 | BU115: 1 | CZ115: 1 | DA115: 1 | DH115: 1 | DK115: 1
A116: 1 | B116: 1 | C116: 1 | D116: 1 | E116: 1 | F116: 2 | G116: 3 | H116: 1 | I116: 4 | J116: 111112314 | L116: 4 | R116: 4 | S116: 3 | U116: 8 | V116: 8 | AD116: 3 | AG116: 1 | BK116: =IF(Zwischenwerte!$AB$14=Zwischenwerte!$AB$26,1,0) -> 0 | BM116: 1 | BV116: 1 | CZ116: 1 | DA116: 1 | DI116: 1
A117: 1 | B117: 1 | C117: 1 | D117: 1 | E117: 1 | F117: 2 | G117: 3 | H117: 1 | I117: 5 | J117: 111112315 | L117: 5 | R117: 5 | S117: 4 | U117: 10 | V117: 10 | AD117: 4 | AG117: 1 | BK117: =IF(Zwischenwerte!$AB$14=Zwischenwerte!$AB$26,1,0) -> 0 | BM117: 1 | BV117: 1 | DA117: 2 | DI117: 1
A118: 1 | B118: 1 | C118: 1 | D118: 1 | E118: 1 | F118: 2 | G118: 3 | H118: 1 | I118: 6 | J118: 111112316 | L118: 6 | R118: 6 | S118: 4 | U118: 12 | V118: 12 | AD118: 4 | AG118: 2 | BK118: =IF(Zwischenwerte!$AB$14=Zwischenwerte!$AB$26,1,0) -> 0 | BM118: 1 | BZ118: 1 | CB118: 1 | CD118: 1 | CZ118: 1 | DA118: 2 | DI118: 1
A119: 1 | B119: 1 | C119: 1 | D119: 1 | E119: 1 | F119: 2 | G119: 3 | H119: 1 | I119: 8 | J119: 111112318 | L119: 8 | R119: 8 | S119: 6 | U119: 16 | V119: 16 | AD119: 6 | AG119: 2 | BK119: =IF(Zwischenwerte!$AB$14=Zwischenwerte!$AB$26,1,0) -> 0 | BM119: 1 | CA119: 1 | CC119: 1 | CE119: 1 | DA119: 3 | DJ119: 1
A120: 1 | B120: 1 | C120: 1 | D120: 1 | E120: 1 | F120: 2 | G120: 3 | H120: 1 | I120: 10 | J120: 1111123110 | L120: 10 | R120: 10 | S120: 8 | U120: 20 | V120: 20 | AD120: 8 | AG120: 2 | BK120: =IF(Zwischenwerte!$AB$14=Zwischenwerte!$AB$26,1,0) -> 0 | BM120: 1 | CA120: 1 | CC120: 1 | CE120: 1 | CZ120: 1 | DA120: 3 | DJ120: 1
A121: 1 | B121: 1 | C121: 1 | D121: 1 | E121: 1 | F121: 2 | G121: 3 | H121: 1 | I121: 12 | J121: 1111123112 | L121: 12 | R121: 12 | S121: 9 | U121: 24 | V121: 14 | AD121: 9 | AG121: 3 | BK121: =IF(Zwischenwerte!$AB$14=Zwischenwerte!$AB$26,1,0) -> 0 | BM121: 1 | BV121: 2 | DA121: 4 | DJ121: 1
A122: 1 | B122: 1 | C122: 1 | D122: 1 | E122: 1 | F122: 2 | G122: 3 | H122: 1 | I122: 15 | J122: 1111123115 | L122: 15 | R122: 15 | S122: 12 | U122: 30 | V122: 30 | AD122: 12 | AG122: 3 | BK122: =IF(Zwischenwerte!$AB$14=Zwischenwerte!$AB$26,1,0) -> 0 | BM122: 1 | BZ122: 2 | CB122: 2 | CD122: 2 | DA122: 5 | DJ122: 1
A123: 1 | B123: 1 | C123: 1 | D123: 1 | E123: 1 | F123: 2 | G123: 3 | H123: 1 | I123: 16 | J123: 1111123116 | L123: 16 | R123: 16 | S123: 12 | U123: 32 | V123: 32 | AD123: 12 | AG123: 4 | BK123: =IF(Zwischenwerte!$AB$14=Zwischenwerte!$AB$26,1,0) -> 0 | BM123: 1 | CA123: 2 | CC123: 2 | CE123: 2 | DA123: 6 | DJ123: 1
A124: 1 | B124: 1 | C124: 1 | D124: 1 | E124: 1 | F124: 2 | G124: 3 | H124: 2 | I124: 1 | J124: 111112321 | L124: 1 | R124: 1 | U124: 2 | V124: 2 | AG124: 1 | BK124: =IF(Zwischenwerte!$AB$14=Zwischenwerte!$AB$26,1,0) -> 0 | BL124: 1 | BS124: 1 | DA124: 1 | DG124: 1 | DK124: 1
A125: 1 | B125: 1 | C125: 1 | D125: 1 | E125: 1 | F125: 2 | G125: 3 | H125: 2 | I125: 2 | J125: 111112322 | L125: 2 | R125: 2 | S125: 1 | U125: 4 | V125: 4 | AD125: 1 | AG125: 1 | BK125: =IF(Zwischenwerte!$AB$14=Zwischenwerte!$AB$26,1,0) -> 0 | BL125: 1 | BP125: 1 | BT125: 1 | DA125: 1 | DH125: 1 | DK125: 1
A126: 1 | B126: 1 | C126: 1 | D126: 1 | E126: 1 | F126: 2 | G126: 3 | H126: 2 | I126: 3 | J126: 111112323 | L126: 3 | R126: 3 | S126: 2 | U126: 6 | V126: 6 | AD126: 2 | AG126: 1 | BK126: =IF(Zwischenwerte!$AB$14=Zwischenwerte!$AB$26,1,0) -> 0 | BL126: 1 | BP126: 1 | BU126: 1 | CZ126: 1 | DA126: 1 | DH126: 1 | DK126: 1
A127: 1 | B127: 1 | C127: 1 | D127: 1 | E127: 1 | F127: 2 | G127: 3 | H127: 2 | I127: 4 | J127: 111112324 | L127: 4 | R127: 4 | S127: 3 | U127: 8 | V127: 8 | AD127: 3 | AG127: 1 | BK127: =IF(Zwischenwerte!$AB$14=Zwischenwerte!$AB$26,1,0) -> 0 | BL127: 1 | BP127: 1 | BV127: 1 | CZ127: 1 | DA127: 1 | DI127: 1
A128: 1 | B128: 1 | C128: 1 | D128: 1 | E128: 1 | F128: 2 | G128: 3 | H128: 2 | I128: 5 | J128: 111112325 | L128: 5 | R128: 5 | S128: 4 | U128: 10 | V128: 10 | AD128: 4 | AG128: 1 | BK128: =IF(Zwischenwerte!$AB$14=Zwischenwerte!$AB$26,1,0) -> 0 | BL128: 1 | BP128: 1 | BV128: 1 | DA128: 2 | DI128: 1
A129: 1 | B129: 1 | C129: 1 | D129: 1 | E129: 1 | F129: 2 | G129: 3 | H129: 2 | I129: 6 | J129: 111112326 | L129: 6 | R129: 6 | S129: 4 | U129: 12 | V129: 12 | AD129: 4 | AG129: 2 | BK129: =IF(Zwischenwerte!$AB$14=Zwischenwerte!$AB$26,1,0) -> 0 | BL129: 1 | BP129: 1 | BZ129: 1 | CB129: 1 | CD129: 1 | CZ129: 1 | DA129: 2 | DI129: 1
A130: 1 | B130: 1 | C130: 1 | D130: 1 | E130: 1 | F130: 2 | G130: 3 | H130: 2 | I130: 8 | J130: 111112328 | L130: 8 | R130: 8 | S130: 6 | U130: 16 | V130: 16 | AD130: 6 | AG130: 2 | BK130: =IF(Zwischenwerte!$AB$14=Zwischenwerte!$AB$26,1,0) -> 0 | BL130: 1 | BP130: 1 | CA130: 1 | CC130: 1 | CE130: 1 | DA130: 3 | DJ130: 1
A131: 1 | B131: 1 | C131: 1 | D131: 1 | E131: 1 | F131: 2 | G131: 3 | H131: 2 | I131: 10 | J131: 1111123210 | L131: 10 | R131: 10 | S131: 8 | U131: 20 | V131: 20 | AD131: 8 | AG131: 2 | BK131: =IF(Zwischenwerte!$AB$14=Zwischenwerte!$AB$26,1,0) -> 0 | BL131: 1 | BP131: 1 | CA131: 1 | CC131: 1 | CE131: 1 | CZ131: 1 | DA131: 3 | DJ131: 1
A132: 1 | B132: 1 | C132: 1 | D132: 1 | E132: 1 | F132: 2 | G132: 3 | H132: 2 | I132: 12 | J132: =A132&B132&C132&D132&E132&F132&G132&H132&I132 -> 1111123212 | L132: 12 | R132: 12 | S132: 9 | U132: 24 | V132: 14 | AD132: 9 | AG132: 3 | BK132: =IF(Zwischenwerte!$AB$14=Zwischenwerte!$AB$26,1,0) -> 0 | BL132: 1 | BP132: 1 | BV132: 2 | DA132: 4 | DJ132: 1
A133: 1 | B133: 1 | C133: 1 | D133: 1 | E133: 1 | F133: 2 | G133: 3 | H133: 2 | I133: 15 | J133: 1111123215 | L133: 15 | R133: 15 | S133: 12 | U133: 30 | V133: 30 | AD133: 12 | AG133: 3 | BK133: =IF(Zwischenwerte!$AB$14=Zwischenwerte!$AB$26,1,0) -> 0 | BL133: 1 | BP133: 1 | BZ133: 2 | CB133: 2 | CD133: 2 | DA133: 5 | DJ133: 1
A134: 1 | B134: 1 | C134: 1 | D134: 1 | E134: 1 | F134: 2 | G134: 3 | H134: 2 | I134: 16 | J134: 1111123216 | L134: 16 | R134: 16 | S134: 12 | U134: 32 | V134: 32 | AD134: 12 | AG134: 4 | BK134: =IF(Zwischenwerte!$AB$14=Zwischenwerte!$AB$26,1,0) -> 0 | BL134: 1 | BP134: 1 | CA134: 2 | CC134: 2 | CE134: 2 | DA134: 6 | DJ134: 1
A135: 1 | B135: 1 | C135: 1 | D135: 1 | E135: 1 | F135: 3 | G135: 1 | H135: 1 | I135: 1 | J135: 111113111 | K135: 1 | R135: 1 | U135: 2 | AG135: 1 | BK135: =IF(Zwischenwerte!$AB$14=Zwischenwerte!$AB$26,1,0) -> 0 | BL135: 1 | BS135: 1 | DA135: 1 | DG135: 1 | DK135: 1
A136: 1 | B136: 1 | C136: 1 | D136: 1 | E136: 1 | F136: 3 | G136: 1 | H136: 1 | I136: 2 | J136: 111113112 | K136: 2 | R136: 2 | T136: 1 | U136: 3 | AE136: 1 | AG136: 1 | BK136: =IF(Zwischenwerte!$AB$14=Zwischenwerte!$AB$26,1,0) -> 0 | BM136: 1 | BT136: 1 | DA136: 1 | DH136: 1 | DK136: 1
A137: 1 | B137: 1 | C137: 1 | D137: 1 | E137: 1 | F137: 3 | G137: 1 | H137: 1 | I137: 3 | J137: 111113113 | K137: 3 | R137: 3 | T137: 2 | U137: 4 | AE137: 2 | AG137: 1 | BK137: =IF(Zwischenwerte!$AB$14=Zwischenwerte!$AB$26,1,0) -> 0 | BM137: 1 | BU137: 1 | CZ137: 1 | DA137: 1 | DH137: 1 | DK137: 1
A138: 1 | B138: 1 | C138: 1 | D138: 1 | E138: 1 | F138: 3 | G138: 1 | H138: 1 | I138: 4 | J138: 111113114 | K138: 4 | R138: 4 | T138: 3 | U138: 5 | AE138: 3 | AG138: 1 | BK138: =IF(Zwischenwerte!$AB$14=Zwischenwerte!$AB$26,1,0) -> 0 | BM138: 1 | BV138: 1 | CZ138: 1 | DA138: 1 | DI138: 1
A139: 1 | B139: 1 | C139: 1 | D139: 1 | E139: 1 | F139: 3 | G139: 1 | H139: 1 | I139: 5 | J139: 111113115 | K139: 5 | R139: 5 | T139: 4 | U139: 6 | AE139: 4 | AG139: 1 | BK139: =IF(Zwischenwerte!$AB$14=Zwischenwerte!$AB$26,1,0) -> 0 | BM139: 1 | BV139: 1 | DA139: 2 | DI139: 1
A140: 1 | B140: 1 | C140: 1 | D140: 1 | E140: 1 | F140: 3 | G140: 1 | H140: 1 | I140: 6 | J140: 111113116 | K140: 6 | R140: 6 | T140: 4 | U140: 7 | AE140: 4 | AG140: 2 | BK140: =IF(Zwischenwerte!$AB$14=Zwischenwerte!$AB$26,1,0) -> 0 | BM140: 1 | BZ140: 1 | CB140: 1 | CD140: 1 | CZ140: 1 | DA140: 2 | DI140: 1
A141: 1 | B141: 1 | C141: 1 | D141: 1 | E141: 1 | F141: 3 | G141: 1 | H141: 1 | I141: 8 | J141: 111113118 | K141: 8 | R141: 8 | T141: 6 | U141: 9 | AE141: 6 | AG141: 2 | BK141: =IF(Zwischenwerte!$AB$14=Zwischenwerte!$AB$26,1,0) -> 0 | BM141: 1 | CA141: 1 | CC141: 1 | CE141: 1 | DA141: 3 | DJ141: 1
A142: 1 | B142: 1 | C142: 1 | D142: 1 | E142: 1 | F142: 3 | G142: 1 | H142: 1 | I142: 10 | J142: 1111131110 | K142: 10 | R142: 10 | T142: 8 | U142: 12 | AE142: 8 | AG142: 2 | BK142: =IF(Zwischenwerte!$AB$14=Zwischenwerte!$AB$26,1,0) -> 0 | BM142: 1 | CA142: 1 | CC142: 1 | CE142: 1 | CZ142: 1 | DA142: 3 | DJ142: 1
A143: 1 | B143: 1 | C143: 1 | D143: 1 | E143: 1 | F143: 3 | G143: 1 | H143: 1 | I143: 12 | J143: 1111131112 | K143: 12 | R143: 12 | T143: 9 | U143: 15 | AE143: 9 | AG143: 3 | BK143: =IF(Zwischenwerte!$AB$14=Zwischenwerte!$AB$26,1,0) -> 0 | BM143: 1 | BV143: 2 | DA143: 4 | DJ143: 1
A144: 1 | B144: 1 | C144: 1 | D144: 1 | E144: 1 | F144: 3 | G144: 1 | H144: 1 | I144: 15 | J144: 1111131115 | K144: 15 | R144: 15 | T144: 12 | U144: 18 | AE144: 12 | AG144: 3 | BK144: =IF(Zwischenwerte!$AB$14=Zwischenwerte!$AB$26,1,0) -> 0 | BM144: 1 | BZ144: 2 | CB144: 2 | CD144: 2 | DA144: 5 | DJ144: 1
A145: 1 | B145: 1 | C145: 1 | D145: 1 | E145: 1 | F145: 3 | G145: 1 | H145: 1 | I145: 16 | J145: 1111131116 | K145: 16 | R145: 16 | T145: 12 | U145: 20 | AE145: 12 | AG145: 4 | BK145: =IF(Zwischenwerte!$AB$14=Zwischenwerte!$AB$26,1,0) -> 0 | BM145: 1 | CA145: 2 | CC145: 2 | CE145: 2 | DA145: 6 | DJ145: 1
A146: 1 | B146: 1 | C146: 1 | D146: 1 | E146: 1 | F146: 3 | G146: 1 | H146: 2 | I146: 1 | J146: 111113121 | K146: 1 | R146: 1 | U146: 2 | AG146: 1 | BK146: =IF(Zwischenwerte!$AB$14=Zwischenwerte!$AB$26,1,0) -> 0 | BL146: 1 | BS146: 1 | DA146: 1 | DG146: 1 | DK146: 1
A147: 1 | B147: 1 | C147: 1 | D147: 1 | E147: 1 | F147: 3 | G147: 1 | H147: 2 | I147: 2 | J147: 111113122 | K147: 2 | R147: 2 | T147: 1 | U147: 3 | AE147: 1 | AG147: 1 | BK147: =IF(Zwischenwerte!$AB$14=Zwischenwerte!$AB$26,1,0) -> 0 | BL147: 1 | BP147: 1 | BT147: 1 | DA147: 1 | DH147: 1 | DK147: 1
A148: 1 | B148: 1 | C148: 1 | D148: 1 | E148: 1 | F148: 3 | G148: 1 | H148: 2 | I148: 3 | J148: 111113123 | K148: 3 | R148: 3 | T148: 2 | U148: 4 | AE148: 2 | AG148: 1 | BK148: =IF(Zwischenwerte!$AB$14=Zwischenwerte!$AB$26,1,0) -> 0 | BL148: 1 | BP148: 1 | BU148: 1 | CZ148: 1 | DA148: 1 | DH148: 1 | DK148: 1
A149: 1 | B149: 1 | C149: 1 | D149: 1 | E149: 1 | F149: 3 | G149: 1 | H149: 2 | I149: 4 | J149: 111113124 | K149: 4 | R149: 4 | T149: 3 | U149: 5 | AE149: 3 | AG149: 1 | BK149: =IF(Zwischenwerte!$AB$14=Zwischenwerte!$AB$26,1,0) -> 0 | BL149: 1 | BP149: 1 | BV149: 1 | CZ149: 1 | DA149: 1 | DI149: 1
A150: 1 | B150: 1 | C150: 1 | D150: 1 | E150: 1 | F150: 3 | G150: 1 | H150: 2 | I150: 5 | J150: 111113125 | K150: 5 | R150: 5 | T150: 4 | U150: 6 | AE150: 4 | AG150: 1 | BK150: =IF(Zwischenwerte!$AB$14=Zwischenwerte!$AB$26,1,0) -> 0 | BL150: 1 | BP150: 1 | BV150: 1 | DA150: 2 | DI150: 1
A151: 1 | B151: 1 | C151: 1 | D151: 1 | E151: 1 | F151: 3 | G151: 1 | H151: 2 | I151: 6 | J151: 111113126 | K151: 6 | R151: 6 | T151: 4 | U151: 7 | AE151: 4 | AG151: 2 | BK151: =IF(Zwischenwerte!$AB$14=Zwischenwerte!$AB$26,1,0) -> 0 | BL151: 1 | BP151: 1 | BZ151: 1 | CB151: 1 | CD151: 1 | CZ151: 1 | DA151: 2 | DI151: 1
A152: 1 | B152: 1 | C152: 1 | D152: 1 | E152: 1 | F152: 3 | G152: 1 | H152: 2 | I152: 8 | J152: 111113128 | K152: 8 | R152: 8 | T152: 6 | U152: 9 | AE152: 6 | AG152: 2 | BK152: =IF(Zwischenwerte!$AB$14=Zwischenwerte!$AB$26,1,0) -> 0 | BL152: 1 | BP152: 1 | CA152: 1 | CC152: 1 | CE152: 1 | DA152: 3 | DJ152: 1
A153: 1 | B153: 1 | C153: 1 | D153: 1 | E153: 1 | F153: 3 | G153: 1 | H153: 2 | I153: 10 | J153: 1111131210 | K153: 10 | R153: 10 | T153: 8 | U153: 12 | AE153: 8 | AG153: 2 | BK153: =IF(Zwischenwerte!$AB$14=Zwischenwerte!$AB$26,1,0) -> 0 | BL153: 1 | BP153: 1 | CA153: 1 | CC153: 1 | CE153: 1 | CZ153: 1 | DA153: 3 | DJ153: 1
A154: 1 | B154: 1 | C154: 1 | D154: 1 | E154: 1 | F154: 3 | G154: 1 | H154: 2 | I154: 12 | J154: 1111131212 | K154: 12 | R154: 12 | T154: 9 | U154: 15 | AE154: 9 | AG154: 3 | BK154: =IF(Zwischenwerte!$AB$14=Zwischenwerte!$AB$26,1,0) -> 0 | BL154: 1 | BP154: 1 | BV154: 2 | DA154: 4 | DJ154: 1
A155: 1 | B155: 1 | C155: 1 | D155: 1 | E155: 1 | F155: 3 | G155: 1 | H155: 2 | I155: 15 | J155: 1111131215 | K155: 15 | R155: 15 | T155: 12 | U155: 18 | AE155: 12 | AG155: 3 | BK155: =IF(Zwischenwerte!$AB$14=Zwischenwerte!$AB$26,1,0) -> 0 | BL155: 1 | BP155: 1 | BZ155: 2 | CB155: 2 | CD155: 2 | DA155: 5 | DJ155: 1
A156: 1 | B156: 1 | C156: 1 | D156: 1 | E156: 1 | F156: 3 | G156: 1 | H156: 2 | I156: 16 | J156: 1111131216 | K156: 16 | R156: 16 | T156: 12 | U156: 20 | AE156: 12 | AG156: 4 | BK156: =IF(Zwischenwerte!$AB$14=Zwischenwerte!$AB$26,1,0) -> 0 | BL156: 1 | BP156: 1 | CA156: 2 | CC156: 2 | CE156: 2 | DA156: 6 | DJ156: 1
A157: 1 | B157: 1 | C157: 1 | D157: 1 | E157: 1 | F157: 3 | G157: 2 | H157: 1 | I157: 1 | J157: 111113211 | K157: 1 | N157: 1 | AG157: 1 | BK157: =IF(Zwischenwerte!$AB$14=Zwischenwerte!$AB$26,1,0) -> 0 | BL157: 1 | BS157: 1 | DA157: 1 | DG157: 1 | DK157: 1
A158: 1 | B158: 1 | C158: 1 | D158: 1 | E158: 1 | F158: 3 | G158: 2 | H158: 1 | I158: 2 | J158: 111113212 | K158: 2 | N158: 1 | O158: 1 | AE158: 1 | AG158: 1 | BK158: =IF(Zwischenwerte!$AB$14=Zwischenwerte!$AB$26,1,0) -> 0 | BM158: 1 | BT158: 1 | DA158: 1 | DH158: 1 | DK158: 1
A159: 1 | B159: 1 | C159: 1 | D159: 1 | E159: 1 | F159: 3 | G159: 2 | H159: 1 | I159: 3 | J159: 111113213 | K159: 3 | N159: 1 | O159: 2 | AE159: 2 | AG159: 1 | BK159: =IF(Zwischenwerte!$AB$14=Zwischenwerte!$AB$26,1,0) -> 0 | BM159: 1 | BU159: 1 | CZ159: 1 | DA159: 1 | DH159: 1 | DK159: 1
A160: 1 | B160: 1 | C160: 1 | D160: 1 | E160: 1 | F160: 3 | G160: 2 | H160: 1 | I160: 4 | J160: 111113214 | K160: 4 | N160: 1 | O160: 3 | AE160: 3 | AG160: 1 | BK160: =IF(Zwischenwerte!$AB$14=Zwischenwerte!$AB$26,1,0) -> 0 | BM160: 1 | BV160: 1 | CZ160: 1 | DA160: 1 | DI160: 1
A161: 1 | B161: 1 | C161: 1 | D161: 1 | E161: 1 | F161: 3 | G161: 2 | H161: 1 | I161: 5 | J161: 111113215 | K161: 5 | N161: 1 | O161: 4 | AE161: 4 | AG161: 1 | BK161: =IF(Zwischenwerte!$AB$14=Zwischenwerte!$AB$26,1,0) -> 0 | BM161: 1 | BV161: 1 | DA161: 2 | DI161: 1
A162: 1 | B162: 1 | C162: 1 | D162: 1 | E162: 1 | F162: 3 | G162: 2 | H162: 1 | I162: 6 | J162: 111113216 | K162: 6 | N162: 2 | O162: 4 | AE162: 4 | AG162: 2 | BK162: =IF(Zwischenwerte!$AB$14=Zwischenwerte!$AB$26,1,0) -> 0 | BM162: 1 | BZ162: 1 | CB162: 1 | CD162: 1 | CZ162: 1 | DA162: 2 | DI162: 1
A163: 1 | B163: 1 | C163: 1 | D163: 1 | E163: 1 | F163: 3 | G163: 2 | H163: 1 | I163: 8 | J163: 111113218 | K163: 8 | N163: 2 | O163: 6 | AE163: 6 | AG163: 2 | BK163: =IF(Zwischenwerte!$AB$14=Zwischenwerte!$AB$26,1,0) -> 0 | BM163: 1 | CA163: 1 | CC163: 1 | CE163: 1 | DA163: 3 | DJ163: 1
A164: 1 | B164: 1 | C164: 1 | D164: 1 | E164: 1 | F164: 3 | G164: 2 | H164: 1 | I164: 10 | J164: 1111132110 | K164: 10 | N164: 2 | O164: 8 | AE164: 8 | AG164: 2 | BK164: =IF(Zwischenwerte!$AB$14=Zwischenwerte!$AB$26,1,0) -> 0 | BM164: 1 | CA164: 1 | CC164: 1 | CE164: 1 | CZ164: 1 | DA164: 3 | DJ164: 1
A165: 1 | B165: 1 | C165: 1 | D165: 1 | E165: 1 | F165: 3 | G165: 2 | H165: 1 | I165: 12 | J165: 1111132112 | K165: 12 | N165: 3 | O165: 9 | AE165: 9 | AG165: 3 | BK165: =IF(Zwischenwerte!$AB$14=Zwischenwerte!$AB$26,1,0) -> 0 | BM165: 1 | BV165: 2 | DA165: 4 | DJ165: 1
A166: 1 | B166: 1 | C166: 1 | D166: 1 | E166: 1 | F166: 3 | G166: 2 | H166: 1 | I166: 15 | J166: 1111132115 | K166: 15 | N166: 3 | O166: 12 | AE166: 12 | AG166: 3 | BK166: =IF(Zwischenwerte!$AB$14=Zwischenwerte!$AB$26,1,0) -> 0 | BM166: 1 | BZ166: 2 | CB166: 2 | CD166: 2 | DA166: 5 | DJ166: 1
A167: 1 | B167: 1 | C167: 1 | D167: 1 | E167: 1 | F167: 3 | G167: 2 | H167: 1 | I167: 16 | J167: 1111132116 | K167: 16 | N167: 4 | O167: 12 | AE167: 12 | AG167: 4 | BK167: =IF(Zwischenwerte!$AB$14=Zwischenwerte!$AB$26,1,0) -> 0 | BM167: 1 | CA167: 2 | CC167: 2 | CE167: 2 | DA167: 6 | DJ167: 1
A168: 1 | B168: 1 | C168: 1 | D168: 1 | E168: 1 | F168: 3 | G168: 2 | H168: 2 | I168: 1 | J168: 111113221 | K168: 1 | N168: 1 | AG168: 1 | BK168: =IF(Zwischenwerte!$AB$14=Zwischenwerte!$AB$26,1,0) -> 0 | BL168: 1 | BS168: 1 | DA168: 1 | DG168: 1 | DK168: 1
A169: 1 | B169: 1 | C169: 1 | D169: 1 | E169: 1 | F169: 3 | G169: 2 | H169: 2 | I169: 2 | J169: 111113222 | K169: 2 | N169: 1 | O169: 1 | AE169: 1 | AG169: 1 | BK169: =IF(Zwischenwerte!$AB$14=Zwischenwerte!$AB$26,1,0) -> 0 | BL169: 1 | BP169: 1 | BT169: 1 | DA169: 1 | DH169: 1 | DK169: 1
A170: 1 | B170: 1 | C170: 1 | D170: 1 | E170: 1 | F170: 3 | G170: 2 | H170: 2 | I170: 3 | J170: 111113223 | K170: 3 | N170: 1 | O170: 2 | AE170: 2 | AG170: 1 | BK170: =IF(Zwischenwerte!$AB$14=Zwischenwerte!$AB$26,1,0) -> 0 | BL170: 1 | BP170: 1 | BU170: 1 | CZ170: 1 | DA170: 1 | DH170: 1 | DK170: 1
A171: 1 | B171: 1 | C171: 1 | D171: 1 | E171: 1 | F171: 3 | G171: 2 | H171: 2 | I171: 4 | J171: 111113224 | K171: 4 | N171: 1 | O171: 3 | AE171: 3 | AG171: 1 | BK171: =IF(Zwischenwerte!$AB$14=Zwischenwerte!$AB$26,1,0) -> 0 | BL171: 1 | BP171: 1 | BV171: 1 | CZ171: 1 | DA171: 1 | DI171: 1
A172: 1 | B172: 1 | C172: 1 | D172: 1 | E172: 1 | F172: 3 | G172: 2 | H172: 2 | I172: 5 | J172: 111113225 | K172: 5 | N172: 1 | O172: 4 | AE172: 4 | AG172: 1 | BK172: =IF(Zwischenwerte!$AB$14=Zwischenwerte!$AB$26,1,0) -> 0 | BL172: 1 | BP172: 1 | BV172: 1 | DA172: 2 | DI172: 1
A173: 1 | B173: 1 | C173: 1 | D173: 1 | E173: 1 | F173: 3 | G173: 2 | H173: 2 | I173: 6 | J173: 111113226 | K173: 6 | N173: 2 | O173: 4 | AE173: 4 | AG173: 2 | BK173: =IF(Zwischenwerte!$AB$14=Zwischenwerte!$AB$26,1,0) -> 0 | BL173: 1 | BP173: 1 | BZ173: 1 | CB173: 1 | CD173: 1 | CZ173: 1 | DA173: 2 | DI173: 1
A174: 1 | B174: 1 | C174: 1 | D174: 1 | E174: 1 | F174: 3 | G174: 2 | H174: 2 | I174: 8 | J174: 111113228 | K174: 8 | N174: 2 | O174: 6 | AE174: 6 | AG174: 2 | BK174: =IF(Zwischenwerte!$AB$14=Zwischenwerte!$AB$26,1,0) -> 0 | BL174: 1 | BP174: 1 | CA174: 1 | CC174: 1 | CE174: 1 | DA174: 3 | DJ174: 1
A175: 1 | B175: 1 | C175: 1 | D175: 1 | E175: 1 | F175: 3 | G175: 2 | H175: 2 | I175: 10 | J175: 1111132210 | K175: 10 | N175: 2 | O175: 8 | AE175: 8 | AG175: 2 | BK175: =IF(Zwischenwerte!$AB$14=Zwischenwerte!$AB$26,1,0) -> 0 | BL175: 1 | BP175: 1 | CA175: 1 | CC175: 1 | CE175: 1 | CZ175: 1 | DA175: 3 | DJ175: 1
A176: 1 | B176: 1 | C176: 1 | D176: 1 | E176: 1 | F176: 3 | G176: 2 | H176: 2 | I176: 12 | J176: 1111132212 | K176: 12 | N176: 3 | O176: 9 | AE176: 9 | AG176: 3 | BK176: =IF(Zwischenwerte!$AB$14=Zwischenwerte!$AB$26,1,0) -> 0 | BL176: 1 | BP176: 1 | BV176: 2 | DA176: 4 | DJ176: 1
A177: 1 | B177: 1 | C177: 1 | D177: 1 | E177: 1 | F177: 3 | G177: 2 | H177: 2 | I177: 15 | J177: 1111132215 | K177: 15 | N177: 3 | O177: 12 | AE177: 12 | AG177: 3 | BK177: =IF(Zwischenwerte!$AB$14=Zwischenwerte!$AB$26,1,0) -> 0 | BL177: 1 | BP177: 1 | BZ177: 2 | CB177: 2 | CD177: 2 | DA177: 5 | DJ177: 1
A178: 1 | B178: 1 | C178: 1 | D178: 1 | E178: 1 | F178: 3 | G178: 2 | H178: 2 | I178: 16 | J178: 1111132216 | K178: 16 | N178: 4 | O178: 12 | AE178: 12 | AG178: 4 | BK178: =IF(Zwischenwerte!$AB$14=Zwischenwerte!$AB$26,1,0) -> 0 | BL178: 1 | BP178: 1 | CA178: 2 | CC178: 2 | CE178: 2 | DA178: 6 | DJ178: 1
A179: 1 | B179: 1 | C179: 1 | D179: 1 | E179: 1 | F179: 3 | G179: 3 | H179: 1 | I179: 1 | J179: 111113311 | BK179: =IF(Zwischenwerte!$AB$14=Zwischenwerte!$AB$26,1,0) -> 0
A180: 1 | B180: 1 | C180: 1 | D180: 1 | E180: 1 | F180: 3 | G180: 3 | H180: 1 | I180: 2 | J180: 111113312 | BK180: =IF(Zwischenwerte!$AB$14=Zwischenwerte!$AB$26,1,0) -> 0
A181: 1 | B181: 1 | C181: 1 | D181: 1 | E181: 1 | F181: 3 | G181: 3 | H181: 1 | I181: 3 | J181: 111113313 | BK181: =IF(Zwischenwerte!$AB$14=Zwischenwerte!$AB$26,1,0) -> 0
A182: 1 | B182: 1 | C182: 1 | D182: 1 | E182: 1 | F182: 3 | G182: 3 | H182: 1 | I182: 4 | J182: 111113314 | BK182: =IF(Zwischenwerte!$AB$14=Zwischenwerte!$AB$26,1,0) -> 0
A183: 1 | B183: 1 | C183: 1 | D183: 1 | E183: 1 | F183: 3 | G183: 3 | H183: 1 | I183: 5 | J183: 111113315 | BK183: =IF(Zwischenwerte!$AB$14=Zwischenwerte!$AB$26,1,0) -> 0
A184: 1 | B184: 1 | C184: 1 | D184: 1 | E184: 1 | F184: 3 | G184: 3 | H184: 1 | I184: 6 | J184: 111113316 | BK184: =IF(Zwischenwerte!$AB$14=Zwischenwerte!$AB$26,1,0) -> 0
A185: 1 | B185: 1 | C185: 1 | D185: 1 | E185: 1 | F185: 3 | G185: 3 | H185: 1 | I185: 8 | J185: 111113318 | BK185: =IF(Zwischenwerte!$AB$14=Zwischenwerte!$AB$26,1,0) -> 0
A186: 1 | B186: 1 | C186: 1 | D186: 1 | E186: 1 | F186: 3 | G186: 3 | H186: 1 | I186: 10 | J186: 1111133110 | BK186: =IF(Zwischenwerte!$AB$14=Zwischenwerte!$AB$26,1,0) -> 0
A187: 1 | B187: 1 | C187: 1 | D187: 1 | E187: 1 | F187: 3 | G187: 3 | H187: 1 | I187: 12 | J187: 1111133112 | BK187: =IF(Zwischenwerte!$AB$14=Zwischenwerte!$AB$26,1,0) -> 0
A188: 1 | B188: 1 | C188: 1 | D188: 1 | E188: 1 | F188: 3 | G188: 3 | H188: 1 | I188: 15 | J188: 1111133115 | BK188: =IF(Zwischenwerte!$AB$14=Zwischenwerte!$AB$26,1,0) -> 0
A189: 1 | B189: 1 | C189: 1 | D189: 1 | E189: 1 | F189: 3 | G189: 3 | H189: 1 | I189: 16 | J189: 1111133116 | BK189: =IF(Zwischenwerte!$AB$14=Zwischenwerte!$AB$26,1,0) -> 0
A190: 1 | B190: 1 | C190: 1 | D190: 1 | E190: 1 | F190: 3 | G190: 3 | H190: 2 | I190: 1 | J190: 111113321 | BK190: =IF(Zwischenwerte!$AB$14=Zwischenwerte!$AB$26,1,0) -> 0
A191: 1 | B191: 1 | C191: 1 | D191: 1 | E191: 1 | F191: 3 | G191: 3 | H191: 2 | I191: 2 | J191: 111113322 | BK191: =IF(Zwischenwerte!$AB$14=Zwischenwerte!$AB$26,1,0) -> 0
A192: 1 | B192: 1 | C192: 1 | D192: 1 | E192: 1 | F192: 3 | G192: 3 | H192: 2 | I192: 3 | J192: 111113323 | BK192: =IF(Zwischenwerte!$AB$14=Zwischenwerte!$AB$26,1,0) -> 0
A193: 1 | B193: 1 | C193: 1 | D193: 1 | E193: 1 | F193: 3 | G193: 3 | H193: 2 | I193: 4 | J193: 111113324 | BK193: =IF(Zwischenwerte!$AB$14=Zwischenwerte!$AB$26,1,0) -> 0
A194: 1 | B194: 1 | C194: 1 | D194: 1 | E194: 1 | F194: 3 | G194: 3 | H194: 2 | I194: 5 | J194: 111113325 | BK194: =IF(Zwischenwerte!$AB$14=Zwischenwerte!$AB$26,1,0) -> 0
A195: 1 | B195: 1 | C195: 1 | D195: 1 | E195: 1 | F195: 3 | G195: 3 | H195: 2 | I195: 6 | J195: 111113326 | BK195: =IF(Zwischenwerte!$AB$14=Zwischenwerte!$AB$26,1,0) -> 0
A196: 1 | B196: 1 | C196: 1 | D196: 1 | E196: 1 | F196: 3 | G196: 3 | H196: 2 | I196: 8 | J196: =A196&B196&C196&D196&E196&F196&G196&H196&I196 -> 111113328 | BK196: =IF(Zwischenwerte!$AB$14=Zwischenwerte!$AB$26,1,0) -> 0
A197: 1 | B197: 1 | C197: 1 | D197: 1 | E197: 1 | F197: 3 | G197: 3 | H197: 2 | I197: 10 | J197: 1111133210 | BK197: =IF(Zwischenwerte!$AB$14=Zwischenwerte!$AB$26,1,0) -> 0
A198: 1 | B198: 1 | C198: 1 | D198: 1 | E198: 1 | F198: 3 | G198: 3 | H198: 2 | I198: 12 | J198: 1111133212 | BK198: =IF(Zwischenwerte!$AB$14=Zwischenwerte!$AB$26,1,0) -> 0
A199: 1 | B199: 1 | C199: 1 | D199: 1 | E199: 1 | F199: 3 | G199: 3 | H199: 2 | I199: 15 | J199: 1111133215 | BK199: =IF(Zwischenwerte!$AB$14=Zwischenwerte!$AB$26,1,0) -> 0
A200: 1 | B200: 1 | C200: 1 | D200: 1 | E200: 1 | F200: 3 | G200: 3 | H200: 2 | I200: 16 | J200: 1111133216 | BK200: =IF(Zwischenwerte!$AB$14=Zwischenwerte!$AB$26,1,0) -> 0
... 362 more rows

Sheet Klimazonen (hidden)
A1: =Zwischenwerte!A14 -> Germany | B1: Zeile | C1: =Zwischenwerte!B14 -> Aachen
B2: Breitengrad | C2: 50.77
C3: Global | D3: Diffus | E3: Außentemp | H3: Hinweis Datenimport Meteonorm
B4: Jan | C4: 0.72 | D4: 0.44 | E4: 2.8
B5: Feb | C5: 1.36 | D5: 0.9 | E5: 4 | H5: - Breitengrad aus Übersicht im oberen Bereich übernehmen
B6: Mar | C6: 2.38 | D6: 1.55 | E6: 6.7 | H6: - Format >> Userdefined: Monat - Globalstrahlung hor. - Diffusstrahlung hor. - Lufttemperatur - Windgeschw.
B7: Apr | C7: 3.84 | D7: 1.75 | E7: 9.6 | H7: - Format >> Userdefined: Einheit: Monatswerte - kWh/m²d
B8: Mai | C8: 4.99 | D8: 2.79 | E8: 13.8 | H8: - Auswertung: Daten aus Tabelle kopieren (Strg+C) und als "Inhalte einfügen" als Text einfügen
B9: Jun | C9: 5.07 | D9: 2.56 | E9: 16.8
B10: Jul | C10: 5.12 | D10: 2.47 | E10: 17.8
B11: Aug | C11: 4.45 | D11: 2.25 | E11: 18.7
B12: Sep | C12: 2.91 | D12: 1.71 | E12: 15.1
B13: Okt | C13: 1.76 | D13: 1.11 | E13: 10.9
B14: Nov | C14: 0.87 | D14: 0.55 | E14: 6.2
B15: Dez | C15: 0.47 | D15: 0.35 | E15: 3.4
B16: Jahr | C16: 2.83 | D16: 1.54 | E16: 10.5
A21: =Zwischenwerte!A17 -> Germany | B21: Stadt | C21: Aachen | F21: Augsburg | I21: Berlin | L21: Bochum | O21: Bonn | R21: Bielefeld | U21: Braunschweig | X21: Bremen | AA21: Chemnitz | AD21: Cottbus | AG21: Dortmund | AJ21: Dresden | AM21: Duisburg | AP21: Düsseldorf | AS21: Erfurt | AV21: Essen | AY21: Frankfurt/Main | BB21: Freiburg | BE21: Gelsenkirchen | BH21: Halle/Saale | BK21: Hamburg | BN21: Hannover | BQ21: Karlsruhe | BT21: Kassel | BW21: Kiel | BZ21: Koblenz | CC21: Köln | CF21: Leipzig | CI21: Leverkusen | CL21: Ludwigshafen | CO21: Lübeck | CR21: Magdeburg | CU21: Mainz | CX21: Mannheim | DA21: Mönchengladbach | DD21: München | DG21: Münster | DJ21: Nürnberg | DM21: Oberhausen | DP21: Oldenburg | DS21: Osnabrück | DV21: Paderborn | DY21: Potsdam | EB21: Rostock | EE21: Saarbrücken | EH21: Schwerin | EK21: Stuttgart | EN21: Ulm | EQ21: Wiesbaden | ET21: Wolfsburg | EW21: Wuppertal | EZ21: Würzburg | FC21: Zwickau
B22: Breitengrad | C22: 50.77 | F22: 48.35 | I22: 52.53 | L22: 51.47 | O22: 50.73 | R22: 52.03 | U22: 52.25 | X22: 53.08 | AA22: 50.83 | AD22: 51.72 | AG22: 51.53 | AJ22: 51.05 | AM22: 51.43 | AP22: 51.22 | AS22: 50.97 | AV22: 51.47 | AY22: 50.1 | BB22: 47.9 | BE22: 51.5 | BH22: 51.47 | BK22: 53.55 | BN22: 52.23 | BQ22: 49 | BT22: 51.3 | BW22: 54.33 | BZ22: 50.35 | CC22: 50.93 | CF22: 51.33 | CI22: 51.03 | CL22: 49.48 | CO22: 53.87 | CR22: 52.13 | CU22: 50 | CX22: 49.5 | DA22: 51.2 | DD22: 48.13 | DG22: 51.97 | DJ22: 49.45 | DM22: 51.47 | DP22: 55.13 | DS22: 52.28 | DV22: 51.72 | DY22: 52.4 | EB22: 54.07 | EE22: 49.25 | EH22: 53.63 | EK22: 48.78 | EN22: 48.4 | EQ22: 50.08 | ET22: 52.45 | EW22: 51.25 | EZ22: 49.8 | FC22: 50.72
C23: Global | D23: Diffus | E23: Außentemp | F23: Global | G23: Diffus | H23: Außentemp | I23: Global | J23: Diffus | K23: Außentemp | L23: Global | M23: Diffus | N23: Außentemp | O23: Global | P23: Diffus | Q23: Außentemp | R23: Global | S23: Diffus | T23: Außentemp | U23: Global | V23: Diffus | W23: Außentemp | X23: Global | Y23: Diffus | Z23: Außentemp | AA23: Global | AB23: Diffus | AC23: Außentemp | AD23: Global | AE23: Diffus | AF23: Außentemp | AG23: Global | AH23: Diffus | AI23: Außentemp | AJ23: Global | AK23: Diffus | AL23: Außentemp | AM23: Global | AN23: Diffus | AO23: Außentemp | AP23: Global | AQ23: Diffus | AR23: Außentemp | AS23: Global | AT23: Diffus | AU23: Außentemp | AV23: Global | AW23: Diffus | AX23: Außentemp | AY23: Global | AZ23: Diffus | BA23: Außentemp | BB23: Global | BC23: Diffus | BD23: Außentemp | BE23: Global | BF23: Diffus | BG23: Außentemp | BH23: Global | BI23: Diffus | BJ23: Außentemp | BK23: Global | BL23: Diffus | BM23: Außentemp | BN23: Global | BO23: Diffus | BP23: Außentemp | BQ23: Global | BR23: Diffus | BS23: Außentemp | BT23: Global | BU23: Diffus | BV23: Außentemp | BW23: Global | BX23: Diffus | BY23: Außentemp | BZ23: Global | CA23: Diffus | CB23: Außentemp | CC23: Global | CD23: Diffus | CE23: Außentemp | CF23: Global | CG23: Diffus | CH23: Außentemp | CI23: Global | CJ23: Diffus | CK23: Außentemp | CL23: Global | CM23: Diffus | CN23: Außentemp | CO23: Global | CP23: Diffus | CQ23: Außentemp | CR23: Global | CS23: Diffus | CT23: Außentemp | CU23: Global | CV23: Diffus | CW23: Außentemp | CX23: Global | CY23: Diffus | CZ23: Außentemp | DA23: Global | DB23: Diffus | DC23: Außentemp | DD23: Global | DE23: Diffus | DF23: Außentemp | DG23: Global | DH23: Diffus | DI23: Außentemp | DJ23: Global | DK23: Diffus | DL23: Außentemp | DM23: Global | DN23: Diffus | DO23: Außentemp | DP23: Global | DQ23: Diffus | DR23: Außentemp | DS23: Global | DT23: Diffus | DU23: Außentemp | DV23: Global | DW23: Diffus | DX23: Außentemp | DY23: Global | DZ23: Diffus | EA23: Außentemp | EB23: Global | EC23: Diffus | ED23: Außentemp | EE23: Global | EF23: Diffus | EG23: Außentemp | EH23: Global | EI23: Diffus | EJ23: Außentemp | EK23: Global | EL23: Diffus | EM23: Außentemp | EN23: Global | EO23: Diffus | EP23: Außentemp | EQ23: Global | ER23: Diffus | ES23: Außentemp | ET23: Global | EU23: Diffus | EV23: Außentemp | EW23: Global | EX23: Diffus | EY23: Außentemp | EZ23: Global | FA23: Diffus | FB23: Außentemp | FC23: Global | FD23: Diffus | FE23: Außentemp
B24: Jan | C24: 0.72 | D24: 0.44 | E24: 2.8 | F24: 1.01 | G24: 0.52 | H24: -1.3 | I24: 0.6 | J24: 0.41 | K24: 0.1 | L24: 0.63 | M24: 0.43 | N24: 2.8 | O24: 0.72 | P24: 0.45 | Q24: 2.2 | R24: 0.64 | S24: 0.39 | T24: 0.9 | U24: 0.65 | V24: 0.39 | W24: 0.3 | X24: 0.6 | Y24: 0.35 | Z24: 2 | AA24: 0.74 | AB24: 0.44 | AC24: -0.8 | AD24: 0.71 | AE24: 0.42 | AF24: -1.2 | AG24: 0.63 | AH24: 0.42 | AI24: 2.8 | AJ24: 0.72 | AK24: 0.43 | AL24: 0.3 | AM24: 0.63 | AN24: 0.46 | AO24: 2 | AP24: 0.66 | AQ24: 0.43 | AR24: 2.9 | AS24: 0.7 | AT24: 0.43 | AU24: 0.7 | AV24: 0.63 | AW24: 0.45 | AX24: 2 | AY24: 0.69 | AZ24: 0.5 | BA24: 1 | BB24: 0.84 | BC24: 0.57 | BD24: 1.6 | BE24: 0.62 | BF24: 0.42 | BG24: 2 | BH24: 0.75 | BI24: 0.49 | BJ24: -0.2 | BK24: 0.53 | BL24: 0.35 | BM24: 3 | BN24: 0.64 | BO24: 0.39 | BP24: 1.8 | BQ24: 0.81 | BR24: 0.5 | BS24: 2.5 | BT24: 0.65 | BU24: 0.42 | BV24: 1 | BW24: 0.51 | BX24: 0.34 | BY24: 1.7 | BZ24: 0.69 | CA24: 0.48 | CB24: 1.2 | CC24: 0.7 | CD24: 0.42 | CE24: 2.8 | CF24: 0.72 | CG24: 0.43 | CH24: 1.8 | CI24: 0.69 | CJ24: 0.43 | CK24: 2.2 | CL24: 0.75 | CM24: 0.54 | CN24: 1.4 | CO24: 0.52 | CP24: 0.34 | CQ24: 1.7 | CR24: 0.66 | CS24: 0.41 | CT24: -0.1 | CU24: 0.7 | CV24: 0.5 | CW24: 1.2 | CX24: 0.74 | CY24: 0.47 | CZ24: 1.4 | DA24: 0.67 | DB24: 0.43 | DC24: 2 | DD24: 1.04 | DE24: 0.6 | DF24: -1.3 | DG24: 0.63 | DH24: 0.42 | DI24: 2.5 | DJ24: 0.77 | DK24: 0.54 | DL24: -0.8 | DM24: 0.63 | DN24: 0.46 | DO24: 2.8 | DP24: 0.6 | DQ24: 0.38 | DR24: 2.2 | DS24: 0.62 | DT24: 0.43 | DU24: 2.2 | DV24: 0.65 | DW24: 0.43 | DX24: 0.5 | DY24: 0.6 | DZ24: 0.42 | EA24: -0.6 | EB24: 0.48 | EC24: 0.36 | ED24: 0.6 | EE24: 0.72 | EF24: 0.52 | EG24: 1.2 | EH24: 0.52 | EI24: 0.38 | EJ24: 0.7 | EK24: 0.91 | EL24: 0.48 | EM24: 1.3 | EN24: 0.92 | EO24: 0.54 | EP24: -0.9 | EQ24: 0.69 | ER24: 0.5 | ES24: 0.9 | ET24: 0.64 | EU24: 0.38 | EV24: 0.3 | EW24: 0.66 | EX24: 0.43 | EY24: 1.7 | EZ24: 0.81 | FA24: 0.48 | FB24: -0.4 | FC24: 0.71 | FD24: 0.44 | FE24: -1.6
B25: Feb | C25: 1.36 | D25: 0.9 | E25: 4 | F25: 1.8 | G25: 0.99 | H25: -0.7 | I25: 1.23 | J25: 0.76 | K25: 1.4 | L25: 1.32 | M25: 0.92 | N25: 4 | O25: 1.39 | P25: 0.91 | Q25: 2.8 | R25: 1.32 | S25: 0.84 | T25: 1.3 | U25: 1.3 | V25: 0.87 | W25: 0.7 | X25: 1.22 | Y25: 0.84 | Z25: 2.9 | AA25: 1.38 | AB25: 0.73 | AC25: 0.3 | AD25: 1.37 | AE25: 0.87 | AF25: -0.1 | AG25: 1.32 | AH25: 0.92 | AI25: 4 | AJ25: 1.37 | AK25: 0.88 | AL25: 1.9 | AM25: 1.32 | AN25: 0.8 | AO25: 2.5 | AP25: 1.33 | AQ25: 0.93 | AR25: 4.1 | AS25: 1.44 | AT25: 0.79 | AU25: 2.2 | AV25: 1.32 | AW25: 0.9 | AX25: 2.5 | AY25: 1.41 | AZ25: 0.97 | BA25: 2.6 | BB25: 1.58 | BC25: 1.02 | BD25: 3.2 | BE25: 1.32 | BF25: 0.92 | BG25: 2.5 | BH25: 1.37 | BI25: 0.94 | BJ25: 0.2 | BK25: 1.16 | BL25: 0.82 | BM25: 3.5 | BN25: 1.3 | BO25: 0.89 | BP25: 3 | BQ25: 1.56 | BR25: 1 | BS25: 3.7 | BT25: 1.41 | BU25: 0.9 | BV25: 2.4 | BW25: 1.1 | BX25: 0.63 | BY25: 2.3 | BZ25: 1.39 | CA25: 0.86 | CB25: 2.2 | CC25: 1.37 | CD25: 0.93 | CE25: 4.2 | CF25: 1.38 | CG25: 0.91 | CH25: 2.5 | CI25: 1.36 | CJ25: 0.92 | CK25: 2.8 | CL25: 1.49 | CM25: 0.95 | CN25: 2.8 | CO25: 1.14 | CP25: 0.72 | CQ25: 2.5 | CR25: 1.35 | CS25: 0.74 | CT25: 0.2 | CU25: 1.4 | CV25: 0.89 | CW25: 2.8 | CX25: 1.49 | CY25: 0.94 | CZ25: 2.8 | DA25: 1.32 | DB25: 0.9 | DC25: 2.6 | DD25: 1.83 | DE25: 0.92 | DF25: 0.9 | DG25: 1.29 | DH25: 0.87 | DI25: 3.6 | DJ25: 1.56 | DK25: 1 | DL25: 0.9 | DM25: 1.32 | DN25: 0.89 | DO25: 3.9 | DP25: 1.22 | DQ25: 0.8 | DR25: 3.1 | DS25: 1.27 | DT25: 0.82 | DU25: 3.3 | DV25: 1.37 | DW25: 0.79 | DX25: 1 | DY25: 1.22 | DZ25: 0.79 | EA25: 0.4 | EB25: 1.11 | EC25: 0.67 | ED25: 1.5 | EE25: 1.51 | EF25: 1.01 | EG25: 2.8 | EH25: 1.15 | EI25: 0.8 | EJ25: 1.7 | EK25: 1.66 | EL25: 1.03 | EM25: 2.8 | EN25: 1.66 | EO25: 0.95 | EP25: 0 | EQ25: 1.39 | ER25: 0.91 | ES25: 1.9 | ET25: 1.29 | EU25: 0.86 | EV25: 0.7 | EW25: 1.31 | EX25: 0.9 | EY25: 2.3 | EZ25: 1.56 | FA25: 0.95 | FB25: 1.3 | FC25: 1.45 | FD25: 0.94 | FE25: -0.7
B26: Mar | C26: 2.38 | D26: 1.55 | E26: 6.7 | F26: 2.84 | G26: 1.58 | H26: 4.1 | I26: 2.35 | J26: 1.35 | K26: 3.8 | L26: 2.04 | M26: 1.2 | N26: 6.7 | O26: 2.25 | P26: 1.55 | Q26: 6 | R26: 2.17 | S26: 1.24 | T26: 4.3 | U26: 2.23 | V26: 1.47 | W26: 3.7 | X26: 2.11 | Y26: 1.22 | Z26: 4.9 | AA26: 2.38 | AB26: 1.33 | AC26: 3.8 | AD26: 2.43 | AE26: 1.41 | AF26: 3.4 | AG26: 2.06 | AH26: 1.27 | AI26: 6.8 | AJ26: 2.33 | AK26: 1.46 | AL26: 4.9 | AM26: 2.08 | AN26: 1.38 | AO26: 5.2 | AP26: 2.14 | AQ26: 1.33 | AR26: 6.7 | AS26: 2.33 | AT26: 1.56 | AU26: 4.8 | AV26: 2.04 | AW26: 1.22 | AX26: 5.2 | AY26: 2.39 | AZ26: 1.32 | BA26: 5.8 | BB26: 2.62 | BC26: 1.43 | BD26: 6.9 | BE26: 2.04 | BF26: 1.2 | BG26: 5.2 | BH26: 2.35 | BI26: 1.49 | BJ26: 3.8 | BK26: 2.11 | BL26: 1.38 | BM26: 4.5 | BN26: 2.22 | BO26: 1.42 | BP26: 5.2 | BQ26: 2.53 | BR26: 1.56 | BS26: 7.2 | BT26: 2.26 | BU26: 1.35 | BV26: 5.4 | BW26: 2.09 | BX26: 1.24 | BY26: 4 | BZ26: 2.33 | CA26: 1.41 | CB26: 5.5 | CC26: 2.24 | CD26: 1.34 | CE26: 6.8 | CF26: 2.36 | CG26: 1.52 | CH26: 5.1 | CI26: 2.21 | CJ26: 1.43 | CK26: 5.9 | CL26: 2.45 | CM26: 1.51 | CN26: 6.1 | CO26: 2.13 | CP26: 1.34 | CQ26: 4.2 | CR26: 2.32 | CS26: 1.36 | CT26: 3.7 | CU26: 2.4 | CV26: 1.37 | CW26: 6 | CX26: 2.45 | CY26: 1.38 | CZ26: 6.1 | DA26: 2.23 | DB26: 1.42 | DC26: 5.3 | DD26: 2.88 | DE26: 1.56 | DF26: 4.5 | DG26: 2.17 | DH26: 1.37 | DI26: 6 | DJ26: 2.43 | DK26: 1.37 | DL26: 4.4 | DM26: 2.06 | DN26: 1.34 | DO26: 6.6 | DP26: 2.12 | DQ26: 1.42 | DR26: 5.1 | DS26: 2.18 | DT26: 1.34 | DU26: 5.6 | DV26: 2.16 | DW26: 1.49 | DX26: 4.4 | DY26: 2.35 | DZ26: 1.34 | EA26: 3.9 | EB26: 2.28 | EC26: 1.22 | ED26: 3.3 | EE26: 2.49 | EF26: 1.38 | EG26: 6.1 | EH26: 2.2 | EI26: 1.41 | EJ26: 3.6 | EK26: 2.59 | EL26: 1.45 | EM26: 6.3 | EN26: 2.69 | EO26: 1.57 | EP26: 4.3 | EQ26: 2.4 | ER26: 1.41 | ES26: 5.4 | ET26: 2.22 | EU26: 1.41 | EV26: 3.7 | EW26: 2.14 | EX26: 1.3 | EY26: 5 | EZ26: 2.59 | FA26: 1.42 | FB26: 4.7 | FC26: 2.36 | FD26: 1.33 | FE26: 2.9
B27: Apr | C27: 3.84 | D27: 1.75 | E27: 9.6 | F27: 4.02 | G27: 2.23 | H27: 7.7 | I27: 3.7 | J27: 2.01 | K27: 8.9 | L27: 3.55 | M27: 2.07 | N27: 10.2 | O27: 3.58 | P27: 2.25 | Q27: 8.3 | R27: 3.55 | S27: 2.24 | T27: 7.8 | U27: 3.58 | V27: 2.19 | W27: 7.8 | X27: 3.55 | Y27: 2.11 | Z27: 8.9 | AA27: 3.61 | AB27: 2.31 | AC27: 8 | AD27: 3.88 | AE27: 2.2 | AF27: 7.9 | AG27: 3.56 | AH27: 2.12 | AI27: 10.3 | AJ27: 3.51 | AK27: 1.87 | AL27: 10 | AM27: 3.58 | AN27: 1.88 | AO27: 8.6 | AP27: 3.61 | AQ27: 2.23 | AR27: 9.8 | AS27: 3.61 | AT27: 2.08 | AU27: 8.6 | AV27: 3.55 | AW27: 2 | AX27: 8.6 | AY27: 3.85 | AZ27: 1.85 | BA27: 9.1 | BB27: 3.84 | BC27: 2.16 | BD27: 10.1 | BE27: 3.55 | BF27: 2.1 | BG27: 8.6 | BH27: 3.7 | BI27: 2.22 | BJ27: 8 | BK27: 3.54 | BL27: 1.97 | BM27: 7.7 | BN27: 3.57 | BO27: 1.86 | BP27: 9.3 | BQ27: 3.92 | BR27: 2.47 | BS27: 11.7 | BT27: 3.64 | BU27: 2.09 | BV27: 9 | BW27: 3.55 | BX27: 2.1 | BY27: 7.9 | BZ27: 3.74 | CA27: 1.98 | CB27: 9 | CC27: 3.6 | CD27: 2.09 | CE27: 9.9 | CF27: 3.59 | CG27: 2.13 | CH27: 10.1 | CI27: 3.6 | CJ27: 2.24 | CK27: 8.4 | CL27: 3.84 | CM27: 2.03 | CN27: 9.9 | CO27: 3.55 | CP27: 2.09 | CQ27: 8.1 | CR27: 3.7 | CS27: 2.16 | CT27: 8.1 | CU27: 3.84 | CV27: 1.92 | CW27: 9.3 | CX27: 3.84 | CY27: 2.12 | CZ27: 9.9 | DA27: 3.72 | DB27: 2.02 | DC27: 8.4 | DD27: 4.01 | DE27: 2.34 | DF27: 8.6 | DG27: 3.58 | DH27: 2.42 | DI27: 9.5 | DJ27: 3.7 | DK27: 2.26 | DL27: 8.6 | DM27: 3.57 | DN27: 2.22 | DO27: 9.7 | DP27: 3.56 | DQ27: 2.02 | DR27: 9 | DS27: 3.55 | DT27: 1.83 | DU27: 9.3 | DV27: 3.56 | DW27: 2.09 | DX27: 8 | DY27: 3.67 | DZ27: 2.1 | EA27: 8.2 | EB27: 3.82 | EC27: 1.94 | ED27: 8.1 | EE27: 3.77 | EF27: 2.05 | EG27: 9.3 | EH27: 3.67 | EI27: 1.96 | EJ27: 8.3 | EK27: 3.87 | EL27: 2.01 | EM27: 10.4 | EN27: 4.05 | EO27: 2.02 | EP27: 8 | EQ27: 3.84 | ER27: 1.96 | ES27: 9.4 | ET27: 3.57 | EU27: 2.28 | EV27: 7.8 | EW27: 3.58 | EX27: 2.11 | EY27: 8.3 | EZ27: 3.93 | FA27: 2.07 | FB27: 8.6 | FC27: 3.67 | FD27: 2.09 | FE27: 7.1
B28: Mai | C28: 4.99 | D28: 2.79 | E28: 13.8 | F28: 5.09 | G28: 2.72 | H28: 12.6 | I28: 4.94 | J28: 2.3 | K28: 13.8 | L28: 4.54 | M28: 2.55 | N28: 14.5 | O28: 4.58 | P28: 2.2 | Q28: 12.8 | R28: 4.69 | S28: 2.06 | T28: 12.4 | U28: 4.85 | V28: 2.71 | W28: 12.4 | X28: 4.75 | Y28: 2.66 | Z28: 12.9 | AA28: 4.76 | AB28: 2.75 | AC28: 13 | AD28: 5.13 | AE28: 2.53 | AF28: 13.1 | AG28: 4.56 | AH28: 2.72 | AI28: 14.6 | AJ28: 4.73 | AK28: 2.26 | AL28: 15 | AM28: 4.58 | AN28: 2.53 | AO28: 13 | AP28: 4.63 | AQ28: 2.76 | AR28: 14 | AS28: 4.64 | AT28: 2.57 | AU28: 13.5 | AV28: 4.54 | AW28: 2.71 | AX28: 13 | AY28: 4.9 | AZ28: 2.74 | BA28: 13.6 | BB28: 4.82 | BC28: 2.51 | BD28: 15 | BE28: 4.54 | BF28: 2.65 | BG28: 13 | BH28: 4.8 | BI28: 2.6 | BJ28: 12.9 | BK28: 4.75 | BL28: 2.73 | BM28: 11.6 | BN28: 4.79 | BO28: 2.75 | BP28: 13.7 | BQ28: 4.93 | BR28: 2.49 | BS28: 16.1 | BT28: 4.74 | BU28: 2.5 | BV28: 13.6 | BW28: 4.88 | BX28: 2.61 | BY28: 12 | BZ28: 4.77 | CA28: 2.52 | CB28: 13.5 | CC28: 4.63 | CD28: 2.39 | CE28: 14.2 | CF28: 4.73 | CG28: 2.84 | CH28: 14.8 | CI28: 4.62 | CJ28: 2.65 | CK28: 12.8 | CL28: 4.99 | CM28: 2.77 | CN28: 14.5 | CO28: 4.8 | CP28: 2.81 | CQ28: 12.2 | CR28: 4.84 | CS28: 2.58 | CT28: 13 | CU28: 4.92 | CV28: 2.71 | CW28: 13.8 | CX28: 4.99 | CY28: 2.69 | CZ28: 14.5 | DA28: 4.76 | DB28: 2.48 | DC28: 12.8 | DD28: 5.09 | DE28: 2.82 | DF28: 14 | DG28: 4.73 | DH28: 2.85 | DI28: 13.6 | DJ28: 4.99 | DK28: 2.69 | DL28: 13.9 | DM28: 4.56 | DN28: 2.5 | DO28: 13.9 | DP28: 4.76 | DQ28: 2.66 | DR28: 12.9 | DS28: 4.78 | DT28: 2.52 | DU28: 13.5 | DV28: 4.63 | DW28: 2.49 | DX28: 12.7 | DY28: 4.9 | DZ28: 2.43 | EA28: 13.4 | EB28: 5.26 | EC28: 2.67 | ED28: 12.5 | EE28: 4.85 | EF28: 2.23 | EG28: 13.9 | EH28: 4.93 | EI28: 2.67 | EJ28: 12.7 | EK28: 4.9 | EL28: 2.55 | EM28: 15.1 | EN28: 4.96 | EO28: 2.09 | EP28: 12.7 | EQ28: 4.92 | ER28: 2.63 | ES28: 13.8 | ET28: 4.85 | EU28: 2.4 | EV28: 12.5 | EW28: 4.61 | EX28: 2.72 | EY28: 12.7 | EZ28: 5.09 | FA28: 2.71 | FB28: 13.6 | FC28: 4.7 | FD28: 2.43 | FE28: 11.9
B29: Jun | C29: 5.07 | D29: 2.56 | E29: 16.8 | F29: 5.41 | G29: 2.91 | H29: 15.2 | I29: 5.31 | J29: 2.75 | K29: 16.6 | L29: 4.44 | M29: 2.72 | N29: 17.4 | O29: 4.73 | P29: 2.83 | Q29: 16.1 | R29: 4.74 | S29: 2.81 | T29: 15.8 | U29: 5.16 | V29: 3.03 | W29: 15.9 | X29: 4.7 | Y29: 2.84 | Z29: 15.7 | AA29: 4.97 | AB29: 2.47 | AC29: 16.4 | AD29: 5.3 | AE29: 3 | AF29: 16.5 | AG29: 4.47 | AH29: 2.49 | AI29: 17.5 | AJ29: 4.94 | AK29: 2.8 | AL29: 17.8 | AM29: 4.51 | AN29: 2.88 | AO29: 16 | AP29: 4.6 | AQ29: 2.95 | AR29: 16.9 | AS29: 4.91 | AT29: 2.77 | AU29: 16.1 | AV29: 4.44 | AW29: 2.7 | AX29: 15.9 | AY29: 5.12 | AZ29: 2.73 | BA29: 16.8 | BB29: 5.33 | BC29: 2.86 | BD29: 18.5 | BE29: 4.44 | BF29: 2.53 | BG29: 15.9 | BH29: 5.45 | BI29: 3.09 | BJ29: 16.4 | BK29: 5.09 | BL29: 2.87 | BM29: 14.3 | BN29: 5.04 | BO29: 2.65 | BP29: 16.5 | BQ29: 5.17 | BR29: 2.87 | BS29: 19.7 | BT29: 4.78 | BU29: 2.85 | BV29: 16.5 | BW29: 5.02 | BX29: 2.73 | BY29: 15 | BZ29: 4.96 | CA29: 2.95 | CB29: 16.6 | CC29: 4.74 | CD29: 2.67 | CE29: 17.1 | CF29: 5.39 | CG29: 2.66 | CH29: 17.5 | CI29: 4.69 | CJ29: 2.93 | CK29: 16 | CL29: 5.09 | CM29: 2.86 | CN29: 17.9 | CO29: 5.1 | CP29: 2.76 | CQ29: 15 | CR29: 5.29 | CS29: 3.07 | CT29: 16.2 | CU29: 5.11 | CV29: 2.9 | CW29: 17.1 | CX29: 5.09 | CY29: 3.05 | CZ29: 17.9 | DA29: 4.8 | DB29: 3.17 | DC29: 15.8 | DD29: 5.41 | DE29: 2.6 | DF29: 17.2 | DG29: 4.73 | DH29: 2.72 | DI29: 16.3 | DJ29: 5.04 | DK29: 2.7 | DL29: 17.2 | DM29: 4.48 | DN29: 2.86 | DO29: 16.7 | DP29: 4.73 | DQ29: 2.9 | DR29: 15.7 | DS29: 4.75 | DT29: 2.84 | DU29: 16.2 | DV29: 4.73 | DW29: 2.86 | DX29: 15.6 | DY29: 5.3 | DZ29: 2.96 | EA29: 16.8 | EB29: 5.47 | EC29: 2.8 | ED29: 15.5 | EE29: 5.21 | EF29: 2.17 | EG29: 17.3 | EH29: 5.18 | EI29: 3.09 | EJ29: 15.6 | EK29: 5.09 | EL29: 2.39 | EM29: 18.6 | EN29: 5.26 | EO29: 2.74 | EP29: 15.5 | EQ29: 5.11 | ER29: 2.85 | ES29: 17 | ET29: 5.16 | EU29: 2.77 | EV29: 15.9 | EW29: 4.54 | EX29: 3.16 | EY29: 15.6 | EZ29: 5.44 | FA29: 2.88 | FB29: 16.9 | FC29: 4.95 | FD29: 2.93 | FE29: 15.2
B30: Jul | C30: 5.12 | D30: 2.47 | E30: 17.8 | F30: 5.39 | G30: 2.67 | H30: 17.9 | I30: 5.09 | J30: 2.6 | K30: 18.4 | L30: 4.63 | M30: 2.69 | N30: 18.5 | O30: 4.75 | P30: 2.75 | Q30: 17.8 | R30: 4.78 | S30: 2.49 | T30: 16.9 | U30: 4.82 | V30: 2.71 | W30: 17.1 | X30: 4.68 | Y30: 2.37 | Z30: 17.3 | AA30: 4.92 | AB30: 2.71 | AC30: 17.9 | AD30: 5.06 | AE30: 2.74 | AF30: 17.9 | AG30: 4.64 | AH30: 2.82 | AI30: 18.6 | AJ30: 4.92 | AK30: 2.65 | AL30: 19.2 | AM30: 4.65 | AN30: 2.78 | AO30: 17.5 | AP30: 4.71 | AQ30: 2.64 | AR30: 18.1 | AS30: 4.96 | AT30: 2.61 | AU30: 17.4 | AV30: 4.63 | AW30: 2.64 | AX30: 17.5 | AY30: 5.13 | AZ30: 2.93 | BA30: 17.9 | BB30: 5.4 | BC30: 2.72 | BD30: 19.2 | BE30: 4.63 | BF30: 2.73 | BG30: 17.5 | BH30: 5.33 | BI30: 2.64 | BJ30: 18 | BK30: 4.7 | BL30: 2.43 | BM30: 16.5 | BN30: 4.81 | BO30: 2.68 | BP30: 18 | BQ30: 5.23 | BR30: 2.73 | BS30: 20.9 | BT30: 4.86 | BU30: 2.34 | BV30: 17.7 | BW30: 5.01 | BX30: 2.81 | BY30: 17.1 | BZ30: 4.98 | CA30: 2.81 | CB30: 18.3 | CC30: 4.78 | CD30: 2.83 | CE30: 18.2 | CF30: 5.28 | CG30: 2.79 | CH30: 19.2 | CI30: 4.75 | CJ30: 2.55 | CK30: 17.7 | CL30: 5.14 | CM30: 2.54 | CN30: 18.9 | CO30: 4.76 | CP30: 2.75 | CQ30: 17 | CR30: 5.04 | CS30: 2.93 | CT30: 17.8 | CU30: 5.14 | CV30: 2.61 | CW30: 18.2 | CX30: 5.14 | CY30: 2.76 | CZ30: 18.9 | DA30: 4.86 | DB30: 2.84 | DC30: 17.4 | DD30: 5.39 | DE30: 2.65 | DF30: 17.8 | DG30: 4.79 | DH30: 2.75 | DI30: 17.7 | DJ30: 5.11 | DK30: 3 | DL30: 17.9 | DM30: 4.64 | DN30: 2.51 | DO30: 17.9 | DP30: 4.69 | DQ30: 2.81 | DR30: 17.4 | DS30: 4.85 | DT30: 2.84 | DU30: 17.6 | DV30: 4.73 | DW30: 2.73 | DX30: 17.2 | DY30: 5.09 | DZ30: 2.82 | EA30: 18.1 | EB30: 5.23 | EC30: 2.47 | ED30: 17.4 | EE30: 5.37 | EF30: 2.54 | EG30: 18.3 | EH30: 4.87 | EI30: 2.46 | EJ30: 17.5 | EK30: 5.28 | EL30: 2.81 | EM30: 19.5 | EN30: 5.35 | EO30: 2.41 | EP30: 17.8 | EQ30: 5.13 | ER30: 2.57 | ES30: 18.7 | ET30: 4.82 | EU30: 2.76 | EV30: 17.2 | EW30: 4.67 | EX30: 2.63 | EY30: 17.2 | EZ30: 5.28 | FA30: 2.61 | FB30: 17.7 | FC30: 4.99 | FD30: 2.54 | FE30: 16.8
B31: Aug | C31: 4.45 | D31: 2.25 | E31: 18.7 | F31: 4.66 | G31: 2.21 | H31: 17.4 | I31: 4.39 | J31: 2.41 | K31: 18.5 | L31: 3.92 | M31: 2.29 | N31: 19.4 | O31: 4.1 | P31: 1.99 | Q31: 17.8 | R31: 4.14 | S31: 2.39 | T31: 16.6 | U31: 4.18 | V31: 2.09 | W31: 16.9 | X31: 4.06 | Y31: 2.27 | Z31: 18.1 | AA31: 4.31 | AB31: 2.42 | AC31: 17.6 | AD31: 4.61 | AE31: 2.26 | AF31: 17.6 | AG31: 3.94 | AH31: 2.25 | AI31: 19.5 | AJ31: 4.25 | AK31: 2.38 | AL31: 19.4 | AM31: 3.96 | AN31: 2.4 | AO31: 17.2 | AP31: 4.03 | AQ31: 2.34 | AR31: 18.7 | AS31: 4.37 | AT31: 2.21 | AU31: 18.1 | AV31: 3.92 | AW31: 2.12 | AX31: 17.2 | AY31: 4.42 | AZ31: 2.34 | BA31: 18.7 | BB31: 4.75 | BC31: 2.36 | BD31: 19.6 | BE31: 3.91 | BF31: 2.24 | BG31: 17.2 | BH31: 4.47 | BI31: 2.19 | BJ31: 17.6 | BK31: 4.08 | BL31: 2.07 | BM31: 17.4 | BN31: 4.16 | BO31: 2.36 | BP31: 18.8 | BQ31: 4.58 | BR31: 2.51 | BS31: 20.3 | BT31: 4.15 | BU31: 2.42 | BV31: 18.4 | BW31: 4.25 | BX31: 2.25 | BY31: 17.9 | BZ31: 4.3 | CA31: 2.17 | CB31: 17.8 | CC31: 4.12 | CD31: 2.04 | CE31: 19 | CF31: 4.45 | CG31: 2.21 | CH31: 18.8 | CI31: 4.09 | CJ31: 2.41 | CK31: 17.7 | CL31: 4.47 | CM31: 2.33 | CN31: 19.1 | CO31: 4.1 | CP31: 2.27 | CQ31: 17.6 | CR31: 4.36 | CS31: 2.22 | CT31: 17.4 | CU31: 4.46 | CV31: 2.19 | CW31: 18.9 | CX31: 4.46 | CY31: 2.27 | CZ31: 19.1 | DA31: 4.2 | DB31: 2.4 | DC31: 17.2 | DD31: 4.65 | DE31: 2.25 | DF31: 18.5 | DG31: 4.15 | DH31: 2.39 | DI31: 18.4 | DJ31: 4.47 | DK31: 2.33 | DL31: 18.5 | DM31: 3.94 | DN31: 2.44 | DO31: 18.4 | DP31: 4.07 | DQ31: 2.39 | DR31: 18.1 | DS31: 4.2 | DT31: 2.35 | DU31: 18.4 | DV31: 4.11 | DW31: 2.52 | DX31: 17 | DY31: 4.34 | DZ31: 2 | EA31: 17.6 | EB31: 4.44 | EC31: 2.28 | ED31: 18 | EE31: 4.58 | EF31: 2.51 | EG31: 19 | EH31: 4.23 | EI31: 2.11 | EJ31: 18.1 | EK31: 4.63 | EL31: 2.46 | EM31: 19.5 | EN31: 4.65 | EO31: 2.35 | EP31: 17.3 | EQ31: 4.45 | ER31: 2.19 | ES31: 18.2 | ET31: 4.17 | EU31: 2.38 | EV31: 17 | EW31: 4.01 | EX31: 2.31 | EY31: 17 | EZ31: 4.56 | FA31: 2.45 | FB31: 18.6 | FC31: 4.38 | FD31: 2.42 | FE31: 16.3
B32: Sep | C32: 2.91 | D32: 1.71 | E32: 15.1 | F32: 3.47 | G32: 1.9 | H32: 14.1 | I32: 3 | J32: 1.63 | K32: 14.4 | L32: 2.59 | M32: 1.35 | N32: 15.9 | O32: 2.76 | P32: 1.69 | Q32: 15 | R32: 2.68 | S32: 1.55 | T32: 13.9 | U32: 2.86 | V32: 1.63 | W32: 13.7 | X32: 2.73 | Y32: 1.63 | Z32: 14.6 | AA32: 2.92 | AB32: 1.49 | AC32: 14.1 | AD32: 3.03 | AE32: 1.57 | AF32: 13.9 | AG32: 2.6 | AH32: 1.77 | AI32: 16.1 | AJ32: 2.93 | AK32: 1.79 | AL32: 15 | AM32: 2.63 | AN32: 1.59 | AO32: 14.5 | AP32: 2.66 | AQ32: 1.53 | AR32: 15.3 | AS32: 2.86 | AT32: 1.57 | AU32: 13.9 | AV32: 2.6 | AW32: 1.5 | AX32: 14.5 | AY32: 2.99 | AZ32: 1.49 | BA32: 14.6 | BB32: 3.36 | BC32: 1.91 | BD32: 15 | BE32: 2.59 | BF32: 1.45 | BG32: 14.5 | BH32: 2.95 | BI32: 1.69 | BJ32: 14.1 | BK32: 2.74 | BL32: 1.63 | BM32: 14.4 | BN32: 2.81 | BO32: 1.57 | BP32: 15 | BQ32: 3.19 | BR32: 1.56 | BS32: 16.3 | BT32: 2.8 | BU32: 1.8 | BV32: 14.5 | BW32: 2.66 | BX32: 1.59 | BY32: 14.5 | BZ32: 2.89 | CA32: 1.47 | CB32: 14.6 | CC32: 2.75 | CD32: 1.79 | CE32: 15.5 | CF32: 2.95 | CG32: 1.56 | CH32: 15.1 | CI32: 2.71 | CJ32: 1.57 | CK32: 14.9 | CL32: 3.15 | CM32: 1.63 | CN32: 14.9 | CO32: 2.77 | CP32: 1.5 | CQ32: 14.2 | CR32: 2.89 | CS32: 1.62 | CT32: 14 | CU32: 3 | CV32: 1.47 | CW32: 14.7 | CX32: 3.14 | CY32: 1.79 | CZ32: 14.9 | DA32: 2.76 | DB32: 1.49 | DC32: 14.4 | DD32: 3.51 | DE32: 2.02 | DF32: 13.8 | DG32: 2.76 | DH32: 1.61 | DI32: 14.9 | DJ32: 3.05 | DK32: 1.78 | DL32: 13.9 | DM32: 2.61 | DN32: 1.59 | DO32: 15.2 | DP32: 2.74 | DQ32: 1.41 | DR32: 14.7 | DS32: 2.81 | DT32: 1.49 | DU32: 14.8 | DV32: 2.6 | DW32: 1.49 | DX32: 13.9 | DY32: 3 | DZ32: 1.65 | EA32: 13.9 | EB32: 2.88 | EC32: 1.43 | ED32: 14.3 | EE32: 3.12 | EF32: 1.86 | EG32: 14.6 | EH32: 2.81 | EI32: 1.45 | EJ32: 14.3 | EK32: 3.22 | EL32: 1.78 | EM32: 15.4 | EN32: 3.29 | EO32: 1.61 | EP32: 14.2 | EQ32: 3 | ER32: 1.48 | ES32: 14.9 | ET32: 2.85 | EU32: 1.42 | EV32: 13.7 | EW32: 2.6 | EX32: 1.41 | EY32: 14.2 | EZ32: 3.31 | FA32: 1.75 | FB32: 14.1 | FC32: 2.89 | FD32: 1.52 | FE32: 13
B33: Okt | C33: 1.76 | D33: 1.11 | E33: 10.9 | F33: 2.09 | G33: 1.09 | H33: 9.4 | I33: 1.68 | J33: 1.06 | K33: 9.4 | L33: 1.63 | M33: 1.08 | N33: 11.1 | O33: 1.73 | P33: 1.1 | Q33: 10.6 | R33: 1.64 | S33: 1.07 | T33: 9.9 | U33: 1.63 | V33: 0.9 | W33: 9.5 | X33: 1.63 | Y33: 0.92 | Z33: 9.8 | AA33: 1.83 | AB33: 1.08 | AC33: 9.7 | AD33: 1.78 | AE33: 1.07 | AF33: 9.3 | AG33: 1.63 | AH33: 0.93 | AI33: 11.2 | AJ33: 1.83 | AK33: 1.01 | AL33: 10 | AM33: 1.65 | AN33: 1.12 | AO33: 10.6 | AP33: 1.67 | AQ33: 1.01 | AR33: 10.9 | AS33: 1.76 | AT33: 1.09 | AU33: 9.2 | AV33: 1.63 | AW33: 0.97 | AX33: 10.7 | AY33: 1.67 | AZ33: 1.06 | BA33: 9.8 | BB33: 1.92 | BC33: 1.11 | BD33: 10.8 | BE33: 1.63 | BF33: 1.09 | BG33: 10.7 | BH33: 1.75 | BI33: 1.07 | BJ33: 9.7 | BK33: 1.52 | BL33: 0.93 | BM33: 9.9 | BN33: 1.63 | BO33: 0.98 | BP33: 10 | BQ33: 1.81 | BR33: 1.27 | BS33: 11.6 | BT33: 1.59 | BU33: 0.94 | BV33: 9.5 | BW33: 1.46 | BX33: 0.83 | BY33: 9.8 | BZ33: 1.67 | CA33: 0.96 | CB33: 10 | CC33: 1.71 | CD33: 1.15 | CE33: 11 | CF33: 1.77 | CG33: 1.03 | CH33: 10.3 | CI33: 1.69 | CJ33: 0.94 | CK33: 10.6 | CL33: 1.75 | CM33: 1.17 | CN33: 10.4 | CO33: 1.52 | CP33: 0.91 | CQ33: 9.5 | CR33: 1.69 | CS33: 0.9 | CT33: 9.5 | CU33: 1.64 | CV33: 0.9 | CW33: 9.9 | CX33: 1.75 | CY33: 1.15 | CZ33: 10.4 | DA33: 1.69 | DB33: 1.05 | DC33: 10.6 | DD33: 2.13 | DE33: 1.17 | DF33: 9.4 | DG33: 1.69 | DH33: 0.91 | DI33: 10.4 | DJ33: 1.85 | DK33: 1.01 | DL33: 9 | DM33: 1.64 | DN33: 1.01 | DO33: 10.8 | DP33: 1.62 | DQ33: 1.02 | DR33: 9.9 | DS33: 1.7 | DT33: 0.99 | DU33: 10.2 | DV33: 1.61 | DW33: 1.02 | DX33: 9.9 | DY33: 1.68 | DZ33: 0.98 | EA33: 9.5 | EB33: 1.56 | EC33: 0.9 | ED33: 9.3 | EE33: 1.75 | EF33: 0.97 | EG33: 10.2 | EH33: 1.55 | EI33: 0.93 | EJ33: 9.3 | EK33: 1.87 | EL33: 1.17 | EM33: 10.7 | EN33: 1.96 | EO33: 1.09 | EP33: 9.5 | EQ33: 1.63 | ER33: 0.91 | ES33: 10.2 | ET33: 1.62 | EU33: 1.08 | EV33: 9.5 | EW33: 1.65 | EX33: 0.93 | EY33: 10.5 | EZ33: 1.87 | FA33: 1.15 | FB33: 9.3 | FC33: 1.75 | FD33: 0.92 | FE33: 8.4
B34: Nov | C34: 0.87 | D34: 0.55 | E34: 6.2 | F34: 1.09 | G34: 0.74 | H34: 3.2 | I34: 0.71 | J34: 0.48 | K34: 4.2 | L34: 0.79 | M34: 0.58 | N34: 6.5 | O34: 0.89 | P34: 0.52 | Q34: 6.1 | R34: 0.75 | S34: 0.51 | T34: 5.3 | U34: 0.75 | V34: 0.56 | W34: 4.9 | X34: 0.74 | Y34: 0.48 | Z34: 5.4 | AA34: 0.81 | AB34: 0.54 | AC34: 4.3 | AD34: 0.85 | AE34: 0.59 | AF34: 4.1 | AG34: 0.79 | AH34: 0.57 | AI34: 6.5 | AJ34: 0.82 | AK34: 0.59 | AL34: 4.5 | AM34: 0.8 | AN34: 0.54 | AO34: 5.8 | AP34: 0.81 | AQ34: 0.53 | AR34: 6.4 | AS34: 0.77 | AT34: 0.51 | AU34: 4.4 | AV34: 0.79 | AW34: 0.44 | AX34: 5.8 | AY34: 0.82 | AZ34: 0.56 | BA34: 5 | BB34: 1.03 | BC34: 0.63 | BD34: 5.2 | BE34: 0.79 | BF34: 0.59 | BG34: 5.8 | BH34: 0.81 | BI34: 0.52 | BJ34: 4.6 | BK34: 0.69 | BL34: 0.44 | BM34: 5.5 | BN34: 0.74 | BO34: 0.53 | BP34: 5.5 | BQ34: 0.98 | BR34: 0.65 | BS34: 6.1 | BT34: 0.8 | BU34: 0.5 | BV34: 5.2 | BW34: 0.66 | BX34: 0.48 | BY34: 5.4 | BZ34: 0.84 | CA34: 0.54 | CB34: 5.2 | CC34: 0.86 | CD34: 0.58 | CE34: 6.4 | CF34: 0.79 | CG34: 0.49 | CH34: 5.2 | CI34: 0.85 | CJ34: 0.53 | CK34: 6 | CL34: 0.91 | CM34: 0.58 | CN34: 5.3 | CO34: 0.67 | CP34: 0.45 | CQ34: 5 | CR34: 0.78 | CS34: 0.53 | CT34: 4.5 | CU34: 0.82 | CV34: 0.63 | CW34: 5.1 | CX34: 0.91 | CY34: 0.59 | CZ34: 5.3 | DA34: 0.82 | DB34: 0.5 | DC34: 5.8 | DD34: 1.12 | DE34: 0.69 | DF34: 3.3 | DG34: 0.78 | DH34: 0.54 | DI34: 6 | DJ34: 0.89 | DK34: 0.56 | DL34: 3.4 | DM34: 0.8 | DN34: 0.56 | DO34: 6.3 | DP34: 0.74 | DQ34: 0.46 | DR34: 5.6 | DS34: 0.77 | DT34: 0.5 | DU34: 5.8 | DV34: 0.75 | DW34: 0.54 | DX34: 4.9 | DY34: 0.7 | DZ34: 0.48 | EA34: 4.4 | EB34: 0.68 | EC34: 0.44 | ED34: 4.4 | EE34: 0.91 | EF34: 0.53 | EG34: 5.1 | EH34: 0.7 | EI34: 0.44 | EJ34: 4.5 | EK34: 1.06 | EL34: 0.7 | EM34: 5.1 | EN34: 1.06 | EO34: 0.68 | EP34: 3.6 | EQ34: 0.81 | ER34: 0.6 | ES34: 4.9 | ET34: 0.74 | EU34: 0.51 | EV34: 4.9 | EW34: 0.78 | EX34: 0.55 | EY34: 5.5 | EZ34: 0.89 | FA34: 0.63 | FB34: 3.8 | FC34: 0.79 | FD34: 0.51 | FE34: 3.2
B35: Dez | C35: 0.47 | D35: 0.35 | E35: 3.4 | F35: 0.77 | G35: 0.47 | H35: 1 | I35: 0.44 | J35: 0.32 | K35: 0.9 | L35: 0.46 | M35: 0.28 | N35: 3.5 | O35: 0.53 | P35: 0.38 | Q35: 3.8 | R35: 0.44 | S35: 0.33 | T35: 2.4 | U35: 0.46 | V35: 0.35 | W35: 1.9 | X35: 0.41 | Y35: 0.27 | Z35: 2.6 | AA35: 0.55 | AB35: 0.37 | AC35: 0.9 | AD35: 0.54 | AE35: 0.41 | AF35: 0.4 | AG35: 0.46 | AH35: 0.33 | AI35: 3.5 | AJ35: 0.55 | AK35: 0.35 | AL35: 0.9 | AM35: 0.46 | AN35: 0.33 | AO35: 3.1 | AP35: 0.48 | AQ35: 0.34 | AR35: 3.5 | AS35: 0.53 | AT35: 0.38 | AU35: 1.1 | AV35: 0.46 | AW35: 0.33 | AX35: 3 | AY35: 0.52 | AZ35: 0.38 | BA35: 2.2 | BB35: 0.7 | BC35: 0.53 | BD35: 2.6 | BE35: 0.46 | BF35: 0.3 | BG35: 3 | BH35: 0.53 | BI35: 0.37 | BJ35: 1.5 | BK35: 0.41 | BL35: 0.32 | BM35: 3.1 | BN35: 0.45 | BO35: 0.32 | BP35: 2.5 | BQ35: 0.62 | BR35: 0.4 | BS35: 3.1 | BT35: 0.48 | BU35: 0.31 | BV35: 2 | BW35: 0.37 | BX35: 0.26 | BY35: 2.5 | BZ35: 0.52 | CA35: 0.39 | CB35: 2.4 | CC35: 0.51 | CD35: 0.34 | CE35: 3.7 | CF35: 0.54 | CG35: 0.37 | CH35: 2 | CI35: 0.5 | CJ35: 0.36 | CK35: 3.7 | CL35: 0.55 | CM35: 0.38 | CN35: 2.6 | CO35: 0.38 | CP35: 0.28 | CQ35: 2.2 | CR35: 0.48 | CS35: 0.35 | CT35: 1.3 | CU35: 0.53 | CV35: 0.39 | CW35: 2.4 | CX35: 0.55 | CY35: 0.38 | CZ35: 2.5 | DA35: 0.46 | DB35: 0.35 | DC35: 3.1 | DD35: 0.8 | DE35: 0.44 | DF35: 0.3 | DG35: 0.44 | DH35: 0.3 | DI35: 3 | DJ35: 0.6 | DK35: 0.39 | DL35: 0.4 | DM35: 0.46 | DN35: 0.32 | DO35: 3.3 | DP35: 0.41 | DQ35: 0.27 | DR35: 2.7 | DS35: 0.43 | DT35: 0.31 | DU35: 2.9 | DV35: 0.46 | DW35: 0.31 | DX35: 2.1 | DY35: 0.43 | DZ35: 0.32 | EA35: 1 | EB35: 0.36 | EC35: 0.28 | ED35: 1.5 | EE35: 0.58 | EF35: 0.38 | EG35: 2.4 | EH35: 0.39 | EI35: 0.29 | EJ35: 1.6 | EK35: 0.7 | EL35: 0.52 | EM35: 2.2 | EN35: 0.7 | EO35: 0.46 | EP35: 1 | EQ35: 0.52 | ER35: 0.38 | ES35: 1.9 | ET35: 0.45 | EU35: 0.3 | EV35: 1.9 | EW35: 0.48 | EX35: 0.32 | EY35: 2.8 | EZ35: 0.6 | FA35: 0.41 | FB35: 0.9 | FC35: 0.53 | FD35: 0.39 | FE35: 0.1
B36: Jahr | C36: 2.83 | D36: 1.54 | E36: 10.5 | F36: 3.14 | G36: 1.67 | H36: 8.4 | I36: 2.79 | J36: 1.51 | K36: 9.2 | L36: 2.55 | M36: 1.52 | N36: 10.9 | O36: 2.67 | P36: 1.55 | Q36: 9.9 | R36: 2.63 | S36: 1.5 | T36: 9 | U36: 2.71 | V36: 1.58 | W36: 8.7 | X36: 2.6 | Y36: 1.5 | Z36: 9.6 | AA36: 2.77 | AB36: 1.56 | AC36: 8.8 | AD36: 2.89 | AE36: 1.59 | AF36: 8.6 | AG36: 2.55 | AH36: 1.55 | AI36: 11 | AJ36: 2.74 | AK36: 1.54 | AL36: 9.9 | AM36: 2.57 | AN36: 1.56 | AO36: 9.7 | AP36: 2.61 | AQ36: 1.59 | AR36: 10.6 | AS36: 2.74 | AT36: 1.55 | AU36: 9.2 | AV36: 2.55 | AW36: 1.5 | AX36: 9.7 | AY36: 2.83 | AZ36: 1.58 | BA36: 9.8 | BB36: 3.02 | BC36: 1.65 | BD36: 10.6 | BE36: 2.54 | BF36: 1.52 | BG36: 9.7 | BH36: 2.85 | BI36: 1.61 | BJ36: 8.9 | BK36: 2.61 | BL36: 1.5 | BM36: 9.3 | BN36: 2.68 | BO36: 1.54 | BP36: 9.9 | BQ36: 2.94 | BR36: 1.67 | BS36: 11.6 | BT36: 2.68 | BU36: 1.54 | BV36: 9.6 | BW36: 2.63 | BX36: 1.49 | BY36: 9.2 | BZ36: 2.76 | CA36: 1.55 | CB36: 9.7 | CC36: 2.67 | CD36: 1.55 | CE36: 10.7 | CF36: 2.83 | CG36: 1.58 | CH36: 10.2 | CI36: 2.65 | CJ36: 1.58 | CK36: 9.9 | CL36: 2.88 | CM36: 1.61 | CN36: 10.3 | CO36: 2.62 | CP36: 1.52 | CQ36: 9.1 | CR36: 2.78 | CS36: 1.58 | CT36: 8.8 | CU36: 2.83 | CV36: 1.54 | CW36: 10 | CX36: 2.88 | CY36: 1.64 | CZ36: 10.3 | DA36: 2.69 | DB36: 1.59 | DC36: 9.6 | DD36: 3.16 | DE36: 1.68 | DF36: 8.9 | DG36: 2.65 | DH36: 1.6 | DI36: 10.2 | DJ36: 2.87 | DK36: 1.64 | DL36: 8.9 | DM36: 2.56 | DN36: 1.56 | DO36: 10.5 | DP36: 2.6 | DQ36: 1.55 | DR36: 9.7 | DS36: 2.66 | DT36: 1.53 | DU36: 10 | DV36: 2.61 | DW36: 1.57 | DX36: 8.9 | DY36: 2.77 | DZ36: 1.53 | EA36: 8.9 | EB36: 2.8 | EC36: 1.46 | ED36: 8.9 | EE36: 2.91 | EF36: 1.51 | EG36: 10 | EH36: 2.68 | EI36: 1.5 | EJ36: 9 | EK36: 2.98 | EL36: 1.61 | EM36: 10.6 | EN36: 3.05 | EO36: 1.54 | EP36: 8.6 | EQ36: 2.82 | ER36: 1.53 | ES36: 9.8 | ET36: 2.7 | EU36: 1.55 | EV36: 8.8 | EW36: 2.59 | EX36: 1.57 | EY36: 9.4 | EZ36: 2.99 | FA36: 1.63 | FB36: 9.1 | FC36: 2.76 | FD36: 1.54 | FE36: 7.7
A41: =Zwischenwerte!A18 -> France | B41: Stadt | C41: Bordeaux | F41: Brest | I41: Le Havre | L41: Lille | O41: Lyon | R41: Marseille | U41: Metz | X41: Montpellier | AA41: Nantes | AD41: Paris | AG41: Toulouse | AJ41: Strasbourg
B42: Breitengrad | C42: 44.8 | F42: 48.4 | I42: 49.5 | L42: 50.65 | O42: 45.7 | R42: 43.3 | U42: 49.12 | X42: 43.6 | AA42: 47.23 | AD42: 50.83 | AG42: 43.6 | AJ42: 48.56
C43: Global | D43: Diffus | E43: Außentemp | F43: Global | G43: Diffus | H43: Außentemp | I43: Global | J43: Diffus | K43: Außentemp | L43: Global | M43: Diffus | N43: Außentemp | O43: Global | P43: Diffus | Q43: Außentemp | R43: Global | S43: Diffus | T43: Außentemp | U43: Global | V43: Diffus | W43: Außentemp | X43: Global | Y43: Diffus | Z43: Außentemp | AA43: Global | AB43: Diffus | AC43: Außentemp | AD43: Global | AE43: Diffus | AF43: Außentemp | AG43: Global | AH43: Diffus | AI43: Außentemp | AJ43: Global | AK43: Diffus | AL43: Außentemp
B44: Jan | C44: 1.32 | D44: 0.79 | E44: 7 | F44: 0.87 | G44: 0.53 | H44: 8.7 | I44: 0.88 | J44: 0.53 | K44: 6.6 | L44: 0.7 | M44: 0.46 | N44: 3.7 | O44: 1.03 | P44: 0.6 | Q44: 3.8 | R44: 1.74 | S44: 0.86 | T44: 8.7 | U44: 0.76 | V44: 0.48 | W44: 2.2 | X44: 1.68 | Y44: 0.7 | Z44: 7.2 | AA44: 1.01 | AB44: 0.69 | AC44: 6.1 | AD44: 0.74 | AE44: 0.51 | AF44: 4.5 | AG44: 1.37 | AH44: 0.73 | AI44: 6.4 | AJ44: 0.81 | AK44: 0.56 | AL44: 1.9
B45: Feb | C45: 1.99 | D45: 1.2 | E45: 7.4 | F45: 1.54 | G45: 1.05 | H45: 8.5 | I45: 1.6 | J45: 1.03 | K45: 6.8 | L45: 1.34 | M45: 0.83 | N45: 5 | O45: 1.76 | P45: 1.15 | Q45: 5 | R45: 2.83 | S45: 1 | T45: 8.7 | U45: 1.51 | V45: 0.99 | W45: 3.6 | X45: 2.52 | Y45: 1.1 | Z45: 7.9 | AA45: 1.77 | AB45: 0.97 | AC45: 6.6 | AD45: 1.35 | AE45: 1.02 | AF45: 5.6 | AG45: 2.17 | AH45: 1.23 | AI45: 6.9 | AJ45: 1.58 | AK45: 1.1 | AL45: 3.5
B46: Mar | C46: 3.26 | D46: 1.72 | E46: 10.6 | F46: 2.57 | G46: 1.52 | H46: 8.9 | I46: 2.65 | J46: 1.51 | K46: 8 | L46: 2.28 | M46: 1.47 | N46: 7.4 | O46: 2.98 | P46: 1.63 | Q46: 9.3 | R46: 4.31 | S46: 1.48 | T46: 11.2 | U46: 2.51 | V46: 1.58 | W46: 6.9 | X46: 3.82 | Y46: 1.64 | Z46: 11.2 | AA46: 2.93 | AB46: 1.48 | AC46: 9.2 | AD46: 2.32 | AE46: 1.52 | AF46: 8.7 | AG46: 3.33 | AH46: 1.69 | AI46: 10.1 | AJ46: 2.61 | AK46: 1.46 | AL46: 7.1
B47: Apr | C47: 4.3 | D47: 2.29 | E47: 12.4 | F47: 3.87 | G47: 2.17 | H47: 9.4 | I47: 4.02 | J47: 2.24 | K47: 9.3 | L47: 3.77 | M47: 2.4 | N47: 10 | O47: 4.25 | P47: 2.31 | Q47: 11.7 | R47: 5.12 | S47: 2.23 | T47: 13.3 | U47: 3.87 | V47: 2.13 | W47: 9.8 | X47: 4.94 | Y47: 2.11 | Z47: 13.5 | AA47: 4.18 | AB47: 2.37 | AC47: 10.8 | AD47: 3.54 | AE47: 1.98 | AF47: 10.9 | AG47: 4.6 | AH47: 2.27 | AI47: 12.1 | AJ47: 3.98 | AK47: 2.26 | AL47: 10.7
B48: Mai | C48: 5.3 | D48: 2.54 | E48: 16.5 | F48: 5.04 | G48: 2.6 | H48: 11.9 | I48: 5 | J48: 2.74 | K48: 12.3 | L48: 4.75 | M48: 2.58 | N48: 13.7 | O48: 5.08 | P48: 2.82 | Q48: 16.8 | R48: 6.42 | S48: 2.6 | T48: 17.7 | U48: 4.9 | V48: 2.43 | W48: 14.6 | X48: 5.93 | Y48: 2.82 | Z48: 17.8 | AA48: 5.3 | AB48: 2.51 | AC48: 14.6 | AD48: 4.48 | AE48: 2.5 | AF48: 15 | AG48: 5.37 | AH48: 2.52 | AI48: 16.2 | AJ48: 4.99 | AK48: 2.43 | AL48: 15.6
B49: Jun | C49: 5.88 | D49: 2.79 | E49: 20 | F49: 5.3 | G49: 2.98 | H49: 14.4 | I49: 5.41 | J49: 3.22 | K49: 15.4 | L49: 5.12 | M49: 3.07 | N49: 16.7 | O49: 5.78 | P49: 2.59 | Q49: 20.8 | R49: 7.26 | S49: 2.42 | T49: 22 | U49: 5.33 | V49: 3.15 | W49: 18 | X49: 6.89 | Y49: 2.5 | Z49: 22.1 | AA49: 5.86 | AB49: 2.93 | AC49: 17.9 | AD49: 4.89 | AE49: 2.81 | AF49: 18.5 | AG49: 6.03 | AH49: 3 | AI49: 20.6 | AJ49: 5.4 | AK49: 2.76 | AL49: 19
B50: Jul | C50: 5.93 | D50: 2.79 | E50: 20.8 | F50: 5.09 | G50: 2.9 | H50: 16 | I50: 5.31 | J50: 2.6 | K50: 16.9 | L50: 4.95 | M50: 2.66 | N50: 17.9 | O50: 6.02 | P50: 2.74 | Q50: 21.9 | R50: 7.13 | S50: 2.17 | T50: 24.1 | U50: 5.39 | V50: 2.66 | W50: 19.1 | X50: 6.94 | Y50: 2.47 | Z50: 24 | AA50: 5.74 | AB50: 2.82 | AC50: 19.1 | AD50: 4.97 | AE50: 2.96 | AF50: 19.6 | AG50: 6.18 | AH50: 2.69 | AI50: 21.9 | AJ50: 5.38 | AK50: 2.97 | AL50: 19.7
B51: Aug | C51: 5.21 | D51: 2.5 | E51: 21.7 | F51: 4.56 | G51: 2.43 | H51: 17 | I51: 4.58 | J51: 2.36 | K51: 18.3 | L51: 4.41 | M51: 2.44 | N51: 18.8 | O51: 5.1 | P51: 2.11 | Q51: 22.3 | R51: 6.08 | S51: 2.05 | T51: 24.4 | U51: 4.62 | V51: 2.22 | W51: 19.7 | X51: 5.9 | Y51: 2.15 | Z51: 23.9 | AA51: 5.14 | AB51: 2.39 | AC51: 19.9 | AD51: 4.43 | AE51: 2.36 | AF51: 20.6 | AG51: 5.36 | AH51: 2.34 | AI51: 22.4 | AJ51: 4.68 | AK51: 2.47 | AL51: 20.1
B52: Sep | C52: 4.06 | D52: 1.8 | E52: 18.3 | F52: 3.44 | G52: 1.79 | H52: 15.9 | I52: 3.31 | J52: 1.85 | K52: 16.4 | L52: 2.98 | M52: 1.62 | N52: 15.6 | O52: 3.82 | P52: 1.63 | Q52: 17.6 | R52: 4.64 | S52: 1.72 | T52: 20.5 | U52: 3.24 | V52: 1.67 | W52: 15.2 | X52: 4.46 | Y52: 1.77 | Z52: 19.7 | AA52: 3.91 | AB52: 1.65 | AC52: 17 | AD52: 3.13 | AE52: 1.72 | AF52: 16.5 | AG52: 4.19 | AH52: 1.86 | AI52: 18.7 | AJ52: 3.31 | AK52: 1.71 | AL52: 15.6
B53: Okt | C53: 2.59 | D53: 1.31 | E53: 14.8 | F53: 1.97 | G53: 1.14 | H53: 13.7 | I53: 1.95 | J53: 1.2 | K53: 13.4 | L53: 1.75 | M53: 1 | N53: 11.6 | O53: 2.21 | P53: 1.29 | Q53: 13.6 | R53: 3.01 | S53: 1.33 | T53: 17.2 | U53: 1.82 | V53: 1.12 | W53: 10.9 | X53: 2.81 | Y53: 1.26 | Z53: 16.2 | AA53: 2.21 | AB53: 1.27 | AC53: 13.4 | AD53: 1.9 | AE53: 1.14 | AF53: 12.5 | AG53: 2.71 | AH53: 1.25 | AI53: 14.9 | AJ53: 1.8 | AK53: 1.15 | AL53: 11.1
B54: Nov | C54: 1.51 | D54: 0.93 | E54: 9.1 | F54: 1.16 | G54: 0.72 | H54: 10.7 | I54: 1.12 | J54: 0.62 | K54: 9.3 | L54: 0.86 | M54: 0.52 | N54: 6.9 | O54: 1.23 | P54: 0.73 | Q54: 7.3 | R54: 1.95 | S54: 0.84 | T54: 11.4 | U54: 0.94 | V54: 0.64 | W54: 5.9 | X54: 1.89 | Y54: 0.96 | Z54: 10.3 | AA54: 1.32 | AB54: 0.72 | AC54: 8.6 | AD54: 1.08 | AE54: 0.72 | AF54: 7.5 | AG54: 1.61 | AH54: 0.92 | AI54: 8.6 | AJ54: 0.96 | AK54: 0.69 | AL54: 5.6
B55: Dez | C55: 1.1 | D55: 0.62 | E55: 7 | F55: 0.72 | G55: 0.47 | H55: 9.1 | I55: 0.72 | J55: 0.48 | K55: 6.9 | L55: 0.52 | M55: 0.37 | N55: 4.2 | O55: 0.85 | P55: 0.52 | Q55: 4.4 | R55: 1.5 | S55: 0.75 | T55: 8.8 | U55: 0.6 | V55: 0.41 | W55: 3.1 | X55: 1.44 | Y55: 0.71 | Z55: 7.4 | AA55: 0.84 | AB55: 0.61 | AC55: 6.2 | AD55: 0.58 | AE55: 0.45 | AF55: 5 | AG55: 1.18 | AH55: 0.7 | AI55: 6.3 | AJ55: 0.65 | AK55: 0.42 | AL55: 2.8
B56: Jahr | C56: 3.54 | D56: 1.78 | E56: 13.8 | F56: 3.01 | G56: 1.69 | H56: 12 | I56: 3.05 | J56: 1.7 | K56: 11.6 | L56: 2.79 | M56: 1.62 | N56: 11 | O56: 3.34 | P56: 1.68 | Q56: 12.9 | R56: 4.33 | S56: 1.62 | T56: 15.7 | U56: 2.96 | V56: 1.63 | W56: 10.8 | X56: 4.1 | Y56: 1.69 | Z56: 15.1 | AA56: 3.35 | AB56: 1.7 | AC56: 12.5 | AD56: 2.78 | AE56: 1.64 | AF56: 12.1 | AG56: 3.67 | AH56: 1.77 | AI56: 13.8 | AJ56: 3.01 | AK56: 1.67 | AL56: 11.1
A61: =Zwischenwerte!A19 -> Switzerland | B61: Stadt | C61: Altdorf | F61: Appenzell | I61: Ausserbin | L61: Basel | O61: Bern | R61: Buchs-Suhr | U61: Chur-Ems | X61: Davos | AA61: Engelberg | AD61: Fahy | AG61: Fribourg | AJ61: Geneve | AM61: Glarus | AP61: Hinterrhein | AS61: Interlaken | AV61: La Chaux-de-Fonts | AY61: La Dole | BB61: Lausanne | BE61: Locarno | BH61: Lugano | BK61: Luzern | BN61: Moleson | BQ61: Montana | BT61: Neuchatel | BW61: Payerne | BZ61: Saint-Aubin | CC61: Schaffhausen | CF61: Schwyz | CI61: Sion | CL61: Solothurn | CO61: St. Gallen | CR61: Taenikon | CU61: Wädenswil | CX61: Winterthur | DA61: Zermatt | DD61: Zürich | DG61: Zug
B62: Breitengrad | C62: 46.8702 | F62: 47.33 | I62: 46.38 | L62: 47.58 | O62: 46.95 | R62: 47.3845 | U62: 46.8705 | X62: 46.8131 | AA62: 46.8216 | AD62: 47.4236 | AG62: 46.804 | AJ62: 46.22 | AM62: 47.04 | AP62: 46.52 | AS62: 46.67 | AV62: 47.09 | AY62: 46.43 | BB62: 46.53 | BE62: 46.17 | BK62: 47.05 | BN62: 46.55 | BQ62: 46.31 | BT62: 47 | BW62: 46.81 | BZ62: 46.38 | CC62: 47.699 | CF62: 47.021 | CI62: 46.22 | CL62: 47.21 | CO62: 47.426 | CR62: 47.48 | CU62: 47.22 | CX62: 47.5 | DA62: 46.03 | DD62: 47.38 | DG62: 47.168
C63: Global | D63: Diffus | E63: Außentemp | F63: Global | G63: Diffus | H63: Außentemp | I63: Global | J63: Diffus | K63: Außentemp | L63: Global | M63: Diffus | N63: Außentemp | O63: Global | P63: Diffus | Q63: Außentemp | R63: Global | S63: Diffus | T63: Außentemp | U63: Global | V63: Diffus | W63: Außentemp | X63: Global | Y63: Diffus | Z63: Außentemp | AA63: Global | AB63: Diffus | AC63: Außentemp | AD63: Global | AE63: Diffus | AF63: Außentemp | AG63: Global | AH63: Diffus | AI63: Außentemp | AJ63: Global | AK63: Diffus | AL63: Außentemp | AM63: Global | AN63: Diffus | AO63: Außentemp | AP63: Global | AQ63: Diffus | AR63: Außentemp | AS63: Global | AT63: Diffus | AU63: Außentemp | AV63: Global | AW63: Diffus | AX63: Außentemp | AY63: Global | AZ63: Diffus | BA63: Außentemp | BB63: Global | BC63: Diffus | BD63: Außentemp | BE63: Global | BF63: Diffus | BG63: Außentemp | BH63: Global | BI63: Diffus | BJ63: Außentemp | BK63: Global | BL63: Diffus | BM63: Außentemp | BN63: Global | BO63: Diffus | BP63: Außentemp | BQ63: Global | BR63: Diffus | BS63: Außentemp | BT63: Global | BU63: Diffus | BV63: Außentemp | BW63: Global | BX63: Diffus | BY63: Außentemp | BZ63: Global | CA63: Diffus | CB63: Außentemp | CC63: Global | CD63: Diffus | CE63: Außentemp | CF63: Global | CG63: Diffus | CH63: Außentemp | CI63: Global | CJ63: Diffus | CK63: Außentemp | CL63: Global | CM63: Diffus | CN63: Außentemp | CO63: Global | CP63: Diffus | CQ63: Außentemp | CR63: Global | CS63: Diffus | CT63: Außentemp | CU63: Global | CV63: Diffus | CW63: Außentemp | CX63: Global | CY63: Diffus | CZ63: Außentemp | DA63: Global | DB63: Diffus | DC63: Außentemp | DD63: Global | DE63: Diffus | DF63: Außentemp | DG63: Global | DH63: Diffus | DI63: Außentemp
B64: Jan | C64: 1.01 | D64: 0.58 | E64: 0.3 | F64: 1.02 | G64: 0.53 | H64: 0.2 | I64: 1.5 | J64: 0.64 | K64: -1.4 | L64: 0.98 | M64: 0.53 | N64: 1.5 | O64: 1.05 | P64: 0.65 | Q64: 0.4 | R64: 0.79 | S64: 0.51 | T64: -0.3 | U64: 1.37 | V64: 0.6 | W64: -0.5 | X64: 1.78 | Y64: 0.65 | Z64: -5.3 | AA64: 1.27 | AB64: 0.61 | AC64: -2.7 | AD64: 0.98 | AE64: 0.55 | AF64: -0.1 | AG64: 0.98 | AH64: 0.56 | AI64: 0.5 | AJ64: 0.96 | AK64: 0.58 | AL64: 1.8 | AM64: 1.17 | AN64: 0.58 | AO64: 1.2 | AP64: 1.68 | AQ64: 0.65 | AR64: -6.6 | AS64: 1.18 | AT64: 0.59 | AU64: -1 | AV64: 1.32 | AW64: 0.57 | AX64: -2 | AY64: 1.44 | AZ64: 0.62 | BA64: -3.1 | BB64: 1.03 | BC64: 0.57 | BD64: 0.8 | BE64: 1.44 | BF64: 0.76 | BG64: 2.6 | BH64: 1.27 | BI64: 0.78 | BJ64: 2.6 | BK64: 0.89 | BL64: 0.55 | BM64: 0.8 | BN64: 1.51 | BO64: 0.67 | BP64: -4 | BQ64: 1.66 | BR64: 0.74 | BS64: -2.5 | BT64: 0.82 | BU64: 0.54 | BV64: 0.5 | BW64: 0.98 | BX64: 0.63 | BY64: -0.8 | BZ64: 0.9 | CA64: 0.63 | CB64: 2.1 | CC64: 0.84 | CD64: 0.53 | CE64: 0.5 | CF64: 0.99 | CG64: 0.58 | CH64: 2.8 | CI64: 1.48 | CJ64: 0.59 | CK64: -0.6 | CL64: 0.93 | CM64: 0.62 | CN64: 0.2 | CO64: 1 | CP64: 0.54 | CQ64: 0.2 | CR64: 0.94 | CS64: 0.54 | CT64: -1.1 | CU64: 0.94 | CV64: 0.56 | CW64: -0.4 | CX64: 0.92 | CY64: 0.55 | CZ64: 0.5 | DA64: 1.68 | DB64: 0.63 | DC64: -4.8 | DD64: 0.91 | DE64: 0.61 | DF64: 0.5 | DG64: 0.93 | DH64: 0.56 | DI64: 2
B65: Feb | C65: 1.9 | D65: 1.03 | E65: 1.7 | F65: 1.7 | G65: 1.07 | H65: 1.3 | I65: 2.51 | J65: 0.97 | K65: -1.3 | L65: 1.68 | M65: 1.09 | N65: 3 | O65: 1.8 | P65: 1 | Q65: 1.8 | R65: 1.51 | S65: 0.88 | T65: 1.2 | U65: 2.23 | V65: 1 | W65: 1.3 | X65: 2.71 | Y65: 0.77 | Z65: -4.7 | AA65: 2.24 | AB65: 0.92 | AC65: -1.6 | AD65: 1.7 | AE65: 1.03 | AF65: 1.1 | AG65: 1.75 | AH65: 1.11 | AI65: 1.9 | AJ65: 1.8 | AK65: 1.14 | AL65: 3 | AM65: 1.99 | AN65: 1.08 | AO65: 2.4 | AP65: 2.91 | AQ65: 0.79 | AR65: -5.8 | AS65: 2.02 | AT65: 1.13 | AU65: 0.6 | AV65: 2.06 | AW65: 0.87 | AX65: -1 | AY65: 2.11 | AZ65: 0.93 | BA65: -3.2 | BB65: 1.83 | BC65: 1.09 | BD65: 2.1 | BE65: 2.11 | BF65: 1.18 | BG65: 4.1 | BH65: 1.87 | BI65: 1.11 | BJ65: 4 | BK65: 1.56 | BL65: 0.94 | BM65: 1.9 | BN65: 2.38 | BO65: 0.88 | BP65: -4.1 | BQ65: 2.59 | BR65: 0.91 | BS65: -2.1 | BT65: 1.58 | BU65: 0.99 | BV65: 2 | BW65: 1.7 | BX65: 0.98 | BY65: 0.8 | BZ65: 1.68 | CA65: 1.17 | CB65: 3.1 | CC65: 1.61 | CD65: 1.06 | CE65: 1.9 | CF65: 1.78 | CG65: 1.07 | CH65: 3.6 | CI65: 2.38 | CJ65: 1.01 | CK65: 1.6 | CL65: 1.68 | CM65: 1.08 | CN65: 1.3 | CO65: 1.68 | CP65: 1.08 | CQ65: 1.3 | CR65: 1.68 | CS65: 0.98 | CT65: 0.2 | CU65: 1.7 | CV65: 1.12 | CW65: 1 | CX65: 1.65 | CY65: 1.09 | CZ65: 1.8 | DA65: 2.83 | DB65: 0.88 | DC65: -4 | DD65: 1.63 | DE65: 0.98 | DF65: 1.8 | DG65: 1.66 | DH65: 1.08 | DI65: 2.7
B66: Mar | C66: 3.1 | D66: 1.69 | E66: 4.7 | F66: 2.73 | G66: 1.66 | H66: 4.6 | I66: 3.79 | J66: 1.47 | K66: 2.1 | L66: 2.8 | M66: 1.45 | N66: 6.8 | O66: 2.93 | P66: 1.25 | Q66: 6.1 | R66: 2.52 | S66: 1.47 | T66: 4.5 | U66: 3.41 | V66: 1.47 | W66: 4.8 | X66: 4.08 | Y66: 1.25 | Z66: -2.2 | AA66: 3.29 | AB66: 1.61 | AC66: 0.9 | AD66: 2.59 | AE66: 1.7 | AF66: 3.9 | AG66: 3 | AH66: 1.78 | AI66: 6 | AJ66: 3.24 | AK66: 1.58 | AL66: 6.9 | AM66: 3.17 | AN66: 1.56 | AO66: 6.6 | AP66: 4.3 | AQ66: 1.07 | AR66: -3.1 | AS66: 3.14 | AT66: 1.7 | AU66: 3.8 | AV66: 3.05 | AW66: 1.55 | AX66: 1 | AY66: 3.12 | AZ66: 1.64 | BA66: -1.9 | BB66: 3.14 | BC66: 1.56 | BD66: 6.3 | BE66: 3.31 | BF66: 1.63 | BG66: 7.4 | BH66: 2.86 | BI66: 1.87 | BJ66: 7.1 | BK66: 2.69 | BL66: 1.47 | BM66: 6 | BN66: 3.38 | BO66: 1.32 | BP66: -3.3 | BQ66: 3.77 | BR66: 1.53 | BS66: -0.1 | BT66: 2.78 | BU66: 1.49 | BV66: 4.8 | BW66: 2.88 | BX66: 1.39 | BY66: 4 | BZ66: 2.96 | CA66: 1.75 | CB66: 6.2 | CC66: 2.71 | CD66: 1.42 | CE66: 6.1 | CF66: 2.94 | CG66: 1.52 | CH66: 7.4 | CI66: 3.63 | CJ66: 1.51 | CK66: 5.3 | CL66: 2.85 | CM66: 1.41 | CN66: 5.4 | CO66: 2.75 | CP66: 1.5 | CQ66: 5 | CR66: 2.74 | CS66: 1.56 | CT66: 3.5 | CU66: 2.83 | CV66: 1.5 | CW66: 4.2 | CX66: 2.76 | CY66: 1.55 | CZ66: 5.9 | DA66: 4.27 | DB66: 1.39 | DC66: -1.5 | DD66: 2.71 | DE66: 1.46 | DF66: 6 | DG66: 2.79 | DH66: 1.64 | DI66: 6.1
B67: Apr | C67: 4.18 | D67: 2.28 | E67: 8.5 | F67: 3.79 | G67: 2.22 | H67: 7.6 | I67: 4.72 | J67: 2.05 | K67: 4.4 | L67: 3.74 | M67: 1.9 | N67: 9.8 | O67: 3.91 | P67: 2.44 | Q67: 8.9 | R67: 3.48 | S67: 2.19 | T67: 8.4 | U67: 4.57 | V67: 2.21 | W67: 8.3 | X67: 5.08 | Y67: 2.03 | Z67: 1.3 | AA67: 4.3 | AB67: 1.66 | AC67: 4.5 | AD67: 3.5 | AE67: 1.86 | AF67: 7 | AG67: 3.99 | AH67: 2.17 | AI67: 8.8 | AJ67: 4.15 | AK67: 2.16 | AL67: 9.7 | AM67: 4.09 | AN67: 2.11 | AO67: 9.9 | AP67: 5.26 | AQ67: 2.03 | AR67: 0.5 | AS67: 4.13 | AT67: 2.25 | AU67: 7.6 | AV67: 3.86 | AW67: 2.24 | AX67: 4.3 | AY67: 3.86 | AZ67: 1.93 | BA67: 0.8 | BB67: 4.23 | BC67: 2.3 | BD67: 9.2 | BE67: 3.96 | BF67: 2.39 | BG67: 11 | BH67: 3.36 | BI67: 2.04 | BJ67: 10.7 | BK67: 3.65 | BL67: 2.04 | BM67: 9.2 | BN67: 4.42 | BO67: 2.17 | BP67: -1 | BQ67: 4.85 | BR67: 1.82 | BS67: 3.2 | BT67: 3.84 | BU67: 2.18 | BV67: 8.5 | BW67: 3.94 | BX67: 2.47 | BY67: 7.7 | BZ67: 3.97 | CA67: 2.12 | CB67: 8.6 | CC67: 3.89 | CD67: 2.28 | CE67: 9.3 | CF67: 4 | CG67: 2.28 | CH67: 10.4 | CI67: 4.95 | CJ67: 2.27 | CK67: 9.4 | CL67: 3.89 | CM67: 2.09 | CN67: 8.5 | CO67: 3.83 | CP67: 2.06 | CQ67: 8 | CR67: 3.82 | CS67: 1.92 | CT67: 7.1 | CU67: 3.91 | CV67: 2.03 | CW67: 8.1 | CX67: 3.9 | CY67: 2.02 | CZ67: 9 | DA67: 5.38 | DB67: 1.87 | DC67: 2 | DD67: 3.84 | DE67: 2.09 | DF67: 9.1 | DG67: 3.9 | DH67: 2.38 | DI67: 8.8
B68: Mai | C68: 5.29 | D68: 2.68 | E68: 12.8 | F68: 4.66 | G68: 2.77 | H68: 12.8 | I68: 5.43 | J68: 2.67 | K68: 9.7 | L68: 4.89 | M68: 2.57 | N68: 14.8 | O68: 4.83 | P68: 2.54 | Q68: 14.2 | R68: 4.42 | S68: 2.8 | T68: 12.8 | U68: 5.34 | V68: 2.61 | W68: 12.7 | X68: 5.91 | Y68: 2.33 | Z68: 5.9 | AA68: 5.16 | AB68: 2.53 | AC68: 9.1 | AD68: 4.37 | AE68: 2.74 | AF68: 11.1 | AG68: 4.92 | AH68: 2.35 | AI68: 14 | AJ68: 5.28 | AK68: 2.74 | AL68: 14.8 | AM68: 4.94 | AN68: 2.76 | AO68: 14.9 | AP68: 5.42 | AQ68: 2.45 | AR68: 5.1 | AS68: 5.02 | AT68: 2.37 | AU68: 11.8 | AV68: 4.39 | AW68: 2.3 | AX68: 8.5 | AY68: 4.3 | AZ68: 2.29 | BA68: 5 | BB68: 5.2 | BC68: 2.71 | BD68: 14.3 | BE68: 4.78 | BF68: 3 | BG68: 14.5 | BH68: 4.2 | BI68: 2.66 | BJ68: 14.5 | BK68: 4.45 | BL68: 2.58 | BM68: 14.2 | BN68: 4.78 | BO68: 2.62 | BP68: 2.9 | BQ68: 5.69 | BR68: 2.61 | BS68: 7.7 | BT68: 4.8 | BU68: 2.54 | BV68: 12.6 | BW68: 4.92 | BX68: 2.58 | BY68: 11.9 | BZ68: 4.89 | CA68: 2.91 | CB68: 13.5 | CC68: 4.92 | CD68: 2.51 | CE68: 14.4 | CF68: 4.94 | CG68: 2.31 | CH68: 15.2 | CI68: 5.76 | CJ68: 2.56 | CK68: 13.7 | CL68: 4.91 | CM68: 2.38 | CN68: 13.7 | CO68: 4.72 | CP68: 2.55 | CQ68: 13.2 | CR68: 4.7 | CS68: 2.5 | CT68: 11.5 | CU68: 4.87 | CV68: 2.57 | CW68: 12.4 | CX68: 4.84 | CY68: 2.3 | CZ68: 13.9 | DA68: 6.06 | DB68: 2.49 | DC68: 6.7 | DD68: 4.82 | DE68: 2.86 | DF68: 14.1 | DG68: 4.78 | DH68: 2.32 | DI68: 13.6
B69: Jun | C69: 5.31 | D69: 2.49 | E69: 15.6 | F69: 4.97 | G69: 2.87 | H69: 16.1 | I69: 5.73 | J69: 2.11 | K69: 13.4 | L69: 5.44 | M69: 2.95 | N69: 18.4 | O69: 5.34 | P69: 2.8 | Q69: 17.9 | R69: 4.9 | S69: 2.54 | T69: 16.1 | U69: 5.65 | V69: 2.55 | W69: 15.6 | X69: 5.94 | Y69: 2.31 | Z69: 9 | AA69: 4.97 | AB69: 2.75 | AC69: 12.1 | AD69: 5.02 | AE69: 3.01 | AF69: 14.3 | AG69: 5.58 | AH69: 2.79 | AI69: 17.7 | AJ69: 5.85 | AK69: 2.53 | AL69: 18.7 | AM69: 5.13 | AN69: 2.73 | AO69: 18 | AP69: 5.73 | AQ69: 2.46 | AR69: 8.9 | AS69: 5.23 | AT69: 3.03 | AU69: 14.9 | AV69: 4.99 | AW69: 2.49 | AX69: 11.7 | AY69: 4.68 | AZ69: 2.43 | BA69: 8.6 | BB69: 5.81 | BC69: 2.82 | BD69: 18 | BE69: 5.66 | BF69: 2.95 | BG69: 18.1 | BH69: 5.02 | BI69: 2.41 | BJ69: 18.4 | BK69: 4.76 | BL69: 2.7 | BM69: 17.6 | BN69: 4.78 | BO69: 2.42 | BP69: 6.4 | BQ69: 6.22 | BR69: 2.43 | BS69: 11.2 | BT69: 5.33 | BU69: 2.74 | BV69: 16 | BW69: 5.52 | BX69: 3.03 | BY69: 15.3 | BZ69: 5.58 | CA69: 2.75 | CB69: 17.1 | CC69: 5.4 | CD69: 2.56 | CE69: 17.9 | CF69: 5.15 | CG69: 3 | CH69: 18.2 | CI69: 6.39 | CJ69: 2.54 | CK69: 17 | CL69: 5.47 | CM69: 2.8 | CN69: 17.4 | CO69: 5.07 | CP69: 2.59 | CQ69: 16.5 | CR69: 5.16 | CS69: 2.92 | CT69: 14.9 | CU69: 5.21 | CV69: 2.88 | CW69: 15.7 | CX69: 5.29 | CY69: 2.93 | CZ69: 17.4 | DA69: 6.51 | DB69: 2.74 | DC69: 10 | DD69: 5.28 | DE69: 2.68 | DF69: 17.6 | DG69: 5.13 | DH69: 2.75 | DI69: 17
B70: Jul | C70: 5.28 | D70: 2.64 | E70: 17.5 | F70: 5.17 | G70: 2.68 | H70: 16.7 | I70: 5.83 | J70: 2.51 | K70: 14.2 | L70: 5.4 | M70: 2.88 | N70: 19.1 | O70: 5.57 | P70: 2.52 | Q70: 18.6 | R70: 5.35 | S70: 2.38 | T70: 18.2 | U70: 5.71 | V70: 2.6 | W70: 17.7 | X70: 5.96 | Y70: 2.6 | Z70: 11.3 | AA70: 4.99 | AB70: 2.6 | AC70: 14.3 | AD70: 5.5 | AE70: 2.57 | AF70: 16.7 | AG70: 5.56 | AH70: 2.52 | AI70: 18.5 | AJ70: 5.81 | AK70: 2.53 | AL70: 19.7 | AM70: 5.21 | AN70: 2.26 | AO70: 18.4 | AP70: 5.75 | AQ70: 2.52 | AR70: 11.5 | AS70: 5.4 | AT70: 2.78 | AU70: 17.1 | AV70: 5.62 | AW70: 2.6 | AX70: 14.3 | AY70: 5.33 | AZ70: 2.57 | BA70: 11.4 | BB70: 5.94 | BC70: 2.8 | BD70: 18.8 | BE70: 6.05 | BF70: 2.46 | BG70: 20.8 | BH70: 5.38 | BI70: 2.63 | BJ70: 21.1 | BK70: 5 | BL70: 2.71 | BM70: 18.3 | BN70: 5.4 | BO70: 2.62 | BP70: 9.2 | BQ70: 6.3 | BR70: 2.38 | BS70: 13.9 | BT70: 5.83 | BU70: 2.55 | BV70: 18.6 | BW70: 5.98 | BX70: 2.29 | BY70: 17.7 | BZ70: 5.54 | CA70: 2.73 | CB70: 18.3 | CC70: 5.5 | CD70: 2.35 | CE70: 18.5 | CF70: 5.24 | CG70: 2.62 | CH70: 19 | CI70: 6.36 | CJ70: 2.12 | CK70: 19.1 | CL70: 5.52 | CM70: 2.59 | CN70: 18.2 | CO70: 5.23 | CP70: 2.62 | CQ70: 17.1 | CR70: 5.57 | CS70: 2.71 | CT70: 17 | CU70: 5.59 | CV70: 2.59 | CW70: 18 | CX70: 5.45 | CY70: 2.67 | CZ70: 18 | DA70: 6.37 | DB70: 2.08 | DC70: 12.5 | DD70: 5.54 | DE70: 2.93 | DF70: 18.2 | DG70: 5.31 | DH70: 2.46 | DI70: 17.9
B71: Aug | C71: 4.46 | D71: 2.14 | E71: 16.7 | F71: 4.45 | G71: 2.45 | H71: 17.3 | I71: 5.07 | J71: 2.05 | K71: 14.7 | L71: 4.75 | M71: 2.49 | N71: 19.5 | O71: 4.82 | P71: 2.22 | Q71: 18.9 | R71: 4.42 | S71: 2.53 | T71: 17.2 | U71: 4.82 | V71: 2.42 | W71: 16.9 | X71: 5.16 | Y71: 2.09 | Z71: 10.8 | AA71: 4.38 | AB71: 2.08 | AC71: 13.6 | AD71: 4.68 | AE71: 2.18 | AF71: 16.2 | AG71: 4.79 | AH71: 2.34 | AI71: 18.8 | AJ71: 4.99 | AK71: 2.48 | AL71: 19.7 | AM71: 4.33 | AN71: 2.25 | AO71: 18.8 | AP71: 4.89 | AQ71: 2.18 | AR71: 10.9 | AS71: 4.63 | AT71: 2.24 | AU71: 16.1 | AV71: 4.75 | AW71: 2.03 | AX71: 13.7 | AY71: 4.61 | AZ71: 2.13 | BA71: 11.1 | BB71: 5.08 | BC71: 2.2 | BD71: 19 | BE71: 5.26 | BF71: 2.12 | BG71: 19.9 | BH71: 4.99 | BI71: 2.22 | BJ71: 20.3 | BK71: 4.37 | BL71: 1.95 | BM71: 18.6 | BN71: 4.8 | BO71: 2.07 | BP71: 8.8 | BQ71: 5.4 | BR71: 2.37 | BS71: 13.1 | BT71: 4.92 | BU71: 2.17 | BV71: 17.9 | BW71: 5.06 | BX71: 2.25 | BY71: 17 | BZ71: 4.77 | CA71: 2.38 | CB71: 18.9 | CC71: 4.72 | CD71: 2.26 | CE71: 18.9 | CF71: 4.47 | CG71: 2.5 | CH71: 19.4 | CI71: 5.38 | CJ71: 2.24 | CK71: 18 | CL71: 4.75 | CM71: 2.37 | CN71: 18.4 | CO71: 4.5 | CP71: 2.07 | CQ71: 17.7 | CR71: 4.73 | CS71: 2.39 | CT71: 16.2 | CU71: 4.75 | CV71: 2.37 | CW71: 17 | CX71: 4.67 | CY71: 2.12 | CZ71: 18.5 | DA71: 5.57 | DB71: 2.19 | DC71: 11.7 | DD71: 4.68 | DE71: 2.2 | DF71: 18.6 | DG71: 4.57 | DH71: 2.45 | DI71: 18.6
B72: Sep | C72: 3.51 | D72: 1.75 | E72: 14 | F72: 3.12 | G72: 1.65 | H72: 12.9 | I72: 3.79 | J72: 1.95 | K72: 10.7 | L72: 3.26 | M72: 1.84 | N72: 14.8 | O72: 3.45 | P72: 1.75 | Q72: 14.3 | R72: 3.12 | S72: 1.88 | T72: 14 | U72: 3.67 | V72: 1.72 | W72: 14.2 | X72: 3.78 | Y72: 1.73 | Z72: 8.3 | AA72: 3.29 | AB72: 1.77 | AC72: 11 | AD72: 3.38 | AE72: 1.82 | AF72: 13.4 | AG72: 3.41 | AH72: 1.79 | AI72: 14.3 | AJ72: 3.58 | AK72: 1.88 | AL72: 15.4 | AM72: 3.48 | AN72: 1.88 | AO72: 14.6 | AP72: 3.63 | AQ72: 1.79 | AR72: 8.3 | AS72: 3.48 | AT72: 1.81 | AU72: 13.3 | AV72: 3.55 | AW72: 1.77 | AX72: 11.3 | AY72: 3.62 | AZ72: 1.65 | BA72: 8.9 | BB72: 3.67 | BC72: 1.65 | BD72: 14.5 | BE72: 3.84 | BF72: 1.88 | BG72: 16.8 | BH72: 3.67 | BI72: 1.72 | BJ72: 17.2 | BK72: 3.1 | BL72: 1.84 | BM72: 14.3 | BN72: 3.74 | BO72: 1.67 | BP72: 7.1 | BQ72: 4.1 | BR72: 1.82 | BS72: 10.8 | BT72: 3.58 | BU72: 1.77 | BV72: 14.8 | BW72: 3.65 | BX72: 1.71 | BY72: 13.8 | BZ72: 3.38 | CA72: 1.76 | CB72: 14.9 | CC72: 3.31 | CD72: 1.84 | CE72: 14.3 | CF72: 3.37 | CG72: 1.88 | CH72: 15.5 | CI72: 4.01 | CJ72: 1.93 | CK72: 14.8 | CL72: 3.34 | CM72: 1.72 | CN72: 13.9 | CO72: 3.15 | CP72: 1.81 | CQ72: 13.3 | CR72: 3.34 | CS72: 1.84 | CT72: 13.2 | CU72: 3.38 | CV72: 1.77 | CW72: 14.2 | CX72: 3.32 | CY72: 1.54 | CZ72: 14 | DA72: 4.33 | DB72: 1.68 | DC72: 9 | DD72: 3.37 | DE72: 1.93 | DF72: 14.1 | DG72: 3.28 | DH72: 1.61 | DI72: 14.7
B73: Okt | C73: 2.13 | D73: 1.19 | E73: 9.7 | F73: 1.89 | G73: 1.07 | H73: 9.4 | I73: 2.52 | J73: 1.13 | K73: 7.3 | L73: 1.94 | M73: 0.94 | N73: 10.8 | O73: 2.01 | P73: 1.08 | Q73: 10 | R73: 1.75 | S73: 1.2 | T73: 9.3 | U73: 2.49 | V73: 1.32 | W73: 9.7 | X73: 2.71 | Y73: 1.16 | Z73: 4.5 | AA73: 2.28 | AB73: 1.14 | AC73: 7 | AD73: 2.04 | AE73: 1.06 | AF73: 9.1 | AG73: 2.01 | AH73: 1.12 | AI73: 10 | AJ73: 2.12 | AK73: 1.01 | AL73: 11.1 | AM73: 2.17 | AN73: 1.16 | AO73: 10.8 | AP73: 2.46 | AQ73: 1.24 | AR73: 4.1 | AS73: 2.26 | AT73: 1.29 | AU73: 8.7 | AV73: 2.28 | AW73: 1.13 | AX73: 7.4 | AY73: 2.45 | AZ73: 1.24 | BA73: 5.6 | BB73: 2.2 | BC73: 1.18 | BD73: 10.3 | BE73: 2.28 | BF73: 1.21 | BG73: 12 | BH73: 2.14 | BI73: 1.16 | BJ73: 12.5 | BK73: 1.85 | BL73: 1.07 | BM73: 10.3 | BN73: 2.66 | BO73: 1.23 | BP73: 4.6 | BQ73: 2.76 | BR73: 1.23 | BS73: 6.9 | BT73: 1.99 | BU73: 1.17 | BV73: 10 | BW73: 2.04 | BX73: 1.21 | BY73: 9 | BZ73: 1.97 | CA73: 1.13 | CB73: 10.9 | CC73: 1.83 | CD73: 1.05 | CE73: 10 | CF73: 2.02 | CG73: 1.23 | CH73: 11.9 | CI73: 2.66 | CJ73: 1.34 | CK73: 9.7 | CL73: 1.88 | CM73: 1.14 | CN73: 9.7 | CO73: 1.89 | CP73: 1.02 | CQ73: 9.6 | CR73: 1.92 | CS73: 1.1 | CT73: 8.5 | CU73: 1.99 | CV73: 1.19 | CW73: 9.5 | CX73: 1.89 | CY73: 1.1 | CZ73: 10 | DA73: 2.91 | DB73: 1.23 | DC73: 4.8 | DD73: 1.91 | DE73: 0.94 | DF73: 9.9 | DG73: 1.91 | DH73: 1.16 | DI73: 10.8
B74: Nov | C74: 1.28 | D74: 0.84 | E74: 4.6 | F74: 1.09 | G74: 0.69 | H74: 3.7 | I74: 1.51 | J74: 0.78 | K74: 1.5 | L74: 1.05 | M74: 0.7 | N74: 5.1 | O74: 1.15 | P74: 0.71 | Q74: 4 | R74: 0.84 | S74: 0.61 | T74: 4 | U74: 1.46 | V74: 0.76 | W74: 3.9 | X74: 1.73 | Y74: 0.75 | Z74: -1.1 | AA74: 1.47 | AB74: 0.64 | AC74: 1.5 | AD74: 1.15 | AE74: 0.69 | AF74: 4.1 | AG74: 1.1 | AH74: 0.73 | AI74: 4 | AJ74: 1.08 | AK74: 0.68 | AL74: 5.2 | AM74: 1.27 | AN74: 0.79 | AO74: 5 | AP74: 1.63 | AQ74: 0.79 | AR74: -1.7 | AS74: 1.34 | AT74: 0.86 | AU74: 3.2 | AV74: 1.39 | AW74: 0.78 | AX74: 1.8 | AY74: 1.56 | AZ74: 0.72 | BA74: 0.2 | BB74: 1.23 | BC74: 0.76 | BD74: 4.3 | BE74: 1.51 | BF74: 0.78 | BG74: 6.7 | BH74: 1.39 | BI74: 0.88 | BJ74: 7.3 | BK74: 1.01 | BL74: 0.64 | BM74: 4.5 | BN74: 1.68 | BO74: 0.72 | BP74: -0.2 | BQ74: 1.75 | BR74: 0.73 | BS74: 1.5 | BT74: 0.94 | BU74: 0.61 | BV74: 4.6 | BW74: 1.03 | BX74: 0.7 | BY74: 3.7 | BZ74: 1.05 | CA74: 0.72 | CB74: 5.2 | CC74: 0.96 | CD74: 0.71 | CE74: 4.2 | CF74: 1.16 | CG74: 0.71 | CH74: 6.5 | CI74: 1.59 | CJ74: 0.81 | CK74: 3.7 | CL74: 1.01 | CM74: 0.67 | CN74: 3.8 | CO74: 1.07 | CP74: 0.72 | CQ74: 3.8 | CR74: 0.98 | CS74: 0.71 | CT74: 3.3 | CU74: 1.01 | CV74: 0.61 | CW74: 4.3 | CX74: 1.01 | CY74: 0.64 | CZ74: 4.2 | DA74: 1.84 | DB74: 0.79 | DC74: -0.8 | DD74: 0.97 | DE74: 0.7 | DF74: 4.2 | DG74: 1.04 | DH74: 0.64 | DI74: 5.2
B75: Dez | C75: 0.87 | D75: 0.58 | E75: 1 | F75: 0.8 | G75: 0.49 | H75: 0.9 | I75: 1.17 | J75: 0.59 | K75: -0.9 | L75: 0.72 | M75: 0.49 | N75: 2.4 | O75: 0.81 | P75: 0.53 | Q75: 1.2 | R75: 0.6 | S75: 0.46 | T75: 0.7 | U75: 1.06 | V75: 0.61 | W75: -0.1 | X75: 1.29 | Y75: 0.54 | Z75: -4.4 | AA75: 0.94 | AB75: 0.57 | AC75: -2 | AD75: 0.84 | AE75: 0.51 | AF75: 0.8 | AG75: 0.77 | AH75: 0.53 | AI75: 1.3 | AJ75: 0.77 | AK75: 0.56 | AL75: 2.6 | AM75: 0.91 | AN75: 0.51 | AO75: 2 | AP75: 1.32 | AQ75: 0.57 | AR75: -5.6 | AS75: 0.91 | AT75: 0.55 | AU75: -0.2 | AV75: 1.08 | AW75: 0.6 | AX75: -1.2 | AY75: 1.27 | AZ75: 0.57 | BA75: -2 | BB75: 0.86 | BC75: 0.56 | BD75: 1.6 | BE75: 1.2 | BF75: 0.67 | BG75: 3.7 | BH75: 1.08 | BI75: 0.65 | BJ75: 3.8 | BK75: 0.7 | BL75: 0.44 | BM75: 1.8 | BN75: 1.34 | BO75: 0.59 | BP75: -2.7 | BQ75: 1.32 | BR75: 0.56 | BS75: -1.3 | BT75: 0.67 | BU75: 0.47 | BV75: 1.4 | BW75: 0.77 | BX75: 0.52 | BY75: 0.3 | BZ75: 0.72 | CA75: 0.54 | CB75: 3 | CC75: 0.67 | CD75: 0.46 | CE75: 1.5 | CF75: 0.8 | CG75: 0.5 | CH75: 3.7 | CI75: 1.18 | CJ75: 0.54 | CK75: -0.1 | CL75: 0.7 | CM75: 0.51 | CN75: 1.2 | CO75: 0.78 | CP75: 0.43 | CQ75: 1 | CR75: 0.72 | CS75: 0.49 | CT75: 0 | CU75: 0.74 | CV75: 0.53 | CW75: 0.7 | CX75: 0.71 | CY75: 0.49 | CZ75: 1.4 | DA75: 1.4 | DB75: 0.62 | DC75: -3.8 | DD75: 0.7 | DE75: 0.43 | DF75: 1.5 | DG75: 0.72 | DH75: 0.51 | DI75: 2.8
B76: Jahr | C76: 3.19 | D76: 1.66 | E76: 8.9 | F76: 2.95 | G76: 1.68 | H76: 8.6 | I76: 3.63 | J76: 1.58 | K76: 6.2 | L76: 3.05 | M76: 1.66 | N76: 10.5 | O76: 3.14 | P76: 1.63 | Q76: 9.7 | R76: 2.81 | S76: 1.62 | T76: 8.8 | U76: 3.48 | V76: 1.66 | W76: 8.7 | X76: 3.84 | Y76: 1.52 | Z76: 2.8 | AA76: 3.21 | AB76: 1.58 | AC76: 5.6 | AD76: 2.98 | AE76: 1.65 | AF76: 8.1 | AG76: 3.16 | AH76: 1.65 | AI76: 9.7 | AJ76: 3.3 | AK76: 1.66 | AL76: 10.7 | AM76: 3.16 | AN76: 1.64 | AO76: 10.2 | AP76: 3.75 | AQ76: 1.55 | AR76: 2.2 | AS76: 3.23 | AT76: 1.72 | AU76: 8 | AV76: 3.2 | AW76: 1.58 | AX76: 5.8 | AY76: 3.2 | AZ76: 1.56 | BA76: 3.5 | BB76: 3.35 | BC76: 1.69 | BD76: 9.9 | BE76: 3.45 | BF76: 1.75 | BG76: 11.5 | BH76: 3.1 | BI76: 1.68 | BJ76: 11.6 | BK76: 2.84 | BL76: 1.58 | BM76: 9.8 | BN76: 3.41 | BO76: 1.58 | BP76: 2 | BQ76: 3.87 | BR76: 1.6 | BS76: 5.2 | BT76: 3.09 | BU76: 1.6 | BV76: 9.3 | BW76: 3.21 | BX76: 1.65 | BY76: 8.4 | BZ76: 3.12 | CA76: 1.72 | CB76: 10.2 | CC76: 3.03 | CD76: 1.59 | CE76: 9.8 | CF76: 3.07 | CG76: 1.69 | CH76: 11.1 | CI76: 3.81 | CJ76: 1.62 | CK76: 9.3 | CL76: 3.08 | CM76: 1.62 | CN76: 9.3 | CO76: 2.97 | CP76: 1.58 | CQ76: 8.9 | CR76: 3.02 | CS76: 1.64 | CT76: 7.9 | CU76: 3.08 | CV76: 1.65 | CW76: 8.7 | CX76: 3.03 | CY76: 1.59 | CZ76: 9.6 | DA76: 4.1 | DB76: 1.55 | DC76: 3.5 | DD76: 3.03 | DE76: 1.65 | DF76: 9.6 | DG76: 3 | DH76: 1.63 | DI76: 10
A81: =Zwischenwerte!A20 -> USA | B81: Stadt | C81: Albany | F81: Anchorage | I81: Atlanta | L81: Baltimore | O81: Beaumont | R81: Boston | U81: Buffalo | X81: Chattanooga | AA81: Chicago | AD81: Cincinnati | AG81: Cleveland | AJ81: Colorado | AM81: Dallas | AP81: Denver | AS81: Detroit | AV81: El Paso | AY81: Glendale | BB81: Greensboro | BE81: Hampton | BH81: Houston | BK81: Indianapolis | BN81: Irvine | BQ81: Kansas City | BT81: Knoxville | BW81: Las Vegas | BZ81: Lincoln | CC81: Los Angeles | CF81: Luisville | CI81: Memphis | CL81: Miami | CO81: Minneapolis | CR81: Montgomery | CU81: New Orleans | CX81: New York | DA81: Oklahoma | DD81: Orlando | DG81: Philadelphia | DJ81: Phoenix | DM81: Sacramento | DP81: Salt Lake City | DS81: Seattle | DV81: Washington
B82: Breitengrad | C82: 42.67 | F82: 61.16 | I82: 33.8 | L82: 39.3 | O82: 30.08 | R82: 42.33 | U82: 42.88 | X82: 35.03 | AA82: 41.83 | AD82: 39.2 | AG82: 41.5 | AJ82: 41.5 | AM82: 32.83 | AP82: 39.75 | AS82: 42.33 | AV82: 31.8 | AY82: 34.15 | BB82: 36.07 | BE82: 37.03 | BH82: 29.8 | BK82: 39.75 | BN82: 33.68 | BQ82: 39 | BT82: 35.79 | BW82: 36.17 | BZ82: 40.8 | CC82: 34 | CF82: 38.25 | CI82: 35.12 | CL82: 25.87 | CO82: 44.95 | CR82: 32.38 | CU82: 30.01 | CX82: 40.75 | DA82: 35.47 | DD82: 28.5 | DG82: 40 | DJ82: 33.5 | DM82: 38.5 | DP82: 40.75 | DS82: 47.58 | DV82: 38.87
C83: Global | D83: Diffus | E83: Außentemp | F83: Global | G83: Diffus | H83: Außentemp | I83: Global | J83: Diffus | K83: Außentemp | L83: Global | M83: Diffus | N83: Außentemp | O83: Global | P83: Diffus | Q83: Außentemp | R83: Global | S83: Diffus | T83: Außentemp | U83: Global | V83: Diffus | W83: Außentemp | X83: Global | Y83: Diffus | Z83: Außentemp | AA83: Global | AB83: Diffus | AC83: Außentemp | AD83: Global | AE83: Diffus | AF83: Außentemp | AG83: Global | AH83: Diffus | AI83: Außentemp | AJ83: Global | AK83: Diffus | AL83: Außentemp | AM83: Global | AN83: Diffus | AO83: Außentemp | AP83: Global | AQ83: Diffus | AR83: Außentemp | AS83: Global | AT83: Diffus | AU83: Außentemp | AV83: Global | AW83: Diffus | AX83: Außentemp | AY83: Global | AZ83: Diffus | BA83: Außentemp | BB83: Global | BC83: Diffus | BD83: Außentemp | BE83: Global | BF83: Diffus | BG83: Außentemp | BH83: Global | BI83: Diffus | BJ83: Außentemp | BK83: Global | BL83: Diffus | BM83: Außentemp | BN83: Global | BO83: Diffus | BP83: Außentemp | BQ83: Global | BR83: Diffus | BS83: Außentemp | BT83: Global | BU83: Diffus | BV83: Außentemp | BW83: Global | BX83: Diffus | BY83: Außentemp | BZ83: Global | CA83: Diffus | CB83: Außentemp | CC83: Global | CD83: Diffus | CE83: Außentemp | CF83: Global | CG83: Diffus | CH83: Außentemp | CI83: Global | CJ83: Diffus | CK83: Außentemp | CL83: Global | CM83: Diffus | CN83: Außentemp | CO83: Global | CP83: Diffus | CQ83: Außentemp | CR83: Global | CS83: Diffus | CT83: Außentemp | CU83: Global | CV83: Diffus | CW83: Außentemp | CX83: Global | CY83: Diffus | CZ83: Außentemp | DA83: Global | DB83: Diffus | DC83: Außentemp | DD83: Global | DE83: Diffus | DF83: Außentemp | DG83: Global | DH83: Diffus | DI83: Außentemp | DJ83: Global | DK83: Diffus | DL83: Außentemp | DM83: Global | DN83: Diffus | DO83: Außentemp | DP83: Global | DQ83: Diffus | DR83: Außentemp | DS83: Global | DT83: Diffus | DU83: Außentemp | DV83: Global | DW83: Diffus | DX83: Außentemp
B84: Jan | C84: 1.75 | D84: 0.93 | E84: -5.2 | F84: 0.31 | G84: 0.19 | H84: -7.3 | I84: 2.56 | J84: 1.07 | K84: 6.5 | L84: 2.04 | M84: 0.85 | N84: 1.1 | O84: 2.7 | P84: 1.45 | Q84: 12 | R84: 1.88 | S84: 0.86 | T84: -0.5 | U84: 1.59 | V84: 0.77 | W84: -4.1 | X84: 2.38 | Y84: 1.15 | Z84: 5.2 | AA84: 1.82 | AB84: 0.75 | AC84: -3.5 | AD84: 1.94 | AE84: 0.89 | AF84: -0.2 | AG84: 1.61 | AH84: 0.89 | AI84: -1.9 | AJ84: 2.52 | AK84: 0.91 | AL84: -0.4 | AM84: 2.88 | AN84: 1.27 | AO84: 8.7 | AP84: 2.4 | AQ84: 0.86 | AR84: 0.5 | AS84: 1.64 | AT84: 0.84 | AU84: -3.5 | AV84: 3.7 | AW84: 0.98 | AX84: 8.9 | AY84: 3.02 | AZ84: 1.02 | BA84: 13.2 | BB84: 2.4 | BC84: 1.1 | BD84: 4 | BE84: 2.22 | BF84: 0.98 | BG84: 4.6 | BH84: 2.65 | BI84: 1.56 | BJ84: 12.5 | BK84: 1.94 | BL84: 0.89 | BM84: -1.9 | BN84: 2.92 | BO84: 1.03 | BP84: 14 | BQ84: 2.24 | BR84: 0.99 | BS84: -1.1 | BT84: 2.2 | BU84: 1.1 | BV84: 3.9 | BW84: 2.99 | BX84: 0.83 | BY84: 9.5 | BZ84: 2.35 | CA84: 0.85 | CB84: -4.3 | CC84: 2.93 | CD84: 1.15 | CE84: 14.3 | CF84: 2.01 | CG84: 0.93 | CH84: 1.8 | CI84: 2.44 | CJ84: 1.12 | CK84: 5.7 | CL84: 3.52 | CM84: 1.45 | CN84: 19.5 | CO84: 1.77 | CP84: 0.68 | CQ84: -8.8 | CR84: 2.64 | CS84: 1.12 | CT84: 9.7 | CU84: 2.71 | CV84: 1.25 | CW84: 14.2 | CX84: 1.8 | CY84: 0.82 | CZ84: 0.1 | DA84: 2.66 | DB84: 1.13 | DC84: 3.4 | DD84: 3.34 | DE84: 1.29 | DF84: 15.4 | DG84: 1.94 | DH84: 0.94 | DI84: 0.3 | DJ84: 3.28 | DK84: 0.92 | DL84: 13.5 | DM84: 1.91 | DN84: 1.11 | DO84: 8.2 | DP84: 2.02 | DQ84: 0.8 | DR84: 0.1 | DS84: 0.84 | DT84: 0.59 | DU84: 7.3 | DV84: 2.17 | DW84: 0.97 | DX84: 1.9
B85: Feb | C85: 2.59 | D85: 1.17 | E85: -2.3 | F85: 0.96 | G85: 0.54 | H85: -4.2 | I85: 3.4 | J85: 1.67 | K85: 8.5 | L85: 2.88 | M85: 1.29 | N85: 3.2 | O85: 3.5 | P85: 1.39 | Q85: 13.5 | R85: 2.69 | S85: 1.15 | T85: 1.3 | U85: 2.34 | V85: 1.27 | W85: -2.2 | X85: 3.1 | Y85: 1.35 | Z85: 7.3 | AA85: 2.62 | AB85: 1.26 | AC85: 0 | AD85: 2.67 | AE85: 1.4 | AF85: 2.5 | AG85: 2.4 | AH85: 1.3 | AI85: 0.5 | AJ85: 3.38 | AK85: 1.23 | AL85: 0.4 | AM85: 3.65 | AN85: 1.49 | AO85: 11 | AP85: 3.3 | AQ85: 1.13 | AR85: 1.3 | AS85: 2.46 | AT85: 1.35 | AU85: -1 | AV85: 4.9 | AW85: 0.93 | AX85: 10.8 | AY85: 3.92 | AZ85: 1.33 | BA85: 13.1 | BB85: 3.22 | BC85: 1.5 | BD85: 5.9 | BE85: 3.01 | BF85: 1.6 | BG85: 6.2 | BH85: 3.42 | BI85: 1.84 | BJ85: 14.1 | BK85: 2.78 | BL85: 1.16 | BM85: 1.4 | BN85: 3.78 | BO85: 1.34 | BP85: 14.1 | BQ85: 3 | BR85: 1.19 | BS85: 2.6 | BT85: 2.95 | BU85: 1.39 | BV85: 6.2 | BW85: 4 | BX85: 1.08 | BY85: 11 | BZ85: 3.14 | CA85: 1.15 | CB85: -0.7 | CC85: 3.79 | CD85: 1.41 | CE85: 14.4 | CF85: 2.83 | CG85: 1.35 | CH85: 4.6 | CI85: 3.24 | CJ85: 1.33 | CK85: 8.3 | CL85: 4.22 | CM85: 1.78 | CN85: 21.1 | CO85: 2.71 | CP85: 1.01 | CQ85: -4.8 | CR85: 3.48 | CS85: 1.59 | CT85: 12 | CU85: 3.55 | CV85: 1.8 | CW85: 15.4 | CX85: 2.6 | CY85: 1.33 | CZ85: 2.3 | DA85: 3.5 | DB85: 1.31 | DC85: 6.4 | DD85: 4.23 | DE85: 1.68 | DF85: 17.2 | DG85: 2.73 | DH85: 1.37 | DI85: 2.6 | DJ85: 4.36 | DK85: 1.12 | DL85: 14.8 | DM85: 2.97 | DN85: 1.26 | DO85: 10.2 | DP85: 3.15 | DQ85: 1.19 | DR85: 1 | DS85: 1.65 | DT85: 1.13 | DU85: 7.4 | DV85: 3.03 | DW85: 1.39 | DX85: 4.1
B86: Mar | C86: 3.57 | D86: 1.81 | E86: 1.6 | F86: 2.28 | G86: 1.09 | H86: -2.7 | I86: 4.56 | J86: 1.91 | K86: 12.1 | L86: 3.89 | M86: 1.82 | N86: 6.9 | O86: 4.32 | P86: 2.28 | Q86: 16.4 | R86: 3.72 | S86: 1.78 | T86: 3.4 | U86: 3.39 | V86: 1.75 | W86: 0.8 | X86: 4.08 | Y86: 1.93 | Z86: 11 | AA86: 3.49 | AB86: 1.7 | AC86: 3.5 | AD86: 3.61 | AE86: 1.83 | AF86: 6 | AG86: 3.34 | AH86: 1.77 | AI86: 3.2 | AJ86: 4.49 | AK86: 1.76 | AL86: 3.8 | AM86: 4.7 | AN86: 1.86 | AO86: 14 | AP86: 4.43 | AQ86: 1.73 | AR86: 4.9 | AS86: 3.46 | AT86: 1.83 | AU86: 2.4 | AV86: 6.34 | AW86: 1.13 | AX86: 14.8 | AY86: 5.03 | AZ86: 1.67 | BA86: 15 | BB86: 4.32 | BC86: 1.83 | BD86: 9.5 | BE86: 4.07 | BF86: 1.86 | BG86: 9.4 | BH86: 4.23 | BI86: 2.23 | BJ86: 16.8 | BK86: 3.6 | BL86: 1.82 | BM86: 5 | BN86: 4.92 | BO86: 1.78 | BP86: 15.5 | BQ86: 3.94 | BR86: 1.82 | BS86: 6.4 | BT86: 3.95 | BU86: 2.13 | BV86: 9.9 | BW86: 5.4 | BX86: 1.46 | BY86: 15.7 | BZ86: 4.2 | CA86: 1.65 | CB86: 3.7 | CC86: 4.92 | CD86: 1.7 | CE86: 15.7 | CF86: 3.79 | CG86: 1.95 | CH86: 8 | CI86: 4.24 | CJ86: 2.14 | CK86: 11.6 | CL86: 5.13 | CM86: 2.34 | CN86: 22.6 | CO86: 3.74 | CP86: 1.62 | CQ86: -0.3 | CR86: 4.51 | CS86: 1.96 | CT86: 15.5 | CU86: 4.44 | CV86: 2.27 | CW86: 17.8 | CX86: 3.67 | CY86: 1.9 | CZ86: 5.4 | DA86: 4.46 | DB86: 1.74 | DC86: 9.7 | DD86: 5.34 | DE86: 2.03 | DF86: 19.4 | DG86: 3.79 | DH86: 1.78 | DI86: 5.9 | DJ86: 5.61 | DK86: 1.6 | DL86: 18.7 | DM86: 4.31 | DN86: 1.75 | DO86: 12.8 | DP86: 4.56 | DQ86: 1.44 | DR86: 6.5 | DS86: 2.91 | DT86: 1.74 | DU86: 8.4 | DV86: 4.04 | DW86: 2.1 | DX86: 7.6
B87: Apr | C87: 4.56 | D87: 2.43 | E87: 8.5 | F87: 3.65 | G87: 1.87 | H87: 2.7 | I87: 5.66 | J87: 2.3 | K87: 16.5 | L87: 4.9 | M87: 2.4 | N87: 12.7 | O87: 5.14 | P87: 2.42 | Q87: 20.3 | R87: 4.71 | S87: 2.26 | T87: 8.2 | U87: 4.54 | V87: 2.05 | W87: 7.2 | X87: 5.26 | Y87: 2.44 | Z87: 15.8 | AA87: 4.58 | AB87: 2.35 | AC87: 10.2 | AD87: 4.75 | AE87: 2.28 | AF87: 12.3 | AG87: 4.61 | AH87: 2.14 | AI87: 9.4 | AJ87: 5.64 | AK87: 2.29 | AL87: 8.1 | AM87: 5.59 | AN87: 2.17 | AO87: 19.2 | AP87: 5.55 | AQ87: 2.1 | AR87: 8.9 | AS87: 4.6 | AT87: 2.49 | AU87: 9.1 | AV87: 7.63 | AW87: 1.22 | AX87: 19.3 | AY87: 6.29 | AZ87: 2.05 | BA87: 16.3 | BB87: 5.4 | BC87: 2.43 | BD87: 14.6 | BE87: 5.13 | BF87: 2.4 | BG87: 14.4 | BH87: 5.02 | BI87: 2.49 | BJ87: 20.7 | BK87: 4.75 | BL87: 2.37 | BM87: 11.9 | BN87: 6.18 | BO87: 2.14 | BP87: 16.5 | BQ87: 5.1 | BR87: 2.15 | BS87: 13.3 | BT87: 5.16 | BU87: 2.1 | BV87: 14.8 | BW87: 6.91 | BX87: 1.52 | BY87: 19 | BZ87: 5.16 | CA87: 2.08 | CB87: 11.1 | CC87: 6.17 | CD87: 2.21 | CE87: 16.5 | CF87: 4.94 | CG87: 2.47 | CH87: 14.2 | CI87: 5.4 | CJ87: 2.28 | CK87: 17.3 | CL87: 6 | CM87: 2.59 | CN87: 24 | CO87: 4.7 | CP87: 2.12 | CQ87: 8.5 | CR87: 5.64 | CS87: 2.22 | CT87: 19.4 | CU87: 5.52 | CV87: 2.58 | CW87: 21.3 | CX87: 4.66 | CY87: 2.14 | CZ87: 11.1 | DA87: 5.47 | DB87: 2.03 | DC87: 15.5 | DD87: 6.33 | DE87: 2.14 | DF87: 21.6 | DG87: 4.8 | DH87: 2.46 | DI87: 11.8 | DJ87: 7.22 | DK87: 1.48 | DL87: 22.3 | DM87: 5.9 | DN87: 2.03 | DO87: 14.6 | DP87: 5.76 | DQ87: 1.9 | DR87: 10.2 | DS87: 4.07 | DT87: 2.25 | DU87: 10.3 | DV87: 5.09 | DW87: 2.38 | DX87: 13.4
B88: Mai | C88: 5.37 | D88: 2.54 | E88: 14.4 | F88: 4.56 | G88: 2.45 | H88: 8.7 | I88: 6.42 | J88: 2.57 | K88: 21.1 | L88: 5.63 | M88: 2.66 | N88: 17.7 | O88: 5.84 | P88: 2.73 | Q88: 24.4 | R88: 5.62 | S88: 2.43 | T88: 13 | U88: 5.5 | V88: 2.58 | W88: 13.6 | X88: 5.81 | Y88: 2.76 | Z88: 20.5 | AA88: 5.7 | AB88: 2.43 | AC88: 15.6 | AD88: 5.73 | AE88: 2.9 | AF88: 17.4 | AG88: 5.6 | AH88: 2.78 | AI88: 15.3 | AJ88: 6.2 | AK88: 2.4 | AL88: 13.9 | AM88: 6.22 | AN88: 2.62 | AO88: 24.2 | AP88: 6.19 | AQ88: 2.23 | AR88: 14.6 | AS88: 5.68 | AT88: 2.8 | AU88: 15 | AV88: 8.26 | AW88: 1.58 | AX88: 25.6 | AY88: 6.6 | AZ88: 2.61 | BA88: 18.9 | BB88: 5.95 | BC88: 2.67 | BD88: 19 | BE88: 5.76 | BF88: 2.44 | BG88: 19 | BH88: 5.62 | BI88: 2.68 | BJ88: 24.8 | BK88: 5.95 | BL88: 2.53 | BM88: 17.1 | BN88: 6.54 | BO88: 2.5 | BP88: 18.9 | BQ88: 5.9 | BR88: 2.67 | BS88: 18.6 | BT88: 5.85 | BU88: 2.69 | BV88: 19.6 | BW88: 7.82 | BX88: 1.77 | BY88: 25.8 | BZ88: 6.18 | CA88: 2.74 | CB88: 16.8 | CC88: 6.53 | CD88: 2.68 | CE88: 18.7 | CF88: 5.81 | CG88: 2.75 | CH88: 19.5 | CI88: 6.12 | CJ88: 2.74 | CK88: 22.2 | CL88: 5.95 | CM88: 2.7 | CN88: 26.2 | CO88: 5.71 | CP88: 2.57 | CQ88: 14.3 | CR88: 6.22 | CS88: 2.7 | CT88: 24.2 | CU88: 6.05 | CV88: 2.73 | CW88: 25.3 | CX88: 5.59 | CY88: 2.76 | CZ88: 16.1 | DA88: 6.17 | DB88: 2.43 | DC88: 20.8 | DD88: 6.77 | DE88: 2.48 | DF88: 24.9 | DG88: 5.55 | DH88: 2.34 | DI88: 16.8 | DJ88: 8.02 | DK88: 1.59 | DL88: 28.8 | DM88: 7.2 | DN88: 2.17 | DO88: 18.8 | DP88: 7.06 | DQ88: 2.23 | DR88: 16 | DS88: 5.29 | DT88: 2.8 | DU88: 13 | DV88: 5.9 | DW88: 2.71 | DX88: 18.2
B89: Jun | C89: 5.88 | D89: 3.01 | E89: 20 | F89: 4.92 | G89: 2.9 | H89: 13.3 | I89: 6.48 | J89: 2.56 | K89: 24.3 | L89: 6.15 | M89: 2.88 | N89: 22.7 | O89: 6.27 | P89: 2.82 | Q89: 27 | R89: 6.12 | S89: 2.74 | T89: 18.8 | U89: 6.12 | V89: 2.99 | W89: 19.4 | X89: 6.14 | Y89: 2.9 | Z89: 24 | AA89: 6.28 | AB89: 2.7 | AC89: 21.4 | AD89: 6.29 | AE89: 2.82 | AF89: 21.9 | AG89: 6.15 | AH89: 2.87 | AI89: 21.2 | AJ89: 6.94 | AK89: 2.25 | AL89: 18.3 | AM89: 6.91 | AN89: 2.78 | AO89: 27.6 | AP89: 6.84 | AQ89: 2.5 | AR89: 19.5 | AS89: 6.25 | AT89: 2.86 | AU89: 21.1 | AV89: 8.42 | AW89: 1.58 | AX89: 28.8 | AY89: 6.59 | AZ89: 2.87 | BA89: 20.3 | BB89: 6.24 | BC89: 3.05 | BD89: 23.2 | BE89: 6.15 | BF89: 3.12 | BG89: 23.6 | BH89: 6.02 | BI89: 2.89 | BJ89: 27.4 | BK89: 6.53 | BL89: 2.6 | BM89: 21.8 | BN89: 6.76 | BO89: 2.76 | BP89: 20.2 | BQ89: 6.45 | BR89: 2.91 | BS89: 22.9 | BT89: 6.22 | BU89: 2.87 | BV89: 23.2 | BW89: 8.35 | BX89: 1.72 | BY89: 30.6 | BZ89: 6.94 | CA89: 2.23 | CB89: 22.4 | CC89: 6.64 | CD89: 2.63 | CE89: 19.8 | CF89: 6.31 | CG89: 2.97 | CH89: 23.6 | CI89: 6.62 | CJ89: 2.77 | CK89: 25.8 | CL89: 5.59 | CM89: 2.84 | CN89: 27.6 | CO89: 6.24 | CP89: 2.79 | CQ89: 19.9 | CR89: 6.43 | CS89: 3.07 | CT89: 26.7 | CU89: 6.12 | CV89: 2.68 | CW89: 27.3 | CX89: 5.94 | CY89: 2.61 | CZ89: 21.9 | DA89: 6.77 | DB89: 2.79 | DC89: 24.5 | DD89: 6.24 | DE89: 2.92 | DF89: 26.4 | DG89: 6.11 | DH89: 2.88 | DI89: 22.2 | DJ89: 8.16 | DK89: 1.91 | DL89: 33.1 | DM89: 7.85 | DN89: 2.16 | DO89: 21.9 | DP89: 7.68 | DQ89: 2.09 | DR89: 21.2 | DS89: 5.94 | DT89: 2.56 | DU89: 16 | DV89: 6.36 | DW89: 3.06 | DX89: 23.1
B90: Jul | C90: 5.91 | D90: 2.58 | E90: 21.8 | F90: 4.63 | G90: 2.53 | H90: 15.4 | I90: 6.19 | J90: 2.64 | K90: 26.2 | L90: 6.03 | M90: 2.56 | N90: 24.9 | O90: 6.05 | P90: 3.02 | Q90: 27.9 | R90: 6.04 | S90: 2.88 | T90: 22.1 | U90: 6.03 | V90: 2.7 | W90: 21.7 | X90: 5.86 | Y90: 2.68 | Z90: 26.1 | AA90: 6.12 | AB90: 2.72 | AC90: 24.2 | AD90: 6.1 | AE90: 2.91 | AF90: 24 | AG90: 6.11 | AH90: 2.72 | AI90: 23.3 | AJ90: 6.65 | AK90: 2.48 | AL90: 22.1 | AM90: 7.01 | AN90: 2.43 | AO90: 30.4 | AP90: 6.7 | AQ90: 2.47 | AR90: 24.1 | AS90: 6.14 | AT90: 2.63 | AU90: 23.2 | AV90: 7.7 | AW90: 1.99 | AX90: 29 | AY90: 7.64 | AZ90: 2.04 | BA90: 23.4 | BB90: 6.05 | BC90: 2.62 | BD90: 24.9 | BE90: 5.86 | BF90: 2.95 | BG90: 25.7 | BH90: 5.93 | BI90: 3 | BJ90: 28.5 | BK90: 6.38 | BL90: 2.57 | BM90: 23.9 | BN90: 7.36 | BO90: 2.3 | BP90: 22.4 | BQ90: 6.56 | BR90: 2.33 | BS90: 26.1 | BT90: 5.91 | BU90: 2.91 | BV90: 25.1 | BW90: 7.85 | BX90: 1.96 | BY90: 33.8 | BZ90: 6.88 | CA90: 2.42 | CB90: 25.6 | CC90: 7.45 | CD90: 2.15 | CE90: 21.6 | CF90: 6.12 | CG90: 2.75 | CH90: 25.8 | CI90: 6.5 | CJ90: 2.55 | CK90: 27.8 | CL90: 5.83 | CM90: 2.56 | CN90: 28.5 | CO90: 6.34 | CP90: 2.57 | CQ90: 23 | CR90: 6.05 | CS90: 2.97 | CT90: 28.5 | CU90: 5.74 | CV90: 2.85 | CW90: 28.8 | CX90: 5.94 | CY90: 2.79 | CZ90: 24.5 | DA90: 6.74 | DB90: 2.51 | DC90: 27.9 | DD90: 6.14 | DE90: 2.84 | DF90: 27.4 | DG90: 5.94 | DH90: 2.88 | DI90: 24.7 | DJ90: 7.39 | DK90: 2.33 | DL90: 35.3 | DM90: 7.94 | DN90: 1.82 | DO90: 24 | DP90: 7.82 | DQ90: 1.87 | DR90: 26.8 | DS90: 6.13 | DT90: 2.68 | DU90: 19 | DV90: 6.1 | DW90: 2.85 | DX90: 25.4
B91: Aug | C91: 5.09 | D91: 2.64 | E91: 21.5 | F91: 3.53 | G91: 1.94 | H91: 14.3 | I91: 5.8 | J91: 2.61 | K91: 25.8 | L91: 5.33 | M91: 2.65 | N91: 24.4 | O91: 5.71 | P91: 2.89 | Q91: 27.7 | R91: 5.35 | S91: 2.5 | T91: 22.2 | U91: 5.16 | V91: 2.34 | W91: 21.2 | X91: 5.5 | Y91: 2.74 | Z91: 25.5 | AA91: 5.36 | AB91: 2.55 | AC91: 23.2 | AD91: 5.47 | AE91: 2.55 | AF91: 23.2 | AG91: 5.27 | AH91: 2.34 | AI91: 22.5 | AJ91: 6.03 | AK91: 1.94 | AL91: 20 | AM91: 6.34 | AN91: 2.41 | AO91: 30.2 | AP91: 5.97 | AQ91: 2.04 | AR91: 22 | AS91: 5.3 | AT91: 2.49 | AU91: 22.3 | AV91: 7.18 | AW91: 1.89 | AX91: 27.8 | AY91: 6.98 | AZ91: 1.98 | BA91: 24.2 | BB91: 5.52 | BC91: 2.76 | BD91: 24.3 | BE91: 5.4 | BF91: 2.76 | BG91: 25.2 | BH91: 5.62 | BI91: 2.54 | BJ91: 28.3 | BK91: 5.78 | BL91: 2.31 | BM91: 23.3 | BN91: 6.8 | BO91: 1.93 | BP91: 23 | BQ91: 5.77 | BR91: 2.4 | BS91: 25.3 | BT91: 5.48 | BU91: 2.37 | BV91: 24.7 | BW91: 7.2 | BX91: 1.68 | BY91: 32.8 | BZ91: 5.98 | CA91: 2.03 | CB91: 23.9 | CC91: 6.83 | CD91: 2.06 | CE91: 22.3 | CF91: 5.59 | CG91: 2.54 | CH91: 25.2 | CI91: 5.97 | CJ91: 2.48 | CK91: 27.4 | CL91: 5.59 | CM91: 2.92 | CN91: 28.5 | CO91: 5.4 | CP91: 2.34 | CQ91: 21.4 | CR91: 5.71 | CS91: 2.8 | CT91: 28 | CU91: 5.45 | CV91: 2.77 | CW91: 29.2 | CX91: 5.23 | CY91: 2.54 | CZ91: 24.4 | DA91: 6.24 | DB91: 2.16 | DC91: 27.5 | DD91: 5.75 | DE91: 2.52 | DF91: 27.1 | DG91: 5.4 | DH91: 2.43 | DI91: 24.4 | DJ91: 6.89 | DK91: 2.09 | DL91: 34.3 | DM91: 7.03 | DN91: 1.77 | DO91: 23.6 | DP91: 6.77 | DQ91: 1.81 | DR91: 25.3 | DS91: 5.23 | DT91: 2.39 | DU91: 19.4 | DV91: 5.5 | DW91: 2.65 | DX91: 24.9
B92: Sep | C92: 4.02 | D92: 1.94 | E92: 17.3 | F92: 2.23 | G92: 1.14 | H92: 9.9 | I92: 4.85 | J92: 2.14 | K92: 22.6 | L92: 4.4 | M92: 2.01 | N92: 20.7 | O92: 4.98 | P92: 2.26 | Q92: 25.9 | R92: 4.25 | S92: 1.88 | T92: 19 | U92: 3.92 | V92: 1.79 | W92: 17.7 | X92: 4.54 | Y92: 2.21 | Z92: 22.4 | AA92: 4.2 | AB92: 1.86 | AC92: 19.6 | AD92: 4.44 | AE92: 2.06 | AF92: 19.4 | AG92: 4.11 | AH92: 2.01 | AI92: 19.1 | AJ92: 5.14 | AK92: 1.72 | AL92: 16.3 | AM92: 5.21 | AN92: 2.05 | AO92: 26.5 | AP92: 4.99 | AQ92: 1.81 | AR92: 17.7 | AS92: 4.13 | AT92: 2.04 | AU92: 18.9 | AV92: 6.1 | AW92: 1.45 | AX92: 25.6 | AY92: 5.58 | AZ92: 1.78 | BA92: 22.5 | BB92: 4.61 | BC92: 1.94 | BD92: 20.8 | BE92: 4.48 | BF92: 2.2 | BG92: 22.3 | BH92: 4.86 | BI92: 2.49 | BJ92: 26.2 | BK92: 4.66 | BL92: 1.8 | BM92: 19.7 | BN92: 5.47 | BO92: 1.53 | BP92: 22 | BQ92: 4.62 | BR92: 1.92 | BS92: 20.8 | BT92: 4.55 | BU92: 2.21 | BV92: 21.7 | BW92: 6.14 | BX92: 1.34 | BY92: 28 | BZ92: 4.63 | CA92: 1.85 | CB92: 19.5 | CC92: 5.47 | CD92: 1.76 | CE92: 21.5 | CF92: 4.53 | CG92: 1.98 | CH92: 21.5 | CI92: 4.82 | CJ92: 2.27 | CK92: 24.2 | CL92: 4.89 | CM92: 2.46 | CN92: 27.8 | CO92: 4.08 | CP92: 1.9 | CQ92: 17.4 | CR92: 4.92 | CS92: 2.26 | CT92: 25.6 | CU92: 4.9 | CV92: 2.3 | CW92: 27.8 | CX92: 4.22 | CY92: 1.87 | CZ92: 20.7 | DA92: 4.72 | DB92: 1.95 | DC92: 23.2 | DD92: 5.13 | DE92: 2.26 | DF92: 26.4 | DG92: 4.35 | DH92: 1.91 | DI92: 20.4 | DJ92: 5.97 | DK92: 1.7 | DL92: 31.5 | DM92: 5.7 | DN92: 1.51 | DO92: 21.7 | DP92: 5.47 | DQ92: 1.58 | DR92: 18.8 | DS92: 3.74 | DT92: 1.53 | DU92: 16.9 | DV92: 4.61 | DW92: 1.87 | DX92: 21.2
B93: Okt | C93: 2.79 | D93: 1.37 | E93: 10 | F93: 1.1 | G93: 0.71 | H93: 2.3 | I93: 4.1 | J93: 1.57 | K93: 17.1 | L93: 3.31 | M93: 1.47 | N93: 13.7 | O93: 4.29 | P93: 1.74 | Q93: 21.2 | R93: 3 | S93: 1.44 | T93: 12.7 | U93: 2.64 | V93: 1.37 | W93: 10.7 | X93: 3.79 | Y93: 1.58 | Z93: 16.4 | AA93: 3 | AB93: 1.54 | AC93: 12.7 | AD93: 3.26 | AE93: 1.35 | AF93: 12.9 | AG93: 2.84 | AH93: 1.55 | AI93: 12.8 | AJ93: 4.01 | AK93: 1.19 | AL93: 10 | AM93: 4.2 | AN93: 1.58 | AO93: 20.5 | AP93: 3.8 | AQ93: 1.34 | AR93: 10.9 | AS93: 2.83 | AT93: 1.28 | AU93: 11.8 | AV93: 5.26 | AW93: 1.14 | AX93: 19.2 | AY93: 4.27 | AZ93: 1.54 | BA93: 19 | BB93: 3.74 | BC93: 1.53 | BD93: 15.1 | BE93: 3.47 | BF93: 1.65 | BG93: 16.3 | BH93: 4.21 | BI93: 1.86 | BJ93: 21.7 | BK93: 3.43 | BL93: 1.54 | BM93: 13 | BN93: 4.26 | BO93: 1.4 | BP93: 19.3 | BQ93: 3.55 | BR93: 1.26 | BS93: 14.1 | BT93: 3.72 | BU93: 1.28 | BV93: 15.5 | BW93: 4.72 | BX93: 0.99 | BY93: 20.8 | BZ93: 3.5 | CA93: 1.34 | CB93: 12.2 | CC93: 4.23 | CD93: 1.55 | CE93: 19.1 | CF93: 3.43 | CG93: 1.49 | CH93: 15.1 | CI93: 3.96 | CJ93: 1.46 | CK93: 18 | CL93: 4.34 | CM93: 2.17 | CN93: 26.1 | CO93: 2.78 | CP93: 1.21 | CQ93: 10 | CR93: 4.15 | CS93: 1.52 | CT93: 20.2 | CU93: 4.32 | CV93: 1.81 | CW93: 23.6 | CX93: 3.12 | CY93: 1.46 | CZ93: 13.9 | DA93: 3.96 | DB93: 1.54 | DC93: 16.5 | DD93: 4.51 | DE93: 1.84 | DF93: 23.5 | DG93: 3.21 | DH93: 1.48 | DI93: 13.5 | DJ93: 4.82 | DK93: 1.25 | DL93: 24.3 | DM93: 4.02 | DN93: 1.21 | DO93: 17.1 | DP93: 3.89 | DQ93: 1.18 | DR93: 11.9 | DS93: 2.33 | DT93: 1.15 | DU93: 12.6 | DV93: 3.46 | DW93: 1.57 | DX93: 14.4
B94: Nov | C94: 1.69 | D94: 0.87 | E94: 4.7 | F94: 0.43 | G94: 0.27 | H94: -3.4 | I94: 3.08 | J94: 1.19 | K94: 11.8 | L94: 2.22 | M94: 1.05 | N94: 8.6 | O94: 3.09 | P94: 1.29 | Q94: 16.4 | R94: 1.9 | S94: 0.98 | T94: 7.6 | U94: 1.58 | V94: 0.97 | W94: 5.2 | X94: 2.62 | Y94: 1.3 | Z94: 10.7 | AA94: 1.82 | AB94: 0.92 | AC94: 5.9 | AD94: 2.02 | AE94: 1.02 | AF94: 7.3 | AG94: 1.68 | AH94: 1.01 | AI94: 7.1 | AJ94: 2.78 | AK94: 0.91 | AL94: 3.3 | AM94: 3.12 | AN94: 1.27 | AO94: 14.1 | AP94: 2.64 | AQ94: 0.86 | AR94: 4.2 | AS94: 1.71 | AT94: 0.95 | AU94: 5.8 | AV94: 3.98 | AW94: 0.97 | AX94: 12.5 | AY94: 3.24 | AZ94: 1.13 | BA94: 15.3 | BB94: 2.64 | BC94: 1.23 | BD94: 10.2 | BE94: 2.51 | BF94: 1.01 | BG94: 11.1 | BH94: 3.06 | BI94: 1.43 | BJ94: 16.9 | BK94: 1.99 | BL94: 1.09 | BM94: 6.7 | BN94: 3.21 | BO94: 1.08 | BP94: 16.2 | BQ94: 2.36 | BR94: 1.08 | BS94: 7.3 | BT94: 2.46 | BU94: 1.23 | BV94: 9.7 | BW94: 3.37 | BX94: 0.89 | BY94: 13.1 | BZ94: 2.27 | CA94: 0.91 | CB94: 4.5 | CC94: 3.2 | CD94: 1.1 | CE94: 16.5 | CF94: 2.2 | CG94: 1.16 | CH94: 9.2 | CI94: 2.66 | CJ94: 1.21 | CK94: 12 | CL94: 3.64 | CM94: 1.67 | CN94: 23.4 | CO94: 1.7 | CP94: 0.88 | CQ94: 2.3 | CR94: 3.03 | CS94: 1.31 | CT94: 15.1 | CU94: 3.12 | CV94: 1.37 | CW94: 18.9 | CX94: 1.85 | CY94: 1.08 | CZ94: 8.8 | DA94: 2.85 | DB94: 1.21 | DC94: 10 | DD94: 3.86 | DE94: 1.3 | DF94: 20 | DG94: 2.13 | DH94: 1.09 | DI94: 8.5 | DJ94: 3.57 | DK94: 1.03 | DL94: 17.5 | DM94: 2.39 | DN94: 1.15 | DO94: 11.5 | DP94: 2.35 | DQ94: 0.93 | DR94: 4.4 | DS94: 1.08 | DT94: 0.7 | DU94: 8.6 | DV94: 2.3 | DW94: 1.22 | DX94: 9.2
B95: Dez | C95: 1.38 | D95: 0.68 | E95: -0.9 | F95: 0.17 | G95: 0.11 | H95: -6.2 | I95: 2.41 | J95: 1.12 | K95: 6.6 | L95: 1.77 | M95: 0.94 | N95: 3.4 | O95: 2.53 | P95: 1.3 | Q95: 12.1 | R95: 1.51 | S95: 0.78 | T95: 3.3 | U95: 1.27 | V95: 0.71 | W95: -0.4 | X95: 2.11 | Y95: 1.03 | Z95: 5.7 | AA95: 1.46 | AB95: 0.8 | AC95: -0.8 | AD95: 1.57 | AE95: 0.83 | AF95: 1.7 | AG95: 1.3 | AH95: 0.7 | AI95: 1 | AJ95: 2.28 | AK95: 0.84 | AL95: -0.5 | AM95: 2.62 | AN95: 1.12 | AO95: 9.2 | AP95: 2.16 | AQ95: 0.79 | AR95: 0.5 | AS95: 1.3 | AT95: 0.7 | AU95: -0.3 | AV95: 3.41 | AW95: 0.89 | AX95: 7.4 | AY95: 2.77 | AZ95: 0.97 | BA95: 13 | BB95: 2.14 | BC95: 1 | BD95: 5 | BE95: 2.01 | BF95: 0.83 | BG95: 6.5 | BH95: 2.51 | BI95: 1.15 | BJ95: 12.4 | BK95: 1.54 | BL95: 0.9 | BM95: 0.3 | BN95: 2.71 | BO95: 1.07 | BP95: 13.8 | BQ95: 1.9 | BR95: 0.86 | BS95: 0.9 | BT95: 1.94 | BU95: 1.07 | BV95: 4.6 | BW95: 2.73 | BX95: 0.78 | BY95: 8.7 | BZ95: 1.9 | CA95: 0.72 | CB95: -2 | CC95: 2.7 | CD95: 0.93 | CE95: 14.2 | CF95: 1.72 | CG95: 0.82 | CH95: 3.2 | CI95: 2.18 | CJ95: 1.03 | CK95: 6.5 | CL95: 3.28 | CM95: 1.32 | CN95: 20.8 | CO95: 1.36 | CP95: 0.62 | CQ95: -5 | CR95: 2.5 | CS95: 1.24 | CT95: 10.5 | CU95: 2.59 | CV95: 1.24 | CW95: 14.9 | CX95: 1.47 | CY95: 0.88 | CZ95: 3.6 | DA95: 2.42 | DB95: 0.99 | DC95: 4.6 | DD95: 3.31 | DE95: 1.21 | DF95: 16.3 | DG95: 1.67 | DH95: 0.82 | DI95: 3.3 | DJ95: 2.94 | DK95: 0.91 | DL95: 12.6 | DM95: 1.72 | DN95: 0.92 | DO95: 8.5 | DP95: 1.8 | DQ95: 0.79 | DR95: -0.2 | DS95: 0.69 | DT95: 0.49 | DU95: 6.9 | DV95: 1.82 | DW95: 0.96 | DX95: 4.1
B96: Jahr | C96: 3.72 | D96: 1.83 | E96: 9.3 | F96: 2.4 | G96: 1.32 | H96: 3.6 | I96: 4.63 | J96: 1.94 | K96: 16.6 | L96: 4.05 | M96: 1.89 | N96: 13.3 | O96: 4.54 | P96: 2.14 | Q96: 20.4 | R96: 3.9 | S96: 1.81 | T96: 10.9 | U96: 3.67 | V96: 1.78 | W96: 9.2 | X96: 4.26 | Y96: 2.01 | Z96: 15.9 | AA96: 3.87 | AB96: 1.8 | AC96: 11 | AD96: 3.99 | AE96: 1.91 | AF96: 12.4 | AG96: 3.75 | AH96: 1.84 | AI96: 11.1 | AJ96: 4.67 | AK96: 1.66 | AL96: 9.6 | AM96: 4.87 | AN96: 1.92 | AO96: 19.6 | AP96: 4.58 | AQ96: 1.66 | AR96: 10.8 | AS96: 3.79 | AT96: 1.86 | AU96: 10.4 | AV96: 6.07 | AW96: 1.32 | AX96: 19.1 | AY96: 5.16 | AZ96: 1.75 | BA96: 17.9 | BB96: 4.35 | BC96: 1.97 | BD96: 14.7 | BE96: 4.17 | BF96: 1.99 | BG96: 15.4 | BH96: 4.43 | BI96: 2.18 | BJ96: 20.9 | BK96: 4.11 | BL96: 1.8 | BM96: 11.9 | BN96: 5.08 | BO96: 1.74 | BP96: 18 | BQ96: 4.28 | BR96: 1.8 | BS96: 13.1 | BT96: 4.2 | BU96: 1.95 | BV96: 14.9 | BW96: 5.62 | BX96: 1.34 | BY96: 20.7 | BZ96: 4.43 | CA96: 1.67 | CB96: 11.1 | CC96: 5.07 | CD96: 1.78 | CE96: 17.9 | CF96: 4.11 | CG96: 1.93 | CH96: 14.3 | CI96: 4.51 | CJ96: 1.95 | CK96: 17.2 | CL96: 4.83 | CM96: 2.24 | CN96: 24.7 | CO96: 3.88 | CP96: 1.7 | CQ96: 8.2 | CR96: 4.61 | CS96: 2.07 | CT96: 19.6 | CU96: 4.54 | CV96: 2.14 | CW96: 22 | CX96: 3.84 | CY96: 1.85 | CZ96: 12.7 | DA96: 4.66 | DB96: 1.82 | DC96: 15.8 | DD96: 5.08 | DE96: 2.04 | DF96: 22.1 | DG96: 3.97 | DH96: 1.87 | DI96: 12.9 | DJ96: 5.69 | DK96: 1.5 | DL96: 23.9 | DM96: 4.91 | DN96: 1.57 | DO96: 16.1 | DP96: 4.86 | DQ96: 1.49 | DR96: 11.8 | DS96: 3.33 | DT96: 1.67 | DU96: 12.2 | DV96: 4.2 | DW96: 1.98 | DX96: 14
A101: =Zwischenwerte!A21 -> Great Britain | B101: Stadt | C101: Aberdeen | F101: Ashfield | I101: Barnsley | L101: Enfield | O101: Lancaster | R101: Leeds | U101: Liverpool | X101: London | AA101: Manchester | AD101: Ogwr | AG101: Plymouth
B102: Breitengrad | C102: 57.15 | F102: 53.13 | I102: 53.57 | L102: 51.6 | O102: 54.67 | R102: 53.8 | U102: 53.42 | X102: 51.5 | AA102: 53.5 | AD102: 51.5 | AG102: 50.38
C103: Global | D103: Diffus | E103: Außentemp | F103: Global | G103: Diffus | H103: Außentemp | I103: Global | J103: Diffus | K103: Außentemp | L103: Global | M103: Diffus | N103: Außentemp | O103: Global | P103: Diffus | Q103: Außentemp | R103: Global | S103: Diffus | T103: Außentemp | U103: Global | V103: Diffus | W103: Außentemp | X103: Global | Y103: Diffus | Z103: Außentemp | AA103: Global | AB103: Diffus | AC103: Außentemp | AD103: Global | AE103: Diffus | AF103: Außentemp | AG103: Global | AH103: Diffus | AI103: Außentemp
B104: Jan | C104: 0.43 | D104: 0.29 | E104: 5.8 | F104: 0.6 | G104: 0.37 | H104: 4.3 | I104: 0.6 | J104: 0.35 | K104: 4.5 | L104: 0.63 | M104: 0.44 | N104: 4.7 | O104: 0.45 | P104: 0.29 | Q104: 4.4 | R104: 0.58 | S104: 0.35 | T104: 4.4 | U104: 0.58 | V104: 0.36 | W104: 5.4 | X104: 0.64 | Y104: 0.45 | Z104: 6.4 | AA104: 0.58 | AB104: 0.35 | AC104: 5.1 | AD104: 0.71 | AE104: 0.43 | AF104: 5.5 | AG104: 0.73 | AH104: 0.45 | AI104: 6.6
B105: Feb | C105: 1.03 | D105: 0.68 | E105: 5.3 | F105: 1.15 | G105: 0.69 | H105: 4.9 | I105: 1.14 | J105: 0.64 | K105: 5 | L105: 1.19 | M105: 0.7 | N105: 4.8 | O105: 1.1 | P105: 0.61 | Q105: 4.4 | R105: 1.05 | S105: 0.66 | T105: 4.8 | U105: 1.2 | V105: 0.8 | W105: 5.8 | X105: 1.17 | Y105: 0.76 | Z105: 6.8 | AA105: 1.17 | AB105: 0.78 | AC105: 5.4 | AD105: 1.24 | AE105: 0.82 | AF105: 5.8 | AG105: 1.36 | AH105: 0.91 | AI105: 6.7
B106: Mar | C106: 2.09 | D106: 1.09 | E106: 5.7 | F106: 1.98 | G106: 1.26 | H106: 6.3 | I106: 2.13 | J106: 1.24 | K106: 6.4 | L106: 2.18 | M106: 1.45 | N106: 6.3 | O106: 2.02 | P106: 1.17 | Q106: 5.6 | R106: 2.07 | S106: 1.33 | T106: 6.1 | U106: 2.17 | V106: 1.39 | W106: 7.2 | X106: 2.19 | Y106: 1.3 | Z106: 8.5 | AA106: 2.16 | AB106: 1.35 | AC106: 7 | AD106: 2.32 | AE106: 1.39 | AF106: 7.2 | AG106: 2.46 | AH106: 1.65 | AI106: 8
B107: Apr | C107: 3.26 | D107: 2.1 | E107: 6.8 | F107: 3.36 | G107: 1.85 | H107: 8.2 | I107: 3.29 | J107: 2.07 | K107: 8.3 | L107: 3.41 | M107: 1.94 | N107: 8.4 | O107: 3.01 | P107: 1.84 | Q107: 7.3 | R107: 3.21 | S107: 1.86 | T107: 8 | U107: 3.61 | V107: 2.23 | W107: 8.9 | X107: 3.37 | Y107: 2.06 | Z107: 10.4 | AA107: 3.55 | AB107: 2.03 | AC107: 8.8 | AD107: 3.44 | AE107: 2.07 | AF107: 8.8 | AG107: 4 | AH107: 2.21 | AI107: 9.4
B108: Mai | C108: 4.34 | D108: 2.62 | E108: 8.9 | F108: 4.3 | G108: 2.54 | H108: 11.3 | I108: 4.44 | J108: 2.31 | K108: 11.3 | L108: 4.39 | M108: 2.67 | N108: 11.6 | O108: 4.1 | P108: 2.63 | Q108: 10.4 | R108: 4.47 | S108: 2.33 | T108: 11 | U108: 4.83 | V108: 2.91 | W108: 12.1 | X108: 4.39 | Y108: 2.73 | Z108: 13.7 | AA108: 4.74 | AB108: 2.73 | AC108: 12 | AD108: 4.71 | AE108: 2.72 | AF108: 11.9 | AG108: 5.01 | AH108: 2.64 | AI108: 12.3
B109: Jun | C109: 4.7 | D109: 3.15 | E109: 11.5 | F109: 4.46 | G109: 2.77 | H109: 14.3 | I109: 4.72 | J109: 2.73 | K109: 14.1 | L109: 4.79 | M109: 2.91 | N109: 14.7 | O109: 4.42 | P109: 2.86 | Q109: 12.7 | R109: 4.86 | S109: 2.85 | T109: 13.8 | U109: 5.01 | V109: 2.81 | W109: 14.7 | X109: 4.81 | Y109: 2.42 | Z109: 16.9 | AA109: 5 | AB109: 2.85 | AC109: 14.5 | AD109: 5.02 | AE109: 2.71 | AF109: 14.5 | AG109: 5.22 | AH109: 2.78 | AI109: 14.7
B110: Jul | C110: 4.25 | D110: 2.7 | E110: 13.6 | F110: 4.44 | G110: 2.53 | H110: 16.1 | I110: 4.68 | J110: 2.69 | K110: 15.8 | L110: 4.54 | M110: 2.53 | N110: 16.3 | O110: 4 | P110: 2.66 | Q110: 14.5 | R110: 4.66 | S110: 2.53 | T110: 15.6 | U110: 4.77 | V110: 2.96 | W110: 16.3 | X110: 4.56 | Y110: 2.46 | Z110: 18.4 | AA110: 4.78 | AB110: 2.74 | AC110: 16.2 | AD110: 4.64 | AE110: 2.59 | AF110: 16.3 | AG110: 5.01 | AH110: 2.88 | AI110: 16.4
B111: Aug | C111: 3.58 | D111: 2.12 | E111: 14.3 | F111: 3.85 | G111: 2.36 | H111: 16.6 | I111: 3.86 | J111: 2.33 | K111: 16.3 | L111: 3.91 | M111: 2.13 | N111: 16.5 | O111: 3.52 | P111: 2.44 | Q111: 14.7 | R111: 3.77 | S111: 2.11 | T111: 16 | U111: 3.9 | V111: 2.32 | W111: 16.8 | X111: 3.95 | Y111: 2.28 | Z111: 19.1 | AA111: 3.91 | AB111: 1.92 | AC111: 16.6 | AD111: 3.98 | AE111: 2.12 | AF111: 16.8 | AG111: 4.35 | AH111: 2.38 | AI111: 17
B112: Sep | C112: 2.38 | D112: 1.45 | E112: 13 | F112: 2.62 | G112: 1.45 | H112: 13.9 | I112: 2.64 | J112: 1.53 | K112: 13.8 | L112: 2.81 | M112: 1.86 | N112: 14.3 | O112: 2.3 | P112: 1.36 | Q112: 12.7 | R112: 2.57 | S112: 1.52 | T112: 13.5 | U112: 2.74 | V112: 1.57 | W112: 14.6 | X112: 2.86 | Y112: 1.87 | Z112: 16.2 | AA112: 2.7 | AB112: 1.62 | AC112: 14.3 | AD112: 2.97 | AE112: 1.63 | AF112: 14.8 | AG112: 3.17 | AH112: 1.73 | AI112: 15.2
B113: Okt | C113: 1.3 | D113: 0.83 | E113: 10.2 | F113: 1.45 | G113: 0.94 | H113: 10.3 | I113: 1.5 | J113: 0.81 | K113: 10.3 | L113: 1.62 | M113: 1.08 | N113: 10.7 | O113: 1.24 | P113: 0.78 | Q113: 9.4 | R113: 1.49 | S113: 0.96 | T113: 10.1 | U113: 1.52 | V113: 0.98 | W113: 11.2 | X113: 1.65 | Y113: 1.02 | Z113: 12.7 | AA113: 1.5 | AB113: 0.87 | AC113: 10.8 | AD113: 1.72 | AE113: 1.06 | AF113: 11.5 | AG113: 1.81 | AH113: 1.04 | AI113: 12.2
B114: Nov | C114: 0.58 | D114: 0.35 | E114: 7.4 | F114: 0.78 | G114: 0.49 | H114: 6.8 | I114: 0.77 | J114: 0.42 | K114: 6.8 | L114: 0.84 | M114: 0.54 | N114: 7 | O114: 0.64 | P114: 0.39 | Q114: 6.5 | R114: 0.79 | S114: 0.48 | T114: 6.6 | U114: 0.73 | V114: 0.49 | W114: 8.1 | X114: 0.83 | Y114: 0.58 | Z114: 9 | AA114: 0.74 | AB114: 0.52 | AC114: 7.5 | AD114: 0.9 | AE114: 0.55 | AF114: 8.3 | AG114: 0.96 | AH114: 0.54 | AI114: 9.1
B115: Dez | C115: 0.29 | D115: 0.22 | E115: 5.8 | F115: 0.44 | G115: 0.31 | H115: 4.4 | I115: 0.46 | J115: 0.31 | K115: 4.5 | L115: 0.48 | M115: 0.37 | N115: 4.8 | O115: 0.37 | P115: 0.24 | Q115: 4.5 | R115: 0.47 | S115: 0.33 | T115: 4.2 | U115: 0.42 | V115: 0.3 | W115: 5.5 | X115: 0.49 | Y115: 0.34 | Z115: 6.7 | AA115: 0.43 | AB115: 0.32 | AC115: 5.1 | AD115: 0.55 | AE115: 0.35 | AF115: 5.9 | AG115: 0.58 | AH115: 0.42 | AI115: 6.9
B116: Jahr | C116: 2.35 | D116: 1.47 | E116: 9 | F116: 2.45 | G116: 1.47 | H116: 9.8 | I116: 2.52 | J116: 1.46 | K116: 9.8 | L116: 2.57 | M116: 1.56 | N116: 10 | O116: 2.26 | P116: 1.44 | Q116: 8.9 | R116: 2.5 | S116: 1.45 | T116: 9.5 | U116: 2.62 | V116: 1.6 | W116: 10.6 | X116: 2.58 | Y116: 1.53 | Z116: 12.1 | AA116: 2.6 | AB116: 1.51 | AC116: 10.3 | AD116: 2.68 | AE116: 1.54 | AF116: 10.6 | AG116: 2.89 | AH116: 1.64 | AI116: 11.2
A121: =Translation!A24 -> Czech Republic | B121: Stadt | C121: Brno | F121: Hradec Králové | I121: Liberec | L121: Olomouc | O121: Ostrava | R121: Plzen | U121: Praha | X121: Ústí nad Labem
B122: Breitengrad | C122: 49.22 | F122: 50.22 | I122: 50.8 | L122: 49.63 | O122: 49.83 | R122: 49.75 | U122: 50.1 | X122: 50.68
C123: Global | D123: Diffus | E123: Außentemp | F123: Global | G123: Diffus | H123: Außentemp | I123: Global | J123: Diffus | K123: Außentemp | L123: Global | M123: Diffus | N123: Außentemp | O123: Global | P123: Diffus | Q123: Außentemp | R123: Global | S123: Diffus | T123: Außentemp | U123: Global | V123: Diffus | W123: Außentemp | X123: Global | Y123: Diffus | Z123: Außentemp
B124: Jan | C124: 0.81 | D124: 0.47 | E124: -1.9 | F124: 0.74 | G124: 0.46 | H124: -0.9 | I124: 0.7 | J124: 0.44 | K124: -1.8 | L124: 0.79 | M124: 0.46 | N124: -1.8 | O124: 0.79 | P124: 0.45 | Q124: -1.8 | R124: 0.72 | S124: 0.51 | T124: -2 | U124: 0.69 | V124: 0.48 | W124: -0.8 | X124: 0.74 | Y124: 0.43 | Z124: -1.6
B125: Feb | C125: 1.66 | D125: 0.9 | E125: 0.3 | F125: 1.41 | G125: 0.94 | H125: 1.1 | I125: 1.31 | J125: 0.79 | K125: -0.3 | L125: 1.51 | M125: 0.94 | N125: 0.2 | O125: 1.49 | P125: 1.01 | Q125: 0 | R125: 1.4 | S125: 0.82 | T125: -0.2 | U125: 1.35 | V125: 0.81 | W125: 1.5 | X125: 1.34 | Y125: 0.79 | Z125: 0.6
B126: Mar | C126: 2.66 | D126: 1.51 | E126: 4 | F126: 2.54 | G126: 1.56 | H126: 4.2 | I126: 2.39 | J126: 1.27 | K126: 2.6 | L126: 2.45 | M126: 1.53 | N126: 3.7 | O126: 2.4 | P126: 1.42 | Q126: 3.2 | R126: 2.36 | S126: 1.51 | T126: 3 | U126: 2.29 | V126: 1.32 | W126: 4.3 | X126: 2.41 | Y126: 1.28 | Z126: 3.6
B127: Apr | C127: 4.07 | D127: 2.23 | E127: 9.7 | F127: 3.93 | G127: 1.94 | H127: 9.1 | I127: 3.79 | J127: 1.81 | K127: 7.7 | L127: 3.81 | M127: 1.77 | N127: 9.2 | O127: 3.67 | P127: 2 | Q127: 8.9 | R127: 3.82 | S127: 2.2 | T127: 7.7 | U127: 3.66 | V127: 2.29 | W127: 9.1 | X127: 3.7 | Y127: 2.12 | Z127: 8.9
B128: Mai | C128: 5.34 | D128: 2.84 | E128: 15.1 | F128: 5.21 | G128: 2.48 | H128: 14.7 | I128: 4.84 | J128: 2.68 | K128: 13 | L128: 4.98 | M128: 2.6 | N128: 14.7 | O128: 4.92 | P128: 2.65 | Q128: 14.4 | R128: 4.82 | S128: 2.4 | T128: 13.2 | U128: 4.84 | V128: 2.52 | W128: 14.5 | X128: 4.81 | Y128: 2.34 | Z128: 13.9
B129: Jun | C129: 5.52 | D129: 2.66 | E129: 17.8 | F129: 5.54 | G129: 2.89 | H129: 17.2 | I129: 5.05 | J129: 2.4 | K129: 15.5 | L129: 5.12 | M129: 2.77 | N129: 17.2 | O129: 4.99 | P129: 2.79 | Q129: 16.9 | R129: 4.96 | S129: 2.85 | T129: 16 | U129: 4.89 | V129: 2.53 | W129: 17.1 | X129: 4.92 | Y129: 2.87 | Z129: 16.5
B130: Jul | C130: 5.4 | D130: 2.66 | E130: 19 | F130: 5.23 | G130: 2.88 | H130: 18.3 | I130: 4.89 | J130: 2.71 | K130: 16.7 | L130: 5.07 | M130: 2.78 | N130: 18.5 | O130: 5.02 | P130: 2.81 | Q130: 18.4 | R130: 4.83 | S130: 2.89 | T130: 17 | U130: 4.86 | V130: 2.44 | W130: 18.3 | X130: 4.82 | Y130: 2.75 | Z130: 17.7
B131: Aug | C131: 4.76 | D131: 2.23 | E131: 19.6 | F131: 4.61 | G131: 2.39 | H131: 18.9 | I131: 4.43 | J131: 2.41 | K131: 17.3 | L131: 4.51 | M131: 2.44 | N131: 18.9 | O131: 4.44 | P131: 2.34 | Q131: 18.5 | R131: 4.42 | S131: 2.18 | T131: 17.8 | U131: 4.39 | V131: 2.14 | W131: 19 | X131: 4.39 | Y131: 2.42 | Z131: 18.6
B132: Sep | C132: 3.13 | D132: 1.93 | E132: 14.3 | F132: 3.19 | G132: 1.56 | H132: 13.9 | I132: 2.89 | J132: 1.83 | K132: 12.7 | L132: 2.92 | M132: 1.75 | N132: 13.7 | O132: 2.83 | P132: 1.71 | Q132: 13.6 | R132: 2.91 | S132: 1.72 | T132: 12.8 | U132: 2.86 | V132: 1.8 | W132: 14 | X132: 2.9 | Y132: 1.69 | Z132: 13.7
B133: Okt | C133: 1.91 | D133: 1.28 | E133: 9.4 | F133: 1.85 | G133: 1.06 | H133: 9.5 | I133: 1.75 | J133: 1.09 | K133: 8.6 | L133: 1.86 | M133: 1.01 | N133: 9.3 | O133: 1.85 | P133: 1.11 | Q133: 9.4 | R133: 1.81 | S133: 1.03 | T133: 8.2 | U133: 1.77 | V133: 1.23 | W133: 9.4 | X133: 1.79 | Y133: 1.08 | Z133: 8.9
B134: Nov | C134: 0.9 | D134: 0.61 | E134: 4.1 | F134: 0.79 | G134: 0.53 | H134: 4.1 | I134: 0.79 | J134: 0.52 | K134: 3.4 | L134: 0.86 | M134: 0.55 | N134: 4.2 | O134: 0.84 | P134: 0.61 | Q134: 4.3 | R134: 0.84 | S134: 0.55 | T134: 2.7 | U134: 0.78 | V134: 0.56 | W134: 3.8 | X134: 0.8 | Y134: 0.53 | Z134: 3.3
B135: Dez | C135: 0.63 | D135: 0.43 | E135: -1.3 | F135: 0.55 | G135: 0.42 | H135: -0.4 | I135: 0.51 | J135: 0.39 | K135: -1.1 | L135: 0.56 | M135: 0.41 | N135: -1.2 | O135: 0.55 | P135: 0.38 | Q135: -1 | R135: 0.52 | S135: 0.37 | T135: -1.3 | U135: 0.49 | V135: 0.39 | W135: -0.2 | X135: 0.51 | Y135: 0.39 | Z135: -0.9
B136: Jahr | C136: 3.06 | D136: 1.65 | E136: 9.2 | F136: 2.97 | G136: 1.6 | H136: 9.1 | I136: 2.78 | J136: 1.53 | K136: 7.9 | L136: 2.87 | M136: 1.59 | N136: 8.9 | O136: 2.82 | P136: 1.61 | Q136: 8.7 | R136: 2.78 | S136: 1.59 | T136: 7.9 | U136: 2.74 | V136: 1.54 | W136: 9.2 | X136: 2.76 | Y136: 1.56 | Z136: 8.6
A141: =Zwischenwerte!A23 -> Poland | B141: Stadt | C141: Bialystok | F141: Bydgoszcz | I141: Dabrowa Górnicza | L141: Warschau | O141: Wloclawek | R141: Zabrze | U141: Zielona Góra
B142: Breitengrad | C142: 53.15 | F142: 53.27 | I142: 53.27 | L142: 52.25 | O142: 52.65 | R142: 50.3 | U142: 51.95
C143: Global | D143: Diffus | E143: Außentemp | F143: Global | G143: Diffus | H143: Außentemp | I143: Global | J143: Diffus | K143: Außentemp | L143: Global | M143: Diffus | N143: Außentemp | O143: Global | P143: Diffus | Q143: Außentemp | R143: Global | S143: Diffus | T143: Außentemp | U143: Global | V143: Diffus | W143: Außentemp
B144: Jan | C144: 0.73 | D144: 0.39 | E144: -3.1 | F144: 0.64 | G144: 0.41 | H144: -1.5 | I144: 0.64 | J144: 0.41 | K144: -1.5 | L144: 0.58 | M144: 0.42 | N144: -2 | O144: 0.61 | P144: 0.38 | Q144: -1.5 | R144: 0.74 | S144: 0.45 | T144: -1.8 | U144: 0.7 | V144: 0.41 | W144: -0.8
B145: Feb | C145: 1.44 | D145: 0.75 | E145: -1.7 | F145: 1.29 | G145: 0.82 | H145: 0 | I145: 1.29 | J145: 0.82 | K145: 0 | L145: 1.17 | M145: 0.76 | N145: -0.5 | O145: 1.27 | P145: 0.85 | Q145: 0 | R145: 1.44 | S145: 0.96 | T145: -0.2 | U145: 1.36 | V145: 0.75 | W145: 1
B146: Mar | C146: 2.44 | D146: 1.36 | E146: 1.1 | F146: 2.36 | G146: 1.31 | H146: 2.5 | I146: 2.36 | J146: 1.31 | K146: 2.5 | L146: 2.29 | M146: 1.46 | N146: 2.3 | O146: 2.29 | P146: 1.32 | Q146: 2.6 | R146: 2.38 | S146: 1.45 | T146: 2.8 | U146: 2.43 | V146: 1.37 | W146: 3.5
B147: Apr | C147: 3.96 | D147: 1.94 | E147: 7.9 | F147: 4 | G147: 2.14 | H147: 8.4 | I147: 4 | J147: 2.14 | K147: 8.4 | L147: 3.48 | M147: 2 | N147: 8.7 | O147: 3.75 | P147: 2.04 | Q147: 8.6 | R147: 3.72 | S147: 2.09 | T147: 8.7 | U147: 4.02 | V147: 1.93 | W147: 9.1
B148: Mai | C148: 5.26 | D148: 2.57 | E148: 13.2 | F148: 4.96 | G148: 2.48 | H148: 13.7 | I148: 4.96 | J148: 2.48 | K148: 13.7 | L148: 4.97 | M148: 2.69 | N148: 14.5 | O148: 4.95 | P148: 2.5 | Q148: 14 | R148: 4.88 | S148: 2.36 | T148: 14.4 | U148: 5.15 | V148: 2.52 | W148: 14.3
B149: Jun | C149: 5.26 | D149: 2.99 | E149: 16 | F149: 5.16 | G149: 2.85 | H149: 16.3 | I149: 5.16 | J149: 2.85 | K149: 16.3 | L149: 5.28 | M149: 2.65 | N149: 16.9 | O149: 5.13 | P149: 2.74 | Q149: 16.6 | R149: 5.02 | S149: 2.6 | T149: 16.8 | U149: 5.35 | V149: 2.74 | W149: 16.9
B150: Jul | C150: 5.2 | D150: 2.72 | E150: 18.3 | F150: 4.85 | G150: 2.67 | H150: 18.2 | I150: 4.85 | J150: 2.67 | K150: 18.2 | L150: 5.13 | M150: 2.55 | N150: 18.9 | O150: 4.89 | P150: 2.83 | Q150: 18.6 | R150: 4.98 | S150: 2.95 | T150: 18.2 | U150: 5.04 | V150: 2.41 | W150: 18.4
B151: Aug | C151: 4.45 | D151: 2.33 | E151: 17.3 | F151: 4.28 | G151: 2.26 | H151: 18.3 | I151: 4.28 | J151: 2.26 | K151: 18.3 | L151: 4.42 | M151: 2.29 | N151: 18.6 | O151: 4.4 | P151: 2.18 | Q151: 18.6 | R151: 4.41 | S151: 2.52 | T151: 18.2 | U151: 4.67 | V151: 2.35 | W151: 19
B152: Sep | C152: 2.92 | D152: 1.6 | E152: 12 | F152: 2.82 | G152: 1.67 | H152: 13.5 | I152: 2.82 | J152: 1.67 | K152: 13.5 | L152: 2.83 | M152: 1.58 | N152: 13.4 | O152: 2.79 | P152: 1.75 | Q152: 13.6 | R152: 2.84 | S152: 1.81 | T152: 13.2 | U152: 3.04 | V152: 1.59 | W152: 14.1
B153: Okt | C153: 1.75 | D153: 1.02 | E153: 7.5 | F153: 1.68 | G153: 0.96 | H153: 8.6 | I153: 1.68 | J153: 0.96 | K153: 8.6 | L153: 1.62 | M153: 0.94 | N153: 8.6 | O153: 1.67 | P153: 0.96 | Q153: 8.8 | R153: 1.8 | S153: 1 | T153: 9 | U153: 1.75 | V153: 0.96 | W153: 9.4
B154: Nov | C154: 0.85 | D154: 0.52 | E154: 2.4 | F154: 0.87 | G154: 0.53 | H154: 3.4 | I154: 0.87 | J154: 0.53 | K154: 3.4 | L154: 0.68 | M154: 0.51 | N154: 3.3 | O154: 0.8 | P154: 0.55 | Q154: 3.5 | R154: 0.82 | S154: 0.55 | T154: 3.8 | U154: 0.88 | V154: 0.56 | W154: 3.7
B155: Dez | C155: 0.51 | D155: 0.34 | E155: -2.6 | F155: 0.5 | G155: 0.34 | H155: -0.7 | I155: 0.5 | J155: 0.34 | K155: -0.7 | L155: 0.41 | M155: 0.3 | N155: -1.4 | O155: 0.46 | P155: 0.3 | Q155: -0.9 | R155: 0.52 | S155: 0.35 | T155: -1.3 | U155: 0.54 | V155: 0.35 | W155: -0.1
B156: Jahr | C156: 2.9 | D156: 1.55 | E156: 7.4 | F156: 2.79 | G156: 1.54 | H156: 8.4 | I156: 2.79 | J156: 1.54 | K156: 8.4 | L156: 2.74 | M156: 1.52 | N156: 8.4 | O156: 2.75 | P156: 1.54 | Q156: 8.5 | R156: 2.8 | S156: 1.59 | T156: 8.5 | U156: 2.91 | V156: 1.5 | W156: 9
A161: =Zwischenwerte!A24 -> Austria | B161: Stadt | C161: Innsbruck | F161: Linz | I161: Salzburg | L161: Wien
B162: Breitengrad | C162: 47.28 | F162: 48.3 | I162: 47.8 | L162: 48.22
C163: Global | D163: Diffus | E163: Außentemp | F163: Global | G163: Diffus | H163: Außentemp | I163: Global | J163: Diffus | K163: Außentemp | L163: Global | M163: Diffus | N163: Außentemp
B164: Jan | C164: 1.22 | D164: 0.58 | E164: -1.4 | F164: 0.92 | G164: 0.53 | H164: -0.8 | I164: 0.92 | J164: 0.53 | K164: -0.8 | L164: 0.85 | M164: 0.51 | N164: 0.8
B165: Feb | C165: 1.99 | D165: 1.1 | E165: 0.6 | F165: 1.64 | G165: 0.87 | H165: 1.3 | I165: 1.64 | J165: 0.87 | K165: 1.3 | L165: 1.58 | M165: 1.05 | N165: 2.9
B166: Mar | C166: 3.17 | D166: 1.67 | E166: 5.4 | F166: 2.62 | G166: 1.71 | H166: 5.4 | I166: 2.62 | J166: 1.71 | K166: 5.4 | L166: 2.7 | M166: 1.7 | N166: 6.4
B167: Apr | C167: 4.03 | D167: 2.41 | E167: 9.1 | F167: 3.9 | G167: 1.96 | H167: 10.3 | I167: 3.9 | J167: 1.96 | K167: 10.3 | L167: 4.03 | M167: 1.93 | N167: 11.7
B168: Mai | C168: 4.82 | D168: 2.16 | E168: 14.7 | F168: 4.86 | G168: 2.55 | H168: 15.9 | I168: 4.86 | J168: 2.55 | K168: 15.9 | L168: 5.28 | M168: 2.8 | N168: 17.2
B169: Jun | C169: 4.92 | D169: 2.96 | E169: 17.4 | F169: 4.94 | G169: 2.95 | H169: 18.4 | I169: 4.94 | J169: 2.95 | K169: 18.4 | L169: 5.58 | M169: 3.04 | N169: 19.9
B170: Jul | C170: 4.92 | D170: 2.25 | E170: 17.9 | F170: 5.37 | G170: 2.85 | H170: 19.2 | I170: 5.37 | J170: 2.85 | K170: 19.2 | L170: 5.44 | M170: 2.7 | N170: 21.1
B171: Aug | C171: 4.32 | D171: 2.32 | E171: 18.2 | F171: 4.5 | G171: 2.38 | H171: 19.7 | I171: 4.5 | J171: 2.38 | K171: 19.7 | L171: 4.74 | M171: 2.2 | N171: 21.6
B172: Sep | C172: 3.31 | D172: 1.74 | E172: 13.8 | F172: 3.15 | G172: 1.79 | H172: 14.8 | I172: 3.15 | J172: 1.79 | K172: 14.8 | L172: 3.29 | M172: 1.92 | N172: 16.3
B173: Okt | C173: 2.38 | D173: 1.08 | E173: 9.7 | F173: 2.05 | G173: 1.07 | H173: 10.1 | I173: 2.05 | J173: 1.07 | K173: 10.1 | L173: 2.03 | M173: 1.1 | N173: 11.6
B174: Nov | C174: 1.39 | D174: 0.71 | E174: 3.4 | F174: 0.98 | G174: 0.64 | H174: 4.7 | I174: 0.98 | J174: 0.64 | K174: 4.7 | L174: 0.97 | M174: 0.63 | N174: 6.4
B175: Dez | C175: 0.96 | D175: 0.48 | E175: -0.6 | F175: 0.71 | G175: 0.46 | H175: 0.3 | I175: 0.71 | J175: 0.46 | K175: 0.3 | L175: 0.66 | M175: 0.44 | N175: 1.4
B176: Jahr | C176: 3.12 | D176: 1.62 | E176: 9 | F176: 2.97 | G176: 1.65 | H176: 9.9 | I176: 2.97 | J176: 1.65 | K176: 9.9 | L176: 3.09 | M176: 1.67 | N176: 11.4
A181: =Zwischenwerte!A25 -> Sweden | B181: Stadt | C181: Boras | F181: Göteborg | I181: Helsingborg | L181: Joenkoeping | O181: Linkoeping | R181: Malmoe | U181: Oerebro | X181: Stockholm | AA181: Uppsala | AD181: Vaesteras
B182: Breitengrad | C182: 57.7 | F182: 57.75 | I182: 56.08 | L182: 57.75 | O182: 58.42 | R182: 55.85 | U182: 59.3 | X182: 59.35 | AA182: 59.88 | AD182: 59.6
C183: Global | D183: Diffus | E183: Außentemp | F183: Global | G183: Diffus | H183: Außentemp | I183: Global | J183: Diffus | K183: Außentemp | L183: Global | M183: Diffus | N183: Außentemp | O183: Global | P183: Diffus | Q183: Außentemp | R183: Global | S183: Diffus | T183: Außentemp | U183: Global | V183: Diffus | W183: Außentemp | X183: Global | Y183: Diffus | Z183: Außentemp | AA183: Global | AB183: Diffus | AC183: Außentemp | AD183: Global | AE183: Diffus | AF183: Außentemp
B184: Jan | C184: 0.37 | D184: 0.24 | E184: -1.1 | F184: 0.37 | G184: 0.24 | H184: 0 | I184: 0.46 | J184: 0.33 | K184: 1.9 | L184: 0.37 | M184: 0.27 | N184: -2 | O184: 0.39 | P184: 0.24 | Q184: -1.4 | R184: 0.46 | S184: 0.3 | T184: 0.8 | U184: 0.37 | V184: 0.25 | W184: -1.9 | X184: 0.31 | Y184: 0.22 | Z184: -1.6 | AA184: 0.31 | AB184: 0.21 | AC184: -2.6 | AD184: 0.34 | AE184: 0.23 | AF184: -2.5
B185: Feb | C185: 0.91 | D185: 0.58 | E185: -0.9 | F185: 0.9 | G185: 0.61 | H185: 0.1 | I185: 1.04 | J185: 0.7 | K185: 2 | L185: 0.92 | M185: 0.59 | N185: -1.8 | O185: 0.97 | P185: 0.64 | Q185: -1.6 | R185: 1.01 | S185: 0.69 | T185: 1.1 | U185: 0.97 | V185: 0.59 | W185: -1.5 | X185: 0.94 | Y185: 0.52 | Z185: -1.7 | AA185: 0.93 | AB185: 0.56 | AC185: -2.8 | AD185: 0.97 | AE185: 0.59 | AF185: -2.5
B186: Mar | C186: 1.9 | D186: 1.16 | E186: 0.8 | F186: 1.87 | G186: 1.1 | H186: 1.5 | I186: 2.1 | J186: 1.24 | K186: 2.7 | L186: 1.87 | M186: 1.1 | N186: 0 | O186: 2.15 | P186: 1.14 | Q186: 0.8 | R186: 2.11 | S186: 1.36 | T186: 2.4 | U186: 2.13 | V186: 1.06 | W186: 1 | X186: 2.18 | Y186: 1.06 | Z186: 0.9 | AA186: 2.14 | AB186: 0.96 | AC186: -0.3 | AD186: 2.15 | AE186: 0.97 | AF186: 0.8
B187: Apr | C187: 3.5 | D187: 1.84 | E187: 5.7 | F187: 3.49 | G187: 1.97 | H187: 6.3 | I187: 3.78 | J187: 2.08 | K187: 6.6 | L187: 3.58 | M187: 1.85 | N187: 5 | O187: 3.59 | P187: 1.8 | Q187: 5.7 | R187: 3.79 | S187: 1.97 | T187: 6.7 | U187: 3.58 | V187: 1.94 | W187: 6 | X187: 3.67 | Y187: 1.73 | Z187: 6 | AA187: 3.64 | AB187: 1.69 | AC187: 5 | AD187: 3.64 | AE187: 1.68 | AF187: 6.3
B188: Mai | C188: 4.93 | D188: 2.38 | E188: 10.3 | F188: 4.93 | G188: 2.31 | H188: 10.7 | I188: 5.13 | J188: 2.41 | K188: 10.9 | L188: 4.68 | M188: 2.42 | N188: 9.8 | O188: 5.24 | P188: 2.33 | Q188: 10.8 | R188: 5.21 | S188: 2.56 | T188: 11.2 | U188: 5.11 | V188: 2.29 | W188: 11.3 | X188: 5.28 | Y188: 2.38 | Z188: 11 | AA188: 5.17 | AB188: 2.32 | AC188: 9.9 | AD188: 5.14 | AE188: 2.19 | AF188: 11.5
B189: Jun | C189: 5.33 | D189: 2.9 | E189: 13.6 | F189: 5.36 | G189: 2.82 | H189: 14.1 | I189: 5.37 | J189: 2.65 | K189: 13.9 | L189: 5 | M189: 2.76 | N189: 13.6 | O189: 5.45 | P189: 2.51 | Q189: 14.8 | R189: 5.37 | S189: 2.77 | T189: 14.5 | U189: 5.4 | V189: 2.66 | W189: 15.1 | X189: 5.81 | Y189: 2.62 | Z189: 15.6 | AA189: 5.7 | AB189: 2.7 | AC189: 14.3 | AD189: 5.61 | AE189: 2.89 | AF189: 15.9
B190: Jul | C190: 5.23 | D190: 2.38 | E190: 16 | F190: 5.31 | G190: 2.5 | H190: 16.5 | I190: 5.23 | J190: 2.84 | K190: 16.4 | L190: 4.88 | M190: 2.49 | N190: 15.7 | O190: 5.24 | P190: 2.87 | Q190: 17.1 | R190: 5.24 | S190: 2.61 | T190: 16.9 | U190: 5.22 | V190: 2.58 | W190: 17.6 | X190: 5.33 | Y190: 2.72 | Z190: 18.6 | AA190: 5.23 | AB190: 2.76 | AC190: 17.2 | AD190: 5.22 | AE190: 2.77 | AF190: 18.6
B191: Aug | C191: 4.03 | D191: 2.29 | E191: 16.2 | F191: 4.02 | G191: 2.16 | H191: 16.8 | I191: 4.26 | J191: 2.19 | K191: 17.4 | L191: 3.94 | M191: 1.91 | N191: 15.7 | O191: 4.28 | P191: 1.97 | Q191: 16.7 | R191: 4.25 | S191: 2.2 | T191: 17.5 | U191: 4.15 | V191: 2.08 | W191: 16.8 | X191: 4.2 | Y191: 2.29 | Z191: 18 | AA191: 4.16 | AB191: 2.08 | AC191: 16.4 | AD191: 4.14 | AE191: 2.08 | AF191: 17.7
B192: Sep | C192: 2.56 | D192: 1.47 | E192: 11.9 | F192: 2.57 | G192: 1.44 | H192: 12.9 | I192: 2.66 | J192: 1.67 | K192: 13.9 | L192: 2.45 | M192: 1.37 | N192: 11.2 | O192: 2.63 | P192: 1.32 | Q192: 12.2 | R192: 2.68 | S192: 1.53 | T192: 13.9 | U192: 2.61 | V192: 1.21 | W192: 12 | X192: 2.62 | Y192: 1.4 | Z192: 13.1 | AA192: 2.57 | AB192: 1.34 | AC192: 11.6 | AD192: 2.59 | AE192: 1.4 | AF192: 12.9
B193: Okt | C193: 1.22 | D193: 0.69 | E193: 7.1 | F193: 1.22 | G193: 0.78 | H193: 8.1 | I193: 1.39 | J193: 0.97 | K193: 9.4 | L193: 1.24 | M193: 0.77 | N193: 6.3 | O193: 1.23 | P193: 0.73 | Q193: 6.9 | R193: 1.39 | S193: 0.84 | T193: 9.4 | U193: 1.18 | V193: 0.67 | W193: 6.5 | X193: 1.18 | Y193: 0.69 | Z193: 7.3 | AA193: 1.16 | AB193: 0.73 | AC193: 6.1 | AD193: 1.19 | AE193: 0.67 | AF193: 6.9
B194: Nov | C194: 0.53 | D194: 0.34 | E194: 2.8 | F194: 0.53 | G194: 0.33 | H194: 3.9 | I194: 0.6 | J194: 0.43 | K194: 5.3 | L194: 0.54 | M194: 0.34 | N194: 2 | O194: 0.44 | P194: 0.31 | Q194: 2.7 | R194: 0.61 | S194: 0.38 | T194: 5.2 | U194: 0.47 | V194: 0.32 | W194: 2.1 | X194: 0.41 | Y194: 0.28 | Z194: 3 | AA194: 0.42 | AB194: 0.29 | AC194: 1.8 | AD194: 0.45 | AE194: 0.31 | AF194: 2.2
B195: Dez | C195: 0.25 | D195: 0.17 | E195: -0.4 | F195: 0.25 | G195: 0.19 | H195: 0.5 | I195: 0.32 | J195: 0.22 | K195: 2.5 | L195: 0.26 | M195: 0.19 | N195: -1.5 | O195: 0.22 | P195: 0.17 | Q195: -0.7 | R195: 0.33 | S195: 0.25 | T195: 1.9 | U195: 0.23 | V195: 0.16 | W195: -1.4 | X195: 0.19 | Y195: 0.15 | Z195: -0.6 | AA195: 0.2 | AB195: 0.12 | AC195: -1.8 | AD195: 0.22 | AE195: 0.15 | AF195: -1.5
B196: Jahr | C196: 2.56 | D196: 1.37 | E196: 6.8 | F196: 2.57 | G196: 1.37 | H196: 7.6 | I196: 2.7 | J196: 1.48 | K196: 8.6 | L196: 2.48 | M196: 1.34 | N196: 6.2 | O196: 2.65 | P196: 1.34 | Q196: 7 | R196: 2.71 | S196: 1.46 | T196: 8.5 | U196: 2.62 | V196: 1.32 | W196: 7 | X196: 2.68 | Y196: 1.34 | Z196: 7.5 | AA196: 2.64 | AB196: 1.32 | AC196: 6.2 | AD196: 2.64 | AE196: 1.33 | AF196: 7.2
A201: =Zwischenwerte!A26 -> Ireland | B201: Stadt | C201: Cork | F201: Dublin
B202: Breitengrad | C202: 51.9 | F202: 53.33
C203: Global | D203: Diffus | E203: Außentemp | F203: Global | G203: Diffus | H203: Außentemp
B204: Jan | C204: 0.62 | D204: 0.41 | E204: 6.4 | F204: 0.65 | G204: 0.42 | H204: 6.9
B205: Feb | C205: 1.26 | D205: 0.9 | E205: 6.6 | F205: 1.18 | G205: 0.75 | H205: 6.5
B206: Mar | C206: 2.31 | D206: 1.38 | E206: 7.6 | F206: 2.24 | G206: 1.13 | H206: 7
B207: Apr | C207: 3.86 | D207: 2.11 | E207: 8.7 | F207: 3.56 | G207: 2 | H207: 7.8
B208: Mai | C208: 4.78 | D208: 2.59 | E208: 11.2 | F208: 4.63 | G208: 2.58 | H208: 10.2
B209: Jun | C209: 4.98 | D209: 2.57 | E209: 13.4 | F209: 4.78 | G209: 2.56 | H209: 12.8
B210: Jul | C210: 4.62 | D210: 2.82 | E210: 15.1 | F210: 4.51 | G210: 2.67 | H210: 14.7
B211: Aug | C211: 4.01 | D211: 2.11 | E211: 15.4 | F211: 3.84 | G211: 2.28 | H211: 15.3
B212: Sep | C212: 2.85 | D212: 1.75 | E212: 14 | F212: 2.72 | G212: 1.67 | H212: 14
B213: Okt | C213: 1.59 | D213: 1.05 | E213: 11.1 | F213: 1.59 | G213: 0.98 | H213: 11
B214: Nov | C214: 0.86 | D214: 0.52 | E214: 8.4 | F214: 0.82 | G214: 0.46 | H214: 8.4
B215: Dez | C215: 0.47 | D215: 0.37 | E215: 6.8 | F215: 0.46 | G215: 0.3 | H215: 6.9
B216: Jahr | C216: 2.68 | D216: 1.55 | E216: 10.4 | F216: 2.58 | G216: 1.49 | H216: 10.1
A221: =Translation!A29 -> Italy | B221: Stadt | C221: Allessandria | F221: Ancona | I221: Bari | L221: Bergamo | O221: Bologna | R221: Bolzano | U221: Cagliari | X221: Catania | AA221: Catanzaro | AD221: Cosenza | AG221: Ferrara | AJ221: Firenze | AM221: Genova | AP221: La Spezia | AS221: Milano | AV221: Napoli | AY221: Palermo | BB221: Parma | BE221: Rimini | BH221: Roma | BK221: Taranto | BN221: Venezia
B222: Breitengrad | C222: 44.92 | F222: 43.6 | I222: 41.12 | L222: 45.7 | O222: 44.5 | R222: 46.5 | U222: 39.2 | X222: 37.5 | AA222: 38.9 | AD222: 39.28 | AG222: 44.83 | AJ222: 43.8 | AM222: 44.4 | AP222: 44.13 | AS222: 45.45 | AV222: 40.8 | AY222: 38.1 | BB222: 44.8 | BE222: 44.05 | BH222: 41.9 | BK222: 40.47 | BN222: 45.5
C223: Global | D223: Diffus | E223: Außentemp | F223: Global | G223: Diffus | H223: Außentemp | I223: Global | J223: Diffus | K223: Außentemp | L223: Global | M223: Diffus | N223: Außentemp | O223: Global | P223: Diffus | Q223: Außentemp | R223: Global | S223: Diffus | T223: Außentemp | U223: Global | V223: Diffus | W223: Außentemp | X223: Global | Y223: Diffus | Z223: Außentemp | AA223: Global | AB223: Diffus | AC223: Außentemp | AD223: Global | AE223: Diffus | AF223: Außentemp | AG223: Global | AH223: Diffus | AI223: Außentemp | AJ223: Global | AK223: Diffus | AL223: Außentemp | AM223: Global | AN223: Diffus | AO223: Außentemp | AP223: Global | AQ223: Diffus | AR223: Außentemp | AS223: Global | AT223: Diffus | AU223: Außentemp | AV223: Global | AW223: Diffus | AX223: Außentemp | AY223: Global | AZ223: Diffus | BA223: Außentemp | BB223: Global | BC223: Diffus | BD223: Außentemp | BE223: Global | BF223: Diffus | BG223: Außentemp | BH223: Global | BI223: Diffus | BJ223: Außentemp | BK223: Global | BL223: Diffus | BM223: Außentemp | BN223: Global | BO223: Diffus | BP223: Außentemp
B224: Jan | C224: 1.33 | D224: 0.67 | E224: 3.6 | F224: 1.36 | G224: 0.69 | H224: 5.5 | I224: 1.87 | J224: 0.78 | K224: 9.5 | L224: 1.26 | M224: 0.73 | N224: 3 | O224: 1.2 | P224: 0.76 | Q224: 3.1 | R224: 1.27 | S224: 0.6 | T224: 1.2 | U224: 2.16 | V224: 1 | W224: 9.8 | X224: 2.24 | Y224: 1.12 | Z224: 10 | AA224: 2.07 | AB224: 0.96 | AC224: 10.3 | AD224: 2.05 | AE224: 0.86 | AF224: 8.9 | AG224: 1.18 | AH224: 0.75 | AI224: 3.4 | AJ224: 1.39 | AK224: 0.7 | AL224: 5.7 | AM224: 1.38 | AN224: 0.79 | AO224: 10 | AP224: 1.41 | AQ224: 0.69 | AR224: 6.5 | AS224: 1.08 | AT224: 0.69 | AU224: 3.4 | AV224: 1.68 | AW224: 0.93 | AX224: 10.5 | AY224: 2.19 | AZ224: 1.09 | BA224: 13.5 | BB224: 1.2 | BC224: 0.74 | BD224: 2.8 | BE224: 1.2 | BF224: 0.8 | BG224: 3.9 | BH224: 1.85 | BI224: 0.89 | BJ224: 9.8 | BK224: 1.82 | BL224: 0.94 | BM224: 11 | BN224: 1.18 | BO224: 0.65 | BP224: 4.7
B225: Feb | C225: 2.1 | D225: 1.22 | E225: 5.5 | F225: 1.92 | G225: 1.24 | H225: 6.2 | I225: 2.68 | J225: 1.36 | K225: 8.8 | L225: 2.03 | M225: 1.08 | N225: 4.6 | O225: 1.71 | P225: 1.1 | Q225: 5.1 | R225: 2.09 | S225: 0.94 | T225: 4.6 | U225: 2.98 | V225: 1.28 | W225: 9.9 | X225: 3.17 | Y225: 1.2 | Z225: 10.1 | AA225: 2.72 | AB225: 1.36 | AC225: 10.2 | AD225: 2.74 | AE225: 1.21 | AF225: 8.9 | AG225: 1.76 | AH225: 1.14 | AI225: 5.2 | AJ225: 2.2 | AK225: 1.27 | AL225: 6.7 | AM225: 2.14 | AN225: 1.12 | AO225: 10.5 | AP225: 2.24 | AQ225: 1.22 | AR225: 7.6 | AS225: 1.85 | AT225: 1.05 | AU225: 5.5 | AV225: 2.51 | AW225: 1.25 | AX225: 10.1 | AY225: 3.04 | AZ225: 1.28 | BA225: 12.8 | BB225: 1.96 | BC225: 1.16 | BD225: 4.8 | BE225: 2.1 | BF225: 1.26 | BG225: 5.1 | BH225: 2.62 | BI225: 1.23 | BJ225: 9.9 | BK225: 2.64 | BL225: 1.19 | BM225: 10.8 | BN225: 1.97 | BO225: 1.14 | BP225: 5.2
B226: Mar | C226: 3.31 | D226: 1.81 | E226: 9.8 | F226: 3.34 | G226: 1.53 | H226: 9.6 | I226: 3.91 | J226: 1.72 | K226: 10.7 | L226: 3.17 | M226: 1.63 | N226: 9 | O226: 2.84 | P226: 1.97 | Q226: 9.6 | R226: 3.19 | S226: 1.7 | T226: 10.1 | U226: 4.37 | V226: 1.67 | W226: 12.3 | X226: 4.39 | Y226: 1.77 | Z226: 12.1 | AA226: 3.92 | AB226: 1.87 | AC226: 12.1 | AD226: 3.94 | AE226: 1.55 | AF226: 10.9 | AG226: 2.93 | AH226: 1.71 | AI226: 9.6 | AJ226: 3.33 | AK226: 1.67 | AL226: 10.3 | AM226: 3.23 | AN226: 1.87 | AO226: 12.1 | AP226: 3.38 | AQ226: 1.82 | AR226: 10.8 | AS226: 3.07 | AT226: 1.61 | AU226: 10.1 | AV226: 3.72 | AW226: 1.76 | AX226: 11.9 | AY226: 4.33 | AZ226: 1.85 | BA226: 13.8 | BB226: 3.25 | BC226: 1.81 | BD226: 9.5 | BE226: 3.42 | BF226: 1.83 | BG226: 8.9 | BH226: 3.94 | BI226: 1.74 | BJ226: 12.2 | BK226: 3.9 | BL226: 1.84 | BM226: 12.3 | BN226: 3.14 | BO226: 1.77 | BP226: 8.8
B227: Apr | C227: 4.39 | D227: 2.43 | E227: 12.8 | F227: 4.99 | G227: 2.25 | H227: 12.6 | I227: 5.37 | J227: 2.35 | K227: 12.9 | L227: 4.11 | M227: 2.02 | N227: 12.2 | O227: 3.97 | P227: 2.24 | Q227: 13.1 | R227: 4.41 | S227: 2.14 | T227: 13.2 | U227: 5.35 | V227: 2.28 | W227: 14.4 | X227: 5.67 | Y227: 2.45 | Z227: 14.5 | AA227: 5.35 | AB227: 2.45 | AC227: 14.5 | AD227: 5.38 | AE227: 2.39 | AF227: 13.3 | AG227: 4.08 | AH227: 2.24 | AI227: 13.2 | AJ227: 4.58 | AK227: 2.43 | AL227: 13.1 | AM227: 4.24 | AN227: 2.28 | AO227: 13.6 | AP227: 4.67 | AQ227: 2.12 | AR227: 13.1 | AS227: 4.45 | AT227: 2.36 | AU227: 13.2 | AV227: 5.03 | AW227: 2.37 | AX227: 13.7 | AY227: 5.62 | AZ227: 2.38 | BA227: 15.4 | BB227: 4.25 | BC227: 2.17 | BD227: 13 | BE227: 4.35 | BF227: 2.13 | BG227: 12.4 | BH227: 5.1 | BI227: 2.49 | BJ227: 14 | BK227: 5.13 | BL227: 2.4 | BM227: 14.6 | BN227: 4.44 | BO227: 2.3 | BP227: 12.2
B228: Mai | C228: 5.32 | D228: 2.53 | E228: 18.3 | F228: 5.8 | G228: 2.57 | H228: 18.1 | I228: 6.32 | J228: 2.46 | K228: 17.9 | L228: 4.89 | M228: 2.78 | N228: 18 | O228: 4.95 | P228: 2.62 | Q228: 19 | R228: 4.51 | S228: 2.84 | T228: 18.4 | U228: 6.62 | V228: 2.55 | W228: 18.9 | X228: 6.64 | Y228: 2.57 | Z228: 19 | AA228: 6.32 | AB228: 2.7 | AC228: 19.5 | AD228: 6.34 | AE228: 2.28 | AF228: 18.5 | AG228: 5.15 | AH228: 2.91 | AI228: 19.2 | AJ228: 5.67 | AK228: 2.65 | AL228: 18.7 | AM228: 5.15 | AN228: 2.6 | AO228: 18.1 | AP228: 5.67 | AQ228: 2.65 | AR228: 18.3 | AS228: 5.15 | AT228: 2.67 | AU228: 19.2 | AV228: 6.03 | AW228: 2.55 | AX228: 18.7 | AY228: 6.7 | AZ228: 2.38 | BA228: 19.3 | BB228: 5.39 | BC228: 2.75 | BD228: 19 | BE228: 5.66 | BF228: 2.47 | BG228: 17.8 | BH228: 6.2 | BI228: 2.58 | BJ228: 19.2 | BK228: 6.2 | BL228: 2.58 | BM228: 20.2 | BN228: 5.66 | BO228: 2.86 | BP228: 17.7
B229: Jun | C229: 6.14 | D229: 2.76 | E229: 22.5 | F229: 6.37 | G229: 2.9 | H229: 22.4 | I229: 6.99 | J229: 2.58 | K229: 22.4 | L229: 5.72 | M229: 2.73 | N229: 22.2 | O229: 5.72 | P229: 2.77 | Q229: 23.3 | R229: 5.88 | S229: 2.45 | T229: 22.1 | U229: 7.46 | V229: 2.53 | W229: 23.4 | X229: 7.26 | Y229: 2.42 | Z229: 23.6 | AA229: 7.06 | AB229: 2.61 | AC229: 24 | AD229: 7.08 | AE229: 2.36 | AF229: 23.2 | AG229: 5.85 | AH229: 3.03 | AI229: 23.4 | AJ229: 6.34 | AK229: 2.53 | AL229: 23 | AM229: 6.05 | AN229: 2.91 | AO229: 21.9 | AP229: 6.53 | AQ229: 2.56 | AR229: 22.3 | AS229: 5.85 | AT229: 2.73 | AU229: 23.4 | AV229: 6.88 | AW229: 2.57 | AX229: 23 | AY229: 7.45 | AZ229: 2.36 | BA229: 23.4 | BB229: 6.07 | BC229: 2.67 | BD229: 23.2 | BE229: 6.09 | BF229: 2.8 | BG229: 22.4 | BH229: 6.76 | BI229: 2.89 | BJ229: 23.7 | BK229: 6.96 | BL229: 2.62 | BM229: 25 | BN229: 6.22 | BO229: 2.91 | BP229: 21.5
B230: Jul | C230: 6.53 | D230: 2.54 | E230: 23.9 | F230: 6.78 | G230: 2.64 | H230: 24.2 | I230: 7.02 | J230: 2.5 | K230: 24.8 | L230: 5.93 | M230: 2.8 | N230: 23.3 | O230: 5.82 | P230: 2.95 | Q230: 24.9 | R230: 5.85 | S230: 2.65 | T230: 23 | U230: 7.46 | V230: 2.19 | W230: 25.6 | X230: 7.32 | Y230: 2.2 | Z230: 26.1 | AA230: 6.99 | AB230: 2.45 | AC230: 26.2 | AD230: 7.07 | AE230: 2.17 | AF230: 25.5 | AG230: 6 | AH230: 3.06 | AI230: 25 | AJ230: 6.52 | AK230: 2.66 | AL230: 24.7 | AM230: 6.64 | AN230: 2.53 | AO230: 23.9 | AP230: 6.98 | AQ230: 2.55 | AR230: 24.1 | AS230: 6.05 | AT230: 2.84 | AU230: 24.7 | AV230: 6.87 | AW230: 2.59 | AX230: 25 | AY230: 7.39 | AZ230: 2.33 | BA230: 26 | BB230: 6.23 | BC230: 2.72 | BD230: 24.6 | BE230: 6.17 | BF230: 2.72 | BG230: 24 | BH230: 6.98 | BI230: 2.45 | BJ230: 25.9 | BK230: 7.01 | BL230: 2.29 | BM230: 27.7 | BN230: 6.41 | BO230: 2.76 | BP230: 23.2
B231: Aug | C231: 5.53 | D231: 2.25 | E231: 24 | F231: 5.79 | G231: 2.42 | H231: 24.4 | I231: 6.12 | J231: 2.49 | K231: 25 | L231: 5.19 | M231: 2.56 | N231: 23.5 | O231: 5.05 | P231: 2.47 | Q231: 24.9 | R231: 5.11 | S231: 2.41 | T231: 23 | U231: 6.58 | V231: 2.15 | W231: 26.3 | X231: 6.47 | Y231: 2.2 | Z231: 26.5 | AA231: 6.25 | AB231: 2.24 | AC231: 26.5 | AD231: 6.3 | AE231: 2.07 | AF231: 25.7 | AG231: 5.18 | AH231: 2.51 | AI231: 25.1 | AJ231: 5.61 | AK231: 2.3 | AL231: 25 | AM231: 5.61 | AN231: 2.43 | AO231: 24.9 | AP231: 5.87 | AQ231: 1.97 | AR231: 24.6 | AS231: 5.23 | AT231: 2.33 | AU231: 24.7 | AV231: 6.08 | AW231: 2.23 | AX231: 25.7 | AY231: 6.53 | AZ231: 2.14 | BA231: 26.8 | BB231: 5.36 | BC231: 2.39 | BD231: 24.7 | BE231: 5.39 | BF231: 2.41 | BG231: 24.1 | BH231: 6.13 | BI231: 2.37 | BJ231: 26.5 | BK231: 6.12 | BL231: 2.46 | BM231: 27.7 | BN231: 5.47 | BO231: 2.52 | BP231: 23.7
B232: Sep | C232: 3.93 | D232: 1.91 | E232: 19.3 | F232: 4.35 | G232: 1.83 | H232: 19.7 | I232: 4.76 | J232: 1.85 | K232: 21.2 | L232: 3.66 | M232: 1.91 | N232: 18.5 | O232: 3.72 | P232: 2.09 | Q232: 19.6 | R232: 3.81 | S232: 1.69 | T232: 18.2 | U232: 5.18 | V232: 1.74 | W232: 22.4 | X232: 5.18 | Y232: 1.9 | Z232: 23.1 | AA232: 5.07 | AB232: 1.8 | AC232: 22.2 | AD232: 5.1 | AE232: 1.67 | AF232: 21.1 | AG232: 3.79 | AH232: 2.07 | AI232: 19.8 | AJ232: 4.18 | AK232: 1.73 | AL232: 20 | AM232: 3.9 | AN232: 1.92 | AO232: 21.8 | AP232: 4.21 | AQ232: 1.79 | AR232: 20.2 | AS232: 3.74 | AT232: 1.75 | AU232: 19.8 | AV232: 4.63 | AW232: 1.96 | AX232: 21.8 | AY232: 5.07 | AZ232: 1.69 | BA232: 24.2 | BB232: 3.89 | BC232: 2.04 | BD232: 19.5 | BE232: 3.85 | BF232: 2.17 | BG232: 19.2 | BH232: 4.74 | BI232: 1.85 | BJ232: 22.5 | BK232: 4.74 | BL232: 2.02 | BM232: 23.3 | BN232: 4.08 | BO232: 1.8 | BP232: 19.3
B233: Okt | C233: 2.45 | D233: 1.33 | E233: 14.4 | F233: 2.57 | G233: 1.35 | H233: 15.9 | I233: 3.31 | J233: 1.41 | K233: 17.7 | L233: 2.22 | M233: 1.34 | N233: 13.9 | O233: 2.31 | P233: 1.25 | Q233: 14.9 | R233: 2.47 | S233: 1.34 | T233: 13.2 | U233: 3.63 | V233: 1.42 | W233: 19.4 | X233: 3.77 | Y233: 1.53 | Z233: 19.6 | AA233: 3.51 | AB233: 1.63 | AC233: 19 | AD233: 3.51 | AE233: 1.34 | AF233: 17.9 | AG233: 2.36 | AH233: 1.39 | AI233: 15.1 | AJ233: 2.69 | AK233: 1.41 | AL233: 16 | AM233: 2.54 | AN233: 1.29 | AO233: 18.2 | AP233: 2.69 | AQ233: 1.48 | AR233: 16 | AS233: 2.28 | AT233: 1.5 | AU233: 14.8 | AV233: 3.4 | AW233: 1.52 | AX233: 18.7 | AY233: 3.73 | AZ233: 1.52 | BA233: 21.5 | BB233: 2.33 | BC233: 1.25 | BD233: 14.3 | BE233: 2.34 | BF233: 1.45 | BG233: 15.3 | BH233: 3.25 | BI233: 1.44 | BJ233: 18.7 | BK233: 3.24 | BL233: 1.36 | BM233: 19.7 | BN233: 2.62 | BO233: 1.34 | BP233: 15.1
B234: Nov | C234: 1.47 | D234: 0.82 | E234: 8.4 | F234: 1.4 | G234: 0.82 | H234: 10.8 | I234: 2.13 | J234: 1 | K234: 13.7 | L234: 1.33 | M234: 0.84 | N234: 7.8 | O234: 1.25 | P234: 0.68 | Q234: 8.7 | R234: 1.49 | S234: 0.81 | T234: 6.4 | U234: 2.45 | V234: 1.13 | W234: 14.2 | X234: 2.55 | Y234: 1.21 | Z234: 15.2 | AA234: 2.33 | AB234: 1 | AC234: 14.9 | AD234: 2.34 | AE234: 0.96 | AF234: 13.7 | AG234: 1.2 | AH234: 0.8 | AI234: 9.1 | AJ234: 1.54 | AK234: 0.93 | AL234: 10.6 | AM234: 1.58 | AN234: 0.93 | AO234: 13.4 | AP234: 1.61 | AQ234: 0.78 | AR234: 10.9 | AS234: 1.22 | AT234: 0.76 | AU234: 8.4 | AV234: 1.95 | AW234: 1.08 | AX234: 14.7 | AY234: 2.52 | AZ234: 1.15 | BA234: 17.9 | BB234: 1.21 | BC234: 0.76 | BD234: 8.1 | BE234: 1.27 | BF234: 0.84 | BG234: 10 | BH234: 2.09 | BI234: 0.88 | BJ234: 14 | BK234: 2.07 | BL234: 1.06 | BM234: 15.3 | BN234: 1.34 | BO234: 0.72 | BP234: 9.7
B235: Dez | C235: 1.12 | D235: 0.65 | E235: 4.4 | F235: 1.2 | G235: 0.66 | H235: 6.9 | I235: 1.6 | J235: 0.81 | K235: 10.6 | L235: 1.01 | M235: 0.63 | N235: 3.7 | O235: 0.96 | P235: 0.62 | Q235: 3.8 | R235: 1.03 | S235: 0.56 | T235: 1.6 | U235: 1.97 | V235: 0.87 | W235: 10.9 | X235: 2 | Y235: 0.9 | Z235: 11.5 | AA235: 1.85 | AB235: 0.87 | AC235: 11.3 | AD235: 1.83 | AE235: 0.91 | AF235: 9.9 | AG235: 0.97 | AH235: 0.62 | AI235: 4.2 | AJ235: 1.2 | AK235: 0.69 | AL235: 6.5 | AM235: 1.19 | AN235: 0.68 | AO235: 10.8 | AP235: 1.23 | AQ235: 0.67 | AR235: 7.4 | AS235: 0.89 | AT235: 0.59 | AU235: 4.1 | AV235: 1.59 | AW235: 0.81 | AX235: 11.4 | AY235: 1.97 | AZ235: 0.94 | BA235: 14.8 | BB235: 1 | BC235: 0.6 | BD235: 3.7 | BE235: 1.14 | BF235: 0.69 | BG235: 5.3 | BH235: 1.59 | BI235: 0.79 | BJ235: 10.5 | BK235: 1.58 | BL235: 0.85 | BM235: 11.9 | BN235: 0.98 | BO235: 0.64 | BP235: 5.5
B236: Jahr | C236: 3.64 | D236: 1.75 | E236: 13.9 | F236: 3.82 | G236: 1.74 | H236: 14.7 | I236: 4.34 | J236: 1.78 | K236: 16.3 | L236: 3.38 | M236: 1.76 | N236: 13.3 | O236: 3.29 | P236: 1.8 | Q236: 14.2 | R236: 3.43 | S236: 1.68 | T236: 12.9 | U236: 4.69 | V236: 1.74 | W236: 17.3 | X236: 4.72 | Y236: 1.79 | Z236: 17.6 | AA236: 4.45 | AB236: 1.83 | AC236: 17.6 | AD236: 4.47 | AE236: 1.65 | AF236: 16.5 | AG236: 3.37 | AH236: 1.86 | AI236: 14.4 | AJ236: 3.77 | AK236: 1.75 | AL236: 15 | AM236: 3.64 | AN236: 1.78 | AO236: 16.6 | AP236: 3.87 | AQ236: 1.69 | AR236: 15.2 | AS236: 3.41 | AT236: 1.74 | AU236: 14.3 | AV236: 4.2 | AW236: 1.8 | AX236: 17.1 | AY236: 4.71 | AZ236: 1.76 | BA236: 19.1 | BB236: 3.51 | BC236: 1.76 | BD236: 13.9 | BE236: 3.58 | BF236: 1.8 | BG236: 14 | BH236: 4.27 | BI236: 1.8 | BJ236: 17.2 | BK236: 4.28 | BL236: 1.8 | BM236: 18.3 | BN236: 3.63 | BO236: 1.79 | BP236: 13.9
A241: =Translation!A30 -> Hungary | B241: Stadt | C241: Budapest | F241: Debrecen | I241: Miskolc | L241: Nyiregyhaza | O241: Pécs | R241: Szeged
B242: Breitengrad | C242: 47.5 | F242: 47.5 | I242: 48.1 | L242: 48 | O242: 46.08 | R242: 46.2
C243: Global | D243: Diffus | E243: Außentemp | F243: Global | G243: Diffus | H243: Außentemp | I243: Global | J243: Diffus | K243: Außentemp | L243: Global | M243: Diffus | N243: Außentemp | O243: Global | P243: Diffus | Q243: Außentemp | R243: Global | S243: Diffus | T243: Außentemp
B244: Jan | C244: 0.96 | D244: 0.56 | E244: -0.7 | F244: 1.17 | G244: 0.71 | H244: -1.4 | I244: 1.87 | J244: 0.78 | K244: 9.5 | L244: 0.55 | M244: 0.45 | N244: -1.9 | O244: 1.15 | P244: 0.71 | Q244: -0.4 | R244: 1.19 | S244: 0.63 | T244: -0.7
B245: Feb | C245: 1.68 | D245: 0.9 | E245: 1.4 | F245: 2.11 | G245: 0.99 | H245: 0.1 | I245: 2.68 | J245: 1.36 | K245: 8.8 | L245: 1.47 | M245: 0.93 | N245: 0 | O245: 1.97 | P245: 1.12 | Q245: 2 | R245: 2.1 | S245: 1.01 | T245: 0.8
B246: Mar | C246: 2.82 | D246: 1.72 | E246: 5.6 | F246: 3.26 | G246: 1.6 | H246: 4.9 | I246: 3.91 | J246: 1.72 | K246: 10.7 | L246: 3.31 | M246: 1.5 | N246: 4.6 | O246: 3 | P246: 1.78 | Q246: 6.1 | R246: 3.19 | S246: 1.82 | T246: 5.5
B247: Apr | C247: 4.25 | D247: 2.05 | E247: 11.6 | F247: 4.54 | G247: 1.96 | H247: 11.5 | I247: 5.37 | J247: 2.35 | K247: 12.9 | L247: 4.75 | M247: 2.13 | N247: 11.2 | O247: 4.5 | P247: 2.31 | Q247: 11.3 | R247: 4.55 | S247: 2.12 | T247: 11.3
B248: Mai | C248: 5.29 | D248: 2.74 | E248: 17.3 | F248: 5.42 | G248: 2.61 | H248: 17.3 | I248: 6.32 | J248: 2.46 | K248: 17.9 | L248: 6.14 | M248: 2.33 | N248: 16.8 | O248: 5.37 | P248: 2.63 | Q248: 17.2 | R248: 5.58 | S248: 2.71 | T248: 17.3
... 153 more rows

Sheet Translation (hidden)
A1: (Großbritannien) | B1: (Deutschland) | C1: (Großbritannien) | D1: (Frankreich) | E1: (Italien) | F1: (Niederlande) | G1: (Tschechien) | H1: (Slowakei) | I1: (Polen) | J1: (Ungarn) | K1: (Finland) | L1: (Dänemark)
A2: Great Britain | B2: Deutsch | C2: Great Britain | D2: France | E2: Italia | F2: Nederland | G2: Česká republika | H2: Slowakei | I2: Polska | J2: Magyarország | K2: Suomi | L2: Dansk
A4: Engineering tool | B4: Planungstool | C4: Engineering tool | D4: Outil de planification | E4: Strumento di pianificazione | F4: Planningshulpmiddel | G4: Projekční pomůcka | H4: Projekčná pomôcka | I4: Narzędzia projektowe | J4: Tervező | K4: Suunnittelutyökalu | L4: Planlægningsværktøj
A5: Solar system | B5: Solaranlage | C5: Solar system | D5: Installation solaire | E5: Impianto solare | F5: Solarsysteem | G5: Solární zařízení | H5: Solárny zariadenie | I5: Instalacja solarna | J5: Szolárrendszer | K5: Aurinkokeräinjärjestelmä | L5: Solfangersystem
A6: Next >> | B6: Weiter >> | C6: Next >> | D6: suivant | E6: Avanti | F6: Verder >> | G6: Dále | H6: Ďalej | I6: Dalej | J6: Tovább | K6: Seuraava | L6: Videre >>
A7: << Back | B7: << Zurück | C7: << Back | D7: précédant | E7: Indietro | F7: << Terug | G7: Zpět | H7: Späť | I7: Powrót | J7: Vissza | K7: Takaisin | L7: << Tilbage
A9: Project data | B9: Projektdaten | C9: Project data | D9: Projet | E9: Dati del progetto | F9: Projectdata | G9: Data projektu | H9: Dáta projektu | I9: Dane Projektowe | J9: Projekt | K9: Projekti | L9: Projekt data
A10: Project | B10: Bauvorhaben | C10: Project | D10: Projet | E10: Progetto di costruzione | F10: Project | G10: Akce | H10: Stavebný projekt | I10: Inwestycja | J10: Építmény | K10: Projekti | L10: Projekt
A11: Name | B11: Name | C11: Name | D11: Nom | E11: Nome | F11: Naam | G11: Jméno | H11: Meno | I11: Nazwisko | J11: Név | K11: Nimi | L11: Navn
A12: Street | B12: Straße | C12: Street | D12: Rue | E12: Via | F12: Straat | G12: Ulice | H12: Ulica | I12: Ulica | J12: Utca | K12: Katuosoite | L12: Gade
A13: Postcode/Town | B13: PLZ/Ort | C13: Postcode/Town | D13: CP/commune | E13: CAP/Località | F13: Postcode/Plaats | G13: PSČ | H13: PSČ | I13: Kod pocztowy/Miejscowość | J13: Ir.szám/Helyiség | K13: Postinumero/paikkakunta | L13: Postnr./By
A14: Phone | B14: Telefon | C14: Phone | D14: Téléphone | E14: Telefono | F14: Telefoon | G14: Telefon | H14: Telefón | I14: Tel. | J14: Telefon | K14: Puhelin | L14: Telefon
A15: Customer | B15: Auftraggeber | C15: Customer | D15: Donneur d'ordre | E15: Committente | F15: Klant | G15: Zákazník | H15: Zákazník | I15: Zleceniodawca | J15: Megbízó | K15: Asiakas | L15: Kunde
A16: Climate zone | B16: Klimazone | C16: Climate zone | D16: Zone climatique | E16: Zona climatica | F16: Klimaatzone | G16: Klimatická zóna | H16: Klimatická zóna | I16: Strefa klimatyczna | J16: Éghajlati övezet | K16: Ilmastovyöhyke | L16: Klimazone
A17: Country selection | B17: Auswahl Land | C17: Country selection | D17: Choix du pays | E17: Selezione Paese | F17: Land selectie | G17: Volba země | H17: Voľba krajiny | I17: Wybór kraju | J17: Ország kiválasztása | K17: Maa | L17: Valg af Land
A18: City/region selection | B18: Auswahl Stadt/Region | C18: City/region selection | D18: Choix ville/région | E18: Selezione Città/Regione | F18: Selectie van Stad/Regio | G18: Volba města/regionu | H18: Voľba mesta/ regiónu | I18: Wybór miasta/regionu | J18: Város/régió kiválasztása | K18: Kaupungin/alueen valinta | L18: Valg af by/region
A19: Germany | B19: Deutschland | C19: Germany | D19: Allemagne | E19: Germania | F19: Duitsland | G19: Německo | H19: Nemecko | I19: Niemcy | J19: Németország | K19: Saksa | L19: Tyskland
A20: France | B20: Frankreich | C20: France | D20: France | E20: Francia | F20: Frankrijk | G20: Francie | H20: Francúzsko | I20: Francja | J20: Franciaország | K20: Ranska | L20: Frankrig
A21: Switzerland | B21: Schweiz | C21: Switzerland | D21: Suisse | E21: Svizzera | F21: Zwitserland | G21: Švýcarsko | H21: Švajčiarsko | I21: Szwajcaria | J21: Svájc | K21: Sveitsi | L21: Schweiz
A22: USA | B22: USA | C22: USA | D22: USA | E22: USA | F22: USA | G22: USA | H22: USA | I22: USA | J22: USA | K22: Yhdysvallat | L22: USA
A23: Great Britain | B23: England | C23: Great Britain | D23: Grande-Bretagne | E23: Gran Bretagna | F23: Groot-Brittannië | G23: Velká Británie | H23: Veľká Británia | I23: Wielka Brytania | J23: Nagy-Britannia | K23: Iso-Britannia | L23: England
A24: Czech Republic | B24: Tschechien | C24: Czech Republic | D24: République tchèque | E24: Repubblica ceca | F24: Tsjechië | G24: Česká republika | H24: Česká republika | I24: Czechy | J24: Cseh Köztársaság | K24: Tsekki | L24: Tjekkiet
A25: Poland | B25: Polen | C25: Poland | D25: Pologne | E25: Polonia | F25: Polen | G25: Polsko | H25: Poľsko | I25: Polska | J25: Lengyelország | K25: Puola | L25: Polen
A26: Austria | B26: Österreich | C26: Austria | D26: Autriche | E26: Austria | F26: Oostenrijk | G26: Rakousko | H26: Rakúsko | I26: Austria | J26: Ausztria | K26: Itävalta | L26: Østrig
A27: Sweden | B27: Schweden | C27: Sweden | D27: Suède | E27: Svezia | F27: Zweden | G27: Švédsko | H27: Švédsko | I27: Szwecja | J27: Svédország | K27: Ruotsi | L27: Sverige
A28: Ireland | B28: Irland | C28: Ireland | D28: Irlande | E28: Irlanda | F28: Ierland | G28: Irsko | H28: Írsko | I28: Irlandia | J28: Írország | K28: Irlanti | L28: Irland
A29: Italy | B29: Italien | C29: Italy | D29: Italie | E29: Italia | F29: Italië | G29: Itálie | H29: Taliansko | I29: Włochy | J29: Olaszország | K29: Italia | L29: Italien
A30: Hungary | B30: Ungarn | C30: Hungary | D30: Hongrie | E30: Ungheria | F30: Hongarije | G30: Maďarsko | H30: Maďarsko | I30: Węgry | J30: Magyarország | K30: Unkari | L30: Ungarn
A31: Belgium | B31: Belgien | C31: Belgium | D31: Belquique | E31: Belgio | F31: Belgie | G31: Belgie | H31: Belgicko | I31: Belgia | J31: Belgium | K31: Belgia | L31: Belgien
A32: Netherlands | B32: Niederlande | C32: Netherlands | D32: Pays-Bas | E32: Paesi Bassi | F32: Nederland | G32: Nizozemi | H32: Holandsko | I32: Holandia | J32: Hollandia | K32: Hollanti | L32: Holland
A33: Slovakia | B33: Slovakei | C33: Slovakia | D33: Slovaquie | E33: Slovacca | F33: Slowakije | G33: Slovensko | H33: Slovensko | I33: Slowacja | J33: Slovakia | K33: Slovakia | L33: Slovakiet
A34: Finland | B34: Finnland | C34: Finland | D34: Finlande | E34: Finlandia | F34: Finland | G34: Finsko | H34: Finsko | I34: Finlandia | J34: Finnország | K34: Suomi | L34: Finland
A35: Bosnia-Herzegovina | B35: Bosnien-Herzegovina | C35: Bosnia-Herzegovina | D35: Bosnie-Herzegovine | E35: Bosnia ed Erzegovina | F35: Bosnie-Herzegovina | G35: Bosna a Hercegovina | H35: Bosna a Hercegovina | I35: Bosnia i Hercegowina | J35: Bosznia-Hecegovina | K35: Bosnia ja Hertsegovina | L35: Bosnien-Herzegovina
A36: Denmark | B36: Dänemark | C36: Denmark | D36: Danemark | E36: Danimarca | F36: Denemarken | G36: Denmark | H36: Dánsko | I36: Dania | J36: Denmark | K36: Tanska | L36: Danmark
A37: Morocco | B37: Marokko | C37: Morocco | D37: Morocco | E37: Marocco | F37: Morocco | G37: Morocco | H37: Maroko | I37: Morocco | J37: Morocco | K37: Morocco | L37: Marokko
A38: Europe | B38: Europa | C38: Europe | D38: Europe | E38: Europa | F38: Europa | G38: Európa | H38: Európa | I38: Europa | J38: Europa | K38: Eurooppa | L38: Europa
A39: | Import | B39: | Import | C39: | Import | D39: | Import | E39: | Import | F39: | Import | G39: | Import | H39: | Import | I39: | Import | J39: | Import | K39: | Tuo tiedot | L39: | Importer
A40: | Export | B40: | Export | C40: | Export | D40: | Export | E40: | Export | F40: | Export | G40: | Export | H40: | Export | I40: | Export | J40: | Export | K40: | Vie tiedot | L40: | Eksporter
A42: System selection | B42: Systemauswahl | C42: System selection | D42: Sélection du système | E42: Seleziona il sistema | F42: Systeemkeuze | G42: Volba soustavy | H42: Voľba systému | I42: Wybór systemu | J42: Rendszer kiválasztás | K42: Järjestelmän valinta | L42: Systemvalg
A43: Solar DHW heating | B43: Solare Warmwasserbereitung | C43: Solar DHW heating | D43: Production ECS solaire | E43: Produzione acqua calda solare | F43: Solar warmwaterbereiding | G43: Solární příprava teplé vody | H43: Solárna príprava teplej vody | I43: Przygotowanie ciepłej wody w instalacji solarnej | J43: Szolár HMV előállítás | K43: Käyttöveden lämmitys | L43: Solar VV-opvarmning
A44: Number of occupants | B44: Personenzahl | C44: Number of occupants | D44: Nombre de personnes | E44: Numero di persone | F44: Aantal bewoners | G44: Počet osob | H44: Počet osôb | I44: Liczba osób | J44: Személyek száma | K44: Käyttöveden kuluttajat | L44: Antal personer
A45: DHW demand | B45: Warmwasserbedarf | C45: DHW demand | D45: Besoin en ECS | E45: Fabbisogno acqua calda | F45: Warmwatervraag | G45: Potřeba teplé vody | H45: Spotreba teplej vody | I45: Zapotrzebowanie na ciepłą wodę | J45: Melegvíz-szükséglet | K45: Käyttöveden kulutus | L45: Varmtvandsforbrug
A46: Very low demand (15 litres) | B46: Sehr geringer Bedarf (15 Liter) | C46: Very low demand (15 litres) | D46: Besoin très faible (15 litres) | E46: Necessità molto ridotta (15 litri) | F46: Zeer laag verbgruik (15 liter) | G46: Velmi malá spotřeba (15 litrů) | H46: Veľmi malá spotreba (15 litrov) | I46: Nieznaczne zapotrzebowanie (15 l) | J46: Nagyon kevés szükséglet (15 liter) | K46: Erittäin alhainen kulutus (15 litraa) | L46: Meget lavt forbrug (15 liter)
A47: Low demand (30 litres) | B47: Geringer Bedarf (30 Liter) | C47: Low demand (30 litres) | D47: Besoin faible (30 litres) | E47: Necessità ridotta (30 litri) | F47: Laag verbruik (30 liter) | G47: Malá spotřeba (30 litrů) | H47: Malá spotreba (30 litrov) | I47: Niewielkie zapotrzebowanie (30 l) | J47: Kevés szükséglet (30 liter) | K47: Alhainen kulutus (30 litraa) | L47: Lavt forbrug (30 liter)
A48: Standard demand (40 litres) | B48: Normaler Bedarf (40 Liter) | C48: Standard demand (40 litres) | D48: Besoin normal (40 litres) | E48: Necessità normale (40 litri) | F48: Standaard verbruik (40 liter) | G48: Normální spotřeba (40 litrů) | H48: Normálna spotreba (40 litrov) | I48: Normalne zapotrzebowanie (40 l) | J48: Normál szükséglet (40 liter) | K48: Normaali kulutus (40 litraa) | L48: Standard forbrug (40 liter)
A49: High demand (60 litres) | B49: Hoher Bedarf (60 Liter) | C49: High demand (60 litres) | D49: Besoin élevé (60 litres) | E49: Necessità alta (60 litri) | F49: Hoog verbruik (60 liter) | G49: Vysoká spotřeba (60 litrů) | H49: Vysoká spotreba (60 litrov) | I49: Duże zapotrzebowanie (60 l) | J49: Magas szükséglet (60 liter) | K49: Korkea kulutus (60 litraa) | L49: Højt forbrug (60 liter)
A50: Very high demand (80 litres) | B50: Sehr hoher Bedarf (80 Liter) | C50: Very high demand (80 litres) | D50: Besoin très élevé (80 litres) | E50: Necessità molto alta (80 litri) | F50: Zeer hoog verbruik (80 liter) | G50: Velmi vysoká spotřeba (80 litrů) | H50: Veľmi vysoká spotreba (80 litrov) | I50: Bardzo duże zapotrzebowanie (80 l) | J50: Nagyon magas szükséglet (80 liter) | K50: Erittäin korkea kulutus (80 litraa) | L50: Meget højet forbrug (80 liter)
A51: Solar central heating backup | B51: Solare Heizungsunterstützung | C51: Solar central heating backup | D51: Chauffage d'appoint | E51: Supporto di riscaldamento | F51: Solar verwarmingsondersteuning | G51: Podpora vytápění | H51: Solárna podpora vykurovania | I51: Wspomaganie ogrzewania | J51: Fűtésrásegítés | K51: Aurinkolämmöllä tuettu lämmitys | L51: Solar centralvarmebackup
A52: Heat demand building | B52: Gebäudeheizlast | C52: Heat demand building | D52: Déperditions du bâtiment | E52: Fabbisogno riscaldamento edificio | F52: Verwarmingslast | G52: Tepelná ztráta budovy | H52: Tepelné straty budovy | I52: Obciążenie grzewcze budynku | J52: Épület fűtésterhelése | K52: Rakennuksen lämpökuorma | L52: Bygningens energibehov
A53: Cylinder type | B53: Speicherart | C53: Cylinder type | D53: Type de ballon | E53: Tipo accumulatore | F53: Boilertype | G53: Druh zásobníku | H53: Druh zásobníka | I53: Typ zasobnika | J53: Tároló jellege | K53: Varaajan tyyppi | L53: Beholdertype
A54: Two cylinder system (SBB+SBP) | B54: Zwei Speicher (SBB+SBP) | C54: Two cylinder system (SBB+SBP) | D54: Système à 2 ballons (tampon+ECS) | E54: due accumulatori (SBB + SBP) | F54: Twee vaten systeem (SBB+SBP) | G54: Dva zásobníky (SBB+SBP) | H54: Dva zásobníky (SBB+SBP) | I54: Dwa zasobniki (SBB + SBP) | J54: Két tárolós rendszer (SBB+SBP) | K54: Kaksi varaajaa (SBB+SBP) | L54: To-beholdersystem (SBB+SBP)
A55: Instantaneous water heater (SBS) | B55: Durchlaufspeicher (SBS) | C55: Instantaneous water heater (SBS) | D55: Ballon à production ECS instantanée (SBS) | E55: Scaldacqua istantaneo (SBS) | F55: Doorstroomboiler (SBS) | G55: Průtokový zásobník (SBS) | H55: Prietokový zásobník (SBS) | I55: Zasobnik przepływowy (SBS) | J55: Átfolyós HMV tároló (SBS) | K55: Läpivirtausvaraaja (SBS) | L55: Gennemstrømningsvandvarmer (SBS)
A56: Combi cylinder (SBK) | B56: Kombispeicher (SBK) | C56: Combi cylinder (SBK) | D56: Ballon combiné (SBK) | E56: Accumulatore combinato (SBK) | F56: Combi zonne-verwarmingsboiler (SBK) | G56: Kombinovaný zásobník (SBK) | H56: Kombinovaný zásobník (SBK) | I56: Zasobnik kombinowany (SBK) | J56: Kombi HMV tároló (SBK) | K56: Kombivaraaja (SBK) | L56: Kombibeholder (SBK)
A57: Solar swimming pool heating | B57: Solare Schwimmbaderwärmung | C57: Solar swimming pool heating | D57: Chauffage de piscine | E57: Riscaldamento piscina | F57: Solar zwembadverwarming | G57: Solární ohřev bazénu | H57: Solárna ohrev bazéna | I57: Podgrzew wody basenowej | J57: Uszodafűtés | K57: Uima-altaan lämmitys | L57: Solar swimmingpool opvarmning
A58: Swimming pool type | B58: Schwimmbadart | C58: Swimming pool type | D58: Type de piscine | E58: Tipo di piscina | F58: Zwembadtype | G58: Druh bazénu | H58: Bazén | I58: Typ basenu | J58: Medence jellege | K58: Uima-altaan tyyppi | L58: Swimmingpooltype
A59: Open air swimming pool with cover | B59: Freibad mit Abdeckung | C59: Open air swimming pool with cover | D59: Piscine de plein air avec bâche | E59: Piscina all'aperto con copertura | F59: Openluchtzwembad met afdekking | G59: Zastřešený venkovní bazén | H59: Zastrešený vonkajší bazén | I59: Basen otwarty z pokrywą | J59: Szabadtéri fedett medence | K59: Katettu ulkoilmauima-allas | L59: Udendørs swimmingpool med afdækning
A60: Open air pool without cover | B60: Freibad ohne Abdeckung | C60: Open air pool without cover | D60: Piscine de plein air sans bâche | E60: Piscina all'aperto senza copertura | F60: Openluchtzwembad zonder afdekking | G60: Nezastřešený venkovní bazén | H60: Nezastrešený vonkajší bazén | I60: Basen otwarty bez pokrywy | J60: Szabadtéri fedetlen medence | K60: Kattamaton ulkoilmauima-allas | L60: Udendørs swimmingpool uden afdækning
A61: Indoor pool with cover | B61: Hallenbad mit Abdeckung | C61: Indoor pool with cover | D61: Piscine couverte, avec bâche | E61: Piscina coperta con copertura | F61: Binnenzwembad met afdekking | G61: Zakrytý vnitřní bazén | H61: Krytý vnútorný bazén | I61: Basen kryty z pokrywą | J61: Beltéri fedett medence | K61: Katettu sisäuima-allas | L61: Indendørs swimmingpool med afdækning
A62: Indoor pool without cover | B62: Hallenbad ohne Abdeckung | C62: Indoor pool without cover | D62: Piscine couverte, sans bâche | E62: Piscina coperta senza copertura | F62: Binnenzwembad zonder afdekking | G62: Nezakrytý vnitřní bazén | H62: Nekrytý vnútorný bazén | I62: Basen kryty bez pokrywy | J62: Beltéri fedetlen medence | K62: Kattamaton sisäuima-allas | L62: Indendørs swimmingpool uden afdækning
A63: Volume in m³ | B63: Volumen in m³ | C63: Volume in m³ | D63: Volume en m³ | E63: Volume in m³ | F63: Volume in m ³ | G63: Objem v m³ | H63: Objem v m³ | I63: Pojemność w m³ | J63: Térfogat m³-ben | K63: Tilavuus [m³] | L63: Volumen i m³
A65: Collector details | B65: Kollektordaten | C65: Collector details | D65: Données capteur | E65: Dati collettore | F65: Collectorgegevens | G65: Údaje o kolektoru | H65: Údaje o kolektore | I65: Dane kolektorów | J65: Kollektoradatok | K65: Keräintiedot | L65: Kollektordata
A66: Collector type | B66: Kollektortyp | C66: Collector type | D66: Modèle de capteur | E66: Tipo di collettore | F66: Collector type | G66: Typ kolektoru | H66: Typ kolektora | I66: Typ kolektora | J66: Kollektor típusa | K66: Keräinmalli | L66: Kollektortype
A67: Rooftop | B67: Aufdach | C67: Rooftop | D67: Sur toiture | E67: Sopra tetto | F67: Op het dak | G67: Na střechu | H67: Na strechu | I67: Montaż na dachu | J67: Tetőre szerelt | K67: Katolle, | L67: Oven på tag
A68: Roof integration | B68: Indach | C68: Roof integration | D68: Intégré en toiture | E68: Sottotetto | F68: In het dak | G68: Vestavný | H68: Vstavaný | I68: Montaż w dachu | J68: Tetőbe szerelt | K68: Kattointegraatio, | L68: Tagintegreret
A69: Collector number | B69: Kollektoranzahl | C69: Collector number | D69: Nombre de capteurs | E69: Numero di collettori | F69: Collector aantal | G69: Počet kolektorů | H69: Počet kolektorov | I69: Liczba kolektorów | J69: Kollektorok száma | K69: Keräinten määrä | L69: Kollektorantal
A70: Determine the optimum number | B70: Optimale Anzahl berechnen | C70: Determine the optimum number | D70: Détermination du nombre optimal de capteurs | E70: numero ottimale da calcolare | F70: Optimale aantal berekenen | G70: Vypočítat optimální počet | H70: Vypočítať optimálny počet | I70: Obliczenie optymalnej ilości | J70: Az optimális darabszám meghatározása | K70: Optimilukumäärä | L70: Beregn det optimal antal
A71: Collector inclination | B71: Kollektorneigung | C71: Collector inclination | D71: Inclinaison des capteurs | E71: Pendenza collettore | F71: Collector hoek | G71: Sklon kolektorů | H71: Sklon kolektorov | I71: Nachylenie kolektora | J71: Kollektor dőlése | K71: Keräinkaltevuus | L71: Kollektorhældning
A72: Collector orientation | B72: Kollektorausrichtung | C72: Collector orientation | D72: Orientation des capteurs | E72: Orientamento collettore | F72: Collector orientatie | G72: Orientace kolektorů | H72: Orientácia kolektorov | I72: Ustawienie kolektora | J72: Kollektor iránya | K72: Katon suunta | L72: Kollektororientering
A73: South | B73: Süd | C73: South | D73: Sud | E73: Sud | F73: Zuid | G73: Jih | H73: Juh | I73: Południe | J73: Dél | K73: Etelä | L73: Syd
A74: Southeast | B74: Südost | C74: Southeast | D74: Sud-est | E74: Sudest | F74: Zuidoost | G74: Jihovýchod | H74: Juhovýchod | I74: Południowy wschód | J74: Dél-kelet | K74: Kaakko | L74: Sydøst
A75: Southwest | B75: Südwest | C75: Southwest | D75: Sud-ouest | E75: Sudovest | F75: Zuidwest | G75: Jihozápad | H75: Juhozápad | I75: Południowy zachód | J75: Dél-nyugat | K75: Lounas | L75: Sydvest
A76: East | B76: Ost | C76: East | D76: Est | E76: Est | F76: Oost | G76: Východ | H76: Východ | I76: Wschód | J76: Kelet | K76: Itä | L76: Øst
A77: West | B77: West | C77: West | D77: Ouest | E77: Ovest | F77: West | G77: Západ | H77: Západ | I77: Zachód | J77: Nyugat | K77: Länsi | L77: Vest
A78: Arrangement | B78: Kollektoranordnung | C78: Arrangement | D78: Disposition des capteurs | E78: Disposizione dei collettori | F78: Collectoropstelling | G78: Uspořádání kolektorů | H78: Usporiadanie kolektorov | I78: Układ kolektorów | J78: Kollektor elrendezése | K78: Järjestely | L78: Arrangering
A79: On end next to each other | B79: Senkrecht nebeneinander | C79: On end next to each other | D79: Vertical côte á côte | E79: Verticale adiacente | F79: Vertikaal naast elkaar | G79: Svisle vedle sebe | H79: Zvisle vedľa seba | I79: Pionowo obok siebie | J79: Függőlegesen egymás mellett | K79: S-mallit vierekkäin | L79: Lodret side om side
A80: Across above each other | B80: Waagerecht übereinander | C80: Across above each other | D80: Horizontal superposé | E80: Orizzontale sovrapposti | F80: Horizontaal boven elkaar | G80: Vodorovně nad sebou | H80: Vodorovne nad sebou | I80: Poziomo jeden nad drugim | J80: Vízszintesen egymás fölött | K80: W-mallit päällekkäin | L80: Vandret over hinanden
A81: Across next to each other | B81: Waagerecht nebeneinander | C81: Across next to each other | D81: Horizontal côte á côte | E81: Orizzontale adiacente | F81: Horizontaal naast elkaar | G81: Vodorovně vedle sebe | H81: Vodorovne vedľa seba | I81: Poziomo obok siebie | J81: Vízszintesen egymás mellett | K81: W-mallit vierekkäin | L81: Vandret side om side
A82: On end above each other | B82: Senkrecht übereinander | C82: On end above each other | D82: Vertical superposé | E82: Verticale sovrapposti | F82: Vertikaal boven elkaar | G82: Svisle nad sebou | H82: Zvisle nad sebou | I82: Pionowo jeden nad drugim | J82: Függőlegesen egymás fölött | K82: S-mallit päällekkäin | L82: Lodret over hinanden
A83: Shape of roof | B83: Dachform | C83: Shape of roof | D83: Forme du toit | E83: Forma del tetto | F83: Dak vorm | G83: Tvar střechy | H83: Tvar strechy | I83: Kształt dachu | J83: Tetőforma | K83: Katon tyyppi | L83: Tagtype
A84: Tiled roof | B84: Pfannendach | C84: Tiled roof | D84: Toit en tuiles | E84: Tetto a coppi | F84: Pannendak | G84: Tašková střecha | H84: Škridlová strecha | I84: Dach kryty dachówką holenderską | J84: Cseréptető | K84: Tiilikatto | L84: Tegltag
A85: Corrugated roof | B85: Welldach | C85: Corrugated roof | D85: Toit en tôles ondulées | E85: Tetto ondulato | F85: Golfplatendak | G85: Vlnitá střecha | H85: Vlnitá strecha | I85: Dach kryty blachą falistą | J85: Hullámtető | K85: Aaltopeltikatto | L85: Eternittag
A86: Fixing type | B86: Befestigungsart | C86: Fixing type | D86: Type de fixation | E86: Tipo di fissaggio | F86: Bevestigingswijze | G86: Druh upevnění | H86: Druh upevnenia | I86: Sposób mocowania | J86: Rögzítés módja | K86: Asennustapa | L86: Montagetype
A87: Standard fixings | B87: Standardbefestigung | C87: Standard fixings | D87: Fixation standard | E87: Fissaggio standard | F87: Standaard bevestiging | G87: Standardní upevnění | H87: Štandardné upevnenie | I87: Mocowanie standardowe | J87: Normál rögzítés | K87: Perusasennus | L87: Standard montering
A88: Support stands 15°- 30° | B88: Aufständerung 15°- 30° | C88: Support stands 15°- 30° | D88: Châssis d'inclinaison 15°- 30° | E88: Supporto da 15°- 30° | F88: Steun 15°- 30° | G88: Podpěra 15°-30° | H88: Oporný rám 15°-30° | I88: Stelaż 15°-30° | J88: Felállítási szög 15° – 30° | K88: Kulmaan tuettu 15-30° | L88: Elevation 15°-30°
A89: Quick assembly fixings | B89: Schnellbefestigung | C89: Quick assembly fixings | D89: Fixation rapide | E89: Fissaggio rapido | F89: Snelbevestiging | G89: Rychlé upevnění | H89: Rýchle upevnenie | I89: Szybkie mocowanie | J89: Gyorszáras rögzítés | K89: Pika-asennus | L89: Kvikmontering
A90: Slate roof | B90: Schiefer-Eindeckung | C90: Slate roof | D90: Toiture en ardoise | E90: Coperture in Ardesia | F90: Schiefer-dakbedekking | G90: Břidlice | H90: Bridlica | I90: Pokrycie łupkowe | J90: Pala borítás | K90: Konesaumapeltikatto | L90: Skifertag
A91: Shingle roof | B91: Schindel-Eindeckung | C91: Shingle roof | D91: Toiture en bardeaux | E91: Coperture Lamellare | F91: Schindel-dakbedekking | G91: Šindel | H91: Šindeľová krytina | I91: Pokrycie gontowe | J91: Zsindely borítás | K91: Pärekatto | L91: Singlestag
A92: Plain tile roof | B92: Biberschwanz-Eindeckung | C92: Plain tile roof | D92: Toitures en tuiles plates | E92: Tegole a coda di castoro | F92: Biberschwanz-dakbedekking | G92: Bobrovka | H92: Bobrovka | I92: Dachówka kurpiówka | J92: Hódfarkú cserép | K92: Kalansuomukatto (saksalainen) | L92: Bæverhaletegltag
A93: Click at desired collector arrangement | B93: Gewünschte Kollektoranordnung im Bild anklicken. | C93: Click at desired collector arrangement | D93: Cliquer la disposition souhaitée | E93: Scegliere la disposizione desiderata | F93: Gewenste collectorrangschikking aanklikken | G93: Zaklikněte uspořádání kolektorů | H93: Zakliknite želané usporiadanie kolektorov | I93: Kliknąć na odpowiednie usytuowanie kolektorów | J93: Klikkeljen a kívánt kollektorelrendezésre | K93: Klikkaa soveltuvaa keräinjärjestelyä | L93: Klik på ønsket kollektorarrangement
A95: Material composition | B95: Materialliste | C95: Material composition | D95: Choix du matériel | E95: Composizione materiali | F95: Materiaal samenstelling | G95: Soupis materiálu | H95: Súpis materiálu | I95: Wykaz materiałów | J95: Anyagok összetétele | K95: Osaluettelo | L95: Materialeliste
A96: Position | B96: Position | C96: Position | D96: Position | E96: Posizione | F96: Positie | G96: Pozice | H96: Pozícia | I96: Położenie | J96: Helyzet | K96: Positio | L96: Position
A97: Number | B97: Anzahl | C97: Number | D97: Quantité | E97: Numero | F97: Aantal | G97: Počet | H97: Počet | I97: Liczba | J97: Darabszám | K97: Lukumäärä | L97: Mængde
A98: ID | B98: Ident.-Nr. | C98: ID | D98: Code article | E98: No. ident. | F98: Identiteitsnr. | G98: Objed.číslo | H98: Objednávacie číslo | I98: Nr kat. | J98: Azonosító | K98: ID | L98: Varenr.
A99: Description | B99: Bezeichnung | C99: Description | D99: Désignation | E99: Descrizione | F99: Beschrijving | G99: Označení | H99: Označenie | I99: Nazwa | J99: Megnevezés | K99: Kuvaus | L99: Beskrivelse
A100: Price each | B100: Einzelpreis | C100: Price each | D100: Prix unitaire | E100: Prezzo unitario | F100: Stuks prijs | G100: Cena za jednotku | H100: Cena za jednotku | I100: Cena jedn. | J100: Darabár | K100: Kpl-hinta | L100: Stykpris
A101: Total price | B101: Gesamtpreis | C101: Total price | D101: Prix total | E101: Prezzo complessivo | F101: Totale prijs | G101: Celková cena | H101: Celková cena | I101: Razem | J101: Össz ár | K101: Hinta yhteensä | L101: Samlet pris
A102: Recommended retail price excl. VAT | B102: Empfohlener Richtpreis ohne Mehrwertsteuer | C102: Recommended retail price excl. VAT | D102: Prix indicatif H.T. | E102: Prezzo indicativo suggerito al netto di IVA | F102: Advies verkoopprijs excl. BTW | G102: Doporučená cena bez DPH | H102: Doporučená cena bez DPH | I102: Zalecana cena orientacyjna netto | J102: Ajánlott ár ÁFA nélkül | K102: Bruttohinta (alv. 0 %) | L102: Vejl. udsalgspris ekskl. moms
A103: Add product | B103: Artikel hinzufügen | C103: Add product | D103: Ajouter un article | E103: Aggiunta di un articolo | F103: Toevoegen van een product | G103: Zaveďte výrobek | H103: Pridať položku | I103: Kliknij dwukrotnie | J103: Cikk hozzáfűtése | K103: Lisää tuote | L103: Tilføj produkt
A104: Reset standard values | B104: Standard wiederherstellen | C104: Reset standard values | D104: Restaurer les valeurs standards | E104: Ripristina predefinito | F104: Standaard terugzetten | G104: Standard opravit | H104: Späť na štandard | I104: Powrót do standardowego | J104: Alaphelyzet visszaállítása | K104: Palauta oletusarvot | L104: Gendan standardværdier
A105: Optional accessories | B105: Optionales Zubehör | C105: Optional accessories | D105: Accessoires en option | E105: Accessori opzionali | F105: Optionele toebehoren | G105: Možné příslušenství | H105: Možné príslušenstvo | I105: Opcjonalne wyposażenie dodatkowe | J105: Opcionális tartozék | K105: Vaihtoehtoiset lisävarusteet | L105: Ekstra tilbehør
A106: SOKI with integral control unit | B106: SOKI mit integrierter Regelung | C106: SOKI with integral control unit | D106: SOKI à régulation intégrée | E106: SOKI con regolazione integrata | F106: SOKI met geïntergreerde regeling | G106: SOKI s vestavěnou regulací | H106: SOKI s integrovanou reguláciou | I106: SOKI ze zintegrowaną regulacją | J106: Kompakt szolárrendszer integrált szabályozással | K106: SOKI integroidulla ohjausyksiköllä | L106: SOKI med ingreret styring
A107: SOKI installation at the SBB...Plus | B107: SOKI Montage an SBB...Plus | C107: SOKI installation at the SBB...Plus | D107: Montage SOKI sur SBB...Plus | E107: SOKI Montaggio su SBB...Plus | F107: SOKI installatie op SBB… Plus | G107: Montáž SOKI na SBB...plus | H107: Montáž SOKI na SBB ... Plus | I107: Montaż SOKI w SBB...Plus | J107: Kompakt szolárrendszer szerelése SBB...Plus-ra | K107: SOKI-asennus SBB..plussaan | L107: SOKI montage på SBB…Plus
A108: Heat metering | B108: Wärmemengenzählung | C108: Heat metering | D108: Compteur de chaleur | E108: Contatore quantità di calore | F108: Warmtehoeveelheidsmeting | G108: Měřič tepla | H108: Merač tepla | I108: Licznik ciepła | J108: Hőmennyiségmérés | K108: Lämpömäärän mittaus | L108: Energimåler
A109: Heating diverter valve | B109: Heizungsumschaltventil | C109: Heating diverter valve | D109: Vanne d'inversion chauffage | E109: Valvola di interscambio riscaldamento | F109: Verwarmingsomschakelventiel | G109: Přepínací ventil vytápění | H109: Prepínací ventil vykurovania | I109: Zawór przełączający ogrzewania | J109: Fűtéskapcsoló szelep | K109: Lämmönjakoventtiili | L109: Varme-omskifterventil
A110: Threaded immersion heater BGC | B110: Elektrische Nacherwärmung | C110: Threaded immersion heater BGC | D110: Corps de chauffe à visser BGC | E110: Riscaldatore a vite BGC | F110: Verwarmingselement BGC | G110: Šroubovatelné topné těleso BGC | H110: Skrutkovacie ohrievacie teleso BGC | I110: Grzałka wkręcana BGC | J110: BGC becsavarható fűtőtest | K110: Lisäsähkövastus BGC | L110: Elektrisk varmelegeme BGC
A111: Central thermostatic valve | B111: Zentral-Thermostatarmatur | C111: Central thermostatic valve | D111: Mitigeur thermostatique ECS | E111: Miscelatore termostatico centrale | F111: Centraal thermostaatventiel | G111: Centrální termostatická armatura | H111: Centrálna termostatická batéria | I111: Centralna armatura termostatyczna | J111: Központi termosztát | K111: Kolmitiesekoitusventtiili | L111: Central-thermostatiskventil
A112: Heat transfer medium H-30 LS | B112: Wärmeträger-Flüssigkeit H-30 LS | C112: Heat transfer medium H-30 LS | D112: Fluide caloporteur H-30 LS | E112: Termovettore - liquido H-30 LS | F112: Warmtedragervloeistof H-30 LS | G112: Nemrznoucí kapalina H-30 LS | H112: Nemrznúca kvapalina H-30 LS | I112: Ciecz przenosząca ciepło H-30 LS | J112: Hőhordozó folyadék H-30 LS | K112: Lämmönsiirtoaine H-30 LS | L112: Varmeoverførselsvæske
A113: Please enter product number and description. | B113: Bitte Artikelnummer oder -bezeichnung eingeben. | C113: Please enter product number and description. | D113: Merci d'entrer le code article ou sa désignation. | E113: Inserire il numero di articolo o descrizione. | F113: Gelieve artikelnummer of beschrijving opgeven | G113: Prosím zadejte objednací číslo nebo označení | H113: Prosím zadajte objednávacie číslo alebo označenie | I113: Podaj numer lub nazwę artykułu. | J113: Kérjük, adja meg a cikk számát vagy megnevezését. | K113: Anna tuotenumero tai kuvaus. | L113: Indtast varenr. og beskrivelse
A114: Search... | B114: Suchen... | C114: Search... | D114: Rechercher... | E114: Ricerca in corso... | F114: Zoeken… | G114: Hledat... | H114: Hľadať... | I114: Znajdź... | J114: Keresés... | K114: Hae… | L114: Søg…
A115: Add to material list | B115: Zu Materialliste hinzufügen | C115: Add to material list | D115: Ajouter à la liste de matériel | E115: Aggiungere all'elenco materiali | F115: Toevoegen aan materiaallijst | G115: Zavést do seznamu výrobků | H115: Pridať do zoznamu výrobkov | I115: Dodaj do listy materiałów | J115: Hozzáfűzés az anyaglistához | K115: Lisää osaluetteloon | L115: Tilføj til materialeliste
A116: Remove from material list | B116: Aus Materialliste entfernen | C116: Remove from material list | D116: Supprimer de la liste de matériel | E116: Rimuovere dall'elenco materiali | F116: Verwijderen uit materiaallijst | G116: Odstranit ze seznamu výrobků | H116: Odstrániť zo zoznamu výrobkov | I116: Usuń z listy materiałów | J116: Eltávolítás az anyaglistából | K116: Poista osaluettelosta | L116: Fjern fra materialeliste
A117: Close window | B117: Fenster schließen | C117: Close window | D117: Fermer la fenêtre | E117: Chiudi finestra | F117: Venster sluiten | G117: Zavřít okno | H117: Zavrieť okno | I117: Zamknij okno | J117: Ablak bezárása | K117: Sulje ikkuna | L117: Luk vindue
A118: The DHW cylinder determined by reference to collector number is not sufficient for the specified DHW demand. This cylinder is recommended: | B118: Der anhand der Kollektorzahl ermittelte Standard-Systemspeicher ist für den angegebenen Warmwasserbedarf nicht ausreichend. Für die gewählte Anlagenkonfiguration wird folgender Speichertyp empfohlen: | C118: The DHW cylinder determined by reference to collector number is not sufficient for the specified DHW demand. This cylinder is recommended: | D118: Le ballon ECS préconisé en fonction du nombre de capteur n'est pas suffisant pour couvrir les besoins ECS. Pour la configuration choisie, nous préconisons le ballon suivant : | E118: In base alla scelta del numero dei collettori solari, con il sistema standard, il bollitore non è sufficiente alla richiesta dell'acqua calda. Per il sistema scelto viene consigliato il seguente tipo: | F118: De boiler, welke gekozen is aan de hand van het aantal collectoren, is niet toereikend voor het gekozen warmwater gebruik. Voor de gekozen configuratie wordt de volgende boiler aanbevolen: | G118: Standardní systémový zásobník zvolený na základě počtu kolektorů je pro zadanou potřebu teplé vody nedostatečný. Pro zvolenou konfiguraci zařízení doporučujeme následující typ zásobníku: | H118: Štandardný zásobník zvolený na základe počtu kolektorov je pre udanú spotrebu teplej vody nedostatočný. Pre zvolenú konfiguráciu systému doporučujeme nasledujúci typ zásobníka: | I118: Der anhand der Kollektorzahl ermittelte Standard-Systemspeicher ist für den angegebenen Warmwasserbedarf nicht ausreichend. Für die gewählte Anlagenkonfiguration wird folgender Speichertyp empfohlen: | J118: A kollektorszámból adódó tárolókapacitás nem elég a megadott melegvízigényhez. A kiválasztott rendszerkonfigurációhoz a következő tároló(k) ajánlott: | K118: Esivalittu käyttövesivaraaja ei sovellu optimaalisesti osaluettelon keräinmäärälle. Seuraavaa varaajaa suositellaan: | L118: Varmtvandsbeholderen valgt på baggrund af kollektor antallet, er ikke tilstrækkelig til det specificerede varmtvandsforbrug. Det anbefales at benytte denne beholder:
A119: Do you want to replace DHW cylinder ? | B119: Soll der vorhandene Speicher ersetzt werden ? | C119: Do you want to replace DHW cylinder ? | D119: Le ballon ECS existant doit-il être remplacé? | E119: Sostituire l'accumulatore esistente? | F119: Dient de huidige boiler verwijderd te worden? | G119: Má být použit stávající zásobník | H119: Má byť zásobník nahradený? | I119: Czy istniejący zasobnik ma być wymieniony ? | J119: Kicseréli a tárolót? | K119: Korvataanko käyttövesivaraaja? | L119: Vil du ændre varmtvandsbeholder ?
A120: Print material list | B120: Materialliste drucken | C120: Print material list | D120: Imprimer la liste de matériel | E120: Stampa lista del materiale | F120: Materiaallijst afdrukken | G120: Výpis materiálu - tisk | H120: Výpis materiálu- tlač | I120: Drukowanie listy materiałowej | J120: Anyaglista nyomtatása | K120: Tulosta osaluettelo | L120: Udskriv materialeliste
A121: Printout with prices | B121: Ausdruck mit Preisen | C121: Printout with prices | D121: Imprimer avec les prix | E121: Richiedi tariffe | F121: Afdrukken met prijzen | G121: Získat sazby | H121: Získať sadzby | I121: Sprawdź cenę | J121: Tarifák | K121: Tulosta hintojen kanssa | L121: Udskriv med priser
A122: Printout without prices | B122: Ausdruck ohne Preise | C122: Printout without prices | D122: Imprimer sans les prix | E122: Printout without prices | F122: Afdrukken zonder prijzen | G122: Printout without prices | H122: Printout without prices | I122: Printout without prices | J122: Printout without prices | K122: Tulosta ilman hintoja | L122: Udskriv uden priser
A123: Export material-list | B123: Excel-Blatt exportieren | C123: Export material-list | D123: Exporter le fichier Excel | E123: Esportare | F123: Excel blad exporteren | G123: Exportovat do Excelu | H123: Exportovať do excelu | I123: zapisać w pamieci | J123: Excell tábla exprtálása | K123: Tallenna osaluettelo | L123: Eksporter materialeliste
A124: Edit pricelist | B124: Preisliste bearbeiten | C124: Edit pricelist | D124: Modifier le tarif | E124: Modifica listino prezzi | F124: Bewerking prijslijst | G124: Zpracovávání ceníku | H124: Spracovať cenník | I124: Edytuj cennik | J124: Árlista szerkesztés | K124: Muokkaa hintaluetteloa | L124: Rediger prisliste
